Workbook

Sheet IS-Input (hidden)
A1: Income Statement
B2: Year | C2: Year | D2: Year | E2: Year | F2: Year | G2: Year | H2: Year | I2: Year | J2: Year | K2: Year | L2: Year | M2: Year | N2: Year | O2: Year | P2: Year | Q2: Year | R2: Year | S2: Year | T2: Year | U2: Year | V2: Year | W2: Year | X2: Year | Y2: Year | Z2: Year | AA2: Year | AB2: Year | AC2: Year | AD2: Year | AE2: Year
B3: ='Income Statement (Results)'!B8 -> 2020 | C3: ='Income Statement (Results)'!C8 -> 2021 | D3: ='Income Statement (Results)'!D8 -> 2022 | E3: ='Income Statement (Results)'!E8 -> 2023 | F3: ='Income Statement (Results)'!F8 -> 2024 | G3: ='Income Statement (Results)'!G8 -> 2025 | H3: ='Income Statement (Results)'!H8 -> 2026 | I3: ='Income Statement (Results)'!I8 -> 2027 | J3: ='Income Statement (Results)'!J8 -> 2028 | K3: ='Income Statement (Results)'!K8 -> 2029 | L3: ='Income Statement (Results)'!L8 -> 2030 | M3: ='Income Statement (Results)'!M8 -> 2031 | N3: ='Income Statement (Results)'!N8 -> 2032 | O3: ='Income Statement (Results)'!O8 -> 2033 | P3: ='Income Statement (Results)'!P8 -> 2034 | Q3: ='Income Statement (Results)'!Q8 -> 2035 | R3: ='Income Statement (Results)'!R8 -> 2036 | S3: ='Income Statement (Results)'!S8 -> 2037 | T3: ='Income Statement (Results)'!T8 -> 2038 | U3: ='Income Statement (Results)'!U8 -> 2039 | V3: ='Income Statement (Results)'!V8 -> 2040 | W3: ='Income Statement (Results)'!W8 -> 2041 | X3: ='Income Statement (Results)'!X8 -> 2042 | Y3: ='Income Statement (Results)'!Y8 -> 2043 | Z3: ='Income Statement (Results)'!Z8 -> 2044 | AA3: ='Income Statement (Results)'!AA8 -> 2045 | AB3: ='Income Statement (Results)'!AB8 -> 2046 | AC3: ='Income Statement (Results)'!AC8 -> 2047 | AD3: ='Income Statement (Results)'!AD8 -> 2048 | AE3: ='Income Statement (Results)'!AE8 -> 2049
A5: Operating Revenues:
A6: Weather-Sensitive Revenue | B6: ='Income Statement (Results)'!B10 -> 249088.1535 | C6: ='Income Statement (Results)'!C10 -> 4725087.605 | D6: ='Income Statement (Results)'!D10 -> 7490807.36 | E6: ='Income Statement (Results)'!E10 -> 7764850.891 | F6: ='Income Statement (Results)'!F10 -> 7632005.391 | G6: ='Income Statement (Results)'!G10 -> 7499796.584 | H6: ='Income Statement (Results)'!H10 -> 7377352.593 | I6: ='Income Statement (Results)'!I10 -> 7248722.198 | J6: ='Income Statement (Results)'!J10 -> 7146756.458 | K6: ='Income Statement (Results)'!K10 -> 7024525.448 | L6: ='Income Statement (Results)'!L10 -> 6890225.21 | M6: ='Income Statement (Results)'!M10 -> 6777556.968 | N6: ='Income Statement (Results)'!N10 -> 6650648.455 | O6: ='Income Statement (Results)'!O10 -> 6516833.609 | P6: ='Income Statement (Results)'!P10 -> 6383036.191 | Q6: ='Income Statement (Results)'!Q10 -> 6285815.52 | R6: ='Income Statement (Results)'!R10 -> 6196610.379 | S6: ='Income Statement (Results)'!S10 -> 6072776.386 | T6: ='Income Statement (Results)'!T10 -> 5936396.433 | U6: ='Income Statement (Results)'!U10 -> 5801290.218 | V6: ='Income Statement (Results)'!V10 -> 5666049.525 | W6: ='Income Statement (Results)'!W10 -> 5530636.174 | X6: ='Income Statement (Results)'!X10 -> 5514657.942 | Y6: ='Income Statement (Results)'!Y10 -> 5396009.855 | Z6: ='Income Statement (Results)'!Z10 -> 5258136.506 | AA6: ='Income Statement (Results)'!AA10 -> 5123088.41 | AB6: ='Income Statement (Results)'!AB10 -> 4987794.542 | AC6: ='Income Statement (Results)'!AC10 -> 4853616.169 | AD6: ='Income Statement (Results)'!AD10 -> 4722082.837 | AE6: ='Income Statement (Results)'!AE10 -> 4591745.655
A7: Non-Weather-Sensitive Revenue
A8: Other Revenue
A9: Electric Revenue | B9: =SUM(B6:B8) -> 249088.1535 | C9: =SUM(C6:C8) -> 4725087.605 | D9: =SUM(D6:D8) -> 7490807.36 | E9: 7764850.891 | F9: 7632005.391 | G9: 7499796.584 | H9: 7377352.593 | I9: 7248722.198 | J9: 7146756.458 | K9: 7024525.448 | L9: 6890225.21 | M9: 6777556.968 | N9: 6650648.455 | O9: 6516833.609 | P9: 6383036.191 | Q9: 6285815.52 | R9: 6196610.379 | S9: 6072776.386 | T9: 5936396.433 | U9: 5801290.218 | V9: 5666049.525 | W9: =SUM(W6:W8) -> 5530636.174 | X9: 5514657.942 | Y9: 5396009.855 | Z9: 5258136.506 | AA9: 5123088.41 | AB9: 4987794.542 | AC9: 4853616.169 | AD9: 4722082.837 | AE9: 4591745.655
A10: Weather-Sensitive Revenue
A11: Non-Weather-Sensitive Revenue
A12: Other Revenue
A13: Gas Revenue
A14: Other Revenue | B14: ='Income Statement (Results)'!B11 -> 0 | C14: ='Income Statement (Results)'!C11 -> 0 | D14: ='Income Statement (Results)'!D11 -> 0 | E14: ='Income Statement (Results)'!E11 -> 0 | F14: ='Income Statement (Results)'!F11 -> 0 | G14: ='Income Statement (Results)'!G11 -> 0 | H14: ='Income Statement (Results)'!H11 -> 0 | I14: ='Income Statement (Results)'!I11 -> 0 | J14: ='Income Statement (Results)'!J11 -> 0 | K14: ='Income Statement (Results)'!K11 -> 0 | L14: ='Income Statement (Results)'!L11 -> 0 | M14: ='Income Statement (Results)'!M11 -> 0 | N14: ='Income Statement (Results)'!N11 -> 0 | O14: ='Income Statement (Results)'!O11 -> 0 | P14: ='Income Statement (Results)'!P11 -> 0 | Q14: ='Income Statement (Results)'!Q11 -> 0 | R14: ='Income Statement (Results)'!R11 -> 0 | S14: ='Income Statement (Results)'!S11 -> 0 | T14: ='Income Statement (Results)'!T11 -> 0 | U14: ='Income Statement (Results)'!U11 -> 0 | V14: ='Income Statement (Results)'!V11 -> 0 | W14: ='Income Statement (Results)'!W11 -> 0 | X14: ='Income Statement (Results)'!X11 -> 0 | Y14: ='Income Statement (Results)'!Y11 -> 0 | Z14: ='Income Statement (Results)'!Z11 -> 0 | AA14: ='Income Statement (Results)'!AA11 -> 0 | AB14: ='Income Statement (Results)'!AB11 -> 0 | AC14: ='Income Statement (Results)'!AC11 -> 0 | AD14: ='Income Statement (Results)'!AD11 -> 0 | AE14: ='Income Statement (Results)'!AE11 -> 0
A15: Total Operating Revenue | B15: =B9+B13+B14 -> 249088.1535 | C15: =C9+C13+C14 -> 4725087.605 | D15: 7490807.36 | E15: 7764850.891 | F15: 7632005.391 | G15: 7499796.584 | H15: 7377352.593 | I15: 7248722.198 | J15: 7146756.458 | K15: 7024525.448 | L15: 6890225.21 | M15: 6777556.968 | N15: 6650648.455 | O15: 6516833.609 | P15: 6383036.191 | Q15: 6285815.52 | R15: 6196610.379 | S15: 6072776.386 | T15: 5936396.433 | U15: 5801290.218 | V15: 5666049.525 | W15: =W9+W13+W14 -> 5530636.174 | X15: 5514657.942 | Y15: 5396009.855 | Z15: 5258136.506 | AA15: 5123088.41 | AB15: 4987794.542 | AC15: 4853616.169 | AD15: 4722082.837 | AE15: 4591745.655
A17: Operating Expenses:
A18: Total Purchased Electricity | B18: ='Income Statement (Results)'!B17 -> 0 | C18: ='Income Statement (Results)'!C17 -> 0 | D18: ='Income Statement (Results)'!D17 -> 0 | E18: ='Income Statement (Results)'!E17 -> 0 | F18: ='Income Statement (Results)'!F17 -> 0 | G18: ='Income Statement (Results)'!G17 -> 0 | H18: ='Income Statement (Results)'!H17 -> 0 | I18: ='Income Statement (Results)'!I17 -> 0 | J18: ='Income Statement (Results)'!J17 -> 0 | K18: ='Income Statement (Results)'!K17 -> 0 | L18: ='Income Statement (Results)'!L17 -> 0 | M18: ='Income Statement (Results)'!M17 -> 0 | N18: ='Income Statement (Results)'!N17 -> 0 | O18: ='Income Statement (Results)'!O17 -> 0 | P18: ='Income Statement (Results)'!P17 -> 0 | Q18: ='Income Statement (Results)'!Q17 -> 0 | R18: ='Income Statement (Results)'!R17 -> 0 | S18: ='Income Statement (Results)'!S17 -> 0 | T18: ='Income Statement (Results)'!T17 -> 0 | U18: ='Income Statement (Results)'!U17 -> 0 | V18: ='Income Statement (Results)'!V17 -> 0 | W18: ='Income Statement (Results)'!W17 -> 0 | X18: ='Income Statement (Results)'!X17 -> 0 | Y18: ='Income Statement (Results)'!Y17 -> 0 | Z18: ='Income Statement (Results)'!Z17 -> 0 | AA18: ='Income Statement (Results)'!AA17 -> 0 | AB18: ='Income Statement (Results)'!AB17 -> 0 | AC18: ='Income Statement (Results)'!AC17 -> 0 | AD18: ='Income Statement (Results)'!AD17 -> 0 | AE18: ='Income Statement (Results)'!AE17 -> 0
A19: Total Purchased Gas
A20: Electric Generation Fuel
A21: Less: Residential/Farm Exchange Credit
A22: Operation & Maintenance | B22: ='Income Statement (Results)'!B15+'Income Statement (Results)'!B16 -> 3500 | C22: ='Income Statement (Results)'!C15+'Income Statement (Results)'!C16 -> 172798.5437 | D22: ='Income Statement (Results)'!D15+'Income Statement (Results)'!D16 -> 334391 | E22: ='Income Statement (Results)'!E15+'Income Statement (Results)'!E16 -> 340945.55 | F22: ='Income Statement (Results)'!F15+'Income Statement (Results)'!F16 -> 347681.55 | G22: ='Income Statement (Results)'!G15+'Income Statement (Results)'!G16 -> 354599.366 | H22: ='Income Statement (Results)'!H15+'Income Statement (Results)'!H16 -> 361762.6895 | I22: ='Income Statement (Results)'!I15+'Income Statement (Results)'!I16 -> 369051.7862 | J22: ='Income Statement (Results)'!J15+'Income Statement (Results)'!J16 -> 376739.1639 | K22: ='Income Statement (Results)'!K15+'Income Statement (Results)'!K16 -> 384422.5588 | L22: ='Income Statement (Results)'!L15+'Income Statement (Results)'!L16 -> 392308.5588 | M22: ='Income Statement (Results)'!M15+'Income Statement (Results)'!M16 -> 400554.7594 | N22: ='Income Statement (Results)'!N15+'Income Statement (Results)'!N16 -> 408875.7594 | O22: ='Income Statement (Results)'!O15+'Income Statement (Results)'!O16 -> 417431.8032 | P22: ='Income Statement (Results)'!P15+'Income Statement (Results)'!P16 -> 426217.8032 | Q22: ='Income Statement (Results)'!Q15+'Income Statement (Results)'!Q16 -> 435494.8822 | R22: ='Income Statement (Results)'!R15+'Income Statement (Results)'!R16 -> 444998.5614 | S22: ='Income Statement (Results)'!S15+'Income Statement (Results)'!S16 -> 454549.3332 | T22: ='Income Statement (Results)'!T15+'Income Statement (Results)'!T16 -> 464363.3332 | U22: ='Income Statement (Results)'!U15+'Income Statement (Results)'!U16 -> 474464.5012 | V22: ='Income Statement (Results)'!V15+'Income Statement (Results)'!V16 -> 484847.5012 | W22: ='Income Statement (Results)'!W15+'Income Statement (Results)'!W16 -> 495529.5012 | X22: ='Income Statement (Results)'!X15+'Income Statement (Results)'!X16 -> 509675.151 | Y22: ='Income Statement (Results)'!Y15+'Income Statement (Results)'!Y16 -> 523530.6492 | Z22: ='Income Statement (Results)'!Z15+'Income Statement (Results)'!Z16 -> 537801.8123 | AA22: ='Income Statement (Results)'!AA15+'Income Statement (Results)'!AA16 -> 552501.1104 | AB22: ='Income Statement (Results)'!AB15+'Income Statement (Results)'!AB16 -> 567641.3874 | AC22: ='Income Statement (Results)'!AC15+'Income Statement (Results)'!AC16 -> 583235.8727 | AD22: ='Income Statement (Results)'!AD15+'Income Statement (Results)'!AD16 -> 599298.1925 | AE22: ='Income Statement (Results)'!AE15+'Income Statement (Results)'!AE16 -> 615842.382
A23: Conservation
A24: FAS-133 Unrealized (Gain)/Loss
A25: Depreciation and Amortization | B25: ='Income Statement (Results)'!B18 -> 9259.259259 | C25: ='Income Statement (Results)'!C18 -> 188888.8889 | D25: ='Income Statement (Results)'!D18 -> 1079629.63 | E25: ='Income Statement (Results)'!E18 -> 1466684.722 | F25: ='Income Statement (Results)'!F18 -> 1466883.333 | G25: ='Income Statement (Results)'!G18 -> 1466902.444 | H25: ='Income Statement (Results)'!H18 -> 1467383.792 | I25: ='Income Statement (Results)'!I18 -> 1470386.392 | J25: ='Income Statement (Results)'!J18 -> 1471439.731 | K25: ='Income Statement (Results)'!K18 -> 1480600.642 | L25: ='Income Statement (Results)'!L18 -> 1480836.133 | M25: ='Income Statement (Results)'!M18 -> 1481416.294 | N25: ='Income Statement (Results)'!N18 -> 1487798.067 | O25: ='Income Statement (Results)'!O18 -> 1487822.05 | P25: ='Income Statement (Results)'!P18 -> 1488085.867 | Q25: ='Income Statement (Results)'!Q18 -> 1489066.339 | R25: ='Income Statement (Results)'!R18 -> 1500727.244 | S25: ='Income Statement (Results)'!S18 -> 1510386.939 | T25: ='Income Statement (Results)'!T18 -> 1510682.533 | U25: ='Income Statement (Results)'!U18 -> 1510710.978 | V25: ='Income Statement (Results)'!V18 -> 1511023.867 | W25: ='Income Statement (Results)'!W18 -> 1511023.867 | X25: ='Income Statement (Results)'!X18 -> 1529900.324 | Y25: ='Income Statement (Results)'!Y18 -> 1539338.552 | Z25: ='Income Statement (Results)'!Z18 -> 1539338.552 | AA25: ='Income Statement (Results)'!AA18 -> 1539338.552 | AB25: ='Income Statement (Results)'!AB18 -> 1539338.552 | AC25: ='Income Statement (Results)'!AC18 -> 1539338.552 | AD25: ='Income Statement (Results)'!AD18 -> 1539338.552 | AE25: ='Income Statement (Results)'!AE18 -> 1539338.552
A26: Muni Tax for Electric
A27: Muni Tax for Gas
A28: Utility Tax | B28: ='Income Statement (Results)'!B19 -> 9647.184187 | C28: ='Income Statement (Results)'!C19 -> 183002.6429 | D28: ='Income Statement (Results)'!D19 -> 290118.969 | E28: ='Income Statement (Results)'!E19 -> 300732.675 | F28: ='Income Statement (Results)'!F19 -> 295587.5688 | G28: ='Income Statement (Results)'!G19 -> 290467.1217 | H28: ='Income Statement (Results)'!H19 -> 285724.8659 | I28: ='Income Statement (Results)'!I19 -> 280743.0107 | J28: ='Income Statement (Results)'!J19 -> 276793.8776 | K28: ='Income Statement (Results)'!K19 -> 272059.8706 | L28: ='Income Statement (Results)'!L19 -> 266858.4224 | M28: ='Income Statement (Results)'!M19 -> 262494.7814 | N28: ='Income Statement (Results)'!N19 -> 257579.6147 | O28: ='Income Statement (Results)'!O19 -> 252396.9657 | P28: ='Income Statement (Results)'!P19 -> 247214.9917 | Q28: ='Income Statement (Results)'!Q19 -> 243449.6351 | R28: ='Income Statement (Results)'!R19 -> 239994.72 | S28: ='Income Statement (Results)'!S19 -> 235198.6294 | T28: ='Income Statement (Results)'!T19 -> 229916.6338 | U28: ='Income Statement (Results)'!U19 -> 224683.9701 | V28: ='Income Statement (Results)'!V19 -> 219446.0981 | W28: ='Income Statement (Results)'!W19 -> 214201.539 | X28: ='Income Statement (Results)'!X19 -> 213582.7021 | Y28: ='Income Statement (Results)'!Y19 -> 208987.4617 | Z28: ='Income Statement (Results)'!Z19 -> 203647.6269 | AA28: ='Income Statement (Results)'!AA19 -> 198417.2141 | AB28: ='Income Statement (Results)'!AB19 -> 193177.2826 | AC28: ='Income Statement (Results)'!AC19 -> 187980.5542 | AD28: ='Income Statement (Results)'!AD19 -> 182886.2683 | AE28: ='Income Statement (Results)'!AE19 -> 177838.3092
A29: Property Taxes | B29: ='Income Statement (Results)'!B20 -> 408 | C29: ='Income Statement (Results)'!C20 -> 3835.2 | D29: ='Income Statement (Results)'!D20 -> 5385.6 | E29: ='Income Statement (Results)'!E20 -> 5386.1304 | F29: ='Income Statement (Results)'!F20 -> 5386.1304 | G29: ='Income Statement (Results)'!G20 -> 5386.691808 | H29: ='Income Statement (Results)'!H20 -> 5394.656376 | I29: ='Income Statement (Results)'!I20 -> 5395.250506 | J29: ='Income Statement (Results)'!J20 -> 5419.657963 | K29: ='Income Statement (Results)'!K20 -> 5420.286854 | L29: ='Income Statement (Results)'!L20 -> 5420.286854 | M29: ='Income Statement (Results)'!M20 -> 5437.329667 | N29: ='Income Statement (Results)'!N20 -> 5437.329667 | O29: ='Income Statement (Results)'!O20 -> 5438.034202 | P29: ='Income Statement (Results)'!P20 -> 5438.034202 | Q29: ='Income Statement (Results)'!Q20 -> 5466.836554 | R29: ='Income Statement (Results)'!R20 -> 5492.561443 | S29: ='Income Statement (Results)'!S20 -> 5493.350842 | T29: ='Income Statement (Results)'!T20 -> 5493.350842 | U29: ='Income Statement (Results)'!U20 -> 5494.186426 | V29: ='Income Statement (Results)'!V20 -> 5494.186426 | W29: ='Income Statement (Results)'!W20 -> 5494.186426 | X29: ='Income Statement (Results)'!X20 -> 5575.053168 | Y29: ='Income Statement (Results)'!Y20 -> 5575.053168 | Z29: ='Income Statement (Results)'!Z20 -> 5575.053168 | AA29: ='Income Statement (Results)'!AA20 -> 5575.053168 | AB29: ='Income Statement (Results)'!AB20 -> 5575.053168 | AC29: ='Income Statement (Results)'!AC20 -> 5575.053168 | AD29: ='Income Statement (Results)'!AD20 -> 5575.053168 | AE29: ='Income Statement (Results)'!AE20 -> 5575.053168
A30: Taxes Other Than Income Tax | B30: =SUM(B26:B29) -> 10055.18419 | C30: =SUM(C26:C29) -> 186837.8429 | D30: =SUM(D26:D29) -> 295504.569 | E30: 306118.8054 | F30: 300973.6992 | G30: 295853.8135 | H30: 291119.5223 | I30: 286138.2612 | J30: 282213.5356 | K30: 277480.1575 | L30: 272278.7092 | M30: 267932.111 | N30: 263016.9443 | O30: 257834.9999 | P30: 252653.0259 | Q30: 248916.4716 | R30: 245487.2814 | S30: 240691.9803 | T30: 235409.9847 | U30: 230178.1566 | V30: 224940.2845 | W30: =SUM(W26:W29) -> 219695.7254 | X30: 219157.7553 | Y30: 214562.5149 | Z30: 209222.6801 | AA30: 203992.2673 | AB30: 198752.3358 | AC30: 193555.6074 | AD30: 188461.3214 | AE30: 183413.3624
A31: Current Income Tax | B31: ='Income Statement (Results)'!B22+'Cash Flow Statement (Results)'!B14 -> 77485.40747 | C31: ='Income Statement (Results)'!C22+'Cash Flow Statement (Results)'!C14 -> 1560872.784 | D31: ='Income Statement (Results)'!D22+'Cash Flow Statement (Results)'!D14 -> 2232090.316 | E31: ='Income Statement (Results)'!E22+'Cash Flow Statement (Results)'!E14 -> 2214816.504 | F31: ='Income Statement (Results)'!F22+'Cash Flow Statement (Results)'!F14 -> 2160713.659 | G31: ='Income Statement (Results)'!G22+'Cash Flow Statement (Results)'!G14 -> 2106814.206 | H31: ='Income Statement (Results)'!H22+'Cash Flow Statement (Results)'!H14 -> 2055326.848 | I31: ='Income Statement (Results)'!I22+'Cash Flow Statement (Results)'!I14 -> 2001126.217 | J31: ='Income Statement (Results)'!J22+'Cash Flow Statement (Results)'!J14 -> 1955014.123 | K31: ='Income Statement (Results)'!K22+'Cash Flow Statement (Results)'!K14 -> 1900146.498 | L31: ='Income Statement (Results)'!L22+'Cash Flow Statement (Results)'!L14 -> 1845906.617 | M31: ='Income Statement (Results)'!M22+'Cash Flow Statement (Results)'!M14 -> 1797266.298 | N31: ='Income Statement (Results)'!N22+'Cash Flow Statement (Results)'!N14 -> 1742296.074 | O31: ='Income Statement (Results)'!O22+'Cash Flow Statement (Results)'!O14 -> 1688089.107 | P31: ='Income Statement (Results)'!P22+'Cash Flow Statement (Results)'!P14 -> 1633441.158 | Q31: ='Income Statement (Results)'!Q22+'Cash Flow Statement (Results)'!Q14 -> 1588127.401 | R31: ='Income Statement (Results)'!R22+'Cash Flow Statement (Results)'!R14 -> 1540665.378 | S31: ='Income Statement (Results)'!S22+'Cash Flow Statement (Results)'!S14 -> 1484908.866 | T31: ='Income Statement (Results)'!T22+'Cash Flow Statement (Results)'!T14 -> 1429679.527 | U31: ='Income Statement (Results)'!U22+'Cash Flow Statement (Results)'!U14 -> 1374725.757 | V31: ='Income Statement (Results)'!V22+'Cash Flow Statement (Results)'!V14 -> 1319438.591 | W31: ='Income Statement (Results)'!W22+'Cash Flow Statement (Results)'!W14 -> 1264473.527 | X31: ='Income Statement (Results)'!X22+'Cash Flow Statement (Results)'!X14 -> 1238553.584 | Y31: ='Income Statement (Results)'!Y22+'Cash Flow Statement (Results)'!Y14 -> 1177075.114 | Z31: ='Income Statement (Results)'!Z22+'Cash Flow Statement (Results)'!Z14 -> 1122600.932 | AA31: ='Income Statement (Results)'!AA22+'Cash Flow Statement (Results)'!AA14 -> 1066669.424 | AB31: ='Income Statement (Results)'!AB22+'Cash Flow Statement (Results)'!AB14 -> 1011762.575 | AC31: ='Income Statement (Results)'!AC22+'Cash Flow Statement (Results)'!AC14 -> 956840.5392 | AD31: ='Income Statement (Results)'!AD22+'Cash Flow Statement (Results)'!AD14 -> 900437.7296 | AE31: ='Income Statement (Results)'!AE22+'Cash Flow Statement (Results)'!AE14 -> 843527.6439
A32: Deferred Tax | B32: ='Income Statement (Results)'!B23 -> 19229.25926 | C32: ='Income Statement (Results)'!C23 -> 167506.8889 | D32: ='Income Statement (Results)'!D23 -> 129293.6296 | E32: ='Income Statement (Results)'!E23 -> 79058.09722 | F32: ='Income Statement (Results)'!F23 -> 79090.95833 | G32: ='Income Statement (Results)'!G23 -> 79183.05694 | H32: ='Income Statement (Results)'!H23 -> 80811.69542 | I32: ='Income Statement (Results)'!I23 -> 81384.86067 | J32: ='Income Statement (Results)'!J23 -> 86004.60818 | K32: ='Income Statement (Results)'!K23 -> 87303.51344 | L32: ='Income Statement (Results)'!L23 -> 86043.19471 | M32: ='Income Statement (Results)'!M23 -> 88316.37351 | N32: ='Income Statement (Results)'!N23 -> 88405.86417 | O32: ='Income Statement (Results)'!O23 -> 87102.56425 | P32: ='Income Statement (Results)'!P23 -> 86171.24465 | Q32: ='Income Statement (Results)'!Q23 -> 91397.53214 | R32: ='Income Statement (Results)'!R23 -> 97862.39447 | S32: ='Income Statement (Results)'!S23 -> 98184.96139 | T32: ='Income Statement (Results)'!T23 -> 96046.45577 | U32: ='Income Statement (Results)'!U23 -> 94206.16689 | V32: ='Income Statement (Results)'!V23 -> 92443.8442 | W32: ='Income Statement (Results)'!W23 -> 90131.79124 | X32: ='Income Statement (Results)'!X23 -> 99390.30538 | Y32: ='Income Statement (Results)'!Y23 -> 108441.7833 | Z32: ='Income Statement (Results)'!Z23 -> 101994.5631 | AA32: ='Income Statement (Results)'!AA23 -> 98956.33189 | AB32: ='Income Statement (Results)'!AB23 -> 94057.85467 | AC32: ='Income Statement (Results)'!AC23 -> 89537.33713 | AD32: ='Income Statement (Results)'!AD23 -> 88336.74445 | AE32: ='Income Statement (Results)'!AE23 -> 88248.80716
A33: Total Income Tax | B33: =SUM(B31:B32) -> 96714.66673 | C33: =SUM(C31:C32) -> 1728379.673 | D33: =SUM(D31:D32) -> 2361383.946 | E33: 2293874.602 | F33: 2239804.617 | G33: 2185997.263 | H33: 2136138.544 | I33: 2082511.078 | J33: 2041018.732 | K33: 1987450.011 | L33: 1931949.811 | M33: 1885582.671 | N33: 1830701.939 | O33: 1775191.671 | P33: 1719612.402 | Q33: 1679524.933 | R33: 1638527.772 | S33: 1583093.827 | T33: 1525725.983 | U33: 1468931.924 | V33: 1411882.435 | W33: =SUM(W31:W32) -> 1354605.318 | X33: 1337943.89 | Y33: 1285516.897 | Z33: 1224595.495 | AA33: 1165625.755 | AB33: 1105820.429 | AC33: 1046377.876 | AD33: 988774.474 | AE33: 931776.4511
A34: Total Operating Expenses | B34: =B18+B19+B20+B21+B22+B23+B24+B25+B30+B33 -> 119529.1102 | C34: =C18+C19+C20+C21+C22+C23+C24+C25+C30+C33 -> 2276904.948 | D34: =D18+D19+D20+D21+D22+D23+D24+D25+D30+D33 -> 4070909.144 | E34: 4407623.679 | F34: 4355343.2 | G34: 4303352.887 | H34: 4256404.547 | I34: 4208087.517 | J34: 4171411.162 | K34: 4129953.369 | L34: 4077373.213 | M34: 4035485.836 | N34: 3990392.709 | O34: 3938280.524 | P34: 3886569.098 | Q34: 3853002.626 | R34: 3829740.86 | S34: 3788722.08 | T34: 3736181.834 | U34: 3684285.56 | V34: 3632694.087 | W34: =W18+W19+W20+W21+W22+W23+W24+W25+W30+W33 -> 3580854.411 | X34: 3596677.12 | Y34: 3562948.613 | Z34: 3510958.539 | AA34: 3461457.685 | AB34: 3411552.705 | AC34: 3362507.909 | AD34: 3315872.54 | AE34: 3270370.748
A36: Operating Income | B36: =B15-B34 -> 129559.0434 | C36: =C15-C34 -> 2448182.657 | D36: =D15-D34 -> 3419898.215 | E36: 3357227.212 | F36: 3276662.192 | G36: 3196443.697 | H36: 3120948.046 | I36: 3040634.681 | J36: 2975345.296 | K36: 2894572.079 | L36: 2812851.998 | M36: 2742071.131 | N36: 2660255.747 | O36: 2578553.085 | P36: 2496467.092 | Q36: 2432812.894 | R36: 2366869.519 | S36: 2284054.307 | T36: 2200214.598 | U36: 2117004.658 | V36: 2033355.438 | W36: =W15-W34 -> 1949781.763 | X36: 1917980.823 | Y36: 1833061.242 | Z36: 1747177.967 | AA36: 1661630.725 | AB36: 1576241.837 | AC36: 1491108.261 | AD36: 1406210.296 | AE36: 1321374.908
A38: Other Income
A39: AFUDC | B39: ='Income Statement (Results)'!B28 -> 0 | C39: ='Income Statement (Results)'!C28 -> 0 | D39: ='Income Statement (Results)'!D28 -> 0 | E39: ='Income Statement (Results)'!E28 -> 0 | F39: ='Income Statement (Results)'!F28 -> 0 | G39: ='Income Statement (Results)'!G28 -> 0 | H39: ='Income Statement (Results)'!H28 -> 0 | I39: ='Income Statement (Results)'!I28 -> 0 | J39: ='Income Statement (Results)'!J28 -> 0 | K39: ='Income Statement (Results)'!K28 -> 0 | L39: ='Income Statement (Results)'!L28 -> 0 | M39: ='Income Statement (Results)'!M28 -> 0 | N39: ='Income Statement (Results)'!N28 -> 0 | O39: ='Income Statement (Results)'!O28 -> 0 | P39: ='Income Statement (Results)'!P28 -> 0 | Q39: ='Income Statement (Results)'!Q28 -> 0 | R39: ='Income Statement (Results)'!R28 -> 0 | S39: ='Income Statement (Results)'!S28 -> 0 | T39: ='Income Statement (Results)'!T28 -> 0 | U39: ='Income Statement (Results)'!U28 -> 0 | V39: ='Income Statement (Results)'!V28 -> 0 | W39: ='Income Statement (Results)'!W28 -> 0 | X39: ='Income Statement (Results)'!X28 -> 0 | Y39: ='Income Statement (Results)'!Y28 -> 0 | Z39: ='Income Statement (Results)'!Z28 -> 0 | AA39: ='Income Statement (Results)'!AA28 -> 0 | AB39: ='Income Statement (Results)'!AB28 -> 0 | AC39: ='Income Statement (Results)'!AC28 -> 0 | AD39: ='Income Statement (Results)'!AD28 -> 0 | AE39: ='Income Statement (Results)'!AE28 -> 0
A40: Total Other Income | B40: =SUM(B38:B39) -> 0 | C40: =SUM(C38:C39) -> 0 | D40: =SUM(D38:D39) -> 0 | E40: 0 | F40: 0 | G40: 0 | H40: 0 | I40: 0 | J40: 0 | K40: 0 | L40: 0 | M40: 0 | N40: 0 | O40: 0 | P40: 0 | Q40: 0 | R40: 0 | S40: 0 | T40: 0 | U40: 0 | V40: 0 | W40: =SUM(W38:W39) -> 0 | X40: 0 | Y40: 0 | Z40: 0 | AA40: 0 | AB40: 0 | AC40: 0 | AD40: 0 | AE40: 0
A42: Income Before Interest Charges | B42: =B36+B40 -> 129559.0434 | C42: =C36+C40 -> 2448182.657 | D42: =D36+D40 -> 3419898.215 | E42: 3357227.212 | F42: 3276662.192 | G42: 3196443.697 | H42: 3120948.046 | I42: 3040634.681 | J42: 2975345.296 | K42: 2894572.079 | L42: 2812851.998 | M42: 2742071.131 | N42: 2660255.747 | O42: 2578553.085 | P42: 2496467.092 | Q42: 2432812.894 | R42: 2366869.519 | S42: 2284054.307 | T42: 2200214.598 | U42: 2117004.658 | V42: 2033355.438 | W42: =W36+W40 -> 1949781.763 | X42: 1917980.823 | Y42: 1833061.242 | Z42: 1747177.967 | AA42: 1661630.725 | AB42: 1576241.837 | AC42: 1491108.261 | AD42: 1406210.296 | AE42: 1321374.908
A44: Other Interest Expense
A45: LT Interest Expense
A46: ST Interest Expense
A47: AFUDC - Debt
A48: Debt-Amortization
A49: Interest Charges | B49: =SUM(B44:B48) -> 0 | C49: =SUM(C44:C48) -> 0 | D49: =SUM(D44:D48) -> 0 | E49: 0 | F49: 0 | G49: 0 | H49: 0 | I49: 0 | J49: 0 | K49: 0 | L49: 0 | M49: 0 | N49: 0 | O49: 0 | P49: 0 | Q49: 0 | R49: 0 | S49: 0 | T49: 0 | U49: 0 | V49: 0 | W49: =SUM(W44:W48) -> 0 | X49: 0 | Y49: 0 | Z49: 0 | AA49: 0 | AB49: 0 | AC49: 0 | AD49: 0 | AE49: 0
A51: FAS-143 Trans Adj Loss (net of tax)
A53: Net Income
A54: Less: Preferred Stock Dividends
A55: Income for Common Stock | B55: =B42-B49 -> 129559.0434 | C55: =C42-C49 -> 2448182.657 | D55: =D42-D49 -> 3419898.215 | E55: 3357227.212 | F55: 3276662.192 | G55: 3196443.697 | H55: 3120948.046 | I55: 3040634.681 | J55: 2975345.296 | K55: 2894572.079 | L55: 2812851.998 | M55: 2742071.131 | N55: 2660255.747 | O55: 2578553.085 | P55: 2496467.092 | Q55: 2432812.894 | R55: 2366869.519 | S55: 2284054.307 | T55: 2200214.598 | U55: 2117004.658 | V55: 2033355.438 | W55: =W42-W49 -> 1949781.763 | X55: 1917980.823 | Y55: 1833061.242 | Z55: 1747177.967 | AA55: 1661630.725 | AB55: 1576241.837 | AC55: 1491108.261 | AD55: 1406210.296 | AE55: 1321374.908
A57: Common Shares Outstanding (Average)
A58: Diluted Shares Outstanding
A60: Tax Adjustments:
A62: Scedule M Adjustments
A63: Construction Period Interest | B63: ='Capital Projects (Nominal)'!H273 -> 0 | C63: ='Capital Projects (Nominal)'!I273 -> 0 | D63: ='Capital Projects (Nominal)'!J273 -> 0 | E63: ='Capital Projects (Nominal)'!K273 -> 0 | F63: ='Capital Projects (Nominal)'!L273 -> 0 | G63: ='Capital Projects (Nominal)'!M273 -> 0 | H63: ='Capital Projects (Nominal)'!N273 -> 0 | I63: ='Capital Projects (Nominal)'!O273 -> 0 | J63: ='Capital Projects (Nominal)'!P273 -> 0 | K63: ='Capital Projects (Nominal)'!Q273 -> 0 | L63: ='Capital Projects (Nominal)'!R273 -> 0 | M63: ='Capital Projects (Nominal)'!S273 -> 0 | N63: ='Capital Projects (Nominal)'!T273 -> 0 | O63: ='Capital Projects (Nominal)'!U273 -> 0 | P63: ='Capital Projects (Nominal)'!V273 -> 0 | Q63: ='Capital Projects (Nominal)'!W273 -> 0 | R63: ='Capital Projects (Nominal)'!X273 -> 0 | S63: ='Capital Projects (Nominal)'!Y273 -> 0 | T63: ='Capital Projects (Nominal)'!Z273 -> 0 | U63: ='Capital Projects (Nominal)'!AA273 -> 0 | V63: ='Capital Projects (Nominal)'!AB273 -> 0 | W63: ='Capital Projects (Nominal)'!AC273 -> 0 | X63: ='Capital Projects (Nominal)'!AD273 -> 0 | Y63: ='Capital Projects (Nominal)'!AE273 -> 0 | Z63: ='Capital Projects (Nominal)'!AF273 -> 0 | AA63: ='Capital Projects (Nominal)'!AG273 -> 0 | AB63: ='Capital Projects (Nominal)'!AH273 -> 0 | AC63: ='Capital Projects (Nominal)'!AI273 -> 0 | AD63: ='Capital Projects (Nominal)'!AJ273 -> 0 | AE63: ='Capital Projects (Nominal)'!AK273 -> 0
A64: AFUDC | B64: =-'Capital Projects (Nominal)'!H185 -> 0 | C64: =-'Capital Projects (Nominal)'!I185 -> 0 | D64: =-'Capital Projects (Nominal)'!J185 -> 0 | E64: =-'Capital Projects (Nominal)'!K185 -> 0 | F64: =-'Capital Projects (Nominal)'!L185 -> 0 | G64: =-'Capital Projects (Nominal)'!M185 -> 0 | H64: =-'Capital Projects (Nominal)'!N185 -> 0 | I64: =-'Capital Projects (Nominal)'!O185 -> 0 | J64: =-'Capital Projects (Nominal)'!P185 -> 0 | K64: =-'Capital Projects (Nominal)'!Q185 -> 0 | L64: =-'Capital Projects (Nominal)'!R185 -> 0 | M64: =-'Capital Projects (Nominal)'!S185 -> 0 | N64: =-'Capital Projects (Nominal)'!T185 -> 0 | O64: =-'Capital Projects (Nominal)'!U185 -> 0 | P64: =-'Capital Projects (Nominal)'!V185 -> 0 | Q64: =-'Capital Projects (Nominal)'!W185 -> 0 | R64: =-'Capital Projects (Nominal)'!X185 -> 0 | S64: =-'Capital Projects (Nominal)'!Y185 -> 0 | T64: =-'Capital Projects (Nominal)'!Z185 -> 0 | U64: =-'Capital Projects (Nominal)'!AA185 -> 0 | V64: =-'Capital Projects (Nominal)'!AB185 -> 0 | W64: =-'Capital Projects (Nominal)'!AC185 -> 0 | X64: =-'Capital Projects (Nominal)'!AD185 -> 0 | Y64: =-'Capital Projects (Nominal)'!AE185 -> 0 | Z64: =-'Capital Projects (Nominal)'!AF185 -> 0 | AA64: =-'Capital Projects (Nominal)'!AG185 -> 0 | AB64: =-'Capital Projects (Nominal)'!AH185 -> 0 | AC64: =-'Capital Projects (Nominal)'!AI185 -> 0 | AD64: =-'Capital Projects (Nominal)'!AJ185 -> 0 | AE64: =-'Capital Projects (Nominal)'!AK185 -> 0
A65: Total | B65: =SUM(B63:B64) -> 0 | C65: =SUM(C63:C64) -> 0 | D65: 0 | E65: 0 | F65: 0 | G65: 0 | H65: 0 | I65: 0 | J65: 0 | K65: 0 | L65: 0 | M65: 0 | N65: 0 | O65: 0 | P65: 0 | Q65: 0 | R65: 0 | S65: 0 | T65: 0 | U65: 0 | V65: 0 | W65: =SUM(W63:W64) -> 0 | X65: 0 | Y65: 0 | Z65: 0 | AA65: 0 | AB65: 0 | AC65: 0 | AD65: 0 | AE65: 0
A67: Tax Depreciation | B67: ='Tax Statement (Results)'!B18 -> 64200 | C67: ='Tax Statement (Results)'!C18 -> 667480 | D67: ='Tax Statement (Results)'!D18 -> 1449040 | E67: ='Tax Statement (Results)'!E18 -> 1692565 | F67: ='Tax Statement (Results)'!F18 -> 1692857.5 | G67: ='Tax Statement (Results)'!G18 -> 1693139.75 | H67: ='Tax Statement (Results)'!H18 -> 1698274.35 | I67: ='Tax Statement (Results)'!I18 -> 1702914.565 | J67: ='Tax Statement (Results)'!J18 -> 1717167.183 | K67: ='Tax Statement (Results)'!K18 -> 1730039.251 | L67: ='Tax Statement (Results)'!L18 -> 1726673.833 | M67: ='Tax Statement (Results)'!M18 -> 1733748.79 | N67: ='Tax Statement (Results)'!N18 -> 1740386.25 | O67: ='Tax Statement (Results)'!O18 -> 1736686.519 | P67: ='Tax Statement (Results)'!P18 -> 1734289.423 | Q67: ='Tax Statement (Results)'!Q18 -> 1750202.145 | R67: ='Tax Statement (Results)'!R18 -> 1780334.086 | S67: ='Tax Statement (Results)'!S18 -> 1790915.4 | T67: ='Tax Statement (Results)'!T18 -> 1785100.978 | U67: ='Tax Statement (Results)'!U18 -> 1779871.455 | V67: ='Tax Statement (Results)'!V18 -> 1775149.136 | W67: ='Tax Statement (Results)'!W18 -> 1768543.27 | X67: ='Tax Statement (Results)'!X18 -> 1813872.625 | Y67: ='Tax Statement (Results)'!Y18 -> 1849172.219 | Z67: ='Tax Statement (Results)'!Z18 -> 1830751.59 | AA67: ='Tax Statement (Results)'!AA18 -> 1822070.929 | AB67: ='Tax Statement (Results)'!AB18 -> 1808075.28 | AC67: ='Tax Statement (Results)'!AC18 -> 1795159.516 | AD67: ='Tax Statement (Results)'!AD18 -> 1791729.251 | AE67: ='Tax Statement (Results)'!AE18 -> 1791478.001

Sheet BS-INPUT (hidden)
A1: Balance Sheet
B2: Year | C2: Year | D2: Year | E2: Year | F2: Year | G2: Year | H2: Year | I2: Year | J2: Year | K2: Year | L2: Year | M2: Year | N2: Year | O2: Year | P2: Year | Q2: Year | R2: Year | S2: Year | T2: Year | U2: Year | V2: Year | W2: Year | X2: Year | Y2: Year | Z2: Year | AA2: Year | AB2: Year | AC2: Year | AD2: Year | AE2: Year | AF2: Year
B3: ='Income Statement (Results)'!B8-1 -> 2019 | C3: ='Income Statement (Results)'!B8 -> 2020 | D3: ='Income Statement (Results)'!C8 -> 2021 | E3: ='Income Statement (Results)'!D8 -> 2022 | F3: ='Income Statement (Results)'!E8 -> 2023 | G3: ='Income Statement (Results)'!F8 -> 2024 | H3: ='Income Statement (Results)'!G8 -> 2025 | I3: ='Income Statement (Results)'!H8 -> 2026 | J3: ='Income Statement (Results)'!I8 -> 2027 | K3: ='Income Statement (Results)'!J8 -> 2028 | L3: ='Income Statement (Results)'!K8 -> 2029 | M3: ='Income Statement (Results)'!L8 -> 2030 | N3: ='Income Statement (Results)'!M8 -> 2031 | O3: ='Income Statement (Results)'!N8 -> 2032 | P3: ='Income Statement (Results)'!O8 -> 2033 | Q3: ='Income Statement (Results)'!P8 -> 2034 | R3: ='Income Statement (Results)'!Q8 -> 2035 | S3: ='Income Statement (Results)'!R8 -> 2036 | T3: ='Income Statement (Results)'!S8 -> 2037 | U3: ='Income Statement (Results)'!T8 -> 2038 | V3: ='Income Statement (Results)'!U8 -> 2039 | W3: ='Income Statement (Results)'!V8 -> 2040 | X3: ='Income Statement (Results)'!W8 -> 2041 | Y3: ='Income Statement (Results)'!X8 -> 2042 | Z3: ='Income Statement (Results)'!Y8 -> 2043 | AA3: ='Income Statement (Results)'!Z8 -> 2044 | AB3: ='Income Statement (Results)'!AA8 -> 2045 | AC3: ='Income Statement (Results)'!AB8 -> 2046 | AD3: ='Income Statement (Results)'!AC8 -> 2047 | AE3: ='Income Statement (Results)'!AD8 -> 2048 | AF3: ='Income Statement (Results)'!AE8 -> 2049
A5: ASSETS
A7: Plant:
A8: Utility Plant | C8: ='Cash Flow Statement (Results)'!B19+'IS-Input'!B39+B8 -> 5000000 | D8: ='Cash Flow Statement (Results)'!C19+'IS-Input'!C39+C8 -> 47000000 | E8: ='Cash Flow Statement (Results)'!D19+'IS-Input'!D39+D8 -> 66000000 | F8: ='Cash Flow Statement (Results)'!E19+'IS-Input'!E39+E8 -> 66006500 | G8: ='Cash Flow Statement (Results)'!F19+'IS-Input'!F39+F8 -> 66006500 | H8: ='Cash Flow Statement (Results)'!G19+'IS-Input'!G39+G8 -> 66013380 | I8: ='Cash Flow Statement (Results)'!H19+'IS-Input'!H39+H8 -> 66110985 | J8: ='Cash Flow Statement (Results)'!I19+'IS-Input'!I39+I8 -> 66118266 | K8: ='Cash Flow Statement (Results)'!J19+'IS-Input'!J39+J8 -> 66417377 | L8: ='Cash Flow Statement (Results)'!K19+'IS-Input'!K39+K8 -> 66425084 | M8: ='Cash Flow Statement (Results)'!L19+'IS-Input'!L39+L8 -> 66425084 | N8: ='Cash Flow Statement (Results)'!M19+'IS-Input'!M39+M8 -> 66633942 | O8: ='Cash Flow Statement (Results)'!N19+'IS-Input'!N39+N8 -> 66633942 | P8: ='Cash Flow Statement (Results)'!O19+'IS-Input'!O39+O8 -> 66642576 | Q8: ='Cash Flow Statement (Results)'!P19+'IS-Input'!P39+P8 -> 66642576 | R8: ='Cash Flow Statement (Results)'!Q19+'IS-Input'!Q39+Q8 -> 66995546 | S8: ='Cash Flow Statement (Results)'!R19+'IS-Input'!R39+R8 -> 67310802 | T8: ='Cash Flow Statement (Results)'!S19+'IS-Input'!S39+S8 -> 67320476 | U8: ='Cash Flow Statement (Results)'!T19+'IS-Input'!T39+T8 -> 67320476 | V8: ='Cash Flow Statement (Results)'!U19+'IS-Input'!U39+U8 -> 67330716 | W8: ='Cash Flow Statement (Results)'!V19+'IS-Input'!V39+V8 -> 67330716 | X8: ='Cash Flow Statement (Results)'!W19+'IS-Input'!W39+W8 -> 67330716 | Y8: ='Cash Flow Statement (Results)'!X19+'IS-Input'!X39+X8 -> 68321730 | Z8: ='Cash Flow Statement (Results)'!Y19+'IS-Input'!Y39+Y8 -> 68321730 | AA8: ='Cash Flow Statement (Results)'!Z19+'IS-Input'!Z39+Z8 -> 68321730 | AB8: ='Cash Flow Statement (Results)'!AA19+'IS-Input'!AA39+AA8 -> 68321730 | AC8: ='Cash Flow Statement (Results)'!AB19+'IS-Input'!AB39+AB8 -> 68321730 | AD8: ='Cash Flow Statement (Results)'!AC19+'IS-Input'!AC39+AC8 -> 68321730 | AE8: ='Cash Flow Statement (Results)'!AD19+'IS-Input'!AD39+AD8 -> 68321730 | AF8: ='Cash Flow Statement (Results)'!AE19+'IS-Input'!AE39+AE8 -> 68321730
A9: Accumulated Depreciation | C9: =B9-'IS-Input'!B25 -> -9259.259259 | D9: =C9-'IS-Input'!C25 -> -198148.1481 | E9: =D9-'IS-Input'!D25 -> -1277777.778 | F9: =E9-'IS-Input'!E25 -> -2744462.5 | G9: =F9-'IS-Input'!F25 -> -4211345.833 | H9: =G9-'IS-Input'!G25 -> -5678248.278 | I9: =H9-'IS-Input'!H25 -> -7145632.069 | J9: =I9-'IS-Input'!I25 -> -8616018.461 | K9: =J9-'IS-Input'!J25 -> -10087458.19 | L9: =K9-'IS-Input'!K25 -> -11568058.83 | M9: =L9-'IS-Input'!L25 -> -13048894.97 | N9: =M9-'IS-Input'!M25 -> -14530311.26 | O9: =N9-'IS-Input'!N25 -> -16018109.33 | P9: =O9-'IS-Input'!O25 -> -17505931.38 | Q9: =P9-'IS-Input'!P25 -> -18994017.24 | R9: =Q9-'IS-Input'!Q25 -> -20483083.58 | S9: =R9-'IS-Input'!R25 -> -21983810.83 | T9: =S9-'IS-Input'!S25 -> -23494197.77 | U9: =T9-'IS-Input'!T25 -> -25004880.3 | V9: =U9-'IS-Input'!U25 -> -26515591.28 | W9: =V9-'IS-Input'!V25 -> -28026615.14 | X9: =W9-'IS-Input'!W25 -> -29537639.01 | Y9: =X9-'IS-Input'!X25 -> -31067539.33 | Z9: =Y9-'IS-Input'!Y25 -> -32606877.89 | AA9: =Z9-'IS-Input'!Z25 -> -34146216.44 | AB9: =AA9-'IS-Input'!AA25 -> -35685554.99 | AC9: =AB9-'IS-Input'!AB25 -> -37224893.54 | AD9: =AC9-'IS-Input'!AC25 -> -38764232.1 | AE9: =AD9-'IS-Input'!AD25 -> -40303570.65 | AF9: =AE9-'IS-Input'!AE25 -> -41842909.2
A10: Net Utility Plant | C10: =SUM(C8:C9) -> 4990740.741 | D10: =SUM(D8:D9) -> 46801851.85 | E10: =SUM(E8:E9) -> 64722222.22 | F10: 63262037.5 | G10: 61795154.17 | H10: 60335131.72 | I10: 58965352.93 | J10: 57502247.54 | K10: 56329918.81 | L10: 54857025.17 | M10: 53376189.03 | N10: 52103630.74 | O10: 50615832.67 | P10: 49136644.62 | Q10: 47648558.76 | R10: 46512462.42 | S10: 45326991.17 | T10: 43826278.23 | U10: 42315595.7 | V10: =SUM(V8:V9) -> 40815124.72 | W10: =SUM(W8:W9) -> 39304100.86 | X10: =SUM(X8:X9) -> 37793076.99 | Y10: 37254190.67 | Z10: 35714852.11 | AA10: 34175513.56 | AB10: 32636175.01 | AC10: 31096836.46 | AD10: 29557497.9 | AE10: 28018159.35 | AF10: 26478820.8
A11: Other Property and Investments:
A12: Investment in BEP Contract
A13: Investment Other
A14: Investment in Subsidiaries
A15: Total Other Property and Investments | C15: =SUM(C12:C14) -> 0 | D15: =SUM(D12:D14) -> 0 | E15: 0 | F15: 0 | G15: 0 | H15: 0 | I15: 0 | J15: 0 | K15: 0 | L15: 0 | M15: 0 | N15: 0 | O15: 0 | P15: 0 | Q15: 0 | R15: 0 | S15: 0 | T15: 0 | U15: 0 | V15: =SUM(V12:V14) -> 0 | W15: =SUM(W12:W14) -> 0 | X15: =SUM(X12:X14) -> 0 | Y15: 0 | Z15: 0 | AA15: 0 | AB15: 0 | AC15: 0 | AD15: 0 | AE15: 0 | AF15: 0
A16: Current Assets:
A17: Cash
A18: Account Receivable
A19: Less: Allowance for Doubtful Accounts
A20: Unbilled Revenue
A21: Materials & Supplies
A22: Gas in Storage
A23: Current Portion FAS 133 Unrealized Gain
A24: Prepayments & Other
A25: Total Current Assets | C25: =SUM(C17:C24) -> 0 | D25: =SUM(D17:D24) -> 0 | E25: 0 | F25: 0 | G25: 0 | H25: 0 | I25: 0 | J25: 0 | K25: 0 | L25: 0 | M25: 0 | N25: 0 | O25: 0 | P25: 0 | Q25: 0 | R25: 0 | S25: 0 | T25: 0 | U25: 0 | V25: =SUM(V17:V24) -> 0 | W25: =SUM(W17:W24) -> 0 | X25: =SUM(X17:X24) -> 0 | Y25: 0 | Z25: 0 | AA25: 0 | AB25: 0 | AC25: 0 | AD25: 0 | AE25: 0 | AF25: 0
A26: Long Term Assets:
A27: Regulatory Asset for Deferred Income Tax
A28: Conservation
A29: Total Power Cost - Deferral
A30: Purpa Regulation Assets
A31: FAS 133 Unrealized Gain
A32: Total Other Long Term Assets
A33: Notes - Subsidiaries
A34: Total Long Term Assets | C34: =SUM(C27:C33) -> 0 | D34: =SUM(D27:D33) -> 0 | E34: 0 | F34: 0 | G34: 0 | H34: 0 | I34: 0 | J34: 0 | K34: 0 | L34: 0 | M34: 0 | N34: 0 | O34: 0 | P34: 0 | Q34: 0 | R34: 0 | S34: 0 | T34: 0 | U34: 0 | V34: =SUM(V27:V33) -> 0 | W34: =SUM(W27:W33) -> 0 | X34: =SUM(X27:X33) -> 0 | Y34: 0 | Z34: 0 | AA34: 0 | AB34: 0 | AC34: 0 | AD34: 0 | AE34: 0 | AF34: 0
A36: TOTAL ASSETS | C36: =C10+C15+C25+C34 -> 4990740.741 | D36: =D10+D15+D25+D34 -> 46801851.85 | E36: 64722222.22 | F36: 63262037.5 | G36: 61795154.17 | H36: 60335131.72 | I36: 58965352.93 | J36: 57502247.54 | K36: 56329918.81 | L36: 54857025.17 | M36: 53376189.03 | N36: 52103630.74 | O36: 50615832.67 | P36: 49136644.62 | Q36: 47648558.76 | R36: 46512462.42 | S36: 45326991.17 | T36: 43826278.23 | U36: 42315595.7 | V36: =V10+V15+V25+V34 -> 40815124.72 | W36: =W10+W15+W25+W34 -> 39304100.86 | X36: =X10+X15+X25+X34 -> 37793076.99 | Y36: 37254190.67 | Z36: 35714852.11 | AA36: 34175513.56 | AB36: 32636175.01 | AC36: 31096836.46 | AD36: 29557497.9 | AE36: 28018159.35 | AF36: 26478820.8
A38: CAPITALIZATION AND LIABILITIES
A40: Capitalization:
A41: Retained Earnings (Current Period) | C41: ='IS-Input'!B55 -> 129559.0434 | D41: ='IS-Input'!C55 -> 2448182.657 | E41: ='IS-Input'!D55 -> 3419898.215 | F41: ='IS-Input'!E55 -> 3357227.212 | G41: ='IS-Input'!F55 -> 3276662.192 | H41: ='IS-Input'!G55 -> 3196443.697 | I41: ='IS-Input'!H55 -> 3120948.046 | J41: ='IS-Input'!I55 -> 3040634.681 | K41: ='IS-Input'!J55 -> 2975345.296 | L41: ='IS-Input'!K55 -> 2894572.079 | M41: ='IS-Input'!L55 -> 2812851.998 | N41: ='IS-Input'!M55 -> 2742071.131 | O41: ='IS-Input'!N55 -> 2660255.747 | P41: ='IS-Input'!O55 -> 2578553.085 | Q41: ='IS-Input'!P55 -> 2496467.092 | R41: ='IS-Input'!Q55 -> 2432812.894 | S41: ='IS-Input'!R55 -> 2366869.519 | T41: ='IS-Input'!S55 -> 2284054.307 | U41: ='IS-Input'!T55 -> 2200214.598 | V41: ='IS-Input'!U55 -> 2117004.658 | W41: ='IS-Input'!V55 -> 2033355.438 | X41: ='IS-Input'!W55 -> 1949781.763 | Y41: ='IS-Input'!X55 -> 1917980.823 | Z41: ='IS-Input'!Y55 -> 1833061.242 | AA41: ='IS-Input'!Z55 -> 1747177.967 | AB41: ='IS-Input'!AA55 -> 1661630.725 | AC41: ='IS-Input'!AB55 -> 1576241.837 | AD41: ='IS-Input'!AC55 -> 1491108.261 | AE41: ='IS-Input'!AD55 -> 1406210.296 | AF41: ='IS-Input'!AE55 -> 1321374.908
A42: Common Equity | C42: =B43 -> 0 | D42: =C43 -> 129559.0434 | E42: 2577741.7 | F42: 5997639.915 | G42: 9354867.127 | H42: 12631529.32 | I42: 15827973.02 | J42: 18948921.06 | K42: 21989555.74 | L42: 24964901.04 | M42: 27859473.12 | N42: 30672325.12 | O42: 33414396.25 | P42: 36074651.99 | Q42: 38653205.08 | R42: 41149672.17 | S42: 43582485.06 | T42: 45949354.58 | U42: 48233408.89 | V42: =U43 -> 50433623.49 | W42: =V43 -> 52550628.15 | X42: =W43 -> 54583983.58 | Y42: 56533765.35 | Z42: 58451746.17 | AA42: 60284807.41 | AB42: 62031985.38 | AC42: 63693616.1 | AD42: 65269857.94 | AE42: 66760966.2 | AF42: 68167176.5
A43: Total Common Equity | C43: =SUM(C41:C42) -> 129559.0434 | D43: =SUM(D41:D42) -> 2577741.7 | E43: 5997639.915 | F43: 9354867.127 | G43: 12631529.32 | H43: 15827973.02 | I43: 18948921.06 | J43: 21989555.74 | K43: 24964901.04 | L43: 27859473.12 | M43: 30672325.12 | N43: 33414396.25 | O43: 36074651.99 | P43: 38653205.08 | Q43: 41149672.17 | R43: 43582485.06 | S43: 45949354.58 | T43: 48233408.89 | U43: 50433623.49 | V43: =SUM(V41:V42) -> 52550628.15 | W43: =SUM(W41:W42) -> 54583983.58 | X43: =SUM(X41:X42) -> 56533765.35 | Y43: 58451746.17 | Z43: 60284807.41 | AA43: 62031985.38 | AB43: 63693616.1 | AC43: 65269857.94 | AD43: 66760966.2 | AE43: 68167176.5 | AF43: 69488551.4
A44: Preferred Stock Subject to Mandatory Redemption
A45: Trust Preferred
A46: Total Preferred Stock | C46: =SUM(C44:C45) -> 0 | D46: =SUM(D44:D45) -> 0 | E46: 0 | F46: 0 | G46: 0 | H46: 0 | I46: 0 | J46: 0 | K46: 0 | L46: 0 | M46: 0 | N46: 0 | O46: 0 | P46: 0 | Q46: 0 | R46: 0 | S46: 0 | T46: 0 | U46: 0 | V46: =SUM(V44:V45) -> 0 | W46: =SUM(W44:W45) -> 0 | X46: =SUM(X44:X45) -> 0 | Y46: 0 | Z46: 0 | AA46: 0 | AB46: 0 | AC46: 0 | AD46: 0 | AE46: 0 | AF46: 0
A47: Long Term Debt
A48: Total Capitalization | C48: =C43+C46+C47 -> 129559.0434 | D48: =D43+D46+D47 -> 2577741.7 | E48: 5997639.915 | F48: 9354867.127 | G48: 12631529.32 | H48: 15827973.02 | I48: 18948921.06 | J48: 21989555.74 | K48: 24964901.04 | L48: 27859473.12 | M48: 30672325.12 | N48: 33414396.25 | O48: 36074651.99 | P48: 38653205.08 | Q48: 41149672.17 | R48: 43582485.06 | S48: 45949354.58 | T48: 48233408.89 | U48: 50433623.49 | V48: =V43+V46+V47 -> 52550628.15 | W48: =W43+W46+W47 -> 54583983.58 | X48: =X43+X46+X47 -> 56533765.35 | Y48: 58451746.17 | Z48: 60284807.41 | AA48: 62031985.38 | AB48: 63693616.1 | AC48: 65269857.94 | AD48: 66760966.2 | AE48: 68167176.5 | AF48: 69488551.4
A50: Minority Interest
A51: Current Liabilities:
A52: Accounts Payable
A53: Total Short-term Debt | C53: =C36-C48-C52-C54-C55-C56-C57-C58-C59-C60-C62-C63-C65 -> 4841952.438 | D53: =D36-D48-D52-D54-D55-D56-D57-D58-D59-D60-D62-D63-D65 -> 44037374 | E53: =E36-E48-E52-'BS-INPUT'!E54-E55-E56-E57-E58-E59-E60-E62-E63-E65 -> 58408552.53 | F53: 53512082.5 | G53: 48689446.01 | H53: 43953796.82 | I53: 39382258.28 | J53: 34797133.35 | K53: 30563454.72 | L53: 26108685.48 | M53: 21728954.16 | N53: 17626008.36 | O53: 13389548.68 | P53: 9244704.98 | Q53: 5173980.776 | R53: 1513674.011 | S53: -2136529.147 | T53: -6019481.354 | U53: -9826424.942 | V53: =V36-V48-V52-V54-V55-V56-V57-V58-V59-V60-V62-V63-V65 -> -13538106.74 | W53: =W36-W48-W52-W54-W55-W56-W57-W58-W59-W60-W62-W63-W65 -> -17174929.89 | X53: =X36-X48-X52-X54-X55-X56-X57-X58-X59-X60-X62-X63-X65 -> -20725867.31 | Y53: -23282124.77 | Z53: -26762966.34 | AA53: -30151477.43 | AB53: -33451403.03 | AC53: -36661041.28 | AD53: -39781025.43 | AE53: -42814911.02 | AF53: -45763873.29
A54: Purchased Gas Liability
A55: Dividends Declared
A56: Accrued Taxes
A57: Accrued Salaries and Wages
A58: Accrued Interest
A59: Current Portion FAS-133 Unrealized Loss
A60: Accrued Other - Total
A61: Total Current Liabilities | C61: =SUM(C52:C60) -> 4841952.438 | D61: =SUM(D52:D60) -> 44037374 | E61: 58408552.53 | F61: 53512082.5 | G61: 48689446.01 | H61: 43953796.82 | I61: 39382258.28 | J61: 34797133.35 | K61: 30563454.72 | L61: 26108685.48 | M61: 21728954.16 | N61: 17626008.36 | O61: 13389548.68 | P61: 9244704.98 | Q61: 5173980.776 | R61: 1513674.011 | S61: -2136529.147 | T61: -6019481.354 | U61: -9826424.942 | V61: =SUM(V52:V60) -> -13538106.74 | W61: =SUM(W52:W60) -> -17174929.89 | X61: =SUM(X52:X60) -> -20725867.31 | Y61: -23282124.77 | Z61: -26762966.34 | AA61: -30151477.43 | AB61: -33451403.03 | AC61: -36661041.28 | AD61: -39781025.43 | AE61: -42814911.02 | AF61: -45763873.29
A62: Total Deferred Income Taxes | C62: =B62+'IS-Input'!B32 -> 19229.25926 | D62: =C62+'IS-Input'!C32 -> 186736.1481 | E62: =D62+'IS-Input'!D32 -> 316029.7778 | F62: =E62+'IS-Input'!E32 -> 395087.875 | G62: =F62+'IS-Input'!F32 -> 474178.8333 | H62: =G62+'IS-Input'!G32 -> 553361.8903 | I62: =H62+'IS-Input'!H32 -> 634173.5857 | J62: =I62+'IS-Input'!I32 -> 715558.4464 | K62: =J62+'IS-Input'!J32 -> 801563.0545 | L62: =K62+'IS-Input'!K32 -> 888866.568 | M62: =L62+'IS-Input'!L32 -> 974909.7627 | N62: =M62+'IS-Input'!M32 -> 1063226.136 | O62: =N62+'IS-Input'!N32 -> 1151632 | P62: =O62+'IS-Input'!O32 -> 1238734.565 | Q62: =P62+'IS-Input'!P32 -> 1324905.809 | R62: =Q62+'IS-Input'!Q32 -> 1416303.341 | S62: =R62+'IS-Input'!R32 -> 1514165.736 | T62: =S62+'IS-Input'!S32 -> 1612350.697 | U62: =T62+'IS-Input'!T32 -> 1708397.153 | V62: =U62+'IS-Input'!U32 -> 1802603.32 | W62: =V62+'IS-Input'!V32 -> 1895047.164 | X62: =W62+'IS-Input'!W32 -> 1985178.955 | Y62: =X62+'IS-Input'!X32 -> 2084569.261 | Z62: =Y62+'IS-Input'!Y32 -> 2193011.044 | AA62: =Z62+'IS-Input'!Z32 -> 2295005.607 | AB62: =AA62+'IS-Input'!AA32 -> 2393961.939 | AC62: =AB62+'IS-Input'!AB32 -> 2488019.794 | AD62: =AC62+'IS-Input'!AC32 -> 2577557.131 | AE62: =AD62+'IS-Input'!AD32 -> 2665893.875 | AF62: =AE62+'IS-Input'!AE32 -> 2754142.682
A63: FAS-133 Unrealized Loss
A64: Power Cost Adjustment Mechanism
A65: Total Other Deferred Credits
A67: TOTAL CAPITALIZATION AND LIABILITIES | C67: =C61+C62+C63+C64+C65+C48 -> 4990740.741 | D67: =D61+D62+D63+D64+D65+D48 -> 46801851.85 | E67: 64722222.22 | F67: 63262037.5 | G67: 61795154.17 | H67: 60335131.72 | I67: 58965352.93 | J67: 57502247.54 | K67: 56329918.81 | L67: 54857025.17 | M67: 53376189.03 | N67: 52103630.74 | O67: 50615832.67 | P67: 49136644.62 | Q67: 47648558.76 | R67: 46512462.42 | S67: 45326991.17 | T67: 43826278.23 | U67: 42315595.7 | V67: =V61+V62+V63+V64+V65+V48 -> 40815124.72 | W67: =W61+W62+W63+W64+W65+W48 -> 39304100.86 | X67: =X61+X62+X63+X64+X65+X48 -> 37793076.99 | Y67: 37254190.67 | Z67: 35714852.11 | AA67: 34175513.56 | AB67: 32636175.01 | AC67: 31096836.46 | AD67: 29557497.9 | AE67: 28018159.35 | AF67: 26478820.8
A69: DIFFERENCE | C69: =C36-C67 -> 0 | D69: =D36-D67 -> 0 | E69: 0 | F69: 0 | G69: 0 | H69: 0 | I69: 0 | J69: 0 | K69: 0 | L69: 0 | M69: 0 | N69: 0 | O69: 0 | P69: 0 | Q69: 0 | R69: 0 | S69: 0 | T69: 0 | U69: 0 | V69: =V36-V67 -> 0 | W69: =W36-W67 -> 0 | X69: =X36-X67 -> 0 | Y69: 0 | Z69: 0 | AA69: 0 | AB69: 0 | AC69: 0 | AD69: 0 | AE69: 0 | AF69: 0
A71: Imputed Debt | C71: ='Operating Expenses & Energy'!B69 -> 0 | D71: ='Operating Expenses & Energy'!C69 -> 0 | E71: ='Operating Expenses & Energy'!D69 -> 0 | F71: ='Operating Expenses & Energy'!E69 -> 0 | G71: ='Operating Expenses & Energy'!F69 -> 0 | H71: ='Operating Expenses & Energy'!G69 -> 0 | I71: ='Operating Expenses & Energy'!H69 -> 0 | J71: ='Operating Expenses & Energy'!I69 -> 0 | K71: ='Operating Expenses & Energy'!J69 -> 0 | L71: ='Operating Expenses & Energy'!K69 -> 0 | M71: ='Operating Expenses & Energy'!L69 -> 0 | N71: ='Operating Expenses & Energy'!M69 -> 0 | O71: ='Operating Expenses & Energy'!N69 -> 0 | P71: ='Operating Expenses & Energy'!O69 -> 0 | Q71: ='Operating Expenses & Energy'!P69 -> 0 | R71: ='Operating Expenses & Energy'!Q69 -> 0 | S71: ='Operating Expenses & Energy'!R69 -> 0 | T71: ='Operating Expenses & Energy'!S69 -> 0 | U71: ='Operating Expenses & Energy'!T69 -> 0 | V71: ='Operating Expenses & Energy'!U69 -> 0 | W71: ='Operating Expenses & Energy'!V69 -> 0 | X71: ='Operating Expenses & Energy'!W69 -> 0 | Y71: ='Operating Expenses & Energy'!X69 -> 0 | Z71: ='Operating Expenses & Energy'!Y69 -> 0 | AA71: ='Operating Expenses & Energy'!Z69 -> 0 | AB71: ='Operating Expenses & Energy'!AA69 -> 0 | AC71: ='Operating Expenses & Energy'!AB69 -> 0 | AD71: ='Operating Expenses & Energy'!AC69 -> 0 | AE71: ='Operating Expenses & Energy'!AD69 -> 0 | AF71: ='Operating Expenses & Energy'!AE69 -> 0
A72: Imputed Debt Interest | C72: =C71*Imputed_Debt_Rate -> 0 | D72: =D71*Imputed_Debt_Rate -> 0 | E72: 0 | F72: 0 | G72: 0 | H72: 0 | I72: 0 | J72: 0 | K72: 0 | L72: 0 | M72: 0 | N72: 0 | O72: 0 | P72: 0 | Q72: 0 | R72: 0 | S72: 0 | T72: 0 | U72: 0 | V72: 0 | W72: 0 | X72: =X71*Imputed_Debt_Rate -> 0 | Y72: 0 | Z72: 0 | AA72: 0 | AB72: 0 | AC72: 0 | AD72: 0 | AE72: 0 | AF72: 0

Sheet CF-Input (hidden)
A1: Statement of Cash Flows
B2: Year | C2: Year | D2: Year | E2: Year | F2: Year | G2: Year | H2: Year | I2: Year | J2: Year | K2: Year | L2: Year | M2: Year | N2: Year | O2: Year | P2: Year | Q2: Year | R2: Year | S2: Year | T2: Year | U2: Year | V2: Year | W2: Year | X2: Year | Y2: Year | Z2: Year | AA2: Year | AB2: Year | AC2: Year | AD2: Year | AE2: Year
B3: ='IS-Input'!B3 -> 2020 | C3: ='IS-Input'!C3 -> 2021 | D3: ='IS-Input'!D3 -> 2022 | E3: ='IS-Input'!E3 -> 2023 | F3: ='IS-Input'!F3 -> 2024 | G3: ='IS-Input'!G3 -> 2025 | H3: ='IS-Input'!H3 -> 2026 | I3: ='IS-Input'!I3 -> 2027 | J3: ='IS-Input'!J3 -> 2028 | K3: ='IS-Input'!K3 -> 2029 | L3: ='IS-Input'!L3 -> 2030 | M3: ='IS-Input'!M3 -> 2031 | N3: ='IS-Input'!N3 -> 2032 | O3: ='IS-Input'!O3 -> 2033 | P3: ='IS-Input'!P3 -> 2034 | Q3: ='IS-Input'!Q3 -> 2035 | R3: ='IS-Input'!R3 -> 2036 | S3: ='IS-Input'!S3 -> 2037 | T3: ='IS-Input'!T3 -> 2038 | U3: ='IS-Input'!U3 -> 2039 | V3: ='IS-Input'!V3 -> 2040 | W3: ='IS-Input'!W3 -> 2041 | X3: ='IS-Input'!X3 -> 2042 | Y3: ='IS-Input'!Y3 -> 2043 | Z3: ='IS-Input'!Z3 -> 2044 | AA3: ='IS-Input'!AA3 -> 2045 | AB3: ='IS-Input'!AB3 -> 2046 | AC3: ='IS-Input'!AC3 -> 2047 | AD3: ='IS-Input'!AD3 -> 2048 | AE3: ='IS-Input'!AE3 -> 2049
A5: Operating Activities
A6: Net income Before Dividends | B6: ='IS-Input'!B55 -> 129559.0434 | C6: ='IS-Input'!C55 -> 2448182.657 | D6: ='IS-Input'!D55 -> 3419898.215 | E6: ='IS-Input'!E55 -> 3357227.212 | F6: ='IS-Input'!F55 -> 3276662.192 | G6: ='IS-Input'!G55 -> 3196443.697 | H6: ='IS-Input'!H55 -> 3120948.046 | I6: ='IS-Input'!I55 -> 3040634.681 | J6: ='IS-Input'!J55 -> 2975345.296 | K6: ='IS-Input'!K55 -> 2894572.079 | L6: ='IS-Input'!L55 -> 2812851.998 | M6: ='IS-Input'!M55 -> 2742071.131 | N6: ='IS-Input'!N55 -> 2660255.747 | O6: ='IS-Input'!O55 -> 2578553.085 | P6: ='IS-Input'!P55 -> 2496467.092 | Q6: ='IS-Input'!Q55 -> 2432812.894 | R6: ='IS-Input'!R55 -> 2366869.519 | S6: ='IS-Input'!S55 -> 2284054.307 | T6: ='IS-Input'!T55 -> 2200214.598 | U6: ='IS-Input'!U55 -> 2117004.658 | V6: ='IS-Input'!V55 -> 2033355.438 | W6: ='IS-Input'!W55 -> 1949781.763 | X6: ='IS-Input'!X55 -> 1917980.823 | Y6: ='IS-Input'!Y55 -> 1833061.242 | Z6: ='IS-Input'!Z55 -> 1747177.967 | AA6: ='IS-Input'!AA55 -> 1661630.725 | AB6: ='IS-Input'!AB55 -> 1576241.837 | AC6: ='IS-Input'!AC55 -> 1491108.261 | AD6: ='IS-Input'!AD55 -> 1406210.296 | AE6: ='IS-Input'!AE55 -> 1321374.908
A7: Items providing (using) cash:
A8: Depreciation / Amortization | B8: ='IS-Input'!B25 -> 9259.259259 | C8: ='IS-Input'!C25 -> 188888.8889 | D8: ='IS-Input'!D25 -> 1079629.63 | E8: ='IS-Input'!E25 -> 1466684.722 | F8: ='IS-Input'!F25 -> 1466883.333 | G8: ='IS-Input'!G25 -> 1466902.444 | H8: ='IS-Input'!H25 -> 1467383.792 | I8: ='IS-Input'!I25 -> 1470386.392 | J8: ='IS-Input'!J25 -> 1471439.731 | K8: ='IS-Input'!K25 -> 1480600.642 | L8: ='IS-Input'!L25 -> 1480836.133 | M8: ='IS-Input'!M25 -> 1481416.294 | N8: ='IS-Input'!N25 -> 1487798.067 | O8: ='IS-Input'!O25 -> 1487822.05 | P8: ='IS-Input'!P25 -> 1488085.867 | Q8: ='IS-Input'!Q25 -> 1489066.339 | R8: ='IS-Input'!R25 -> 1500727.244 | S8: ='IS-Input'!S25 -> 1510386.939 | T8: ='IS-Input'!T25 -> 1510682.533 | U8: ='IS-Input'!U25 -> 1510710.978 | V8: ='IS-Input'!V25 -> 1511023.867 | W8: ='IS-Input'!W25 -> 1511023.867 | X8: ='IS-Input'!X25 -> 1529900.324 | Y8: ='IS-Input'!Y25 -> 1539338.552 | Z8: ='IS-Input'!Z25 -> 1539338.552 | AA8: ='IS-Input'!AA25 -> 1539338.552 | AB8: ='IS-Input'!AB25 -> 1539338.552 | AC8: ='IS-Input'!AC25 -> 1539338.552 | AD8: ='IS-Input'!AD25 -> 1539338.552 | AE8: ='IS-Input'!AE25 -> 1539338.552
A9: Conservation Amort | B9: ='IS-Input'!B23 -> 0 | C9: ='IS-Input'!C23 -> 0 | D9: ='IS-Input'!D23 -> 0 | E9: ='IS-Input'!E23 -> 0 | F9: ='IS-Input'!F23 -> 0 | G9: ='IS-Input'!G23 -> 0 | H9: ='IS-Input'!H23 -> 0 | I9: ='IS-Input'!I23 -> 0 | J9: ='IS-Input'!J23 -> 0 | K9: ='IS-Input'!K23 -> 0 | L9: ='IS-Input'!L23 -> 0 | M9: ='IS-Input'!M23 -> 0 | N9: ='IS-Input'!N23 -> 0 | O9: ='IS-Input'!O23 -> 0 | P9: ='IS-Input'!P23 -> 0 | Q9: ='IS-Input'!Q23 -> 0 | R9: ='IS-Input'!R23 -> 0 | S9: ='IS-Input'!S23 -> 0 | T9: ='IS-Input'!T23 -> 0 | U9: ='IS-Input'!U23 -> 0 | V9: ='IS-Input'!V23 -> 0 | W9: ='IS-Input'!W23 -> 0 | X9: ='IS-Input'!X23 -> 0 | Y9: ='IS-Input'!Y23 -> 0 | Z9: ='IS-Input'!Z23 -> 0 | AA9: ='IS-Input'!AA23 -> 0 | AB9: ='IS-Input'!AB23 -> 0 | AC9: ='IS-Input'!AC23 -> 0 | AD9: ='IS-Input'!AD23 -> 0 | AE9: ='IS-Input'!AE23 -> 0
A10: DFIT & ITC - Net | B10: ='IS-Input'!B32 -> 19229.25926 | C10: ='IS-Input'!C32 -> 167506.8889 | D10: ='IS-Input'!D32 -> 129293.6296 | E10: ='IS-Input'!E32 -> 79058.09722 | F10: ='IS-Input'!F32 -> 79090.95833 | G10: ='IS-Input'!G32 -> 79183.05694 | H10: ='IS-Input'!H32 -> 80811.69542 | I10: ='IS-Input'!I32 -> 81384.86067 | J10: ='IS-Input'!J32 -> 86004.60818 | K10: ='IS-Input'!K32 -> 87303.51344 | L10: ='IS-Input'!L32 -> 86043.19471 | M10: ='IS-Input'!M32 -> 88316.37351 | N10: ='IS-Input'!N32 -> 88405.86417 | O10: ='IS-Input'!O32 -> 87102.56425 | P10: ='IS-Input'!P32 -> 86171.24465 | Q10: ='IS-Input'!Q32 -> 91397.53214 | R10: ='IS-Input'!R32 -> 97862.39447 | S10: ='IS-Input'!S32 -> 98184.96139 | T10: ='IS-Input'!T32 -> 96046.45577 | U10: ='IS-Input'!U32 -> 94206.16689 | V10: ='IS-Input'!V32 -> 92443.8442 | W10: ='IS-Input'!W32 -> 90131.79124 | X10: ='IS-Input'!X32 -> 99390.30538 | Y10: ='IS-Input'!Y32 -> 108441.7833 | Z10: ='IS-Input'!Z32 -> 101994.5631 | AA10: ='IS-Input'!AA32 -> 98956.33189 | AB10: ='IS-Input'!AB32 -> 94057.85467 | AC10: ='IS-Input'!AC32 -> 89537.33713 | AD10: ='IS-Input'!AD32 -> 88336.74445 | AE10: ='IS-Input'!AE32 -> 88248.80716
A11: AFUDC - Equity & WUTC | B11: =-'IS-Input'!B39+'IS-Input'!B47 -> 0 | C11: =-'IS-Input'!C39+'IS-Input'!C47 -> 0 | D11: =-'IS-Input'!D39+'IS-Input'!D47 -> 0 | E11: =-'IS-Input'!E39+'IS-Input'!E47 -> 0 | F11: =-'IS-Input'!F39+'IS-Input'!F47 -> 0 | G11: =-'IS-Input'!G39+'IS-Input'!G47 -> 0 | H11: =-'IS-Input'!H39+'IS-Input'!H47 -> 0 | I11: =-'IS-Input'!I39+'IS-Input'!I47 -> 0 | J11: =-'IS-Input'!J39+'IS-Input'!J47 -> 0 | K11: =-'IS-Input'!K39+'IS-Input'!K47 -> 0 | L11: =-'IS-Input'!L39+'IS-Input'!L47 -> 0 | M11: =-'IS-Input'!M39+'IS-Input'!M47 -> 0 | N11: =-'IS-Input'!N39+'IS-Input'!N47 -> 0 | O11: =-'IS-Input'!O39+'IS-Input'!O47 -> 0 | P11: =-'IS-Input'!P39+'IS-Input'!P47 -> 0 | Q11: =-'IS-Input'!Q39+'IS-Input'!Q47 -> 0 | R11: =-'IS-Input'!R39+'IS-Input'!R47 -> 0 | S11: =-'IS-Input'!S39+'IS-Input'!S47 -> 0 | T11: =-'IS-Input'!T39+'IS-Input'!T47 -> 0 | U11: =-'IS-Input'!U39+'IS-Input'!U47 -> 0 | V11: =-'IS-Input'!V39+'IS-Input'!V47 -> 0 | W11: =-'IS-Input'!W39+'IS-Input'!W47 -> 0 | X11: =-'IS-Input'!X39+'IS-Input'!X47 -> 0 | Y11: =-'IS-Input'!Y39+'IS-Input'!Y47 -> 0 | Z11: =-'IS-Input'!Z39+'IS-Input'!Z47 -> 0 | AA11: =-'IS-Input'!AA39+'IS-Input'!AA47 -> 0 | AB11: =-'IS-Input'!AB39+'IS-Input'!AB47 -> 0 | AC11: =-'IS-Input'!AC39+'IS-Input'!AC47 -> 0 | AD11: =-'IS-Input'!AD39+'IS-Input'!AD47 -> 0 | AE11: =-'IS-Input'!AE39+'IS-Input'!AE47 -> 0
A12: PGA Book/Cash Difference | B12: ='BS-INPUT'!B54-'BS-INPUT'!C54 -> 0 | C12: ='BS-INPUT'!C54-'BS-INPUT'!D54 -> 0 | D12: ='BS-INPUT'!D54-'BS-INPUT'!E54 -> 0 | E12: ='BS-INPUT'!E54-'BS-INPUT'!F54 -> 0 | F12: ='BS-INPUT'!F54-'BS-INPUT'!G54 -> 0 | G12: ='BS-INPUT'!G54-'BS-INPUT'!H54 -> 0 | H12: ='BS-INPUT'!H54-'BS-INPUT'!I54 -> 0 | I12: ='BS-INPUT'!I54-'BS-INPUT'!J54 -> 0 | J12: ='BS-INPUT'!J54-'BS-INPUT'!K54 -> 0 | K12: ='BS-INPUT'!K54-'BS-INPUT'!L54 -> 0 | L12: ='BS-INPUT'!L54-'BS-INPUT'!M54 -> 0 | M12: ='BS-INPUT'!M54-'BS-INPUT'!N54 -> 0 | N12: ='BS-INPUT'!N54-'BS-INPUT'!O54 -> 0 | O12: ='BS-INPUT'!O54-'BS-INPUT'!P54 -> 0 | P12: ='BS-INPUT'!P54-'BS-INPUT'!Q54 -> 0 | Q12: ='BS-INPUT'!Q54-'BS-INPUT'!R54 -> 0 | R12: ='BS-INPUT'!R54-'BS-INPUT'!S54 -> 0 | S12: ='BS-INPUT'!S54-'BS-INPUT'!T54 -> 0 | T12: ='BS-INPUT'!T54-'BS-INPUT'!U54 -> 0 | U12: ='BS-INPUT'!U54-'BS-INPUT'!V54 -> 0 | V12: ='BS-INPUT'!V54-'BS-INPUT'!W54 -> 0 | W12: ='BS-INPUT'!W54-'BS-INPUT'!X54 -> 0 | X12: ='BS-INPUT'!X54-'BS-INPUT'!Y54 -> 0 | Y12: ='BS-INPUT'!Y54-'BS-INPUT'!Z54 -> 0 | Z12: ='BS-INPUT'!Z54-'BS-INPUT'!AA54 -> 0 | AA12: ='BS-INPUT'!AA54-'BS-INPUT'!AB54 -> 0 | AB12: ='BS-INPUT'!AB54-'BS-INPUT'!AC54 -> 0 | AC12: ='BS-INPUT'!AC54-'BS-INPUT'!AD54 -> 0 | AD12: ='BS-INPUT'!AD54-'BS-INPUT'!AE54 -> 0 | AE12: ='BS-INPUT'!AE54-'BS-INPUT'!AF54 -> 0
A13: Power Cost Deferral | B13: ='BS-INPUT'!C29-'BS-INPUT'!B29 -> 0 | C13: ='BS-INPUT'!D29-'BS-INPUT'!C29 -> 0 | D13: ='BS-INPUT'!E29-'BS-INPUT'!D29 -> 0 | E13: ='BS-INPUT'!F29-'BS-INPUT'!E29 -> 0 | F13: ='BS-INPUT'!G29-'BS-INPUT'!F29 -> 0 | G13: ='BS-INPUT'!H29-'BS-INPUT'!G29 -> 0 | H13: ='BS-INPUT'!I29-'BS-INPUT'!H29 -> 0 | I13: ='BS-INPUT'!J29-'BS-INPUT'!I29 -> 0 | J13: ='BS-INPUT'!K29-'BS-INPUT'!J29 -> 0 | K13: ='BS-INPUT'!L29-'BS-INPUT'!K29 -> 0 | L13: ='BS-INPUT'!M29-'BS-INPUT'!L29 -> 0 | M13: ='BS-INPUT'!N29-'BS-INPUT'!M29 -> 0 | N13: ='BS-INPUT'!O29-'BS-INPUT'!N29 -> 0 | O13: ='BS-INPUT'!P29-'BS-INPUT'!O29 -> 0 | P13: ='BS-INPUT'!Q29-'BS-INPUT'!P29 -> 0 | Q13: ='BS-INPUT'!R29-'BS-INPUT'!Q29 -> 0 | R13: ='BS-INPUT'!S29-'BS-INPUT'!R29 -> 0 | S13: ='BS-INPUT'!T29-'BS-INPUT'!S29 -> 0 | T13: ='BS-INPUT'!U29-'BS-INPUT'!T29 -> 0 | U13: ='BS-INPUT'!V29-'BS-INPUT'!U29 -> 0 | V13: ='BS-INPUT'!W29-'BS-INPUT'!V29 -> 0 | W13: ='BS-INPUT'!X29-'BS-INPUT'!W29 -> 0 | X13: ='BS-INPUT'!Y29-'BS-INPUT'!X29 -> 0 | Y13: ='BS-INPUT'!Z29-'BS-INPUT'!Y29 -> 0 | Z13: ='BS-INPUT'!AA29-'BS-INPUT'!Z29 -> 0 | AA13: ='BS-INPUT'!AB29-'BS-INPUT'!AA29 -> 0 | AB13: ='BS-INPUT'!AC29-'BS-INPUT'!AB29 -> 0 | AC13: ='BS-INPUT'!AD29-'BS-INPUT'!AC29 -> 0 | AD13: ='BS-INPUT'!AE29-'BS-INPUT'!AD29 -> 0 | AE13: ='BS-INPUT'!AF29-'BS-INPUT'!AE29 -> 0
A14: Debt Amortization | B14: ='IS-Input'!B47 -> 0 | C14: ='IS-Input'!C47 -> 0 | D14: ='IS-Input'!D47 -> 0 | E14: ='IS-Input'!E47 -> 0 | F14: ='IS-Input'!F47 -> 0 | G14: ='IS-Input'!G47 -> 0 | H14: ='IS-Input'!H47 -> 0 | I14: ='IS-Input'!I47 -> 0 | J14: ='IS-Input'!J47 -> 0 | K14: ='IS-Input'!K47 -> 0 | L14: ='IS-Input'!L47 -> 0 | M14: ='IS-Input'!M47 -> 0 | N14: ='IS-Input'!N47 -> 0 | O14: ='IS-Input'!O47 -> 0 | P14: ='IS-Input'!P47 -> 0 | Q14: ='IS-Input'!Q47 -> 0 | R14: ='IS-Input'!R47 -> 0 | S14: ='IS-Input'!S47 -> 0 | T14: ='IS-Input'!T47 -> 0 | U14: ='IS-Input'!U47 -> 0 | V14: ='IS-Input'!V47 -> 0 | W14: ='IS-Input'!W47 -> 0 | X14: ='IS-Input'!X47 -> 0 | Y14: ='IS-Input'!Y47 -> 0 | Z14: ='IS-Input'!Z47 -> 0 | AA14: ='IS-Input'!AA47 -> 0 | AB14: ='IS-Input'!AB47 -> 0 | AC14: ='IS-Input'!AC47 -> 0 | AD14: ='IS-Input'!AD47 -> 0 | AE14: ='IS-Input'!AE47 -> 0
A15: Changes in Current Assets | B15: =SUM('BS-INPUT'!C17:C24)-SUM('BS-INPUT'!B17:B24) -> 0 | C15: =SUM('BS-INPUT'!D17:D24)-SUM('BS-INPUT'!C17:C24) -> 0 | D15: =SUM('BS-INPUT'!E17:E24)-SUM('BS-INPUT'!D17:D24) -> 0 | E15: =SUM('BS-INPUT'!F17:F24)-SUM('BS-INPUT'!E17:E24) -> 0 | F15: =SUM('BS-INPUT'!G17:G24)-SUM('BS-INPUT'!F17:F24) -> 0 | G15: =SUM('BS-INPUT'!H17:H24)-SUM('BS-INPUT'!G17:G24) -> 0 | H15: =SUM('BS-INPUT'!I17:I24)-SUM('BS-INPUT'!H17:H24) -> 0 | I15: =SUM('BS-INPUT'!J17:J24)-SUM('BS-INPUT'!I17:I24) -> 0 | J15: =SUM('BS-INPUT'!K17:K24)-SUM('BS-INPUT'!J17:J24) -> 0 | K15: =SUM('BS-INPUT'!L17:L24)-SUM('BS-INPUT'!K17:K24) -> 0 | L15: =SUM('BS-INPUT'!M17:M24)-SUM('BS-INPUT'!L17:L24) -> 0 | M15: =SUM('BS-INPUT'!N17:N24)-SUM('BS-INPUT'!M17:M24) -> 0 | N15: =SUM('BS-INPUT'!O17:O24)-SUM('BS-INPUT'!N17:N24) -> 0 | O15: =SUM('BS-INPUT'!P17:P24)-SUM('BS-INPUT'!O17:O24) -> 0 | P15: =SUM('BS-INPUT'!Q17:Q24)-SUM('BS-INPUT'!P17:P24) -> 0 | Q15: =SUM('BS-INPUT'!R17:R24)-SUM('BS-INPUT'!Q17:Q24) -> 0 | R15: =SUM('BS-INPUT'!S17:S24)-SUM('BS-INPUT'!R17:R24) -> 0 | S15: =SUM('BS-INPUT'!T17:T24)-SUM('BS-INPUT'!S17:S24) -> 0 | T15: =SUM('BS-INPUT'!U17:U24)-SUM('BS-INPUT'!T17:T24) -> 0 | U15: =SUM('BS-INPUT'!V17:V24)-SUM('BS-INPUT'!U17:U24) -> 0 | V15: =SUM('BS-INPUT'!W17:W24)-SUM('BS-INPUT'!V17:V24) -> 0 | W15: =SUM('BS-INPUT'!X17:X24)-SUM('BS-INPUT'!W17:W24) -> 0 | X15: =SUM('BS-INPUT'!Y17:Y24)-SUM('BS-INPUT'!X17:X24) -> 0 | Y15: =SUM('BS-INPUT'!Z17:Z24)-SUM('BS-INPUT'!Y17:Y24) -> 0 | Z15: =SUM('BS-INPUT'!AA17:AA24)-SUM('BS-INPUT'!Z17:Z24) -> 0 | AA15: =SUM('BS-INPUT'!AB17:AB24)-SUM('BS-INPUT'!AA17:AA24) -> 0 | AB15: =SUM('BS-INPUT'!AC17:AC24)-SUM('BS-INPUT'!AB17:AB24) -> 0 | AC15: =SUM('BS-INPUT'!AD17:AD24)-SUM('BS-INPUT'!AC17:AC24) -> 0 | AD15: =SUM('BS-INPUT'!AE17:AE24)-SUM('BS-INPUT'!AD17:AD24) -> 0 | AE15: =SUM('BS-INPUT'!AF17:AF24)-SUM('BS-INPUT'!AE17:AE24) -> 0
A16: Changes in Current Liabilities | B16: =SUM('BS-INPUT'!B54:B60,'BS-INPUT'!B52)-SUM('BS-INPUT'!C54:C60,C53) -> 0 | C16: =SUM('BS-INPUT'!C54:C60,'BS-INPUT'!C52)-SUM('BS-INPUT'!D54:D60,D53) -> 0 | D16: =SUM('BS-INPUT'!D54:D60,'BS-INPUT'!D52)-SUM('BS-INPUT'!E54:E60,E53) -> 0 | E16: =SUM('BS-INPUT'!E54:E60,'BS-INPUT'!E52)-SUM('BS-INPUT'!F54:F60,F53) -> 0 | F16: =SUM('BS-INPUT'!F54:F60,'BS-INPUT'!F52)-SUM('BS-INPUT'!G54:G60,G53) -> 0 | G16: =SUM('BS-INPUT'!G54:G60,'BS-INPUT'!G52)-SUM('BS-INPUT'!H54:H60,H53) -> 0 | H16: =SUM('BS-INPUT'!H54:H60,'BS-INPUT'!H52)-SUM('BS-INPUT'!I54:I60,I53) -> 0 | I16: =SUM('BS-INPUT'!I54:I60,'BS-INPUT'!I52)-SUM('BS-INPUT'!J54:J60,J53) -> 0 | J16: =SUM('BS-INPUT'!J54:J60,'BS-INPUT'!J52)-SUM('BS-INPUT'!K54:K60,K53) -> 0 | K16: =SUM('BS-INPUT'!K54:K60,'BS-INPUT'!K52)-SUM('BS-INPUT'!L54:L60,L53) -> 0 | L16: =SUM('BS-INPUT'!L54:L60,'BS-INPUT'!L52)-SUM('BS-INPUT'!M54:M60,M53) -> 0 | M16: =SUM('BS-INPUT'!M54:M60,'BS-INPUT'!M52)-SUM('BS-INPUT'!N54:N60,N53) -> 0 | N16: =SUM('BS-INPUT'!N54:N60,'BS-INPUT'!N52)-SUM('BS-INPUT'!O54:O60,O53) -> 0 | O16: =SUM('BS-INPUT'!O54:O60,'BS-INPUT'!O52)-SUM('BS-INPUT'!P54:P60,P53) -> 0 | P16: =SUM('BS-INPUT'!P54:P60,'BS-INPUT'!P52)-SUM('BS-INPUT'!Q54:Q60,Q53) -> 0 | Q16: =SUM('BS-INPUT'!Q54:Q60,'BS-INPUT'!Q52)-SUM('BS-INPUT'!R54:R60,R53) -> 0 | R16: =SUM('BS-INPUT'!R54:R60,'BS-INPUT'!R52)-SUM('BS-INPUT'!S54:S60,S53) -> 0 | S16: =SUM('BS-INPUT'!S54:S60,'BS-INPUT'!S52)-SUM('BS-INPUT'!T54:T60,T53) -> 0 | T16: =SUM('BS-INPUT'!T54:T60,'BS-INPUT'!T52)-SUM('BS-INPUT'!U54:U60,U53) -> 0 | U16: =SUM('BS-INPUT'!U54:U60,'BS-INPUT'!U52)-SUM('BS-INPUT'!V54:V60,V53) -> 0 | V16: =SUM('BS-INPUT'!V54:V60,'BS-INPUT'!V52)-SUM('BS-INPUT'!W54:W60,W53) -> 0 | W16: =SUM('BS-INPUT'!W54:W60,'BS-INPUT'!W52)-SUM('BS-INPUT'!X54:X60,X53) -> 0 | X16: =SUM('BS-INPUT'!X54:X60,'BS-INPUT'!X52)-SUM('BS-INPUT'!Y54:Y60,Y53) -> 0 | Y16: =SUM('BS-INPUT'!Y54:Y60,'BS-INPUT'!Y52)-SUM('BS-INPUT'!Z54:Z60,Z53) -> 0 | Z16: =SUM('BS-INPUT'!Z54:Z60,'BS-INPUT'!Z52)-SUM('BS-INPUT'!AA54:AA60,AA53) -> 0 | AA16: =SUM('BS-INPUT'!AA54:AA60,'BS-INPUT'!AA52)-SUM('BS-INPUT'!AB54:AB60,AB53) -> 0 | AB16: =SUM('BS-INPUT'!AB54:AB60,'BS-INPUT'!AB52)-SUM('BS-INPUT'!AC54:AC60,AC53) -> 0 | AC16: =SUM('BS-INPUT'!AC54:AC60,'BS-INPUT'!AC52)-SUM('BS-INPUT'!AD54:AD60,AD53) -> 0 | AD16: =SUM('BS-INPUT'!AD54:AD60,'BS-INPUT'!AD52)-SUM('BS-INPUT'!AE54:AE60,AE53) -> 0 | AE16: =SUM('BS-INPUT'!AE54:AE60,'BS-INPUT'!AE52)-SUM('BS-INPUT'!AF54:AF60,AF53) -> 0
A17: Other
A18: Net Cash From Operating Activities | B18: =SUM(B6:B17) -> 158047.5619 | C18: =SUM(C6:C17) -> 2804578.435 | D18: 4628821.475 | E18: 4902970.031 | F18: 4822636.483 | G18: 4742529.198 | H18: 4669143.533 | I18: 4592405.934 | J18: 4532789.635 | K18: 4462476.234 | L18: 4379731.326 | M18: 4311803.799 | N18: 4236459.677 | O18: 4153477.699 | P18: 4070724.204 | Q18: 4013276.765 | R18: =SUM(R6:R17) -> 3965459.158 | S18: =SUM(S6:S17) -> 3892626.207 | T18: =SUM(T6:T17) -> 3806943.587 | U18: =SUM(U6:U17) -> 3721921.803 | V18: =SUM(V6:V17) -> 3636823.149 | W18: =SUM(W6:W17) -> 3550937.421 | X18: 3547271.452 | Y18: 3480841.578 | Z18: 3388511.082 | AA18: 3299925.609 | AB18: 3209638.244 | AC18: 3119984.15 | AD18: 3033885.593 | AE18: 2948962.267
A20: Financing Activities
A21: Dividends on Common Stock
A22: Change in Common Equity
A23: Change in Preferred Stock | B23: ='BS-INPUT'!C46-'BS-INPUT'!B46 -> 0 | C23: ='BS-INPUT'!D46-'BS-INPUT'!C46 -> 0 | D23: ='BS-INPUT'!E46-'BS-INPUT'!D46 -> 0 | E23: ='BS-INPUT'!F46-'BS-INPUT'!E46 -> 0 | F23: ='BS-INPUT'!G46-'BS-INPUT'!F46 -> 0 | G23: ='BS-INPUT'!H46-'BS-INPUT'!G46 -> 0 | H23: ='BS-INPUT'!I46-'BS-INPUT'!H46 -> 0 | I23: ='BS-INPUT'!J46-'BS-INPUT'!I46 -> 0 | J23: ='BS-INPUT'!K46-'BS-INPUT'!J46 -> 0 | K23: ='BS-INPUT'!L46-'BS-INPUT'!K46 -> 0 | L23: ='BS-INPUT'!M46-'BS-INPUT'!L46 -> 0 | M23: ='BS-INPUT'!N46-'BS-INPUT'!M46 -> 0 | N23: ='BS-INPUT'!O46-'BS-INPUT'!N46 -> 0 | O23: ='BS-INPUT'!P46-'BS-INPUT'!O46 -> 0 | P23: ='BS-INPUT'!Q46-'BS-INPUT'!P46 -> 0 | Q23: ='BS-INPUT'!R46-'BS-INPUT'!Q46 -> 0 | R23: ='BS-INPUT'!S46-'BS-INPUT'!R46 -> 0 | S23: ='BS-INPUT'!T46-'BS-INPUT'!S46 -> 0 | T23: ='BS-INPUT'!U46-'BS-INPUT'!T46 -> 0 | U23: ='BS-INPUT'!V46-'BS-INPUT'!U46 -> 0 | V23: ='BS-INPUT'!W46-'BS-INPUT'!V46 -> 0 | W23: ='BS-INPUT'!X46-'BS-INPUT'!W46 -> 0 | X23: ='BS-INPUT'!Y46-'BS-INPUT'!X46 -> 0 | Y23: ='BS-INPUT'!Z46-'BS-INPUT'!Y46 -> 0 | Z23: ='BS-INPUT'!AA46-'BS-INPUT'!Z46 -> 0 | AA23: ='BS-INPUT'!AB46-'BS-INPUT'!AA46 -> 0 | AB23: ='BS-INPUT'!AC46-'BS-INPUT'!AB46 -> 0 | AC23: ='BS-INPUT'!AD46-'BS-INPUT'!AC46 -> 0 | AD23: ='BS-INPUT'!AE46-'BS-INPUT'!AD46 -> 0 | AE23: ='BS-INPUT'!AF46-'BS-INPUT'!AE46 -> 0
A24: Change in LTD | B24: ='BS-INPUT'!C47-'BS-INPUT'!B47 -> 0 | C24: ='BS-INPUT'!D47-'BS-INPUT'!C47 -> 0 | D24: ='BS-INPUT'!E47-'BS-INPUT'!D47 -> 0 | E24: ='BS-INPUT'!F47-'BS-INPUT'!E47 -> 0 | F24: ='BS-INPUT'!G47-'BS-INPUT'!F47 -> 0 | G24: ='BS-INPUT'!H47-'BS-INPUT'!G47 -> 0 | H24: ='BS-INPUT'!I47-'BS-INPUT'!H47 -> 0 | I24: ='BS-INPUT'!J47-'BS-INPUT'!I47 -> 0 | J24: ='BS-INPUT'!K47-'BS-INPUT'!J47 -> 0 | K24: ='BS-INPUT'!L47-'BS-INPUT'!K47 -> 0 | L24: ='BS-INPUT'!M47-'BS-INPUT'!L47 -> 0 | M24: ='BS-INPUT'!N47-'BS-INPUT'!M47 -> 0 | N24: ='BS-INPUT'!O47-'BS-INPUT'!N47 -> 0 | O24: ='BS-INPUT'!P47-'BS-INPUT'!O47 -> 0 | P24: ='BS-INPUT'!Q47-'BS-INPUT'!P47 -> 0 | Q24: ='BS-INPUT'!R47-'BS-INPUT'!Q47 -> 0 | R24: ='BS-INPUT'!S47-'BS-INPUT'!R47 -> 0 | S24: ='BS-INPUT'!T47-'BS-INPUT'!S47 -> 0 | T24: ='BS-INPUT'!U47-'BS-INPUT'!T47 -> 0 | U24: ='BS-INPUT'!V47-'BS-INPUT'!U47 -> 0 | V24: ='BS-INPUT'!W47-'BS-INPUT'!V47 -> 0 | W24: ='BS-INPUT'!X47-'BS-INPUT'!W47 -> 0 | X24: ='BS-INPUT'!Y47-'BS-INPUT'!X47 -> 0 | Y24: ='BS-INPUT'!Z47-'BS-INPUT'!Y47 -> 0 | Z24: ='BS-INPUT'!AA47-'BS-INPUT'!Z47 -> 0 | AA24: ='BS-INPUT'!AB47-'BS-INPUT'!AA47 -> 0 | AB24: ='BS-INPUT'!AC47-'BS-INPUT'!AB47 -> 0 | AC24: ='BS-INPUT'!AD47-'BS-INPUT'!AC47 -> 0 | AD24: ='BS-INPUT'!AE47-'BS-INPUT'!AD47 -> 0 | AE24: ='BS-INPUT'!AF47-'BS-INPUT'!AE47 -> 0
A25: Change in STD | B25: ='BS-INPUT'!C53-'BS-INPUT'!B53 -> 4841952.438 | C25: ='BS-INPUT'!D53-'BS-INPUT'!C53 -> 39195421.57 | D25: ='BS-INPUT'!E53-'BS-INPUT'!D53 -> 14371178.53 | E25: ='BS-INPUT'!F53-'BS-INPUT'!E53 -> -4896470.031 | F25: ='BS-INPUT'!G53-'BS-INPUT'!F53 -> -4822636.483 | G25: ='BS-INPUT'!H53-'BS-INPUT'!G53 -> -4735649.198 | H25: ='BS-INPUT'!I53-'BS-INPUT'!H53 -> -4571538.533 | I25: ='BS-INPUT'!J53-'BS-INPUT'!I53 -> -4585124.934 | J25: ='BS-INPUT'!K53-'BS-INPUT'!J53 -> -4233678.635 | K25: ='BS-INPUT'!L53-'BS-INPUT'!K53 -> -4454769.234 | L25: ='BS-INPUT'!M53-'BS-INPUT'!L53 -> -4379731.326 | M25: ='BS-INPUT'!N53-'BS-INPUT'!M53 -> -4102945.799 | N25: ='BS-INPUT'!O53-'BS-INPUT'!N53 -> -4236459.677 | O25: ='BS-INPUT'!P53-'BS-INPUT'!O53 -> -4144843.699 | P25: ='BS-INPUT'!Q53-'BS-INPUT'!P53 -> -4070724.204 | Q25: ='BS-INPUT'!R53-'BS-INPUT'!Q53 -> -3660306.765 | R25: ='BS-INPUT'!S53-'BS-INPUT'!R53 -> -3650203.158 | S25: ='BS-INPUT'!T53-'BS-INPUT'!S53 -> -3882952.207 | T25: ='BS-INPUT'!U53-'BS-INPUT'!T53 -> -3806943.587 | U25: ='BS-INPUT'!V53-'BS-INPUT'!U53 -> -3711681.803 | V25: ='BS-INPUT'!W53-'BS-INPUT'!V53 -> -3636823.149 | W25: ='BS-INPUT'!X53-'BS-INPUT'!W53 -> -3550937.421 | X25: ='BS-INPUT'!Y53-'BS-INPUT'!X53 -> -2556257.452 | Y25: ='BS-INPUT'!Z53-'BS-INPUT'!Y53 -> -3480841.578 | Z25: ='BS-INPUT'!AA53-'BS-INPUT'!Z53 -> -3388511.082 | AA25: ='BS-INPUT'!AB53-'BS-INPUT'!AA53 -> -3299925.609 | AB25: ='BS-INPUT'!AC53-'BS-INPUT'!AB53 -> -3209638.244 | AC25: ='BS-INPUT'!AD53-'BS-INPUT'!AC53 -> -3119984.15 | AD25: ='BS-INPUT'!AE53-'BS-INPUT'!AD53 -> -3033885.593 | AE25: ='BS-INPUT'!AF53-'BS-INPUT'!AE53 -> -2948962.267
A26: Net Cash From Financing Activities | B26: =SUM(B21:B25) -> 4841952.438 | C26: =SUM(C21:C25) -> 39195421.57 | D26: 14371178.53 | E26: -4896470.031 | F26: -4822636.483 | G26: -4735649.198 | H26: -4571538.533 | I26: -4585124.934 | J26: -4233678.635 | K26: -4454769.234 | L26: -4379731.326 | M26: -4102945.799 | N26: -4236459.677 | O26: -4144843.699 | P26: -4070724.204 | Q26: -3660306.765 | R26: -3650203.158 | S26: -3882952.207 | T26: -3806943.587 | U26: -3711681.803 | V26: -3636823.149 | W26: =SUM(W21:W25) -> -3550937.421 | X26: -2556257.452 | Y26: -3480841.578 | Z26: -3388511.082 | AA26: -3299925.609 | AB26: -3209638.244 | AC26: -3119984.15 | AD26: -3033885.593 | AE26: -2948962.267
A29: Investing Cash Flows
A30: Construction Expenditures | B30: =-'Cash Flow Statement (Results)'!B19 -> -5000000 | C30: =-'Cash Flow Statement (Results)'!C19 -> -42000000 | D30: =-'Cash Flow Statement (Results)'!D19 -> -19000000 | E30: =-'Cash Flow Statement (Results)'!E19 -> -6500 | F30: =-'Cash Flow Statement (Results)'!F19 -> 0 | G30: =-'Cash Flow Statement (Results)'!G19 -> -6880 | H30: =-'Cash Flow Statement (Results)'!H19 -> -97605 | I30: =-'Cash Flow Statement (Results)'!I19 -> -7281 | J30: =-'Cash Flow Statement (Results)'!J19 -> -299111 | K30: =-'Cash Flow Statement (Results)'!K19 -> -7707 | L30: =-'Cash Flow Statement (Results)'!L19 -> 0 | M30: =-'Cash Flow Statement (Results)'!M19 -> -208858 | N30: =-'Cash Flow Statement (Results)'!N19 -> 0 | O30: =-'Cash Flow Statement (Results)'!O19 -> -8634 | P30: =-'Cash Flow Statement (Results)'!P19 -> 0 | Q30: =-'Cash Flow Statement (Results)'!Q19 -> -352970 | R30: =-'Cash Flow Statement (Results)'!R19 -> -315256 | S30: =-'Cash Flow Statement (Results)'!S19 -> -9674 | T30: =-'Cash Flow Statement (Results)'!T19 -> 0 | U30: =-'Cash Flow Statement (Results)'!U19 -> -10240 | V30: =-'Cash Flow Statement (Results)'!V19 -> 0 | W30: =-'Cash Flow Statement (Results)'!W19 -> 0 | X30: =-'Cash Flow Statement (Results)'!X19 -> -991014 | Y30: =-'Cash Flow Statement (Results)'!Y19 -> 0 | Z30: =-'Cash Flow Statement (Results)'!Z19 -> 0 | AA30: =-'Cash Flow Statement (Results)'!AA19 -> 0 | AB30: =-'Cash Flow Statement (Results)'!AB19 -> 0 | AC30: =-'Cash Flow Statement (Results)'!AC19 -> 0 | AD30: =-'Cash Flow Statement (Results)'!AD19 -> 0 | AE30: =-'Cash Flow Statement (Results)'!AE19 -> 0
A31: AFUDC Debt
A32: Conservation Expenditures
A33: Total Cash from Investing | B33: =SUM(B30:B32) -> -5000000 | C33: =SUM(C30:C32) -> -42000000 | D33: -19000000 | E33: -6500 | F33: 0 | G33: -6880 | H33: -97605 | I33: -7281 | J33: -299111 | K33: -7707 | L33: 0 | M33: -208858 | N33: 0 | O33: -8634 | P33: 0 | Q33: -352970 | R33: =SUM(R30:R32) -> -315256 | S33: =SUM(S30:S32) -> -9674 | T33: =SUM(T30:T32) -> 0 | U33: =SUM(U30:U32) -> -10240 | V33: =SUM(V30:V32) -> 0 | W33: =SUM(W30:W32) -> 0 | X33: -991014 | Y33: 0 | Z33: 0 | AA33: 0 | AB33: 0 | AC33: 0 | AD33: 0 | AE33: 0
A36: Net Change in Cash | B36: =B18+B26+B33 -> 0 | C36: =C18+C26+C33 -> 0 | D36: =D18+D26+D33 -> 0 | E36: -4.656612873e-09 | F36: -2.793967724e-09 | G36: 7.450580597e-09 | H36: -9.313225746e-09 | I36: 2.793967724e-09 | J36: 9.313225746e-09 | K36: -4.656612873e-09 | L36: 0 | M36: -1.862645149e-09 | N36: 1.862645149e-09 | O36: -4.656612873e-09 | P36: -1.396983862e-09 | Q36: 2.793967724e-09 | R36: =R18+R26+R33 -> -4.656612873e-10 | S36: =S18+S26+S33 -> -4.656612873e-09 | T36: =T18+T26+T33 -> -1.862645149e-09 | U36: =U18+U26+U33 -> -1.862645149e-09 | V36: =V18+V26+V33 -> -4.190951586e-09 | W36: =W18+W26+W33 -> 3.725290298e-09 | X36: 0 | Y36: -5.12227416e-09 | Z36: 3.725290298e-09 | AA36: 1.396983862e-09 | AB36: 1.396983862e-09 | AC36: 2.328306437e-09 | AD36: -9.313225746e-10 | AE36: 1.396983862e-08

Sheet Summary - Print
A2: Summary of Results | I2: Appendix E.2
A3: ='Assumptions (Input)'!B1 -> Puyallup Service Center - Design-bid-build
A5: Time Horizon | B5: =Term&" Years" -> 30 Years
A6: Present Value of Regulated Revenues | B6: =+'Summary of Results'!D22 -> 77315505.69
A7: Levelized Revenue Requirement | B7: =-PMT(WACC,Term,B6,) -> 6537702.67
A8: Present Value of EBITDA | B8: =NPV(WACC,'Income Statement (Results)'!C46:AE46)+'Income Statement (Results)'!B46 -> 52096444.56
B9: Financial Metrics
B10: PV | C10: =Start_Year -> 2020 | D10: =C10+1 -> 2021 | E10: =D10+1 -> 2022 | F10: 2023 | G10: 2024 | H10: 2025 | I10: Total
A12: O&M | B12: =NPV(WACC,D12:H12)+C12 -> 1057753.385 | C12: ='Income Statement (Results)'!B15 -> 0 | D12: ='Income Statement (Results)'!C15 -> 139898.5437 | E12: ='Income Statement (Results)'!D15 -> 288191 | F12: ='Income Statement (Results)'!E15 -> 294741 | G12: ='Income Statement (Results)'!F15 -> 301477 | H12: ='Income Statement (Results)'!G15 -> 308390 | I12: =SUM(C12:H12) -> 1332697.544
A13: Capital | B13: =NPV(WACC,D13:H13)+C13 -> 60530254.39 | C13: ='Cash Flow Statement (Results)'!B19 -> 5000000 | D13: ='Cash Flow Statement (Results)'!C19 -> 42000000 | E13: ='Cash Flow Statement (Results)'!D19 -> 19000000 | F13: ='Cash Flow Statement (Results)'!E19 -> 6500 | G13: ='Cash Flow Statement (Results)'!F19 -> 0 | H13: ='Cash Flow Statement (Results)'!G19 -> 6880 | I13: =SUM(C13:H13) -> 66013380
A14: Revenue Requirement (Cost to Customers) | B14: =NPV(WACC,D14:H14)+C14 -> 28081687.7 | C14: ='Revenue Requirement'!B15 -> 238959.5385 | D14: ='Revenue Requirement'!C15 -> 4636856.812 | E14: ='Revenue Requirement'!D15 -> 7422704.611 | F14: ='Revenue Requirement'!E15 -> 7723208.671 | G14: ='Revenue Requirement'!F15 -> 7590345.863 | H14: ='Revenue Requirement'!G15 -> 7458088.544 | I14: 35070164.04
A15: Operating Income | C15: ='Income Statement (Results)'!B26 -> 186092.3749 | D15: ='Income Statement (Results)'!C26 -> 3516451.75 | E15: ='Income Statement (Results)'!D26 -> 4912177.214 | F15: ='Income Statement (Results)'!E26 -> 4822159.601 | G15: ='Income Statement (Results)'!F26 -> 4706439.883 | H15: ='Income Statement (Results)'!G26 -> 4591217.898 | I15: 22734538.72
A16: Ratebase | C16: ='Income Statement (Results)'!B36 -> 2485755.741 | D16: ='Income Statement (Results)'!C36 -> 46971511.48 | E16: ='Income Statement (Results)'!D36 -> 65615115.7 | F16: ='Income Statement (Results)'!E36 -> 64412692.44 | G16: ='Income Statement (Results)'!F36 -> 62866949.62 | H16: ='Income Statement (Results)'!G36 -> 61327855.33
A17: Return on Ratebase (Op Inc/Ratebase) | C17: =IFERROR(C15/C16,"") -> 0.0748635 | D17: =IFERROR(D15/D16,"") -> 0.0748635 | E17: 0.0748635 | F17: 0.0748635 | G17: 0.0748635 | H17: 0.0748635
A18: Project Net Cash Flow | B18: =NPV(WACC,D18:H18)+C18 -> -42889701.17 | C18: ='Cash Flow Statement (Results)'!B25 -> -4841952.438 | D18: ='Cash Flow Statement (Results)'!C25 -> -39195421.57 | E18: ='Cash Flow Statement (Results)'!D25 -> -14371178.53 | F18: ='Cash Flow Statement (Results)'!E25 -> 4896470.031 | G18: ='Cash Flow Statement (Results)'!F25 -> 4822636.483 | H18: ='Cash Flow Statement (Results)'!G25 -> 4735649.198 | I18: =SUM(C18:H18) -> -43953796.82
A19: EBITDA | B19: =NPV(WACC,D19:H19)+C19 -> 18928586.96 | C19: ='Income Statement (Results)'!B46 -> 163971.7902 | D19: ='Income Statement (Results)'!C46 -> 3013211.86 | E19: ='Income Statement (Results)'!D46 -> 4971951.032 | F19: ='Income Statement (Results)'!E46 -> 5263441.739 | G19: ='Income Statement (Results)'!F46 -> 5173504.963 | H19: ='Income Statement (Results)'!G46 -> 5083806.441 | I19: =SUM(C19:H19) -> 23669887.82

Sheet Assumptions (Input)
A1: Building or Location | B1: Puyallup Service Center - Design-bid-build
A2: Scenario Title | B2: Design-Bid-Build
A3: Base Year | B3: 2020
A4: Forecast Period | B4: 30
A5: FIT Tax Rate | B5: 0.21
A6: Levy Rate | B6: 0.012
A7: PropertyTax Rate | B7: 0.0068
A8: Revenue Taxes | B8: 0.03873
A9: Construction Period Interest | B9: =WACC -> 0.0748635
A10: Insurance | B10: 0.0007
A11: O&M Inflation | B11: 0 | C11: Escalated in source file
A12: Capital Inflation | B12: 0 | C12: Escalated in source file
A13: Regulated Scenario | B13: Yes | C13: =IF(Requlated_scenario="yes",1,0) -> 1
A14: AFUDC | B14: Yes
A15: Imputed Debt Rate | B15: 0
A16: Capacity Factor | B16: 0
A17: Risk Factor | B17: 0
B19: =B3 -> 2020 | C19: =+B19+1 -> 2021 | D19: 2022 | E19: 2023 | F19: 2024 | G19: 2025 | H19: 2026 | I19: 2027 | J19: 2028 | K19: 2029 | L19: 2030 | M19: 2031 | N19: 2032 | O19: 2033 | P19: 2034 | Q19: 2035 | R19: 2036 | S19: 2037 | T19: 2038 | U19: 2039 | V19: 2040 | W19: 2041 | X19: 2042 | Y19: 2043 | Z19: 2044 | AA19: 2045 | AB19: 2046 | AC19: 2047 | AD19: 2048 | AE19: 2049
A20: Rate Case | B20: Yes | C20: Yes | D20: Yes | E20: Yes | F20: Yes | G20: Yes | H20: Yes | I20: Yes | J20: Yes | K20: Yes | L20: Yes | M20: Yes | N20: Yes | O20: Yes | P20: Yes | Q20: Yes | R20: Yes | S20: Yes | T20: Yes | U20: Yes | V20: Yes | W20: Yes | X20: Yes | Y20: Yes | Z20: Yes | AA20: Yes | AB20: Yes | AC20: Yes | AD20: Yes | AE20: Yes
A22: Rate Case Lag (yrs) | B22: 2 | C22: use 0 years for perfect regulation or new resources, use 2 yrs for T&D programs
A24: Capital Structure
C26: Cost | D26: WACC
A27: Long Term Debt | B27: 0.515 | C27: 0.0559 | D27: =B27*C27 -> 0.0287885
A28: Short Term Debt | B28: 0 | C28: 0 | D28: =B28*C28 -> 0
A29: Preferred | D29: 0
A30: Common | B30: 0.485 | C30: 0.095 | D30: 0.046075
A31: Total | B31: =SUM(B27:B30) -> 1 | D31: =SUM(D27:D30) -> 0.0748635
B33: Structure | C33: Cost | D33: After-Tax
A34: Long Term Debt | B34: 0.515 | C34: 0.0559 | D34: =(1-FIT_Tax_Rate)*C34*B34 -> 0.022742915
A35: Short Term Debt | B35: 0 | C35: 0 | D35: =(1-FIT_Tax_Rate)*C35*B35 -> 0
A36: Preferred | D36: =B36*C36 -> 0
A37: Common | B37: 0.485 | C37: 0.095 | D37: =B37*C37 -> 0.046075
A38: Total | B38: =SUM(B34:B37) -> 1 | D38: =SUM(D34:D37) -> 0.068817915
A41: Pre-tax Return | D41: =After_Tax_Cash_Discount/(1-FIT_Tax_Rate) -> 0.08711128481

Sheet Summary of Results
A1: =+'Assumptions (Input)'!B1 -> Puyallup Service Center - Design-bid-build
A3: Capital Structure
B4: Structure | C4: Cost | D4: WACC
A5: ='Assumptions (Input)'!A27 -> Long Term Debt | B5: ='Assumptions (Input)'!B27 -> 0.515 | C5: ='Assumptions (Input)'!C27 -> 0.0559 | D5: =B5*C5 -> 0.0287885
A6: ='Assumptions (Input)'!A28 -> Short Term Debt | B6: ='Assumptions (Input)'!B28 -> 0 | C6: ='Assumptions (Input)'!C28 -> 0 | D6: =B6*C6 -> 0
A7: ='Assumptions (Input)'!A29 -> Preferred | B7: ='Assumptions (Input)'!B29 -> 0 | C7: ='Assumptions (Input)'!C29 -> 0 | D7: =B7*C7 -> 0
A8: ='Assumptions (Input)'!A30 -> Common | B8: ='Assumptions (Input)'!B30 -> 0.485 | C8: ='Assumptions (Input)'!C30 -> 0.095 | D8: =B8*C8 -> 0.046075
A9: ='Assumptions (Input)'!A31 -> Total | B9: ='Assumptions (Input)'!B31 -> 1 | D9: =SUM(D5:D8) -> 0.0748635
A11: After-Tax Cost of Capital | D11: =SUM(D5:D6)*(1-FIT_Tax_Rate)+SUM(D7:D8) -> 0.068817915
E13: =Start_Year -> 2020 | F13: ='Income Statement (Results)'!C8 -> 2021 | G13: ='Income Statement (Results)'!D8 -> 2022 | H13: ='Income Statement (Results)'!E8 -> 2023 | I13: ='Income Statement (Results)'!F8 -> 2024 | J13: ='Income Statement (Results)'!G8 -> 2025 | K13: ='Income Statement (Results)'!H8 -> 2026 | L13: ='Income Statement (Results)'!I8 -> 2027 | M13: ='Income Statement (Results)'!J8 -> 2028 | N13: ='Income Statement (Results)'!K8 -> 2029 | O13: ='Income Statement (Results)'!L8 -> 2030 | P13: ='Income Statement (Results)'!M8 -> 2031 | Q13: ='Income Statement (Results)'!N8 -> 2032 | R13: ='Income Statement (Results)'!O8 -> 2033 | S13: ='Income Statement (Results)'!P8 -> 2034 | T13: ='Income Statement (Results)'!Q8 -> 2035 | U13: ='Income Statement (Results)'!R8 -> 2036 | V13: ='Income Statement (Results)'!S8 -> 2037 | W13: ='Income Statement (Results)'!T8 -> 2038 | X13: ='Income Statement (Results)'!U8 -> 2039 | Y13: ='Income Statement (Results)'!V8 -> 2040 | Z13: ='Income Statement (Results)'!W8 -> 2041 | AA13: ='Income Statement (Results)'!X8 -> 2042 | AB13: ='Income Statement (Results)'!Y8 -> 2043 | AC13: ='Income Statement (Results)'!Z8 -> 2044 | AD13: ='Income Statement (Results)'!AA8 -> 2045 | AE13: ='Income Statement (Results)'!AB8 -> 2046 | AF13: ='Income Statement (Results)'!AC8 -> 2047 | AG13: ='Income Statement (Results)'!AD8 -> 2048 | AH13: ='Income Statement (Results)'!AE8 -> 2049 | AI13: ='Income Statement (Results)'!AF8 -> 0 | AJ13: ='Income Statement (Results)'!AG8 -> 0 | AK13: ='Income Statement (Results)'!AH8 -> 0 | AL13: ='Income Statement (Results)'!AI8 -> 0 | AM13: ='Income Statement (Results)'!AJ8 -> 0 | AN13: ='Income Statement (Results)'!AK8 -> 0 | AO13: ='Income Statement (Results)'!AL8 -> 0 | AP13: ='Income Statement (Results)'!AM8 -> 0 | AQ13: ='Income Statement (Results)'!AN8 -> 0 | AR13: ='Income Statement (Results)'!AO8 -> 0
A14: Requlated Revenues | E14: =IF(E$13-$E$13+1<=Term,'Income Statement (Results)'!B10,0) -> 249088.1535 | F14: =IF(F$13-$E$13+1<=Term,'Income Statement (Results)'!C10,0) -> 4725087.605 | G14: =IF(G$13-$E$13+1<=Term,'Income Statement (Results)'!D10,0) -> 7490807.36 | H14: =IF(H$13-$E$13+1<=Term,'Income Statement (Results)'!E10,0) -> 7764850.891 | I14: =IF(I$13-$E$13+1<=Term,'Income Statement (Results)'!F10,0) -> 7632005.391 | J14: =IF(J$13-$E$13+1<=Term,'Income Statement (Results)'!G10,0) -> 7499796.584 | K14: =IF(K$13-$E$13+1<=Term,'Income Statement (Results)'!H10,0) -> 7377352.593 | L14: =IF(L$13-$E$13+1<=Term,'Income Statement (Results)'!I10,0) -> 7248722.198 | M14: =IF(M$13-$E$13+1<=Term,'Income Statement (Results)'!J10,0) -> 7146756.458 | N14: =IF(N$13-$E$13+1<=Term,'Income Statement (Results)'!K10,0) -> 7024525.448 | O14: =IF(O$13-$E$13+1<=Term,'Income Statement (Results)'!L10,0) -> 6890225.21 | P14: =IF(P$13-$E$13+1<=Term,'Income Statement (Results)'!M10,0) -> 6777556.968 | Q14: =IF(Q$13-$E$13+1<=Term,'Income Statement (Results)'!N10,0) -> 6650648.455 | R14: =IF(R$13-$E$13+1<=Term,'Income Statement (Results)'!O10,0) -> 6516833.609 | S14: =IF(S$13-$E$13+1<=Term,'Income Statement (Results)'!P10,0) -> 6383036.191 | T14: =IF(T$13-$E$13+1<=Term,'Income Statement (Results)'!Q10,0) -> 6285815.52 | U14: =IF(U$13-$E$13+1<=Term,'Income Statement (Results)'!R10,0) -> 6196610.379 | V14: =IF(V$13-$E$13+1<=Term,'Income Statement (Results)'!S10,0) -> 6072776.386 | W14: =IF(W$13-$E$13+1<=Term,'Income Statement (Results)'!T10,0) -> 5936396.433 | X14: =IF(X$13-$E$13+1<=Term,'Income Statement (Results)'!U10,0) -> 5801290.218 | Y14: =IF(Y$13-$E$13+1<=Term,'Income Statement (Results)'!V10,0) -> 5666049.525 | Z14: =IF(Z$13-$E$13+1<=Term,'Income Statement (Results)'!W10,0) -> 5530636.174 | AA14: =IF(AA$13-$E$13+1<=Term,'Income Statement (Results)'!X10,0) -> 5514657.942 | AB14: =IF(AB$13-$E$13+1<=Term,'Income Statement (Results)'!Y10,0) -> 5396009.855 | AC14: =IF(AC$13-$E$13+1<=Term,'Income Statement (Results)'!Z10,0) -> 5258136.506 | AD14: =IF(AD$13-$E$13+1<=Term,'Income Statement (Results)'!AA10,0) -> 5123088.41 | AE14: =IF(AE$13-$E$13+1<=Term,'Income Statement (Results)'!AB10,0) -> 4987794.542 | AF14: =IF(AF$13-$E$13+1<=Term,'Income Statement (Results)'!AC10,0) -> 4853616.169 | AG14: =IF(AG$13-$E$13+1<=Term,'Income Statement (Results)'!AD10,0) -> 4722082.837 | AH14: =IF(AH$13-$E$13+1<=Term,'Income Statement (Results)'!AE10,0) -> 4591745.655 | AI14: =IF(AI$13-$E$13+1<=Term,'Income Statement (Results)'!AF10,0) -> 0 | AJ14: =IF(AJ$13-$E$13+1<=Term,'Income Statement (Results)'!AG10,0) -> 0 | AK14: =IF(AK$13-$E$13+1<=Term,'Income Statement (Results)'!AH10,0) -> 0 | AL14: =IF(AL$13-$E$13+1<=Term,'Income Statement (Results)'!AI10,0) -> 0 | AM14: =IF(AM$13-$E$13+1<=Term,'Income Statement (Results)'!AJ10,0) -> 0 | AN14: =IF(AN$13-$E$13+1<=Term,'Income Statement (Results)'!AK10,0) -> 0 | AO14: =IF(AO$13-$E$13+1<=Term,'Income Statement (Results)'!AL10,0) -> 0 | AP14: =IF(AP$13-$E$13+1<=Term,'Income Statement (Results)'!AM10,0) -> 0 | AQ14: =IF(AQ$13-$E$13+1<=Term,'Income Statement (Results)'!AN10,0) -> 0 | AR14: =IF(AR$13-$E$13+1<=Term,'Income Statement (Results)'!AO10,0) -> 0
A15: Unrequlated Revenues | E15: =IF(E$13-$E$13+1<=$E$20,'Income Statement (Results)'!B11,0) -> 0 | F15: =IF(F$13-$E$13+1<=$E$20,'Income Statement (Results)'!C11,0) -> 0 | G15: =IF(G$13-$E$13+1<=$E$20,'Income Statement (Results)'!D11,0) -> 0 | H15: =IF(H$13-$E$13+1<=$E$20,'Income Statement (Results)'!E11,0) -> 0 | I15: =IF(I$13-$E$13+1<=$E$20,'Income Statement (Results)'!F11,0) -> 0 | J15: =IF(J$13-$E$13+1<=$E$20,'Income Statement (Results)'!G11,0) -> 0 | K15: =IF(K$13-$E$13+1<=$E$20,'Income Statement (Results)'!H11,0) -> 0 | L15: =IF(L$13-$E$13+1<=$E$20,'Income Statement (Results)'!I11,0) -> 0 | M15: =IF(M$13-$E$13+1<=$E$20,'Income Statement (Results)'!J11,0) -> 0 | N15: =IF(N$13-$E$13+1<=$E$20,'Income Statement (Results)'!K11,0) -> 0 | O15: =IF(O$13-$E$13+1<=$E$20,'Income Statement (Results)'!L11,0) -> 0 | P15: =IF(P$13-$E$13+1<=$E$20,'Income Statement (Results)'!M11,0) -> 0 | Q15: =IF(Q$13-$E$13+1<=$E$20,'Income Statement (Results)'!N11,0) -> 0 | R15: =IF(R$13-$E$13+1<=$E$20,'Income Statement (Results)'!O11,0) -> 0 | S15: =IF(S$13-$E$13+1<=$E$20,'Income Statement (Results)'!P11,0) -> 0 | T15: =IF(T$13-$E$13+1<=$E$20,'Income Statement (Results)'!Q11,0) -> 0 | U15: =IF(U$13-$E$13+1<=$E$20,'Income Statement (Results)'!R11,0) -> 0 | V15: =IF(V$13-$E$13+1<=$E$20,'Income Statement (Results)'!S11,0) -> 0 | W15: =IF(W$13-$E$13+1<=$E$20,'Income Statement (Results)'!T11,0) -> 0 | X15: =IF(X$13-$E$13+1<=$E$20,'Income Statement (Results)'!U11,0) -> 0 | Y15: =IF(Y$13-$E$13+1<=$E$20,'Income Statement (Results)'!V11,0) -> 0 | Z15: =IF(Z$13-$E$13+1<=$E$20,'Income Statement (Results)'!W11,0) -> 0 | AA15: =IF(AA$13-$E$13+1<=$E$20,'Income Statement (Results)'!X11,0) -> 0 | AB15: =IF(AB$13-$E$13+1<=$E$20,'Income Statement (Results)'!Y11,0) -> 0 | AC15: =IF(AC$13-$E$13+1<=$E$20,'Income Statement (Results)'!Z11,0) -> 0 | AD15: =IF(AD$13-$E$13+1<=$E$20,'Income Statement (Results)'!AA11,0) -> 0 | AE15: =IF(AE$13-$E$13+1<=$E$20,'Income Statement (Results)'!AB11,0) -> 0 | AF15: =IF(AF$13-$E$13+1<=$E$20,'Income Statement (Results)'!AC11,0) -> 0 | AG15: =IF(AG$13-$E$13+1<=$E$20,'Income Statement (Results)'!AD11,0) -> 0 | AH15: =IF(AH$13-$E$13+1<=$E$20,'Income Statement (Results)'!AE11,0) -> 0 | AI15: =IF(AI$13-$E$13+1<=$E$20,'Income Statement (Results)'!AF11,0) -> 0 | AJ15: =IF(AJ$13-$E$13+1<=$E$20,'Income Statement (Results)'!AG11,0) -> 0 | AK15: =IF(AK$13-$E$13+1<=$E$20,'Income Statement (Results)'!AH11,0) -> 0 | AL15: =IF(AL$13-$E$13+1<=$E$20,'Income Statement (Results)'!AI11,0) -> 0 | AM15: =IF(AM$13-$E$13+1<=$E$20,'Income Statement (Results)'!AJ11,0) -> 0 | AN15: =IF(AN$13-$E$13+1<=$E$20,'Income Statement (Results)'!AK11,0) -> 0 | AO15: =IF(AO$13-$E$13+1<=$E$20,'Income Statement (Results)'!AL11,0) -> 0 | AP15: =IF(AP$13-$E$13+1<=$E$20,'Income Statement (Results)'!AM11,0) -> 0 | AQ15: =IF(AQ$13-$E$13+1<=$E$20,'Income Statement (Results)'!AN11,0) -> 0 | AR15: =IF(AR$13-$E$13+1<=$E$20,'Income Statement (Results)'!AO11,0) -> 0
A16: Capital Investments (Nominal) | E16: =IF(E$13-$E$13+1<=Term,'Cash Flow Statement (Results)'!B19,0) -> 5000000 | F16: =IF(F$13-$E$13+1<=Term,'Cash Flow Statement (Results)'!C19,0) -> 42000000 | G16: =IF(G$13-$E$13+1<=Term,'Cash Flow Statement (Results)'!D19,0) -> 19000000 | H16: =IF(H$13-$E$13+1<=Term,'Cash Flow Statement (Results)'!E19,0) -> 6500 | I16: =IF(I$13-$E$13+1<=Term,'Cash Flow Statement (Results)'!F19,0) -> 0 | J16: =IF(J$13-$E$13+1<=Term,'Cash Flow Statement (Results)'!G19,0) -> 6880 | K16: =IF(K$13-$E$13+1<=Term,'Cash Flow Statement (Results)'!H19,0) -> 97605 | L16: =IF(L$13-$E$13+1<=Term,'Cash Flow Statement (Results)'!I19,0) -> 7281 | M16: =IF(M$13-$E$13+1<=Term,'Cash Flow Statement (Results)'!J19,0) -> 299111 | N16: =IF(N$13-$E$13+1<=Term,'Cash Flow Statement (Results)'!K19,0) -> 7707 | O16: =IF(O$13-$E$13+1<=Term,'Cash Flow Statement (Results)'!L19,0) -> 0 | P16: =IF(P$13-$E$13+1<=Term,'Cash Flow Statement (Results)'!M19,0) -> 208858 | Q16: =IF(Q$13-$E$13+1<=Term,'Cash Flow Statement (Results)'!N19,0) -> 0 | R16: =IF(R$13-$E$13+1<=Term,'Cash Flow Statement (Results)'!O19,0) -> 8634 | S16: =IF(S$13-$E$13+1<=Term,'Cash Flow Statement (Results)'!P19,0) -> 0 | T16: =IF(T$13-$E$13+1<=Term,'Cash Flow Statement (Results)'!Q19,0) -> 352970 | U16: =IF(U$13-$E$13+1<=Term,'Cash Flow Statement (Results)'!R19,0) -> 315256 | V16: =IF(V$13-$E$13+1<=Term,'Cash Flow Statement (Results)'!S19,0) -> 9674 | W16: =IF(W$13-$E$13+1<=Term,'Cash Flow Statement (Results)'!T19,0) -> 0 | X16: =IF(X$13-$E$13+1<=Term,'Cash Flow Statement (Results)'!U19,0) -> 10240 | Y16: =IF(Y$13-$E$13+1<=Term,'Cash Flow Statement (Results)'!V19,0) -> 0 | Z16: =IF(Z$13-$E$13+1<=Term,'Cash Flow Statement (Results)'!W19,0) -> 0 | AA16: =IF(AA$13-$E$13+1<=Term,'Cash Flow Statement (Results)'!X19,0) -> 991014 | AB16: =IF(AB$13-$E$13+1<=Term,'Cash Flow Statement (Results)'!Y19,0) -> 0 | AC16: =IF(AC$13-$E$13+1<=Term,'Cash Flow Statement (Results)'!Z19,0) -> 0 | AD16: =IF(AD$13-$E$13+1<=Term,'Cash Flow Statement (Results)'!AA19,0) -> 0 | AE16: =IF(AE$13-$E$13+1<=Term,'Cash Flow Statement (Results)'!AB19,0) -> 0 | AF16: =IF(AF$13-$E$13+1<=Term,'Cash Flow Statement (Results)'!AC19,0) -> 0 | AG16: =IF(AG$13-$E$13+1<=Term,'Cash Flow Statement (Results)'!AD19,0) -> 0 | AH16: =IF(AH$13-$E$13+1<=Term,'Cash Flow Statement (Results)'!AE19,0) -> 0 | AI16: =IF(AI$13-$E$13+1<=Term,'Cash Flow Statement (Results)'!AF19,0) -> 0 | AJ16: =IF(AJ$13-$E$13+1<=Term,'Cash Flow Statement (Results)'!AG19,0) -> 0 | AK16: =IF(AK$13-$E$13+1<=Term,'Cash Flow Statement (Results)'!AH19,0) -> 0 | AL16: =IF(AL$13-$E$13+1<=Term,'Cash Flow Statement (Results)'!AI19,0) -> 0 | AM16: =IF(AM$13-$E$13+1<=Term,'Cash Flow Statement (Results)'!AJ19,0) -> 0 | AN16: =IF(AN$13-$E$13+1<=Term,'Cash Flow Statement (Results)'!AK19,0) -> 0 | AO16: =IF(AO$13-$E$13+1<=Term,'Cash Flow Statement (Results)'!AL19,0) -> 0 | AP16: =IF(AP$13-$E$13+1<=Term,'Cash Flow Statement (Results)'!AM19,0) -> 0 | AQ16: =IF(AQ$13-$E$13+1<=Term,'Cash Flow Statement (Results)'!AN19,0) -> 0 | AR16: =IF(AR$13-$E$13+1<=Term,'Cash Flow Statement (Results)'!AO19,0) -> 0
A17: Cash Flow (Nominal) | D17: =NPV(After_Tax_Cash_Discount,F17:AR17)+E17 -> -10101278.1 | E17: =IF(E$13-$E$13+1<=Term,'Cash Flow Statement (Results)'!B25,0) -> -4841952.438 | F17: =IF(F$13-$E$13+1<=Term,'Cash Flow Statement (Results)'!C25,0) -> -39195421.57 | G17: =IF(G$13-$E$13+1<=Term,'Cash Flow Statement (Results)'!D25,0) -> -14371178.53 | H17: =IF(H$13-$E$13+1<=Term,'Cash Flow Statement (Results)'!E25,0) -> 4896470.031 | I17: =IF(I$13-$E$13+1<=Term,'Cash Flow Statement (Results)'!F25,0) -> 4822636.483 | J17: =IF(J$13-$E$13+1<=Term,'Cash Flow Statement (Results)'!G25,0) -> 4735649.198 | K17: =IF(K$13-$E$13+1<=Term,'Cash Flow Statement (Results)'!H25,0) -> 4571538.533 | L17: =IF(L$13-$E$13+1<=Term,'Cash Flow Statement (Results)'!I25,0) -> 4585124.934 | M17: =IF(M$13-$E$13+1<=Term,'Cash Flow Statement (Results)'!J25,0) -> 4233678.635 | N17: =IF(N$13-$E$13+1<=Term,'Cash Flow Statement (Results)'!K25,0) -> 4454769.234 | O17: =IF(O$13-$E$13+1<=Term,'Cash Flow Statement (Results)'!L25,0) -> 4379731.326 | P17: =IF(P$13-$E$13+1<=Term,'Cash Flow Statement (Results)'!M25,0) -> 4102945.799 | Q17: =IF(Q$13-$E$13+1<=Term,'Cash Flow Statement (Results)'!N25,0) -> 4236459.677 | R17: =IF(R$13-$E$13+1<=Term,'Cash Flow Statement (Results)'!O25,0) -> 4144843.699 | S17: =IF(S$13-$E$13+1<=Term,'Cash Flow Statement (Results)'!P25,0) -> 4070724.204 | T17: =IF(T$13-$E$13+1<=Term,'Cash Flow Statement (Results)'!Q25,0) -> 3660306.765 | U17: =IF(U$13-$E$13+1<=Term,'Cash Flow Statement (Results)'!R25,0) -> 3650203.158 | V17: =IF(V$13-$E$13+1<=Term,'Cash Flow Statement (Results)'!S25,0) -> 3882952.207 | W17: =IF(W$13-$E$13+1<=Term,'Cash Flow Statement (Results)'!T25,0) -> 3806943.587 | X17: =IF(X$13-$E$13+1<=Term,'Cash Flow Statement (Results)'!U25,0) -> 3711681.803 | Y17: =IF(Y$13-$E$13+1<=Term,'Cash Flow Statement (Results)'!V25,0) -> 3636823.149 | Z17: =IF(Z$13-$E$13+1<=Term,'Cash Flow Statement (Results)'!W25,0) -> 3550937.421 | AA17: =IF(AA$13-$E$13+1<=Term,'Cash Flow Statement (Results)'!X25,0) -> 2556257.452 | AB17: =IF(AB$13-$E$13+1<=Term,'Cash Flow Statement (Results)'!Y25,0) -> 3480841.578 | AC17: =IF(AC$13-$E$13+1<=Term,'Cash Flow Statement (Results)'!Z25,0) -> 3388511.082 | AD17: =IF(AD$13-$E$13+1<=Term,'Cash Flow Statement (Results)'!AA25,0) -> 3299925.609 | AE17: =IF(AE$13-$E$13+1<=Term,'Cash Flow Statement (Results)'!AB25,0) -> 3209638.244 | AF17: =IF(AF$13-$E$13+1<=Term,'Cash Flow Statement (Results)'!AC25,0) -> 3119984.15 | AG17: =IF(AG$13-$E$13+1<=Term,'Cash Flow Statement (Results)'!AD25,0) -> 3033885.593 | AH17: =IF(AH$13-$E$13+1<=Term,'Cash Flow Statement (Results)'!AE25,0) -> 2948962.267 | AI17: =IF(AI$13-$E$13+1<=Term,'Cash Flow Statement (Results)'!AF25,0) -> 0 | AJ17: =IF(AJ$13-$E$13+1<=Term,'Cash Flow Statement (Results)'!AG25,0) -> 0 | AK17: =IF(AK$13-$E$13+1<=Term,'Cash Flow Statement (Results)'!AH25,0) -> 0 | AL17: =IF(AL$13-$E$13+1<=Term,'Cash Flow Statement (Results)'!AI25,0) -> 0 | AM17: =IF(AM$13-$E$13+1<=Term,'Cash Flow Statement (Results)'!AJ25,0) -> 0 | AN17: =IF(AN$13-$E$13+1<=Term,'Cash Flow Statement (Results)'!AK25,0) -> 0 | AO17: =IF(AO$13-$E$13+1<=Term,'Cash Flow Statement (Results)'!AL25,0) -> 0 | AP17: =IF(AP$13-$E$13+1<=Term,'Cash Flow Statement (Results)'!AM25,0) -> 0 | AQ17: =IF(AQ$13-$E$13+1<=Term,'Cash Flow Statement (Results)'!AN25,0) -> 0 | AR17: =IF(AR$13-$E$13+1<=Term,'Cash Flow Statement (Results)'!AO25,0) -> 0
A18: Payback Period | D18: =IF(D17>=0,SUM(E18:AH18),"No Payback") -> No Payback | E18: =IF(E17>=0,0,1) -> 1 | F18: =IF(F17>=0,0,1) -> 1 | G18: 1 | H18: 0 | I18: 0 | J18: 0 | K18: 0 | L18: 0 | M18: 0 | N18: 0 | O18: 0 | P18: 0 | Q18: 0 | R18: 0 | S18: 0 | T18: 0 | U18: 0 | V18: 0 | W18: 0 | X18: 0 | Y18: 0 | Z18: 0 | AA18: 0 | AB18: 0 | AC18: 0 | AD18: 0 | AE18: 0 | AF18: 0 | AG18: 0 | AH18: 0
A20: Present Value Revenue Requirement | D20: =NPV(WACC,F14:AR14)+E14 -> 77315505.69
A21: Present Value of Unregulated Revenues | D21: =NPV($D$9,F15:X15)+E15 -> 0
A22: Present Value of Total Revenues | D22: =SUM(D20:D21) -> 77315505.69
A24: Levelized Revenue Requirement (Reg) | D24: =-PMT(WACC,Term,D20,,1) -> 6082356.197
A26: Levelized Revenue Requirement (UnR) | D26: =-PMT($D$9,Term,D21,,1) -> 0
A28: PV (WACC) of Capitalized Investment | D28: =NPV(WACC,F16:AR16)+E16 -> 61294333.8
A30: Capital Recovery Factor (Reg) | D30: =D24/D22 -> 0.07866929334
A32: Capital Recovery Factor (UnR) | D32: =+D26/D22 -> 0
A34: Levelized Fixed Charge Rate (Reg) | D34: =D24/D28 -> 0.09923194886
A36: Levelized Fixed Charge Rate (UnR) | D36: =+D26/D28 -> 0

Sheet Income Statement (Results)
B8: =Start_Year -> 2020 | C8: =B8+1 -> 2021 | D8: 2022 | E8: 2023 | F8: 2024 | G8: 2025 | H8: 2026 | I8: 2027 | J8: 2028 | K8: 2029 | L8: 2030 | M8: 2031 | N8: 2032 | O8: 2033 | P8: 2034 | Q8: 2035 | R8: 2036 | S8: 2037 | T8: 2038 | U8: 2039 | V8: 2040 | W8: 2041 | X8: 2042 | Y8: 2043 | Z8: 2044 | AA8: 2045 | AB8: 2046 | AC8: 2047 | AD8: 2048 | AE8: 2049
A10: Regulated Revenues | B10: =IF('Assumptions (Input)'!B20="yes",((('Plant(Input)'!C$53*WACC)+(B$16+B$17+B$15+B$20)*(1-FIT_Tax_Rate)-(B$30+'Plant(Input)'!C$44)*FIT_Tax_Rate+'Income Statement (Results)'!B$18+'Income Statement (Results)'!B$23)/(1-FIT_Tax_Rate))/(1-Revenue_Taxes)*revenue_flag,0)*'Operating Expenses & Energy'!B26 -> 249088.1535 | C10: =IF('Assumptions (Input)'!C20="yes",((('Plant(Input)'!D$53*WACC)+(C$16+C$17+C$15+C$20)*(1-FIT_Tax_Rate)-(C$30+'Plant(Input)'!D$44)*FIT_Tax_Rate+'Income Statement (Results)'!C$18+'Income Statement (Results)'!C$23)/(1-FIT_Tax_Rate))/(1-Revenue_Taxes)*revenue_flag,0)*'Operating Expenses & Energy'!C26 -> 4725087.605 | D10: =IF('Assumptions (Input)'!D20="yes",((('Plant(Input)'!E$53*WACC)+(D$16+D$17+D$15+D$20)*(1-FIT_Tax_Rate)-(D$30+'Plant(Input)'!E$44)*FIT_Tax_Rate+'Income Statement (Results)'!D$18+'Income Statement (Results)'!D$23)/(1-FIT_Tax_Rate))/(1-Revenue_Taxes)*revenue_flag,0)*'Operating Expenses & Energy'!D26 -> 7490807.36 | E10: =IF('Assumptions (Input)'!E20="yes",((('Plant(Input)'!F$53*WACC)+(E$16+E$17+E$15+E$20)*(1-FIT_Tax_Rate)-(E$30+'Plant(Input)'!F$44)*FIT_Tax_Rate+'Income Statement (Results)'!E$18+'Income Statement (Results)'!E$23)/(1-FIT_Tax_Rate))/(1-Revenue_Taxes)*revenue_flag,0)*'Operating Expenses & Energy'!E26 -> 7764850.891 | F10: =IF('Assumptions (Input)'!F20="yes",((('Plant(Input)'!G$53*WACC)+(F$16+F$17+F$15+F$20)*(1-FIT_Tax_Rate)-(F$30+'Plant(Input)'!G$44)*FIT_Tax_Rate+'Income Statement (Results)'!F$18+'Income Statement (Results)'!F$23)/(1-FIT_Tax_Rate))/(1-Revenue_Taxes)*revenue_flag,0)*'Operating Expenses & Energy'!F26 -> 7632005.391 | G10: =IF('Assumptions (Input)'!G20="yes",((('Plant(Input)'!H$53*WACC)+(G$16+G$17+G$15+G$20)*(1-FIT_Tax_Rate)-(G$30+'Plant(Input)'!H$44)*FIT_Tax_Rate+'Income Statement (Results)'!G$18+'Income Statement (Results)'!G$23)/(1-FIT_Tax_Rate))/(1-Revenue_Taxes)*revenue_flag,0)*'Operating Expenses & Energy'!G26 -> 7499796.584 | H10: =IF('Assumptions (Input)'!H20="yes",((('Plant(Input)'!I$53*WACC)+(H$16+H$17+H$15+H$20)*(1-FIT_Tax_Rate)-(H$30+'Plant(Input)'!I$44)*FIT_Tax_Rate+'Income Statement (Results)'!H$18+'Income Statement (Results)'!H$23)/(1-FIT_Tax_Rate))/(1-Revenue_Taxes)*revenue_flag,0)*'Operating Expenses & Energy'!H26 -> 7377352.593 | I10: =IF('Assumptions (Input)'!I20="yes",((('Plant(Input)'!J$53*WACC)+(I$16+I$17+I$15+I$20)*(1-FIT_Tax_Rate)-(I$30+'Plant(Input)'!J$44)*FIT_Tax_Rate+'Income Statement (Results)'!I$18+'Income Statement (Results)'!I$23)/(1-FIT_Tax_Rate))/(1-Revenue_Taxes)*revenue_flag,0)*'Operating Expenses & Energy'!I26 -> 7248722.198 | J10: =IF('Assumptions (Input)'!J20="yes",((('Plant(Input)'!K$53*WACC)+(J$16+J$17+J$15+J$20)*(1-FIT_Tax_Rate)-(J$30+'Plant(Input)'!K$44)*FIT_Tax_Rate+'Income Statement (Results)'!J$18+'Income Statement (Results)'!J$23)/(1-FIT_Tax_Rate))/(1-Revenue_Taxes)*revenue_flag,0)*'Operating Expenses & Energy'!J26 -> 7146756.458 | K10: =IF('Assumptions (Input)'!K20="yes",((('Plant(Input)'!L$53*WACC)+(K$16+K$17+K$15+K$20)*(1-FIT_Tax_Rate)-(K$30+'Plant(Input)'!L$44)*FIT_Tax_Rate+'Income Statement (Results)'!K$18+'Income Statement (Results)'!K$23)/(1-FIT_Tax_Rate))/(1-Revenue_Taxes)*revenue_flag,0)*'Operating Expenses & Energy'!K26 -> 7024525.448 | L10: =IF('Assumptions (Input)'!L20="yes",((('Plant(Input)'!M$53*WACC)+(L$16+L$17+L$15+L$20)*(1-FIT_Tax_Rate)-(L$30+'Plant(Input)'!M$44)*FIT_Tax_Rate+'Income Statement (Results)'!L$18+'Income Statement (Results)'!L$23)/(1-FIT_Tax_Rate))/(1-Revenue_Taxes)*revenue_flag,0)*'Operating Expenses & Energy'!L26 -> 6890225.21 | M10: =IF('Assumptions (Input)'!M20="yes",((('Plant(Input)'!N$53*WACC)+(M$16+M$17+M$15+M$20)*(1-FIT_Tax_Rate)-(M$30+'Plant(Input)'!N$44)*FIT_Tax_Rate+'Income Statement (Results)'!M$18+'Income Statement (Results)'!M$23)/(1-FIT_Tax_Rate))/(1-Revenue_Taxes)*revenue_flag,0)*'Operating Expenses & Energy'!M26 -> 6777556.968 | N10: =IF('Assumptions (Input)'!N20="yes",((('Plant(Input)'!O$53*WACC)+(N$16+N$17+N$15+N$20)*(1-FIT_Tax_Rate)-(N$30+'Plant(Input)'!O$44)*FIT_Tax_Rate+'Income Statement (Results)'!N$18+'Income Statement (Results)'!N$23)/(1-FIT_Tax_Rate))/(1-Revenue_Taxes)*revenue_flag,0)*'Operating Expenses & Energy'!N26 -> 6650648.455 | O10: =IF('Assumptions (Input)'!O20="yes",((('Plant(Input)'!P$53*WACC)+(O$16+O$17+O$15+O$20)*(1-FIT_Tax_Rate)-(O$30+'Plant(Input)'!P$44)*FIT_Tax_Rate+'Income Statement (Results)'!O$18+'Income Statement (Results)'!O$23)/(1-FIT_Tax_Rate))/(1-Revenue_Taxes)*revenue_flag,0)*'Operating Expenses & Energy'!O26 -> 6516833.609 | P10: =IF('Assumptions (Input)'!P20="yes",((('Plant(Input)'!Q$53*WACC)+(P$16+P$17+P$15+P$20)*(1-FIT_Tax_Rate)-(P$30+'Plant(Input)'!Q$44)*FIT_Tax_Rate+'Income Statement (Results)'!P$18+'Income Statement (Results)'!P$23)/(1-FIT_Tax_Rate))/(1-Revenue_Taxes)*revenue_flag,0)*'Operating Expenses & Energy'!P26 -> 6383036.191 | Q10: =IF('Assumptions (Input)'!Q20="yes",((('Plant(Input)'!R$53*WACC)+(Q$16+Q$17+Q$15+Q$20)*(1-FIT_Tax_Rate)-(Q$30+'Plant(Input)'!R$44)*FIT_Tax_Rate+'Income Statement (Results)'!Q$18+'Income Statement (Results)'!Q$23)/(1-FIT_Tax_Rate))/(1-Revenue_Taxes)*revenue_flag,0)*'Operating Expenses & Energy'!Q26 -> 6285815.52 | R10: =IF('Assumptions (Input)'!R20="yes",((('Plant(Input)'!S$53*WACC)+(R$16+R$17+R$15+R$20)*(1-FIT_Tax_Rate)-(R$30+'Plant(Input)'!S$44)*FIT_Tax_Rate+'Income Statement (Results)'!R$18+'Income Statement (Results)'!R$23)/(1-FIT_Tax_Rate))/(1-Revenue_Taxes)*revenue_flag,0)*'Operating Expenses & Energy'!R26 -> 6196610.379 | S10: =IF('Assumptions (Input)'!S20="yes",((('Plant(Input)'!T$53*WACC)+(S$16+S$17+S$15+S$20)*(1-FIT_Tax_Rate)-(S$30+'Plant(Input)'!T$44)*FIT_Tax_Rate+'Income Statement (Results)'!S$18+'Income Statement (Results)'!S$23)/(1-FIT_Tax_Rate))/(1-Revenue_Taxes)*revenue_flag,0)*'Operating Expenses & Energy'!S26 -> 6072776.386 | T10: =IF('Assumptions (Input)'!T20="yes",((('Plant(Input)'!U$53*WACC)+(T$16+T$17+T$15+T$20)*(1-FIT_Tax_Rate)-(T$30+'Plant(Input)'!U$44)*FIT_Tax_Rate+'Income Statement (Results)'!T$18+'Income Statement (Results)'!T$23)/(1-FIT_Tax_Rate))/(1-Revenue_Taxes)*revenue_flag,0)*'Operating Expenses & Energy'!T26 -> 5936396.433 | U10: =IF('Assumptions (Input)'!U20="yes",((('Plant(Input)'!V$53*WACC)+(U$16+U$17+U$15+U$20)*(1-FIT_Tax_Rate)-(U$30+'Plant(Input)'!V$44)*FIT_Tax_Rate+'Income Statement (Results)'!U$18+'Income Statement (Results)'!U$23)/(1-FIT_Tax_Rate))/(1-Revenue_Taxes)*revenue_flag,0)*'Operating Expenses & Energy'!U26 -> 5801290.218 | V10: =IF('Assumptions (Input)'!V20="yes",((('Plant(Input)'!W$53*WACC)+(V$16+V$17+V$15+V$20)*(1-FIT_Tax_Rate)-(V$30+'Plant(Input)'!W$44)*FIT_Tax_Rate+'Income Statement (Results)'!V$18+'Income Statement (Results)'!V$23)/(1-FIT_Tax_Rate))/(1-Revenue_Taxes)*revenue_flag,0)*'Operating Expenses & Energy'!V26 -> 5666049.525 | W10: =IF('Assumptions (Input)'!W20="yes",((('Plant(Input)'!X$53*WACC)+(W$16+W$17+W$15+W$20)*(1-FIT_Tax_Rate)-(W$30+'Plant(Input)'!X$44)*FIT_Tax_Rate+'Income Statement (Results)'!W$18+'Income Statement (Results)'!W$23)/(1-FIT_Tax_Rate))/(1-Revenue_Taxes)*revenue_flag,0)*'Operating Expenses & Energy'!W26 -> 5530636.174 | X10: =IF('Assumptions (Input)'!X20="yes",((('Plant(Input)'!Y$53*WACC)+(X$16+X$17+X$15+X$20)*(1-FIT_Tax_Rate)-(X$30+'Plant(Input)'!Y$44)*FIT_Tax_Rate+'Income Statement (Results)'!X$18+'Income Statement (Results)'!X$23)/(1-FIT_Tax_Rate))/(1-Revenue_Taxes)*revenue_flag,0)*'Operating Expenses & Energy'!X26 -> 5514657.942 | Y10: =IF('Assumptions (Input)'!Y20="yes",((('Plant(Input)'!Z$53*WACC)+(Y$16+Y$17+Y$15+Y$20)*(1-FIT_Tax_Rate)-(Y$30+'Plant(Input)'!Z$44)*FIT_Tax_Rate+'Income Statement (Results)'!Y$18+'Income Statement (Results)'!Y$23)/(1-FIT_Tax_Rate))/(1-Revenue_Taxes)*revenue_flag,0)*'Operating Expenses & Energy'!Y26 -> 5396009.855 | Z10: =IF('Assumptions (Input)'!Z20="yes",((('Plant(Input)'!AA$53*WACC)+(Z$16+Z$17+Z$15+Z$20)*(1-FIT_Tax_Rate)-(Z$30+'Plant(Input)'!AA$44)*FIT_Tax_Rate+'Income Statement (Results)'!Z$18+'Income Statement (Results)'!Z$23)/(1-FIT_Tax_Rate))/(1-Revenue_Taxes)*revenue_flag,0)*'Operating Expenses & Energy'!Z26 -> 5258136.506 | AA10: =IF('Assumptions (Input)'!AA20="yes",((('Plant(Input)'!AB$53*WACC)+(AA$16+AA$17+AA$15+AA$20)*(1-FIT_Tax_Rate)-(AA$30+'Plant(Input)'!AB$44)*FIT_Tax_Rate+'Income Statement (Results)'!AA$18+'Income Statement (Results)'!AA$23)/(1-FIT_Tax_Rate))/(1-Revenue_Taxes)*revenue_flag,0)*'Operating Expenses & Energy'!AA26 -> 5123088.41 | AB10: =IF('Assumptions (Input)'!AB20="yes",((('Plant(Input)'!AC$53*WACC)+(AB$16+AB$17+AB$15+AB$20)*(1-FIT_Tax_Rate)-(AB$30+'Plant(Input)'!AC$44)*FIT_Tax_Rate+'Income Statement (Results)'!AB$18+'Income Statement (Results)'!AB$23)/(1-FIT_Tax_Rate))/(1-Revenue_Taxes)*revenue_flag,0)*'Operating Expenses & Energy'!AB26 -> 4987794.542 | AC10: =IF('Assumptions (Input)'!AC20="yes",((('Plant(Input)'!AD$53*WACC)+(AC$16+AC$17+AC$15+AC$20)*(1-FIT_Tax_Rate)-(AC$30+'Plant(Input)'!AD$44)*FIT_Tax_Rate+'Income Statement (Results)'!AC$18+'Income Statement (Results)'!AC$23)/(1-FIT_Tax_Rate))/(1-Revenue_Taxes)*revenue_flag,0)*'Operating Expenses & Energy'!AC26 -> 4853616.169 | AD10: =IF('Assumptions (Input)'!AD20="yes",((('Plant(Input)'!AE$53*WACC)+(AD$16+AD$17+AD$15+AD$20)*(1-FIT_Tax_Rate)-(AD$30+'Plant(Input)'!AE$44)*FIT_Tax_Rate+'Income Statement (Results)'!AD$18+'Income Statement (Results)'!AD$23)/(1-FIT_Tax_Rate))/(1-Revenue_Taxes)*revenue_flag,0)*'Operating Expenses & Energy'!AD26 -> 4722082.837 | AE10: =IF('Assumptions (Input)'!AE20="yes",((('Plant(Input)'!AF$53*WACC)+(AE$16+AE$17+AE$15+AE$20)*(1-FIT_Tax_Rate)-(AE$30+'Plant(Input)'!AF$44)*FIT_Tax_Rate+'Income Statement (Results)'!AE$18+'Income Statement (Results)'!AE$23)/(1-FIT_Tax_Rate))/(1-Revenue_Taxes)*revenue_flag,0)*'Operating Expenses & Energy'!AE26 -> 4591745.655
A11: Miscellaneous Revenues | B11: ='Operating Expenses & Energy'!B22*'Operating Expenses & Energy'!B26 -> 0 | C11: ='Operating Expenses & Energy'!C22*'Operating Expenses & Energy'!C26 -> 0 | D11: ='Operating Expenses & Energy'!D22*'Operating Expenses & Energy'!D26 -> 0 | E11: ='Operating Expenses & Energy'!E22*'Operating Expenses & Energy'!E26 -> 0 | F11: ='Operating Expenses & Energy'!F22*'Operating Expenses & Energy'!F26 -> 0 | G11: ='Operating Expenses & Energy'!G22*'Operating Expenses & Energy'!G26 -> 0 | H11: ='Operating Expenses & Energy'!H22*'Operating Expenses & Energy'!H26 -> 0 | I11: ='Operating Expenses & Energy'!I22*'Operating Expenses & Energy'!I26 -> 0 | J11: ='Operating Expenses & Energy'!J22*'Operating Expenses & Energy'!J26 -> 0 | K11: ='Operating Expenses & Energy'!K22*'Operating Expenses & Energy'!K26 -> 0 | L11: ='Operating Expenses & Energy'!L22*'Operating Expenses & Energy'!L26 -> 0 | M11: ='Operating Expenses & Energy'!M22*'Operating Expenses & Energy'!M26 -> 0 | N11: ='Operating Expenses & Energy'!N22*'Operating Expenses & Energy'!N26 -> 0 | O11: ='Operating Expenses & Energy'!O22*'Operating Expenses & Energy'!O26 -> 0 | P11: ='Operating Expenses & Energy'!P22*'Operating Expenses & Energy'!P26 -> 0 | Q11: ='Operating Expenses & Energy'!Q22*'Operating Expenses & Energy'!Q26 -> 0 | R11: ='Operating Expenses & Energy'!R22*'Operating Expenses & Energy'!R26 -> 0 | S11: ='Operating Expenses & Energy'!S22*'Operating Expenses & Energy'!S26 -> 0 | T11: ='Operating Expenses & Energy'!T22*'Operating Expenses & Energy'!T26 -> 0 | U11: ='Operating Expenses & Energy'!U22*'Operating Expenses & Energy'!U26 -> 0 | V11: ='Operating Expenses & Energy'!V22*'Operating Expenses & Energy'!V26 -> 0 | W11: ='Operating Expenses & Energy'!W22*'Operating Expenses & Energy'!W26 -> 0 | X11: ='Operating Expenses & Energy'!X22*'Operating Expenses & Energy'!X26 -> 0 | Y11: ='Operating Expenses & Energy'!Y22*'Operating Expenses & Energy'!Y26 -> 0 | Z11: ='Operating Expenses & Energy'!Z22*'Operating Expenses & Energy'!Z26 -> 0 | AA11: ='Operating Expenses & Energy'!AA22*'Operating Expenses & Energy'!AA26 -> 0 | AB11: ='Operating Expenses & Energy'!AB22*'Operating Expenses & Energy'!AB26 -> 0 | AC11: ='Operating Expenses & Energy'!AC22*'Operating Expenses & Energy'!AC26 -> 0 | AD11: ='Operating Expenses & Energy'!AD22*'Operating Expenses & Energy'!AD26 -> 0 | AE11: ='Operating Expenses & Energy'!AE22*'Operating Expenses & Energy'!AE26 -> 0
A12: Total Revenues | B12: =SUM(B10:B11) -> 249088.1535 | C12: 4725087.605 | D12: 7490807.36 | E12: 7764850.891 | F12: 7632005.391 | G12: 7499796.584 | H12: 7377352.593 | I12: 7248722.198 | J12: 7146756.458 | K12: 7024525.448 | L12: 6890225.21 | M12: 6777556.968 | N12: 6650648.455 | O12: 6516833.609 | P12: 6383036.191 | Q12: 6285815.52 | R12: 6196610.379 | S12: 6072776.386 | T12: 5936396.433 | U12: 5801290.218 | V12: 5666049.525 | W12: 5530636.174 | X12: 5514657.942 | Y12: 5396009.855 | Z12: 5258136.506 | AA12: 5123088.41 | AB12: 4987794.542 | AC12: 4853616.169 | AD12: 4722082.837 | AE12: 4591745.655
A14: Operating Expenses:
A15: O&M | B15: ='Operating Expenses & Energy'!B14*(1+'Assumptions (Input)'!$B$11)^('Income Statement (Results)'!B8-'Income Statement (Results)'!$B$8)*'Operating Expenses & Energy'!B26 -> 0 | C15: ='Operating Expenses & Energy'!C14*(1+'Assumptions (Input)'!$B$11)^('Income Statement (Results)'!C8-'Income Statement (Results)'!$B$8)*'Operating Expenses & Energy'!C26 -> 139898.5437 | D15: ='Operating Expenses & Energy'!D14*(1+'Assumptions (Input)'!$B$11)^('Income Statement (Results)'!D8-'Income Statement (Results)'!$B$8)*'Operating Expenses & Energy'!D26 -> 288191 | E15: ='Operating Expenses & Energy'!E14*(1+'Assumptions (Input)'!$B$11)^('Income Statement (Results)'!E8-'Income Statement (Results)'!$B$8)*'Operating Expenses & Energy'!E26 -> 294741 | F15: ='Operating Expenses & Energy'!F14*(1+'Assumptions (Input)'!$B$11)^('Income Statement (Results)'!F8-'Income Statement (Results)'!$B$8)*'Operating Expenses & Energy'!F26 -> 301477 | G15: ='Operating Expenses & Energy'!G14*(1+'Assumptions (Input)'!$B$11)^('Income Statement (Results)'!G8-'Income Statement (Results)'!$B$8)*'Operating Expenses & Energy'!G26 -> 308390 | H15: ='Operating Expenses & Energy'!H14*(1+'Assumptions (Input)'!$B$11)^('Income Statement (Results)'!H8-'Income Statement (Results)'!$B$8)*'Operating Expenses & Energy'!H26 -> 315485 | I15: ='Operating Expenses & Energy'!I14*(1+'Assumptions (Input)'!$B$11)^('Income Statement (Results)'!I8-'Income Statement (Results)'!$B$8)*'Operating Expenses & Energy'!I26 -> 322769 | J15: ='Operating Expenses & Energy'!J14*(1+'Assumptions (Input)'!$B$11)^('Income Statement (Results)'!J8-'Income Statement (Results)'!$B$8)*'Operating Expenses & Energy'!J26 -> 330247 | K15: ='Operating Expenses & Energy'!K14*(1+'Assumptions (Input)'!$B$11)^('Income Statement (Results)'!K8-'Income Statement (Results)'!$B$8)*'Operating Expenses & Energy'!K26 -> 337925 | L15: ='Operating Expenses & Energy'!L14*(1+'Assumptions (Input)'!$B$11)^('Income Statement (Results)'!L8-'Income Statement (Results)'!$B$8)*'Operating Expenses & Energy'!L26 -> 345811 | M15: ='Operating Expenses & Energy'!M14*(1+'Assumptions (Input)'!$B$11)^('Income Statement (Results)'!M8-'Income Statement (Results)'!$B$8)*'Operating Expenses & Energy'!M26 -> 353911 | N15: ='Operating Expenses & Energy'!N14*(1+'Assumptions (Input)'!$B$11)^('Income Statement (Results)'!N8-'Income Statement (Results)'!$B$8)*'Operating Expenses & Energy'!N26 -> 362232 | O15: ='Operating Expenses & Energy'!O14*(1+'Assumptions (Input)'!$B$11)^('Income Statement (Results)'!O8-'Income Statement (Results)'!$B$8)*'Operating Expenses & Energy'!O26 -> 370782 | P15: ='Operating Expenses & Energy'!P14*(1+'Assumptions (Input)'!$B$11)^('Income Statement (Results)'!P8-'Income Statement (Results)'!$B$8)*'Operating Expenses & Energy'!P26 -> 379568 | Q15: ='Operating Expenses & Energy'!Q14*(1+'Assumptions (Input)'!$B$11)^('Income Statement (Results)'!Q8-'Income Statement (Results)'!$B$8)*'Operating Expenses & Energy'!Q26 -> 388598 | R15: ='Operating Expenses & Energy'!R14*(1+'Assumptions (Input)'!$B$11)^('Income Statement (Results)'!R8-'Income Statement (Results)'!$B$8)*'Operating Expenses & Energy'!R26 -> 397881 | S15: ='Operating Expenses & Energy'!S14*(1+'Assumptions (Input)'!$B$11)^('Income Statement (Results)'!S8-'Income Statement (Results)'!$B$8)*'Operating Expenses & Energy'!S26 -> 407425 | T15: ='Operating Expenses & Energy'!T14*(1+'Assumptions (Input)'!$B$11)^('Income Statement (Results)'!T8-'Income Statement (Results)'!$B$8)*'Operating Expenses & Energy'!T26 -> 417239 | U15: ='Operating Expenses & Energy'!U14*(1+'Assumptions (Input)'!$B$11)^('Income Statement (Results)'!U8-'Income Statement (Results)'!$B$8)*'Operating Expenses & Energy'!U26 -> 427333 | V15: ='Operating Expenses & Energy'!V14*(1+'Assumptions (Input)'!$B$11)^('Income Statement (Results)'!V8-'Income Statement (Results)'!$B$8)*'Operating Expenses & Energy'!V26 -> 437716 | W15: ='Operating Expenses & Energy'!W14*(1+'Assumptions (Input)'!$B$11)^('Income Statement (Results)'!W8-'Income Statement (Results)'!$B$8)*'Operating Expenses & Energy'!W26 -> 448398 | X15: ='Operating Expenses & Energy'!X14*(1+'Assumptions (Input)'!$B$11)^('Income Statement (Results)'!X8-'Income Statement (Results)'!$B$8)*'Operating Expenses & Energy'!X26 -> 461849.94 | Y15: ='Operating Expenses & Energy'!Y14*(1+'Assumptions (Input)'!$B$11)^('Income Statement (Results)'!Y8-'Income Statement (Results)'!$B$8)*'Operating Expenses & Energy'!Y26 -> 475705.4382 | Z15: ='Operating Expenses & Energy'!Z14*(1+'Assumptions (Input)'!$B$11)^('Income Statement (Results)'!Z8-'Income Statement (Results)'!$B$8)*'Operating Expenses & Energy'!Z26 -> 489976.6013 | AA15: ='Operating Expenses & Energy'!AA14*(1+'Assumptions (Input)'!$B$11)^('Income Statement (Results)'!AA8-'Income Statement (Results)'!$B$8)*'Operating Expenses & Energy'!AA26 -> 504675.8994 | AB15: ='Operating Expenses & Energy'!AB14*(1+'Assumptions (Input)'!$B$11)^('Income Statement (Results)'!AB8-'Income Statement (Results)'!$B$8)*'Operating Expenses & Energy'!AB26 -> 519816.1764 | AC15: ='Operating Expenses & Energy'!AC14*(1+'Assumptions (Input)'!$B$11)^('Income Statement (Results)'!AC8-'Income Statement (Results)'!$B$8)*'Operating Expenses & Energy'!AC26 -> 535410.6617 | AD15: ='Operating Expenses & Energy'!AD14*(1+'Assumptions (Input)'!$B$11)^('Income Statement (Results)'!AD8-'Income Statement (Results)'!$B$8)*'Operating Expenses & Energy'!AD26 -> 551472.9815 | AE15: ='Operating Expenses & Energy'!AE14*(1+'Assumptions (Input)'!$B$11)^('Income Statement (Results)'!AE8-'Income Statement (Results)'!$B$8)*'Operating Expenses & Energy'!AE26 -> 568017.171
A16: Insurance | B16: ='Plant(Input)'!C46*Insurance_Rate*'Operating Expenses & Energy'!B26 -> 3500 | C16: ='Plant(Input)'!D46*Insurance_Rate*'Operating Expenses & Energy'!C26 -> 32900 | D16: ='Plant(Input)'!E46*Insurance_Rate*'Operating Expenses & Energy'!D26 -> 46200 | E16: ='Plant(Input)'!F46*Insurance_Rate*'Operating Expenses & Energy'!E26 -> 46204.55 | F16: ='Plant(Input)'!G46*Insurance_Rate*'Operating Expenses & Energy'!F26 -> 46204.55 | G16: ='Plant(Input)'!H46*Insurance_Rate*'Operating Expenses & Energy'!G26 -> 46209.366 | H16: ='Plant(Input)'!I46*Insurance_Rate*'Operating Expenses & Energy'!H26 -> 46277.6895 | I16: ='Plant(Input)'!J46*Insurance_Rate*'Operating Expenses & Energy'!I26 -> 46282.7862 | J16: ='Plant(Input)'!K46*Insurance_Rate*'Operating Expenses & Energy'!J26 -> 46492.1639 | K16: ='Plant(Input)'!L46*Insurance_Rate*'Operating Expenses & Energy'!K26 -> 46497.5588 | L16: ='Plant(Input)'!M46*Insurance_Rate*'Operating Expenses & Energy'!L26 -> 46497.5588 | M16: ='Plant(Input)'!N46*Insurance_Rate*'Operating Expenses & Energy'!M26 -> 46643.7594 | N16: ='Plant(Input)'!O46*Insurance_Rate*'Operating Expenses & Energy'!N26 -> 46643.7594 | O16: ='Plant(Input)'!P46*Insurance_Rate*'Operating Expenses & Energy'!O26 -> 46649.8032 | P16: ='Plant(Input)'!Q46*Insurance_Rate*'Operating Expenses & Energy'!P26 -> 46649.8032 | Q16: ='Plant(Input)'!R46*Insurance_Rate*'Operating Expenses & Energy'!Q26 -> 46896.8822 | R16: ='Plant(Input)'!S46*Insurance_Rate*'Operating Expenses & Energy'!R26 -> 47117.5614 | S16: ='Plant(Input)'!T46*Insurance_Rate*'Operating Expenses & Energy'!S26 -> 47124.3332 | T16: ='Plant(Input)'!U46*Insurance_Rate*'Operating Expenses & Energy'!T26 -> 47124.3332 | U16: ='Plant(Input)'!V46*Insurance_Rate*'Operating Expenses & Energy'!U26 -> 47131.5012 | V16: ='Plant(Input)'!W46*Insurance_Rate*'Operating Expenses & Energy'!V26 -> 47131.5012 | W16: ='Plant(Input)'!X46*Insurance_Rate*'Operating Expenses & Energy'!W26 -> 47131.5012 | X16: ='Plant(Input)'!Y46*Insurance_Rate*'Operating Expenses & Energy'!X26 -> 47825.211 | Y16: ='Plant(Input)'!Z46*Insurance_Rate*'Operating Expenses & Energy'!Y26 -> 47825.211 | Z16: ='Plant(Input)'!AA46*Insurance_Rate*'Operating Expenses & Energy'!Z26 -> 47825.211 | AA16: ='Plant(Input)'!AB46*Insurance_Rate*'Operating Expenses & Energy'!AA26 -> 47825.211 | AB16: ='Plant(Input)'!AC46*Insurance_Rate*'Operating Expenses & Energy'!AB26 -> 47825.211 | AC16: ='Plant(Input)'!AD46*Insurance_Rate*'Operating Expenses & Energy'!AC26 -> 47825.211 | AD16: ='Plant(Input)'!AE46*Insurance_Rate*'Operating Expenses & Energy'!AD26 -> 47825.211 | AE16: ='Plant(Input)'!AF46*Insurance_Rate*'Operating Expenses & Energy'!AE26 -> 47825.211
A17: Power Costs | B17: ='Operating Expenses & Energy'!B40*'Operating Expenses & Energy'!B$26 -> 0 | C17: ='Operating Expenses & Energy'!C40*'Operating Expenses & Energy'!C$26 -> 0 | D17: ='Operating Expenses & Energy'!D40*'Operating Expenses & Energy'!D$26 -> 0 | E17: ='Operating Expenses & Energy'!E40*'Operating Expenses & Energy'!E$26 -> 0 | F17: ='Operating Expenses & Energy'!F40*'Operating Expenses & Energy'!F$26 -> 0 | G17: ='Operating Expenses & Energy'!G40*'Operating Expenses & Energy'!G$26 -> 0 | H17: ='Operating Expenses & Energy'!H40*'Operating Expenses & Energy'!H$26 -> 0 | I17: ='Operating Expenses & Energy'!I40*'Operating Expenses & Energy'!I$26 -> 0 | J17: ='Operating Expenses & Energy'!J40*'Operating Expenses & Energy'!J$26 -> 0 | K17: ='Operating Expenses & Energy'!K40*'Operating Expenses & Energy'!K$26 -> 0 | L17: ='Operating Expenses & Energy'!L40*'Operating Expenses & Energy'!L$26 -> 0 | M17: ='Operating Expenses & Energy'!M40*'Operating Expenses & Energy'!M$26 -> 0 | N17: ='Operating Expenses & Energy'!N40*'Operating Expenses & Energy'!N$26 -> 0 | O17: ='Operating Expenses & Energy'!O40*'Operating Expenses & Energy'!O$26 -> 0 | P17: ='Operating Expenses & Energy'!P40*'Operating Expenses & Energy'!P$26 -> 0 | Q17: ='Operating Expenses & Energy'!Q40*'Operating Expenses & Energy'!Q$26 -> 0 | R17: ='Operating Expenses & Energy'!R40*'Operating Expenses & Energy'!R$26 -> 0 | S17: ='Operating Expenses & Energy'!S40*'Operating Expenses & Energy'!S$26 -> 0 | T17: ='Operating Expenses & Energy'!T40*'Operating Expenses & Energy'!T$26 -> 0 | U17: ='Operating Expenses & Energy'!U40*'Operating Expenses & Energy'!U$26 -> 0 | V17: ='Operating Expenses & Energy'!V40*'Operating Expenses & Energy'!V$26 -> 0 | W17: ='Operating Expenses & Energy'!W40*'Operating Expenses & Energy'!W$26 -> 0 | X17: ='Operating Expenses & Energy'!X40*'Operating Expenses & Energy'!X$26 -> 0 | Y17: ='Operating Expenses & Energy'!Y40*'Operating Expenses & Energy'!Y$26 -> 0 | Z17: ='Operating Expenses & Energy'!Z40*'Operating Expenses & Energy'!Z$26 -> 0 | AA17: ='Operating Expenses & Energy'!AA40*'Operating Expenses & Energy'!AA$26 -> 0 | AB17: ='Operating Expenses & Energy'!AB40*'Operating Expenses & Energy'!AB$26 -> 0 | AC17: ='Operating Expenses & Energy'!AC40*'Operating Expenses & Energy'!AC$26 -> 0 | AD17: ='Operating Expenses & Energy'!AD40*'Operating Expenses & Energy'!AD$26 -> 0 | AE17: ='Operating Expenses & Energy'!AE40*'Operating Expenses & Energy'!AE$26 -> 0
A18: Book Depreciation | B18: ='Plant(Input)'!C43*'Operating Expenses & Energy'!B26 -> 9259.259259 | C18: ='Plant(Input)'!D43*'Operating Expenses & Energy'!C26 -> 188888.8889 | D18: ='Plant(Input)'!E43*'Operating Expenses & Energy'!D26 -> 1079629.63 | E18: ='Plant(Input)'!F43*'Operating Expenses & Energy'!E26 -> 1466684.722 | F18: ='Plant(Input)'!G43*'Operating Expenses & Energy'!F26 -> 1466883.333 | G18: ='Plant(Input)'!H43*'Operating Expenses & Energy'!G26 -> 1466902.444 | H18: ='Plant(Input)'!I43*'Operating Expenses & Energy'!H26 -> 1467383.792 | I18: ='Plant(Input)'!J43*'Operating Expenses & Energy'!I26 -> 1470386.392 | J18: ='Plant(Input)'!K43*'Operating Expenses & Energy'!J26 -> 1471439.731 | K18: ='Plant(Input)'!L43*'Operating Expenses & Energy'!K26 -> 1480600.642 | L18: ='Plant(Input)'!M43*'Operating Expenses & Energy'!L26 -> 1480836.133 | M18: ='Plant(Input)'!N43*'Operating Expenses & Energy'!M26 -> 1481416.294 | N18: ='Plant(Input)'!O43*'Operating Expenses & Energy'!N26 -> 1487798.067 | O18: ='Plant(Input)'!P43*'Operating Expenses & Energy'!O26 -> 1487822.05 | P18: ='Plant(Input)'!Q43*'Operating Expenses & Energy'!P26 -> 1488085.867 | Q18: ='Plant(Input)'!R43*'Operating Expenses & Energy'!Q26 -> 1489066.339 | R18: ='Plant(Input)'!S43*'Operating Expenses & Energy'!R26 -> 1500727.244 | S18: ='Plant(Input)'!T43*'Operating Expenses & Energy'!S26 -> 1510386.939 | T18: ='Plant(Input)'!U43*'Operating Expenses & Energy'!T26 -> 1510682.533 | U18: ='Plant(Input)'!V43*'Operating Expenses & Energy'!U26 -> 1510710.978 | V18: ='Plant(Input)'!W43*'Operating Expenses & Energy'!V26 -> 1511023.867 | W18: ='Plant(Input)'!X43*'Operating Expenses & Energy'!W26 -> 1511023.867 | X18: ='Plant(Input)'!Y43*'Operating Expenses & Energy'!X26 -> 1529900.324 | Y18: ='Plant(Input)'!Z43*'Operating Expenses & Energy'!Y26 -> 1539338.552 | Z18: ='Plant(Input)'!AA43*'Operating Expenses & Energy'!Z26 -> 1539338.552 | AA18: ='Plant(Input)'!AB43*'Operating Expenses & Energy'!AA26 -> 1539338.552 | AB18: ='Plant(Input)'!AC43*'Operating Expenses & Energy'!AB26 -> 1539338.552 | AC18: ='Plant(Input)'!AD43*'Operating Expenses & Energy'!AC26 -> 1539338.552 | AD18: ='Plant(Input)'!AE43*'Operating Expenses & Energy'!AD26 -> 1539338.552 | AE18: ='Plant(Input)'!AF43*'Operating Expenses & Energy'!AE26 -> 1539338.552
A19: Revenue Taxes | B19: =B12*Revenue_Taxes*'Operating Expenses & Energy'!B26 -> 9647.184187 | C19: =C12*Revenue_Taxes*'Operating Expenses & Energy'!C26 -> 183002.6429 | D19: =D12*Revenue_Taxes*'Operating Expenses & Energy'!D26 -> 290118.969 | E19: =E12*Revenue_Taxes*'Operating Expenses & Energy'!E26 -> 300732.675 | F19: =F12*Revenue_Taxes*'Operating Expenses & Energy'!F26 -> 295587.5688 | G19: =G12*Revenue_Taxes*'Operating Expenses & Energy'!G26 -> 290467.1217 | H19: =H12*Revenue_Taxes*'Operating Expenses & Energy'!H26 -> 285724.8659 | I19: =I12*Revenue_Taxes*'Operating Expenses & Energy'!I26 -> 280743.0107 | J19: =J12*Revenue_Taxes*'Operating Expenses & Energy'!J26 -> 276793.8776 | K19: =K12*Revenue_Taxes*'Operating Expenses & Energy'!K26 -> 272059.8706 | L19: =L12*Revenue_Taxes*'Operating Expenses & Energy'!L26 -> 266858.4224 | M19: =M12*Revenue_Taxes*'Operating Expenses & Energy'!M26 -> 262494.7814 | N19: =N12*Revenue_Taxes*'Operating Expenses & Energy'!N26 -> 257579.6147 | O19: =O12*Revenue_Taxes*'Operating Expenses & Energy'!O26 -> 252396.9657 | P19: =P12*Revenue_Taxes*'Operating Expenses & Energy'!P26 -> 247214.9917 | Q19: =Q12*Revenue_Taxes*'Operating Expenses & Energy'!Q26 -> 243449.6351 | R19: =R12*Revenue_Taxes*'Operating Expenses & Energy'!R26 -> 239994.72 | S19: =S12*Revenue_Taxes*'Operating Expenses & Energy'!S26 -> 235198.6294 | T19: =T12*Revenue_Taxes*'Operating Expenses & Energy'!T26 -> 229916.6338 | U19: =U12*Revenue_Taxes*'Operating Expenses & Energy'!U26 -> 224683.9701 | V19: =V12*Revenue_Taxes*'Operating Expenses & Energy'!V26 -> 219446.0981 | W19: =W12*Revenue_Taxes*'Operating Expenses & Energy'!W26 -> 214201.539 | X19: =X12*Revenue_Taxes*'Operating Expenses & Energy'!X26 -> 213582.7021 | Y19: =Y12*Revenue_Taxes*'Operating Expenses & Energy'!Y26 -> 208987.4617 | Z19: =Z12*Revenue_Taxes*'Operating Expenses & Energy'!Z26 -> 203647.6269 | AA19: =AA12*Revenue_Taxes*'Operating Expenses & Energy'!AA26 -> 198417.2141 | AB19: =AB12*Revenue_Taxes*'Operating Expenses & Energy'!AB26 -> 193177.2826 | AC19: =AC12*Revenue_Taxes*'Operating Expenses & Energy'!AC26 -> 187980.5542 | AD19: =AD12*Revenue_Taxes*'Operating Expenses & Energy'!AD26 -> 182886.2683 | AE19: =AE12*Revenue_Taxes*'Operating Expenses & Energy'!AE26 -> 177838.3092
A20: Property Taxes | B20: ='Plant(Input)'!C46*Levy_Rate*Assessment_Rate*'Operating Expenses & Energy'!B26 -> 408 | C20: ='Plant(Input)'!D46*Levy_Rate*Assessment_Rate*'Operating Expenses & Energy'!C26 -> 3835.2 | D20: ='Plant(Input)'!E46*Levy_Rate*Assessment_Rate*'Operating Expenses & Energy'!D26 -> 5385.6 | E20: ='Plant(Input)'!F46*Levy_Rate*Assessment_Rate*'Operating Expenses & Energy'!E26 -> 5386.1304 | F20: ='Plant(Input)'!G46*Levy_Rate*Assessment_Rate*'Operating Expenses & Energy'!F26 -> 5386.1304 | G20: ='Plant(Input)'!H46*Levy_Rate*Assessment_Rate*'Operating Expenses & Energy'!G26 -> 5386.691808 | H20: ='Plant(Input)'!I46*Levy_Rate*Assessment_Rate*'Operating Expenses & Energy'!H26 -> 5394.656376 | I20: ='Plant(Input)'!J46*Levy_Rate*Assessment_Rate*'Operating Expenses & Energy'!I26 -> 5395.250506 | J20: ='Plant(Input)'!K46*Levy_Rate*Assessment_Rate*'Operating Expenses & Energy'!J26 -> 5419.657963 | K20: ='Plant(Input)'!L46*Levy_Rate*Assessment_Rate*'Operating Expenses & Energy'!K26 -> 5420.286854 | L20: ='Plant(Input)'!M46*Levy_Rate*Assessment_Rate*'Operating Expenses & Energy'!L26 -> 5420.286854 | M20: ='Plant(Input)'!N46*Levy_Rate*Assessment_Rate*'Operating Expenses & Energy'!M26 -> 5437.329667 | N20: ='Plant(Input)'!O46*Levy_Rate*Assessment_Rate*'Operating Expenses & Energy'!N26 -> 5437.329667 | O20: ='Plant(Input)'!P46*Levy_Rate*Assessment_Rate*'Operating Expenses & Energy'!O26 -> 5438.034202 | P20: ='Plant(Input)'!Q46*Levy_Rate*Assessment_Rate*'Operating Expenses & Energy'!P26 -> 5438.034202 | Q20: ='Plant(Input)'!R46*Levy_Rate*Assessment_Rate*'Operating Expenses & Energy'!Q26 -> 5466.836554 | R20: ='Plant(Input)'!S46*Levy_Rate*Assessment_Rate*'Operating Expenses & Energy'!R26 -> 5492.561443 | S20: ='Plant(Input)'!T46*Levy_Rate*Assessment_Rate*'Operating Expenses & Energy'!S26 -> 5493.350842 | T20: ='Plant(Input)'!U46*Levy_Rate*Assessment_Rate*'Operating Expenses & Energy'!T26 -> 5493.350842 | U20: ='Plant(Input)'!V46*Levy_Rate*Assessment_Rate*'Operating Expenses & Energy'!U26 -> 5494.186426 | V20: ='Plant(Input)'!W46*Levy_Rate*Assessment_Rate*'Operating Expenses & Energy'!V26 -> 5494.186426 | W20: ='Plant(Input)'!X46*Levy_Rate*Assessment_Rate*'Operating Expenses & Energy'!W26 -> 5494.186426 | X20: ='Plant(Input)'!Y46*Levy_Rate*Assessment_Rate*'Operating Expenses & Energy'!X26 -> 5575.053168 | Y20: ='Plant(Input)'!Z46*Levy_Rate*Assessment_Rate*'Operating Expenses & Energy'!Y26 -> 5575.053168 | Z20: ='Plant(Input)'!AA46*Levy_Rate*Assessment_Rate*'Operating Expenses & Energy'!Z26 -> 5575.053168 | AA20: ='Plant(Input)'!AB46*Levy_Rate*Assessment_Rate*'Operating Expenses & Energy'!AA26 -> 5575.053168 | AB20: ='Plant(Input)'!AC46*Levy_Rate*Assessment_Rate*'Operating Expenses & Energy'!AB26 -> 5575.053168 | AC20: ='Plant(Input)'!AD46*Levy_Rate*Assessment_Rate*'Operating Expenses & Energy'!AC26 -> 5575.053168 | AD20: ='Plant(Input)'!AE46*Levy_Rate*Assessment_Rate*'Operating Expenses & Energy'!AD26 -> 5575.053168 | AE20: ='Plant(Input)'!AF46*Levy_Rate*Assessment_Rate*'Operating Expenses & Energy'!AE26 -> 5575.053168
A21: Federal Income Tax
A22: Current | B22: ='Tax Statement (Results)'!B29*'Operating Expenses & Energy'!B26 -> 20952.07595 | C22: ='Tax Statement (Results)'!C29*'Operating Expenses & Energy'!C26 -> 492603.6906 | D22: ='Tax Statement (Results)'!D29*'Operating Expenses & Energy'!D26 -> 739811.3167 | E22: ='Tax Statement (Results)'!E29*'Operating Expenses & Energy'!E26 -> 749884.1152 | F22: ='Tax Statement (Results)'!F29*'Operating Expenses & Energy'!F26 -> 730935.9672 | G22: ='Tax Statement (Results)'!G29*'Operating Expenses & Energy'!G26 -> 712040.0051 | H22: ='Tax Statement (Results)'!H29*'Operating Expenses & Energy'!H26 -> 693495.3162 | I22: ='Tax Statement (Results)'!I29*'Operating Expenses & Energy'!I26 -> 674339.5722 | J22: ='Tax Statement (Results)'!J29*'Operating Expenses & Energy'!J26 -> 656716.6241 | K22: ='Tax Statement (Results)'!K29*'Operating Expenses & Energy'!K26 -> 637094.543 | L22: ='Tax Statement (Results)'!L29*'Operating Expenses & Energy'!L26 -> 618513.3729 | M22: ='Tax Statement (Results)'!M29*'Operating Expenses & Energy'!M26 -> 600758.4178 | N22: ='Tax Statement (Results)'!N29*'Operating Expenses & Energy'!N26 -> 581488.4909 | O22: ='Tax Statement (Results)'!O29*'Operating Expenses & Energy'!O26 -> 562932.6329 | P22: ='Tax Statement (Results)'!P29*'Operating Expenses & Energy'!P26 -> 544103.0605 | Q22: ='Tax Statement (Results)'!Q29*'Operating Expenses & Energy'!Q26 -> 526564.9328 | R22: ='Tax Statement (Results)'!R29*'Operating Expenses & Energy'!R26 -> 507877.4248 | S22: ='Tax Statement (Results)'!S29*'Operating Expenses & Energy'!S26 -> 488257.486 | T22: ='Tax Statement (Results)'!T29*'Operating Expenses & Energy'!T26 -> 469611.7615 | U22: ='Tax Statement (Results)'!U29*'Operating Expenses & Energy'!U26 -> 450966.805 | V22: ='Tax Statement (Results)'!V29*'Operating Expenses & Energy'!V26 -> 432180.1326 | W22: ='Tax Statement (Results)'!W29*'Operating Expenses & Energy'!W26 -> 413682.5983 | X22: ='Tax Statement (Results)'!X29*'Operating Expenses & Energy'!X26 -> 401639.0557 | Y22: ='Tax Statement (Results)'!Y29*'Operating Expenses & Energy'!Y26 -> 377215.4036 | Z22: ='Tax Statement (Results)'!Z29*'Operating Expenses & Energy'!Z26 -> 360216.5495 | AA22: ='Tax Statement (Results)'!AA29*'Operating Expenses & Energy'!AA26 -> 341613.741 | AB22: ='Tax Statement (Results)'!AB29*'Operating Expenses & Energy'!AB26 -> 323966.4934 | AC22: ='Tax Statement (Results)'!AC29*'Operating Expenses & Energy'!AC26 -> 306192.6536 | AD22: ='Tax Statement (Results)'!AD29*'Operating Expenses & Energy'!AD26 -> 286835.2299 | AE22: ='Tax Statement (Results)'!AE29*'Operating Expenses & Energy'!AE26 -> 266943.2252
A23: Deferred | B23: =('Plant(Input)'!C19+'Plant(Input)'!C35)*'Operating Expenses & Energy'!B26 -> 19229.25926 | C23: =('Plant(Input)'!D19+'Plant(Input)'!D35)*'Operating Expenses & Energy'!C26 -> 167506.8889 | D23: =('Plant(Input)'!E19+'Plant(Input)'!E35)*'Operating Expenses & Energy'!D26 -> 129293.6296 | E23: =('Plant(Input)'!F19+'Plant(Input)'!F35)*'Operating Expenses & Energy'!E26 -> 79058.09722 | F23: =('Plant(Input)'!G19+'Plant(Input)'!G35)*'Operating Expenses & Energy'!F26 -> 79090.95833 | G23: =('Plant(Input)'!H19+'Plant(Input)'!H35)*'Operating Expenses & Energy'!G26 -> 79183.05694 | H23: =('Plant(Input)'!I19+'Plant(Input)'!I35)*'Operating Expenses & Energy'!H26 -> 80811.69542 | I23: =('Plant(Input)'!J19+'Plant(Input)'!J35)*'Operating Expenses & Energy'!I26 -> 81384.86067 | J23: =('Plant(Input)'!K19+'Plant(Input)'!K35)*'Operating Expenses & Energy'!J26 -> 86004.60818 | K23: =('Plant(Input)'!L19+'Plant(Input)'!L35)*'Operating Expenses & Energy'!K26 -> 87303.51344 | L23: =('Plant(Input)'!M19+'Plant(Input)'!M35)*'Operating Expenses & Energy'!L26 -> 86043.19471 | M23: =('Plant(Input)'!N19+'Plant(Input)'!N35)*'Operating Expenses & Energy'!M26 -> 88316.37351 | N23: =('Plant(Input)'!O19+'Plant(Input)'!O35)*'Operating Expenses & Energy'!N26 -> 88405.86417 | O23: =('Plant(Input)'!P19+'Plant(Input)'!P35)*'Operating Expenses & Energy'!O26 -> 87102.56425 | P23: =('Plant(Input)'!Q19+'Plant(Input)'!Q35)*'Operating Expenses & Energy'!P26 -> 86171.24465 | Q23: =('Plant(Input)'!R19+'Plant(Input)'!R35)*'Operating Expenses & Energy'!Q26 -> 91397.53214 | R23: =('Plant(Input)'!S19+'Plant(Input)'!S35)*'Operating Expenses & Energy'!R26 -> 97862.39447 | S23: =('Plant(Input)'!T19+'Plant(Input)'!T35)*'Operating Expenses & Energy'!S26 -> 98184.96139 | T23: =('Plant(Input)'!U19+'Plant(Input)'!U35)*'Operating Expenses & Energy'!T26 -> 96046.45577 | U23: =('Plant(Input)'!V19+'Plant(Input)'!V35)*'Operating Expenses & Energy'!U26 -> 94206.16689 | V23: =('Plant(Input)'!W19+'Plant(Input)'!W35)*'Operating Expenses & Energy'!V26 -> 92443.8442 | W23: =('Plant(Input)'!X19+'Plant(Input)'!X35)*'Operating Expenses & Energy'!W26 -> 90131.79124 | X23: =('Plant(Input)'!Y19+'Plant(Input)'!Y35)*'Operating Expenses & Energy'!X26 -> 99390.30538 | Y23: =('Plant(Input)'!Z19+'Plant(Input)'!Z35)*'Operating Expenses & Energy'!Y26 -> 108441.7833 | Z23: =('Plant(Input)'!AA19+'Plant(Input)'!AA35)*'Operating Expenses & Energy'!Z26 -> 101994.5631 | AA23: =('Plant(Input)'!AB19+'Plant(Input)'!AB35)*'Operating Expenses & Energy'!AA26 -> 98956.33189 | AB23: =('Plant(Input)'!AC19+'Plant(Input)'!AC35)*'Operating Expenses & Energy'!AB26 -> 94057.85467 | AC23: =('Plant(Input)'!AD19+'Plant(Input)'!AD35)*'Operating Expenses & Energy'!AC26 -> 89537.33713 | AD23: =('Plant(Input)'!AE19+'Plant(Input)'!AE35)*'Operating Expenses & Energy'!AD26 -> 88336.74445 | AE23: =('Plant(Input)'!AF19+'Plant(Input)'!AF35)*'Operating Expenses & Energy'!AE26 -> 88248.80716
A24: Total Operating Expenses | B24: =SUM(B15:B23) -> 62995.77865 | C24: =SUM(C15:C23) -> 1208635.855 | D24: 2578630.145 | E24: 2942691.29 | F24: 2925565.508 | G24: 2908578.686 | H24: 2894573.015 | I24: 2881300.872 | J24: 2873113.662 | K24: 2866901.414 | L24: 2849979.969 | M24: 2838977.956 | N24: 2829585.125 | O24: 2813124.05 | P24: 2797231.001 | Q24: 2791440.158 | R24: 2796952.907 | S24: 2792070.7 | T24: 2776114.069 | U24: 2760526.607 | V24: 2745435.629 | W24: 2730063.483 | X24: 2759762.591 | Y24: 2763088.903 | Z24: 2748574.157 | AA24: 2736402.003 | AB24: 2723756.624 | AC24: 2711860.023 | AD24: 2702270.041 | AE24: 2693786.329
A26: Operating Income | B26: =B12-B24 -> 186092.3749 | C26: =C12-C24 -> 3516451.75 | D26: 4912177.214 | E26: 4822159.601 | F26: 4706439.883 | G26: 4591217.898 | H26: 4482779.578 | I26: 4367421.326 | J26: 4273642.795 | K26: 4157624.034 | L26: 4040245.241 | M26: 3938579.012 | N26: 3821063.33 | O26: 3703709.558 | P26: 3585805.19 | Q26: 3494375.362 | R26: 3399657.472 | S26: 3280705.687 | T26: 3160282.364 | U26: 3040763.611 | V26: 2920613.896 | W26: 2800572.691 | X26: 2754895.351 | Y26: 2632920.952 | Z26: 2509562.349 | AA26: 2386686.407 | AB26: 2264037.918 | AC26: 2141756.146 | AD26: 2019812.796 | AE26: 1897959.326
A28: Non Operating Income | B28: =('Capital Projects (Nominal)'!H185+'Operating Expenses & Energy'!B16)*'Operating Expenses & Energy'!B26 -> 0 | C28: =('Capital Projects (Nominal)'!I185+'Operating Expenses & Energy'!C16)*'Operating Expenses & Energy'!C26 -> 0 | D28: =('Capital Projects (Nominal)'!J185+'Operating Expenses & Energy'!D16)*'Operating Expenses & Energy'!D26 -> 0 | E28: =('Capital Projects (Nominal)'!K185+'Operating Expenses & Energy'!E16)*'Operating Expenses & Energy'!E26 -> 0 | F28: =('Capital Projects (Nominal)'!L185+'Operating Expenses & Energy'!F16)*'Operating Expenses & Energy'!F26 -> 0 | G28: =('Capital Projects (Nominal)'!M185+'Operating Expenses & Energy'!G16)*'Operating Expenses & Energy'!G26 -> 0 | H28: =('Capital Projects (Nominal)'!N185+'Operating Expenses & Energy'!H16)*'Operating Expenses & Energy'!H26 -> 0 | I28: =('Capital Projects (Nominal)'!O185+'Operating Expenses & Energy'!I16)*'Operating Expenses & Energy'!I26 -> 0 | J28: =('Capital Projects (Nominal)'!P185+'Operating Expenses & Energy'!J16)*'Operating Expenses & Energy'!J26 -> 0 | K28: =('Capital Projects (Nominal)'!Q185+'Operating Expenses & Energy'!K16)*'Operating Expenses & Energy'!K26 -> 0 | L28: =('Capital Projects (Nominal)'!R185+'Operating Expenses & Energy'!L16)*'Operating Expenses & Energy'!L26 -> 0 | M28: =('Capital Projects (Nominal)'!S185+'Operating Expenses & Energy'!M16)*'Operating Expenses & Energy'!M26 -> 0 | N28: =('Capital Projects (Nominal)'!T185+'Operating Expenses & Energy'!N16)*'Operating Expenses & Energy'!N26 -> 0 | O28: =('Capital Projects (Nominal)'!U185+'Operating Expenses & Energy'!O16)*'Operating Expenses & Energy'!O26 -> 0 | P28: =('Capital Projects (Nominal)'!V185+'Operating Expenses & Energy'!P16)*'Operating Expenses & Energy'!P26 -> 0 | Q28: =('Capital Projects (Nominal)'!W185+'Operating Expenses & Energy'!Q16)*'Operating Expenses & Energy'!Q26 -> 0 | R28: =('Capital Projects (Nominal)'!X185+'Operating Expenses & Energy'!R16)*'Operating Expenses & Energy'!R26 -> 0 | S28: =('Capital Projects (Nominal)'!Y185+'Operating Expenses & Energy'!S16)*'Operating Expenses & Energy'!S26 -> 0 | T28: =('Capital Projects (Nominal)'!Z185+'Operating Expenses & Energy'!T16)*'Operating Expenses & Energy'!T26 -> 0 | U28: =('Capital Projects (Nominal)'!AA185+'Operating Expenses & Energy'!U16)*'Operating Expenses & Energy'!U26 -> 0 | V28: =('Capital Projects (Nominal)'!AB185+'Operating Expenses & Energy'!V16)*'Operating Expenses & Energy'!V26 -> 0 | W28: =('Capital Projects (Nominal)'!AC185+'Operating Expenses & Energy'!W16)*'Operating Expenses & Energy'!W26 -> 0 | X28: =('Capital Projects (Nominal)'!AD185+'Operating Expenses & Energy'!X16)*'Operating Expenses & Energy'!X26 -> 0 | Y28: =('Capital Projects (Nominal)'!AE185+'Operating Expenses & Energy'!Y16)*'Operating Expenses & Energy'!Y26 -> 0 | Z28: =('Capital Projects (Nominal)'!AF185+'Operating Expenses & Energy'!Z16)*'Operating Expenses & Energy'!Z26 -> 0 | AA28: =('Capital Projects (Nominal)'!AG185+'Operating Expenses & Energy'!AA16)*'Operating Expenses & Energy'!AA26 -> 0 | AB28: =('Capital Projects (Nominal)'!AH185+'Operating Expenses & Energy'!AB16)*'Operating Expenses & Energy'!AB26 -> 0 | AC28: =('Capital Projects (Nominal)'!AI185+'Operating Expenses & Energy'!AC16)*'Operating Expenses & Energy'!AC26 -> 0 | AD28: =('Capital Projects (Nominal)'!AJ185+'Operating Expenses & Energy'!AD16)*'Operating Expenses & Energy'!AD26 -> 0 | AE28: =('Capital Projects (Nominal)'!AK185+'Operating Expenses & Energy'!AE16)*'Operating Expenses & Energy'!AE26 -> 0
A30: Interest | B30: =('Assumptions (Input)'!$D$27+'Assumptions (Input)'!$D$28)*B36 -> 71561.17914 | C30: =('Assumptions (Input)'!$D$27+'Assumptions (Input)'!$D$28)*C36 -> 1352239.358 | D30: =('Assumptions (Input)'!$D$27+'Assumptions (Input)'!$D$28)*D36 -> 1888960.758 | E30: =('Assumptions (Input)'!$D$27+'Assumptions (Input)'!$D$28)*E36 -> 1854344.796 | F30: =('Assumptions (Input)'!$D$27+'Assumptions (Input)'!$D$28)*F36 -> 1809845.179 | G30: =('Assumptions (Input)'!$D$27+'Assumptions (Input)'!$D$28)*G36 -> 1765536.963 | H30: =('Assumptions (Input)'!$D$27+'Assumptions (Input)'!$D$28)*H36 -> 1723837.382 | I30: =('Assumptions (Input)'!$D$27+'Assumptions (Input)'!$D$28)*I36 -> 1679476.766 | J30: =('Assumptions (Input)'!$D$27+'Assumptions (Input)'!$D$28)*J36 -> 1643414.556 | K30: =('Assumptions (Input)'!$D$27+'Assumptions (Input)'!$D$28)*K36 -> 1598799.943 | L30: =('Assumptions (Input)'!$D$27+'Assumptions (Input)'!$D$28)*L36 -> 1553662.334 | M30: =('Assumptions (Input)'!$D$27+'Assumptions (Input)'!$D$28)*M36 -> 1514566.937 | N30: =('Assumptions (Input)'!$D$27+'Assumptions (Input)'!$D$28)*N36 -> 1469376.688 | O30: =('Assumptions (Input)'!$D$27+'Assumptions (Input)'!$D$28)*O36 -> 1424248.701 | P30: =('Assumptions (Input)'!$D$27+'Assumptions (Input)'!$D$28)*P36 -> 1378908.984 | Q30: =('Assumptions (Input)'!$D$27+'Assumptions (Input)'!$D$28)*Q36 -> 1343749.96 | R30: =('Assumptions (Input)'!$D$27+'Assumptions (Input)'!$D$28)*R36 -> 1307326.523 | S30: =('Assumptions (Input)'!$D$27+'Assumptions (Input)'!$D$28)*S36 -> 1261584.025 | T30: =('Assumptions (Input)'!$D$27+'Assumptions (Input)'!$D$28)*T36 -> 1215275.653 | U30: =('Assumptions (Input)'!$D$27+'Assumptions (Input)'!$D$28)*U36 -> 1169315.13 | V30: =('Assumptions (Input)'!$D$27+'Assumptions (Input)'!$D$28)*V36 -> 1123111.972 | W30: =('Assumptions (Input)'!$D$27+'Assumptions (Input)'!$D$28)*W36 -> 1076950.542 | X30: =('Assumptions (Input)'!$D$27+'Assumptions (Input)'!$D$28)*X36 -> 1059385.479 | Y30: =('Assumptions (Input)'!$D$27+'Assumptions (Input)'!$D$28)*Y36 -> 1012480.646 | Z30: =('Assumptions (Input)'!$D$27+'Assumptions (Input)'!$D$28)*Z36 -> 965043.5216 | AA30: =('Assumptions (Input)'!$D$27+'Assumptions (Input)'!$D$28)*AA36 -> 917792.0032 | AB30: =('Assumptions (Input)'!$D$27+'Assumptions (Input)'!$D$28)*AB36 -> 870627.9509 | AC30: =('Assumptions (Input)'!$D$27+'Assumptions (Input)'!$D$28)*AC36 -> 823604.9185 | AD30: =('Assumptions (Input)'!$D$27+'Assumptions (Input)'!$D$28)*AD36 -> 776712.0249 | AE30: =('Assumptions (Input)'!$D$27+'Assumptions (Input)'!$D$28)*AE36 -> 729853.6946
A32: Preferred Dividends | B32: ='Assumptions (Input)'!$D$29*'Income Statement (Results)'!B36*'Operating Expenses & Energy'!B26 -> 0 | C32: ='Assumptions (Input)'!$D$29*'Income Statement (Results)'!C36*'Operating Expenses & Energy'!C26 -> 0 | D32: ='Assumptions (Input)'!$D$29*'Income Statement (Results)'!D36*'Operating Expenses & Energy'!D26 -> 0 | E32: ='Assumptions (Input)'!$D$29*'Income Statement (Results)'!E36*'Operating Expenses & Energy'!E26 -> 0 | F32: ='Assumptions (Input)'!$D$29*'Income Statement (Results)'!F36*'Operating Expenses & Energy'!F26 -> 0 | G32: ='Assumptions (Input)'!$D$29*'Income Statement (Results)'!G36*'Operating Expenses & Energy'!G26 -> 0 | H32: ='Assumptions (Input)'!$D$29*'Income Statement (Results)'!H36*'Operating Expenses & Energy'!H26 -> 0 | I32: ='Assumptions (Input)'!$D$29*'Income Statement (Results)'!I36*'Operating Expenses & Energy'!I26 -> 0 | J32: ='Assumptions (Input)'!$D$29*'Income Statement (Results)'!J36*'Operating Expenses & Energy'!J26 -> 0 | K32: ='Assumptions (Input)'!$D$29*'Income Statement (Results)'!K36*'Operating Expenses & Energy'!K26 -> 0 | L32: ='Assumptions (Input)'!$D$29*'Income Statement (Results)'!L36*'Operating Expenses & Energy'!L26 -> 0 | M32: ='Assumptions (Input)'!$D$29*'Income Statement (Results)'!M36*'Operating Expenses & Energy'!M26 -> 0 | N32: ='Assumptions (Input)'!$D$29*'Income Statement (Results)'!N36*'Operating Expenses & Energy'!N26 -> 0 | O32: ='Assumptions (Input)'!$D$29*'Income Statement (Results)'!O36*'Operating Expenses & Energy'!O26 -> 0 | P32: ='Assumptions (Input)'!$D$29*'Income Statement (Results)'!P36*'Operating Expenses & Energy'!P26 -> 0 | Q32: ='Assumptions (Input)'!$D$29*'Income Statement (Results)'!Q36*'Operating Expenses & Energy'!Q26 -> 0 | R32: ='Assumptions (Input)'!$D$29*'Income Statement (Results)'!R36*'Operating Expenses & Energy'!R26 -> 0 | S32: ='Assumptions (Input)'!$D$29*'Income Statement (Results)'!S36*'Operating Expenses & Energy'!S26 -> 0 | T32: ='Assumptions (Input)'!$D$29*'Income Statement (Results)'!T36*'Operating Expenses & Energy'!T26 -> 0 | U32: ='Assumptions (Input)'!$D$29*'Income Statement (Results)'!U36*'Operating Expenses & Energy'!U26 -> 0 | V32: ='Assumptions (Input)'!$D$29*'Income Statement (Results)'!V36*'Operating Expenses & Energy'!V26 -> 0 | W32: ='Assumptions (Input)'!$D$29*'Income Statement (Results)'!W36*'Operating Expenses & Energy'!W26 -> 0 | X32: ='Assumptions (Input)'!$D$29*'Income Statement (Results)'!X36*'Operating Expenses & Energy'!X26 -> 0 | Y32: ='Assumptions (Input)'!$D$29*'Income Statement (Results)'!Y36*'Operating Expenses & Energy'!Y26 -> 0 | Z32: ='Assumptions (Input)'!$D$29*'Income Statement (Results)'!Z36*'Operating Expenses & Energy'!Z26 -> 0 | AA32: ='Assumptions (Input)'!$D$29*'Income Statement (Results)'!AA36*'Operating Expenses & Energy'!AA26 -> 0 | AB32: ='Assumptions (Input)'!$D$29*'Income Statement (Results)'!AB36*'Operating Expenses & Energy'!AB26 -> 0 | AC32: ='Assumptions (Input)'!$D$29*'Income Statement (Results)'!AC36*'Operating Expenses & Energy'!AC26 -> 0 | AD32: ='Assumptions (Input)'!$D$29*'Income Statement (Results)'!AD36*'Operating Expenses & Energy'!AD26 -> 0 | AE32: ='Assumptions (Input)'!$D$29*'Income Statement (Results)'!AE36*'Operating Expenses & Energy'!AE26 -> 0
A34: Net Income | B34: =B26+B28-B30-B32 -> 114531.1958 | C34: =C26+C28-C30-C32 -> 2164212.392 | D34: =D26+D28-D30-D32 -> 3023216.456 | E34: 2967814.804 | F34: 2896594.704 | G34: 2825680.934 | H34: 2758942.195 | I34: 2687944.56 | J34: 2630228.239 | K34: 2558824.091 | L34: 2486582.907 | M34: 2424012.075 | N34: 2351686.642 | O34: 2279460.858 | P34: 2206896.206 | Q34: 2150625.402 | R34: 2092330.95 | S34: 2019121.662 | T34: 1945006.711 | U34: 1871448.481 | V34: 1797501.924 | W34: 1723622.149 | X34: 1695509.872 | Y34: 1620440.306 | Z34: 1544518.827 | AA34: 1468894.404 | AB34: 1393409.967 | AC34: 1318151.228 | AD34: 1243100.771 | AE34: 1168105.632
A36: Average Ratebase | B36: ='Plant(Input)'!C53*'Operating Expenses & Energy'!B26 -> 2485755.741 | C36: ='Plant(Input)'!D53*'Operating Expenses & Energy'!C26 -> 46971511.48 | D36: ='Plant(Input)'!E53*'Operating Expenses & Energy'!D26 -> 65615115.7 | E36: ='Plant(Input)'!F53*'Operating Expenses & Energy'!E26 -> 64412692.44 | F36: ='Plant(Input)'!G53*'Operating Expenses & Energy'!F26 -> 62866949.62 | G36: ='Plant(Input)'!H53*'Operating Expenses & Energy'!G26 -> 61327855.33 | H36: ='Plant(Input)'!I53*'Operating Expenses & Energy'!H26 -> 59879374.83 | I36: ='Plant(Input)'!J53*'Operating Expenses & Energy'!I26 -> 58338460.34 | J36: ='Plant(Input)'!K53*'Operating Expenses & Energy'!J26 -> 57085800.09 | K36: ='Plant(Input)'!L53*'Operating Expenses & Energy'!K26 -> 55536062.75 | L36: ='Plant(Input)'!M53*'Operating Expenses & Energy'!L26 -> 53968158.6 | M36: ='Plant(Input)'!N53*'Operating Expenses & Energy'!M26 -> 52610137.27 | N36: ='Plant(Input)'!O53*'Operating Expenses & Energy'!N26 -> 51040404.6 | O36: ='Plant(Input)'!P53*'Operating Expenses & Energy'!O26 -> 49472834.67 | P36: ='Plant(Input)'!Q53*'Operating Expenses & Energy'!P26 -> 47897910.06 | Q36: ='Plant(Input)'!R53*'Operating Expenses & Energy'!Q26 -> 46676622.95 | R36: ='Plant(Input)'!S53*'Operating Expenses & Energy'!R26 -> 45411415.08 | S36: ='Plant(Input)'!T53*'Operating Expenses & Energy'!S26 -> 43822499.44 | T36: ='Plant(Input)'!U53*'Operating Expenses & Energy'!T26 -> 42213927.54 | U36: ='Plant(Input)'!V53*'Operating Expenses & Energy'!U26 -> 40617438.55 | V36: ='Plant(Input)'!W53*'Operating Expenses & Energy'!V26 -> 39012521.4 | W36: ='Plant(Input)'!X53*'Operating Expenses & Energy'!W26 -> 37409053.69 | X36: ='Plant(Input)'!Y53*'Operating Expenses & Energy'!X26 -> 36798912.03 | Y36: ='Plant(Input)'!Z53*'Operating Expenses & Energy'!Y26 -> 35169621.4 | Z36: ='Plant(Input)'!AA53*'Operating Expenses & Energy'!Z26 -> 33521841.07 | AA36: ='Plant(Input)'!AB53*'Operating Expenses & Energy'!AA26 -> 31880507.95 | AB36: ='Plant(Input)'!AC53*'Operating Expenses & Energy'!AB26 -> 30242213.07 | AC36: ='Plant(Input)'!AD53*'Operating Expenses & Energy'!AC26 -> 28608816.66 | AD36: ='Plant(Input)'!AE53*'Operating Expenses & Energy'!AD26 -> 26979940.77 | AE36: ='Plant(Input)'!AF53*'Operating Expenses & Energy'!AE26 -> 25352265.48
A39: ROR | B39: =IFERROR(B26/B36,"") -> 0.0748635 | C39: =IFERROR(C26/C36,"") -> 0.0748635 | D39: 0.0748635 | E39: 0.0748635 | F39: 0.0748635 | G39: 0.0748635 | H39: 0.0748635 | I39: 0.0748635 | J39: 0.0748635 | K39: 0.0748635 | L39: 0.0748635 | M39: 0.0748635 | N39: 0.0748635 | O39: 0.0748635 | P39: 0.0748635 | Q39: 0.0748635 | R39: 0.0748635 | S39: 0.0748635 | T39: 0.0748635 | U39: 0.0748635 | V39: 0.0748635 | W39: 0.0748635 | X39: 0.0748635 | Y39: 0.0748635 | Z39: 0.0748635 | AA39: 0.0748635 | AB39: 0.0748635 | AC39: 0.0748635 | AD39: 0.0748635 | AE39: 0.0748635
A41: EBITDA
A42: Net Income | B42: =+B34 -> 114531.1958 | C42: =+C34 -> 2164212.392 | D42: 3023216.456 | E42: 2967814.804 | F42: 2896594.704 | G42: 2825680.934 | H42: 2758942.195 | I42: 2687944.56 | J42: 2630228.239 | K42: 2558824.091 | L42: 2486582.907 | M42: 2424012.075 | N42: 2351686.642 | O42: 2279460.858 | P42: 2206896.206 | Q42: 2150625.402 | R42: 2092330.95 | S42: 2019121.662 | T42: 1945006.711 | U42: 1871448.481 | V42: 1797501.924 | W42: 1723622.149 | X42: 1695509.872 | Y42: 1620440.306 | Z42: 1544518.827 | AA42: 1468894.404 | AB42: 1393409.967 | AC42: 1318151.228 | AD42: 1243100.771 | AE42: 1168105.632
A43: Plus
A44: Depreciation/Amortization | B44: =+B18 -> 9259.259259 | C44: =+C18 -> 188888.8889 | D44: 1079629.63 | E44: 1466684.722 | F44: 1466883.333 | G44: 1466902.444 | H44: 1467383.792 | I44: 1470386.392 | J44: 1471439.731 | K44: 1480600.642 | L44: 1480836.133 | M44: 1481416.294 | N44: 1487798.067 | O44: 1487822.05 | P44: 1488085.867 | Q44: 1489066.339 | R44: 1500727.244 | S44: 1510386.939 | T44: 1510682.533 | U44: 1510710.978 | V44: 1511023.867 | W44: 1511023.867 | X44: 1529900.324 | Y44: 1539338.552 | Z44: 1539338.552 | AA44: 1539338.552 | AB44: 1539338.552 | AC44: 1539338.552 | AD44: 1539338.552 | AE44: 1539338.552
A45: Taxes | B45: =SUM(B22:B23) -> 40181.33521 | C45: =SUM(C22:C23) -> 660110.5795 | D45: 869104.9464 | E45: 828942.2124 | F45: 810026.9255 | G45: 791223.062 | H45: 774307.0116 | I45: 755724.4328 | J45: 742721.2323 | K45: 724398.0564 | L45: 704556.5677 | M45: 689074.7913 | N45: 669894.3551 | O45: 650035.1972 | P45: 630274.3052 | Q45: 617962.465 | R45: 605739.8192 | S45: 586442.4474 | T45: 565658.2173 | U45: 545172.9719 | V45: 524623.9768 | W45: 503814.3896 | X45: 501029.3611 | Y45: 485657.1869 | Z45: 462211.1126 | AA45: 440570.0729 | AB45: 418024.3481 | AC45: 395729.9907 | AD45: 375171.9743 | AE45: 355192.0323
A46: EBITDA | B46: =SUM(B42,B44:B45) -> 163971.7902 | C46: =SUM(C42,C44:C45) -> 3013211.86 | D46: 4971951.032 | E46: 5263441.739 | F46: 5173504.963 | G46: 5083806.441 | H46: 5000632.999 | I46: 4914055.385 | J46: 4844389.202 | K46: 4763822.789 | L46: 4671975.608 | M46: 4594503.16 | N46: 4509379.064 | O46: 4417318.105 | P46: 4325256.378 | Q46: 4257654.206 | R46: 4198798.013 | S46: 4115951.048 | T46: 4021347.462 | U46: 3927332.431 | V46: 3833149.767 | W46: 3738460.405 | X46: 3726439.557 | Y46: 3645436.045 | Z46: 3546068.492 | AA46: 3448803.029 | AB46: 3350772.868 | AC46: 3253219.771 | AD46: 3157611.298 | AE46: 3062636.216
A48: ROE | B48: =IFERROR(B34/(B36*Equity_Percent),"") -> 0.095 | C48: 0.095 | D48: 0.095 | E48: 0.095 | F48: 0.095 | G48: 0.095 | H48: 0.095 | I48: 0.095 | J48: 0.095 | K48: 0.095 | L48: 0.095 | M48: 0.095 | N48: 0.095 | O48: 0.095 | P48: 0.095 | Q48: 0.095 | R48: 0.095 | S48: 0.095 | T48: 0.095 | U48: 0.095 | V48: 0.095 | W48: 0.095 | X48: 0.095 | Y48: 0.095 | Z48: 0.095 | AA48: 0.095 | AB48: 0.095 | AC48: 0.095 | AD48: 0.095 | AE48: 0.095
A51: Regulated Revenues
A52: Lag 0 year | B52: =+'Revenue Requirement'!B15*'Operating Expenses & Energy'!B26 -> 238959.5385 | C52: =+'Revenue Requirement'!C15*'Operating Expenses & Energy'!C26 -> 4636856.812 | D52: =+'Revenue Requirement'!D15*'Operating Expenses & Energy'!D26 -> 7422704.611 | E52: =+'Revenue Requirement'!E15*'Operating Expenses & Energy'!E26 -> 7723208.671 | F52: =+'Revenue Requirement'!F15*'Operating Expenses & Energy'!F26 -> 7590345.863 | G52: =+'Revenue Requirement'!G15*'Operating Expenses & Energy'!G26 -> 7458088.544 | H52: =+'Revenue Requirement'!H15*'Operating Expenses & Energy'!H26 -> 7334786.702 | I52: =+'Revenue Requirement'!I15*'Operating Expenses & Energy'!I26 -> 7205854.404 | J52: =+'Revenue Requirement'!J15*'Operating Expenses & Energy'!J26 -> 7101455.307 | K52: =+'Revenue Requirement'!K15*'Operating Expenses & Energy'!K26 -> 6978540.126 | L52: =+'Revenue Requirement'!L15*'Operating Expenses & Energy'!L26 -> 6844903.735 | M52: =+'Revenue Requirement'!M15*'Operating Expenses & Energy'!M26 -> 6731038.142 | N52: =+'Revenue Requirement'!N15*'Operating Expenses & Energy'!N26 -> 6604082.493 | O52: =+'Revenue Requirement'!O15*'Operating Expenses & Energy'!O26 -> 6470954.132 | P52: =+'Revenue Requirement'!P15*'Operating Expenses & Energy'!P26 -> 6337647.268 | Q52: =+'Revenue Requirement'!Q15*'Operating Expenses & Energy'!Q26 -> 6237673.758 | R52: =+'Revenue Requirement'!R15*'Operating Expenses & Energy'!R26 -> 6145063.384 | S52: =+'Revenue Requirement'!S15*'Operating Expenses & Energy'!S26 -> 6021059.486 | T52: =+'Revenue Requirement'!T15*'Operating Expenses & Energy'!T26 -> 5885805.946 | U52: =+'Revenue Requirement'!U15*'Operating Expenses & Energy'!U26 -> 5751669.066 | V52: =+'Revenue Requirement'!V15*'Operating Expenses & Energy'!V26 -> 5617356.64 | W52: =+'Revenue Requirement'!W15*'Operating Expenses & Energy'!W26 -> 5483161.115 | X52: =+'Revenue Requirement'!X15*'Operating Expenses & Energy'!X26 -> 5462306.152 | Y52: =+'Revenue Requirement'!Y15*'Operating Expenses & Energy'!Y26 -> 5338890.386 | Z52: =+'Revenue Requirement'!Z15*'Operating Expenses & Energy'!Z26 -> 5204412.977 | AA52: =+'Revenue Requirement'!AA15*'Operating Expenses & Energy'!AA26 -> 5070965.207 | AB52: =+'Revenue Requirement'!AB15*'Operating Expenses & Energy'!AB26 -> 4938251.51 | AC52: =+'Revenue Requirement'!AC15*'Operating Expenses & Energy'!AC26 -> 4806454.227 | AD52: =+'Revenue Requirement'!AD15*'Operating Expenses & Energy'!AD26 -> 4675553.281 | AE52: =+'Revenue Requirement'!AE15*'Operating Expenses & Energy'!AE26 -> 4545262.419
A53: Lag 1 year | C53: =+B52*'Operating Expenses & Energy'!C26 -> 238959.5385 | D53: =+C52*'Operating Expenses & Energy'!D26 -> 4636856.812 | E53: =+D52*'Operating Expenses & Energy'!E26 -> 7422704.611 | F53: =+E52*'Operating Expenses & Energy'!F26 -> 7723208.671 | G53: =+F52*'Operating Expenses & Energy'!G26 -> 7590345.863 | H53: =+G52*'Operating Expenses & Energy'!H26 -> 7458088.544 | I53: =+H52*'Operating Expenses & Energy'!I26 -> 7334786.702 | J53: =+I52*'Operating Expenses & Energy'!J26 -> 7205854.404 | K53: =+J52*'Operating Expenses & Energy'!K26 -> 7101455.307 | L53: =+K52*'Operating Expenses & Energy'!L26 -> 6978540.126 | M53: =+L52*'Operating Expenses & Energy'!M26 -> 6844903.735 | N53: =+M52*'Operating Expenses & Energy'!N26 -> 6731038.142 | O53: =+N52*'Operating Expenses & Energy'!O26 -> 6604082.493 | P53: =+O52*'Operating Expenses & Energy'!P26 -> 6470954.132 | Q53: =+P52*'Operating Expenses & Energy'!Q26 -> 6337647.268 | R53: =+Q52*'Operating Expenses & Energy'!R26 -> 6237673.758 | S53: =+R52*'Operating Expenses & Energy'!S26 -> 6145063.384 | T53: =+S52*'Operating Expenses & Energy'!T26 -> 6021059.486 | U53: =+T52*'Operating Expenses & Energy'!U26 -> 5885805.946 | V53: =+U52*'Operating Expenses & Energy'!V26 -> 5751669.066 | W53: =+V52*'Operating Expenses & Energy'!W26 -> 5617356.64 | X53: =+W52*'Operating Expenses & Energy'!X26 -> 5483161.115 | Y53: =+X52*'Operating Expenses & Energy'!Y26 -> 5462306.152 | Z53: =+Y52*'Operating Expenses & Energy'!Z26 -> 5338890.386 | AA53: =+Z52*'Operating Expenses & Energy'!AA26 -> 5204412.977 | AB53: =+AA52*'Operating Expenses & Energy'!AB26 -> 5070965.207 | AC53: =+AB52*'Operating Expenses & Energy'!AC26 -> 4938251.51 | AD53: =+AC52*'Operating Expenses & Energy'!AD26 -> 4806454.227 | AE53: =+AD52*'Operating Expenses & Energy'!AE26 -> 4675553.281
A54: Lag 2 yrs | D54: =+C53*'Operating Expenses & Energy'!D26 -> 238959.5385 | E54: =+D53*'Operating Expenses & Energy'!E26 -> 4636856.812 | F54: =+E53*'Operating Expenses & Energy'!F26 -> 7422704.611 | G54: =+F53*'Operating Expenses & Energy'!G26 -> 7723208.671 | H54: =+G53*'Operating Expenses & Energy'!H26 -> 7590345.863 | I54: =+H53*'Operating Expenses & Energy'!I26 -> 7458088.544 | J54: =+I53*'Operating Expenses & Energy'!J26 -> 7334786.702 | K54: =+J53*'Operating Expenses & Energy'!K26 -> 7205854.404 | L54: =+K53*'Operating Expenses & Energy'!L26 -> 7101455.307 | M54: =+L53*'Operating Expenses & Energy'!M26 -> 6978540.126 | N54: =+M53*'Operating Expenses & Energy'!N26 -> 6844903.735 | O54: =+N53*'Operating Expenses & Energy'!O26 -> 6731038.142 | P54: =+O53*'Operating Expenses & Energy'!P26 -> 6604082.493 | Q54: =+P53*'Operating Expenses & Energy'!Q26 -> 6470954.132 | R54: =+Q53*'Operating Expenses & Energy'!R26 -> 6337647.268 | S54: =+R53*'Operating Expenses & Energy'!S26 -> 6237673.758 | T54: =+S53*'Operating Expenses & Energy'!T26 -> 6145063.384 | U54: =+T53*'Operating Expenses & Energy'!U26 -> 6021059.486 | V54: =+U53*'Operating Expenses & Energy'!V26 -> 5885805.946 | W54: =+V53*'Operating Expenses & Energy'!W26 -> 5751669.066 | X54: =+W53*'Operating Expenses & Energy'!X26 -> 5617356.64 | Y54: =+X53*'Operating Expenses & Energy'!Y26 -> 5483161.115 | Z54: =+Y53*'Operating Expenses & Energy'!Z26 -> 5462306.152 | AA54: =+Z53*'Operating Expenses & Energy'!AA26 -> 5338890.386 | AB54: =+AA53*'Operating Expenses & Energy'!AB26 -> 5204412.977 | AC54: =+AB53*'Operating Expenses & Energy'!AC26 -> 5070965.207 | AD54: =+AC53*'Operating Expenses & Energy'!AD26 -> 4938251.51 | AE54: =+AD53*'Operating Expenses & Energy'!AE26 -> 4806454.227
A56: Revenue Requirement | B56: =IF(Lag_Years=0,B52,IF(Lag_Years=1,B53,B54)) -> 0 | C56: 0 | D56: 238959.5385 | E56: =IF(Lag_Years=0,E52,IF(Lag_Years=1,E53,E54)) -> 4636856.812 | F56: 7422704.611 | G56: 7723208.671 | H56: 7590345.863 | I56: 7458088.544 | J56: 7334786.702 | K56: 7205854.404 | L56: 7101455.307 | M56: 6978540.126 | N56: 6844903.735 | O56: 6731038.142 | P56: 6604082.493 | Q56: 6470954.132 | R56: 6337647.268 | S56: 6237673.758 | T56: 6145063.384 | U56: 6021059.486 | V56: 5885805.946 | W56: 5751669.066 | X56: 5617356.64 | Y56: 5483161.115 | Z56: 5462306.152 | AA56: 5338890.386 | AB56: 5204412.977 | AC56: 5070965.207 | AD56: 4938251.51 | AE56: 4806454.227

Sheet Cash Flow Statement (Results)
B8: =Start_Year -> 2020 | C8: =B8+1 -> 2021 | D8: 2022 | E8: 2023 | F8: 2024 | G8: 2025 | H8: 2026 | I8: 2027 | J8: 2028 | K8: 2029 | L8: 2030 | M8: 2031 | N8: 2032 | O8: 2033 | P8: 2034 | Q8: 2035 | R8: 2036 | S8: 2037 | T8: 2038 | U8: 2039 | V8: 2040 | W8: 2041 | X8: 2042 | Y8: 2043 | Z8: 2044 | AA8: 2045 | AB8: 2046 | AC8: 2047 | AD8: 2048 | AE8: 2049
A9: Cash Flow from Operations
A10: Earnings Before Interest & Dividends | B10: ='Income Statement (Results)'!B26+'Income Statement (Results)'!B28 -> 186092.3749 | C10: ='Income Statement (Results)'!C26+'Income Statement (Results)'!C28 -> 3516451.75 | D10: ='Income Statement (Results)'!D26+'Income Statement (Results)'!D28 -> 4912177.214 | E10: ='Income Statement (Results)'!E26+'Income Statement (Results)'!E28 -> 4822159.601 | F10: ='Income Statement (Results)'!F26+'Income Statement (Results)'!F28 -> 4706439.883 | G10: ='Income Statement (Results)'!G26+'Income Statement (Results)'!G28 -> 4591217.898 | H10: ='Income Statement (Results)'!H26+'Income Statement (Results)'!H28 -> 4482779.578 | I10: ='Income Statement (Results)'!I26+'Income Statement (Results)'!I28 -> 4367421.326 | J10: ='Income Statement (Results)'!J26+'Income Statement (Results)'!J28 -> 4273642.795 | K10: ='Income Statement (Results)'!K26+'Income Statement (Results)'!K28 -> 4157624.034 | L10: ='Income Statement (Results)'!L26+'Income Statement (Results)'!L28 -> 4040245.241 | M10: ='Income Statement (Results)'!M26+'Income Statement (Results)'!M28 -> 3938579.012 | N10: ='Income Statement (Results)'!N26+'Income Statement (Results)'!N28 -> 3821063.33 | O10: ='Income Statement (Results)'!O26+'Income Statement (Results)'!O28 -> 3703709.558 | P10: ='Income Statement (Results)'!P26+'Income Statement (Results)'!P28 -> 3585805.19 | Q10: ='Income Statement (Results)'!Q26+'Income Statement (Results)'!Q28 -> 3494375.362 | R10: ='Income Statement (Results)'!R26+'Income Statement (Results)'!R28 -> 3399657.472 | S10: ='Income Statement (Results)'!S26+'Income Statement (Results)'!S28 -> 3280705.687 | T10: ='Income Statement (Results)'!T26+'Income Statement (Results)'!T28 -> 3160282.364 | U10: ='Income Statement (Results)'!U26+'Income Statement (Results)'!U28 -> 3040763.611 | V10: ='Income Statement (Results)'!V26+'Income Statement (Results)'!V28 -> 2920613.896 | W10: ='Income Statement (Results)'!W26+'Income Statement (Results)'!W28 -> 2800572.691 | X10: ='Income Statement (Results)'!X26+'Income Statement (Results)'!X28 -> 2754895.351 | Y10: ='Income Statement (Results)'!Y26+'Income Statement (Results)'!Y28 -> 2632920.952 | Z10: ='Income Statement (Results)'!Z26+'Income Statement (Results)'!Z28 -> 2509562.349 | AA10: ='Income Statement (Results)'!AA26+'Income Statement (Results)'!AA28 -> 2386686.407 | AB10: ='Income Statement (Results)'!AB26+'Income Statement (Results)'!AB28 -> 2264037.918 | AC10: ='Income Statement (Results)'!AC26+'Income Statement (Results)'!AC28 -> 2141756.146 | AD10: ='Income Statement (Results)'!AD26+'Income Statement (Results)'!AD28 -> 2019812.796 | AE10: ='Income Statement (Results)'!AE26+'Income Statement (Results)'!AE28 -> 1897959.326
A11: Plus: Book Depreciation | B11: ='Income Statement (Results)'!B18 -> 9259.259259 | C11: ='Income Statement (Results)'!C18 -> 188888.8889 | D11: ='Income Statement (Results)'!D18 -> 1079629.63 | E11: ='Income Statement (Results)'!E18 -> 1466684.722 | F11: ='Income Statement (Results)'!F18 -> 1466883.333 | G11: ='Income Statement (Results)'!G18 -> 1466902.444 | H11: ='Income Statement (Results)'!H18 -> 1467383.792 | I11: ='Income Statement (Results)'!I18 -> 1470386.392 | J11: ='Income Statement (Results)'!J18 -> 1471439.731 | K11: ='Income Statement (Results)'!K18 -> 1480600.642 | L11: ='Income Statement (Results)'!L18 -> 1480836.133 | M11: ='Income Statement (Results)'!M18 -> 1481416.294 | N11: ='Income Statement (Results)'!N18 -> 1487798.067 | O11: ='Income Statement (Results)'!O18 -> 1487822.05 | P11: ='Income Statement (Results)'!P18 -> 1488085.867 | Q11: ='Income Statement (Results)'!Q18 -> 1489066.339 | R11: ='Income Statement (Results)'!R18 -> 1500727.244 | S11: ='Income Statement (Results)'!S18 -> 1510386.939 | T11: ='Income Statement (Results)'!T18 -> 1510682.533 | U11: ='Income Statement (Results)'!U18 -> 1510710.978 | V11: ='Income Statement (Results)'!V18 -> 1511023.867 | W11: ='Income Statement (Results)'!W18 -> 1511023.867 | X11: ='Income Statement (Results)'!X18 -> 1529900.324 | Y11: ='Income Statement (Results)'!Y18 -> 1539338.552 | Z11: ='Income Statement (Results)'!Z18 -> 1539338.552 | AA11: ='Income Statement (Results)'!AA18 -> 1539338.552 | AB11: ='Income Statement (Results)'!AB18 -> 1539338.552 | AC11: ='Income Statement (Results)'!AC18 -> 1539338.552 | AD11: ='Income Statement (Results)'!AD18 -> 1539338.552 | AE11: ='Income Statement (Results)'!AE18 -> 1539338.552
A12: Plus: Deferred Taxes | B12: ='Income Statement (Results)'!B23 -> 19229.25926 | C12: ='Income Statement (Results)'!C23 -> 167506.8889 | D12: ='Income Statement (Results)'!D23 -> 129293.6296 | E12: ='Income Statement (Results)'!E23 -> 79058.09722 | F12: ='Income Statement (Results)'!F23 -> 79090.95833 | G12: ='Income Statement (Results)'!G23 -> 79183.05694 | H12: ='Income Statement (Results)'!H23 -> 80811.69542 | I12: ='Income Statement (Results)'!I23 -> 81384.86067 | J12: ='Income Statement (Results)'!J23 -> 86004.60818 | K12: ='Income Statement (Results)'!K23 -> 87303.51344 | L12: ='Income Statement (Results)'!L23 -> 86043.19471 | M12: ='Income Statement (Results)'!M23 -> 88316.37351 | N12: ='Income Statement (Results)'!N23 -> 88405.86417 | O12: ='Income Statement (Results)'!O23 -> 87102.56425 | P12: ='Income Statement (Results)'!P23 -> 86171.24465 | Q12: ='Income Statement (Results)'!Q23 -> 91397.53214 | R12: ='Income Statement (Results)'!R23 -> 97862.39447 | S12: ='Income Statement (Results)'!S23 -> 98184.96139 | T12: ='Income Statement (Results)'!T23 -> 96046.45577 | U12: ='Income Statement (Results)'!U23 -> 94206.16689 | V12: ='Income Statement (Results)'!V23 -> 92443.8442 | W12: ='Income Statement (Results)'!W23 -> 90131.79124 | X12: ='Income Statement (Results)'!X23 -> 99390.30538 | Y12: ='Income Statement (Results)'!Y23 -> 108441.7833 | Z12: ='Income Statement (Results)'!Z23 -> 101994.5631 | AA12: ='Income Statement (Results)'!AA23 -> 98956.33189 | AB12: ='Income Statement (Results)'!AB23 -> 94057.85467 | AC12: ='Income Statement (Results)'!AC23 -> 89537.33713 | AD12: ='Income Statement (Results)'!AD23 -> 88336.74445 | AE12: ='Income Statement (Results)'!AE23 -> 88248.80716
A13: Less: AFUDC | B13: ='Capital Projects (Nominal)'!H185 -> 0 | C13: ='Capital Projects (Nominal)'!I185 -> 0 | D13: ='Capital Projects (Nominal)'!J185 -> 0 | E13: ='Capital Projects (Nominal)'!K185 -> 0 | F13: ='Capital Projects (Nominal)'!L185 -> 0 | G13: ='Capital Projects (Nominal)'!M185 -> 0 | H13: ='Capital Projects (Nominal)'!N185 -> 0 | I13: ='Capital Projects (Nominal)'!O185 -> 0 | J13: ='Capital Projects (Nominal)'!P185 -> 0 | K13: ='Capital Projects (Nominal)'!Q185 -> 0 | L13: ='Capital Projects (Nominal)'!R185 -> 0 | M13: ='Capital Projects (Nominal)'!S185 -> 0 | N13: ='Capital Projects (Nominal)'!T185 -> 0 | O13: ='Capital Projects (Nominal)'!U185 -> 0 | P13: ='Capital Projects (Nominal)'!V185 -> 0 | Q13: ='Capital Projects (Nominal)'!W185 -> 0 | R13: ='Capital Projects (Nominal)'!X185 -> 0 | S13: ='Capital Projects (Nominal)'!Y185 -> 0 | T13: ='Capital Projects (Nominal)'!Z185 -> 0 | U13: ='Capital Projects (Nominal)'!AA185 -> 0 | V13: ='Capital Projects (Nominal)'!AB185 -> 0 | W13: ='Capital Projects (Nominal)'!AC185 -> 0 | X13: ='Capital Projects (Nominal)'!AD185 -> 0 | Y13: ='Capital Projects (Nominal)'!AE185 -> 0 | Z13: ='Capital Projects (Nominal)'!AF185 -> 0 | AA13: ='Capital Projects (Nominal)'!AG185 -> 0 | AB13: ='Capital Projects (Nominal)'!AH185 -> 0 | AC13: ='Capital Projects (Nominal)'!AI185 -> 0 | AD13: ='Capital Projects (Nominal)'!AJ185 -> 0 | AE13: ='Capital Projects (Nominal)'!AK185 -> 0
A14: Less: Tax Benefit of Interest | B14: ='Income Statement (Results)'!B30*(1-FIT_Tax_Rate) -> 56533.33152 | C14: ='Income Statement (Results)'!C30*(1-FIT_Tax_Rate) -> 1068269.093 | D14: ='Income Statement (Results)'!D30*(1-FIT_Tax_Rate) -> 1492278.999 | E14: ='Income Statement (Results)'!E30*(1-FIT_Tax_Rate) -> 1464932.389 | F14: ='Income Statement (Results)'!F30*(1-FIT_Tax_Rate) -> 1429777.692 | G14: ='Income Statement (Results)'!G30*(1-FIT_Tax_Rate) -> 1394774.201 | H14: ='Income Statement (Results)'!H30*(1-FIT_Tax_Rate) -> 1361831.532 | I14: ='Income Statement (Results)'!I30*(1-FIT_Tax_Rate) -> 1326786.645 | J14: ='Income Statement (Results)'!J30*(1-FIT_Tax_Rate) -> 1298297.499 | K14: ='Income Statement (Results)'!K30*(1-FIT_Tax_Rate) -> 1263051.955 | L14: ='Income Statement (Results)'!L30*(1-FIT_Tax_Rate) -> 1227393.244 | M14: ='Income Statement (Results)'!M30*(1-FIT_Tax_Rate) -> 1196507.88 | N14: ='Income Statement (Results)'!N30*(1-FIT_Tax_Rate) -> 1160807.583 | O14: ='Income Statement (Results)'!O30*(1-FIT_Tax_Rate) -> 1125156.474 | P14: ='Income Statement (Results)'!P30*(1-FIT_Tax_Rate) -> 1089338.097 | Q14: ='Income Statement (Results)'!Q30*(1-FIT_Tax_Rate) -> 1061562.468 | R14: ='Income Statement (Results)'!R30*(1-FIT_Tax_Rate) -> 1032787.953 | S14: ='Income Statement (Results)'!S30*(1-FIT_Tax_Rate) -> 996651.3798 | T14: ='Income Statement (Results)'!T30*(1-FIT_Tax_Rate) -> 960067.7658 | U14: ='Income Statement (Results)'!U30*(1-FIT_Tax_Rate) -> 923758.9524 | V14: ='Income Statement (Results)'!V30*(1-FIT_Tax_Rate) -> 887258.4582 | W14: ='Income Statement (Results)'!W30*(1-FIT_Tax_Rate) -> 850790.9283 | X14: ='Income Statement (Results)'!X30*(1-FIT_Tax_Rate) -> 836914.5285 | Y14: ='Income Statement (Results)'!Y30*(1-FIT_Tax_Rate) -> 799859.7102 | Z14: ='Income Statement (Results)'!Z30*(1-FIT_Tax_Rate) -> 762384.3821 | AA14: ='Income Statement (Results)'!AA30*(1-FIT_Tax_Rate) -> 725055.6825 | AB14: ='Income Statement (Results)'!AB30*(1-FIT_Tax_Rate) -> 687796.0812 | AC14: ='Income Statement (Results)'!AC30*(1-FIT_Tax_Rate) -> 650647.8856 | AD14: ='Income Statement (Results)'!AD30*(1-FIT_Tax_Rate) -> 613602.4997 | AE14: ='Income Statement (Results)'!AE30*(1-FIT_Tax_Rate) -> 576584.4188
A16: Cash Flow from Operations | B16: =B10+B11+B12-B13-B14 -> 158047.5619 | C16: 2804578.435 | D16: 4628821.475 | E16: =E10+E11+E12-E13-E14 -> 4902970.031 | F16: 4822636.483 | G16: 4742529.198 | H16: 4669143.533 | I16: 4592405.934 | J16: 4532789.635 | K16: 4462476.234 | L16: 4379731.326 | M16: 4311803.799 | N16: 4236459.677 | O16: 4153477.699 | P16: 4070724.204 | Q16: 4013276.765 | R16: 3965459.158 | S16: 3892626.207 | T16: 3806943.587 | U16: 3721921.803 | V16: 3636823.149 | W16: 3550937.421 | X16: 3547271.452 | Y16: 3480841.578 | Z16: 3388511.082 | AA16: 3299925.609 | AB16: 3209638.244 | AC16: 3119984.15 | AD16: 3033885.593 | AE16: 2948962.267
A18: Cash Flow from Investing
A19: Capital Expenditures | B19: ='Capital Projects (Nominal)'!H92 -> 5000000 | C19: ='Capital Projects (Nominal)'!I92 -> 42000000 | D19: ='Capital Projects (Nominal)'!J92 -> 19000000 | E19: ='Capital Projects (Nominal)'!K92 -> 6500 | F19: ='Capital Projects (Nominal)'!L92 -> 0 | G19: ='Capital Projects (Nominal)'!M92 -> 6880 | H19: ='Capital Projects (Nominal)'!N92 -> 97605 | I19: ='Capital Projects (Nominal)'!O92 -> 7281 | J19: ='Capital Projects (Nominal)'!P92 -> 299111 | K19: ='Capital Projects (Nominal)'!Q92 -> 7707 | L19: ='Capital Projects (Nominal)'!R92 -> 0 | M19: ='Capital Projects (Nominal)'!S92 -> 208858 | N19: ='Capital Projects (Nominal)'!T92 -> 0 | O19: ='Capital Projects (Nominal)'!U92 -> 8634 | P19: ='Capital Projects (Nominal)'!V92 -> 0 | Q19: ='Capital Projects (Nominal)'!W92 -> 352970 | R19: ='Capital Projects (Nominal)'!X92 -> 315256 | S19: ='Capital Projects (Nominal)'!Y92 -> 9674 | T19: ='Capital Projects (Nominal)'!Z92 -> 0 | U19: ='Capital Projects (Nominal)'!AA92 -> 10240 | V19: ='Capital Projects (Nominal)'!AB92 -> 0 | W19: ='Capital Projects (Nominal)'!AC92 -> 0 | X19: ='Capital Projects (Nominal)'!AD92 -> 991014 | Y19: ='Capital Projects (Nominal)'!AE92 -> 0 | Z19: ='Capital Projects (Nominal)'!AF92 -> 0 | AA19: ='Capital Projects (Nominal)'!AG92 -> 0 | AB19: ='Capital Projects (Nominal)'!AH92 -> 0 | AC19: ='Capital Projects (Nominal)'!AI92 -> 0 | AD19: ='Capital Projects (Nominal)'!AJ92 -> 0 | AE19: ='Capital Projects (Nominal)'!AK92 -> 0
A21: Cash Flow From Investments | B21: =B19 -> 5000000 | C21: 42000000 | D21: 19000000 | E21: 6500 | F21: 0 | G21: 6880 | H21: 97605 | I21: 7281 | J21: 299111 | K21: 7707 | L21: 0 | M21: 208858 | N21: 0 | O21: 8634 | P21: 0 | Q21: 352970 | R21: 315256 | S21: 9674 | T21: 0 | U21: 10240 | V21: 0 | W21: 0 | X21: 991014 | Y21: 0 | Z21: 0 | AA21: 0 | AB21: 0 | AC21: 0 | AD21: 0 | AE21: 0
A23: Miscellaneous Cash Adjustments | B23: ='Operating Expenses & Energy'!B18 -> 0 | C23: ='Operating Expenses & Energy'!C18 -> 0 | D23: ='Operating Expenses & Energy'!D18 -> 0 | E23: ='Operating Expenses & Energy'!E18 -> 0 | F23: ='Operating Expenses & Energy'!F18 -> 0 | G23: ='Operating Expenses & Energy'!G18 -> 0 | H23: ='Operating Expenses & Energy'!H18 -> 0 | I23: ='Operating Expenses & Energy'!I18 -> 0 | J23: ='Operating Expenses & Energy'!J18 -> 0 | K23: ='Operating Expenses & Energy'!K18 -> 0 | L23: ='Operating Expenses & Energy'!L18 -> 0 | M23: ='Operating Expenses & Energy'!M18 -> 0 | N23: ='Operating Expenses & Energy'!N18 -> 0 | O23: ='Operating Expenses & Energy'!O18 -> 0 | P23: ='Operating Expenses & Energy'!P18 -> 0 | Q23: ='Operating Expenses & Energy'!Q18 -> 0 | R23: ='Operating Expenses & Energy'!R18 -> 0 | S23: ='Operating Expenses & Energy'!S18 -> 0 | T23: ='Operating Expenses & Energy'!T18 -> 0 | U23: ='Operating Expenses & Energy'!U18 -> 0 | V23: ='Operating Expenses & Energy'!V18 -> 0 | W23: ='Operating Expenses & Energy'!W18 -> 0 | X23: ='Operating Expenses & Energy'!X18 -> 0 | Y23: ='Operating Expenses & Energy'!Y18 -> 0 | Z23: ='Operating Expenses & Energy'!Z18 -> 0 | AA23: ='Operating Expenses & Energy'!AA18 -> 0 | AB23: ='Operating Expenses & Energy'!AB18 -> 0 | AC23: ='Operating Expenses & Energy'!AC18 -> 0 | AD23: ='Operating Expenses & Energy'!AD18 -> 0 | AE23: ='Operating Expenses & Energy'!AE18 -> 0
A25: Net Cash Flow | B25: =B16-B21+B23 -> -4841952.438 | C25: -39195421.57 | D25: =D16-D21+D23 -> -14371178.53 | E25: 4896470.031 | F25: 4822636.483 | G25: 4735649.198 | H25: 4571538.533 | I25: 4585124.934 | J25: 4233678.635 | K25: 4454769.234 | L25: 4379731.326 | M25: 4102945.799 | N25: 4236459.677 | O25: 4144843.699 | P25: 4070724.204 | Q25: 3660306.765 | R25: 3650203.158 | S25: 3882952.207 | T25: 3806943.587 | U25: 3711681.803 | V25: 3636823.149 | W25: 3550937.421 | X25: 2556257.452 | Y25: 3480841.578 | Z25: 3388511.082 | AA25: 3299925.609 | AB25: 3209638.244 | AC25: 3119984.15 | AD25: 3033885.593 | AE25: 2948962.267
A26: After Tax Cost of Interest | B26: =-'Income Statement (Results)'!B30*(1-FIT_Tax_Rate) -> -56533.33152 | C26: =-'Income Statement (Results)'!C30*(1-FIT_Tax_Rate) -> -1068269.093 | D26: =-'Income Statement (Results)'!D30*(1-FIT_Tax_Rate) -> -1492278.999 | E26: =-'Income Statement (Results)'!E30*(1-FIT_Tax_Rate) -> -1464932.389 | F26: =-'Income Statement (Results)'!F30*(1-FIT_Tax_Rate) -> -1429777.692 | G26: =-'Income Statement (Results)'!G30*(1-FIT_Tax_Rate) -> -1394774.201 | H26: =-'Income Statement (Results)'!H30*(1-FIT_Tax_Rate) -> -1361831.532 | I26: =-'Income Statement (Results)'!I30*(1-FIT_Tax_Rate) -> -1326786.645 | J26: =-'Income Statement (Results)'!J30*(1-FIT_Tax_Rate) -> -1298297.499 | K26: =-'Income Statement (Results)'!K30*(1-FIT_Tax_Rate) -> -1263051.955 | L26: =-'Income Statement (Results)'!L30*(1-FIT_Tax_Rate) -> -1227393.244 | M26: =-'Income Statement (Results)'!M30*(1-FIT_Tax_Rate) -> -1196507.88 | N26: =-'Income Statement (Results)'!N30*(1-FIT_Tax_Rate) -> -1160807.583 | O26: =-'Income Statement (Results)'!O30*(1-FIT_Tax_Rate) -> -1125156.474 | P26: =-'Income Statement (Results)'!P30*(1-FIT_Tax_Rate) -> -1089338.097 | Q26: =-'Income Statement (Results)'!Q30*(1-FIT_Tax_Rate) -> -1061562.468 | R26: =-'Income Statement (Results)'!R30*(1-FIT_Tax_Rate) -> -1032787.953 | S26: =-'Income Statement (Results)'!S30*(1-FIT_Tax_Rate) -> -996651.3798 | T26: =-'Income Statement (Results)'!T30*(1-FIT_Tax_Rate) -> -960067.7658 | U26: =-'Income Statement (Results)'!U30*(1-FIT_Tax_Rate) -> -923758.9524 | V26: =-'Income Statement (Results)'!V30*(1-FIT_Tax_Rate) -> -887258.4582 | W26: =-'Income Statement (Results)'!W30*(1-FIT_Tax_Rate) -> -850790.9283 | X26: =-'Income Statement (Results)'!X30*(1-FIT_Tax_Rate) -> -836914.5285 | Y26: =-'Income Statement (Results)'!Y30*(1-FIT_Tax_Rate) -> -799859.7102 | Z26: =-'Income Statement (Results)'!Z30*(1-FIT_Tax_Rate) -> -762384.3821 | AA26: =-'Income Statement (Results)'!AA30*(1-FIT_Tax_Rate) -> -725055.6825 | AB26: =-'Income Statement (Results)'!AB30*(1-FIT_Tax_Rate) -> -687796.0812 | AC26: =-'Income Statement (Results)'!AC30*(1-FIT_Tax_Rate) -> -650647.8856 | AD26: =-'Income Statement (Results)'!AD30*(1-FIT_Tax_Rate) -> -613602.4997 | AE26: =-'Income Statement (Results)'!AE30*(1-FIT_Tax_Rate) -> -576584.4188
A27: Cash Flow to investors | B27: =SUM(B25:B26) -> -4898485.77 | C27: =SUM(C25:C26) -> -40263690.66 | D27: =SUM(D25:D26) -> -15863457.52 | E27: 3431537.642 | F27: 3392858.792 | G27: 3340874.997 | H27: 3209707.001 | I27: 3258338.289 | J27: 2935381.136 | K27: 3191717.28 | L27: 3152338.082 | M27: 2906437.919 | N27: 3075652.094 | O27: 3019687.225 | P27: 2981386.107 | Q27: 2598744.297 | R27: 2617415.205 | S27: 2886300.827 | T27: 2846875.822 | U27: 2787922.851 | V27: 2749564.69 | W27: 2700146.492 | X27: 1719342.923 | Y27: 2680981.867 | Z27: 2626126.7 | AA27: 2574869.926 | AB27: 2521842.163 | AC27: 2469336.264 | AD27: 2420283.093 | AE27: 2372377.848
A29: PV Discount Factor | B29: =(After_Tax_Cash_Discount+1)^(B$8-$B$8) -> 1 | C29: =(After_Tax_Cash_Discount+1)^(C8-$B$8) -> 1.068817915 | D29: 1.142371735 | E29: 1.220987376 | F29: 1.305013182 | G29: 1.394821468 | H29: 1.490810173 | I29: 1.593404621 | J29: 1.703059405 | K29: 1.820260402 | L29: 1.945526928 | M29: 2.079414035 | N29: 2.222514973 | O29: 2.375463819 | P29: 2.538938287 | Q29: 2.713662726 | R29: 2.900411337 | S29: 3.100011598 | T29: 3.313347932 | U29: 3.541365629 | V29: 3.785075027 | W29: 4.045555999 | X29: 4.323962728 | Y29: 4.621528827 | Z29: 4.939572805 | AA29: 5.279503907 | AB29: 5.642828358 | AC29: 6.03115604 | AD29: 6.446207624 | AE29: 6.889822192
A31: PV | B31: =B25/B29 -> -4841952.438 | C31: -36671748.31 | D31: =D25/D29 -> -12580124.38 | E31: 4010254.427 | F31: 3695469.556 | G31: 3395165.121 | H31: 3066479.297 | I31: 2877564.727 | J31: 2485925.401 | K31: 2447325.245 | L31: 2251180.008 | M31: =M25/M29 -> 1973125.953 | N31: 1906155.742 | O31: 1744856.59 | P31: 1603317.507 | Q31: 1348843.661 | R31: 1258512.237 | S31: 1252560.542 | T31: 1148971.875 | U31: 1048093.361 | V31: 960832.5125 | W31: 877737.7996 | X31: 591183.9701 | Y31: 753179.6745 | Z31: 685992.7398 | AA31: 625044.6381 | AB31: 568799.5524 | AC31: 517311.1306 | AD31: 470646.5833 | AE31: 428017.1803
A33: Cumulative PV | C33: =SUM($B31:C31) -> -41513700.75 | D33: =SUM($B31:D31) -> -54093825.13 | E33: =SUM($B31:E31) -> -50083570.7 | F33: =SUM($B31:F31) -> -46388101.15 | G33: =SUM($B31:G31) -> -42992936.03 | H33: =SUM($B31:H31) -> -39926456.73 | I33: =SUM($B31:I31) -> -37048892 | J33: =SUM($B31:J31) -> -34562966.6 | K33: =SUM($B31:K31) -> -32115641.36 | L33: =SUM($B31:L31) -> -29864461.35 | M33: =SUM($B31:M31) -> -27891335.4 | N33: =SUM($B31:N31) -> -25985179.65 | O33: =SUM($B31:O31) -> -24240323.06 | P33: =SUM($B31:P31) -> -22637005.56 | Q33: =SUM($B31:Q31) -> -21288161.9 | R33: =SUM($B31:R31) -> -20029649.66 | S33: =SUM($B31:S31) -> -18777089.12 | T33: =SUM($B31:T31) -> -17628117.24 | U33: =SUM($B31:U31) -> -16580023.88 | V33: =SUM($B31:V31) -> -15619191.37 | W33: =SUM($B31:W31) -> -14741453.57 | X33: =SUM($B31:X31) -> -14150269.6 | Y33: =SUM($B31:Y31) -> -13397089.93 | Z33: =SUM($B31:Z31) -> -12711097.19 | AA33: =SUM($B31:AA31) -> -12086052.55 | AB33: =SUM($B31:AB31) -> -11517253 | AC33: =SUM($B31:AC31) -> -10999941.86 | AD33: =SUM($B31:AD31) -> -10529295.28 | AE33: =SUM($B31:AE31) -> -10101278.1

Sheet Tax Statement (Results)
B8: =Start_Year -> 2020 | C8: =B8+1 -> 2021 | D8: 2022 | E8: 2023 | F8: 2024 | G8: 2025 | H8: 2026 | I8: 2027 | J8: 2028 | K8: 2029 | L8: 2030 | M8: 2031 | N8: 2032 | O8: 2033 | P8: 2034 | Q8: 2035 | R8: 2036 | S8: 2037 | T8: 2038 | U8: 2039 | V8: 2040 | W8: 2041 | X8: 2042 | Y8: 2043 | Z8: 2044 | AA8: 2045 | AB8: 2046 | AC8: 2047 | AD8: 2048 | AE8: 2049
A10: Regulated Revenues | B10: ='Income Statement (Results)'!B10 -> 249088.1535 | C10: ='Income Statement (Results)'!C10 -> 4725087.605 | D10: ='Income Statement (Results)'!D10 -> 7490807.36 | E10: ='Income Statement (Results)'!E10 -> 7764850.891 | F10: ='Income Statement (Results)'!F10 -> 7632005.391 | G10: ='Income Statement (Results)'!G10 -> 7499796.584 | H10: ='Income Statement (Results)'!H10 -> 7377352.593 | I10: ='Income Statement (Results)'!I10 -> 7248722.198 | J10: ='Income Statement (Results)'!J10 -> 7146756.458 | K10: ='Income Statement (Results)'!K10 -> 7024525.448 | L10: ='Income Statement (Results)'!L10 -> 6890225.21 | M10: ='Income Statement (Results)'!M10 -> 6777556.968 | N10: ='Income Statement (Results)'!N10 -> 6650648.455 | O10: ='Income Statement (Results)'!O10 -> 6516833.609 | P10: ='Income Statement (Results)'!P10 -> 6383036.191 | Q10: ='Income Statement (Results)'!Q10 -> 6285815.52 | R10: ='Income Statement (Results)'!R10 -> 6196610.379 | S10: ='Income Statement (Results)'!S10 -> 6072776.386 | T10: ='Income Statement (Results)'!T10 -> 5936396.433 | U10: ='Income Statement (Results)'!U10 -> 5801290.218 | V10: ='Income Statement (Results)'!V10 -> 5666049.525 | W10: ='Income Statement (Results)'!W10 -> 5530636.174 | X10: ='Income Statement (Results)'!X10 -> 5514657.942 | Y10: ='Income Statement (Results)'!Y10 -> 5396009.855 | Z10: ='Income Statement (Results)'!Z10 -> 5258136.506 | AA10: ='Income Statement (Results)'!AA10 -> 5123088.41 | AB10: ='Income Statement (Results)'!AB10 -> 4987794.542 | AC10: ='Income Statement (Results)'!AC10 -> 4853616.169 | AD10: ='Income Statement (Results)'!AD10 -> 4722082.837 | AE10: ='Income Statement (Results)'!AE10 -> 4591745.655
A11: Unregulated Revnues | B11: ='Income Statement (Results)'!B11 -> 0 | C11: ='Income Statement (Results)'!C11 -> 0 | D11: ='Income Statement (Results)'!D11 -> 0 | E11: ='Income Statement (Results)'!E11 -> 0 | F11: ='Income Statement (Results)'!F11 -> 0 | G11: ='Income Statement (Results)'!G11 -> 0 | H11: ='Income Statement (Results)'!H11 -> 0 | I11: ='Income Statement (Results)'!I11 -> 0 | J11: ='Income Statement (Results)'!J11 -> 0 | K11: ='Income Statement (Results)'!K11 -> 0 | L11: ='Income Statement (Results)'!L11 -> 0 | M11: ='Income Statement (Results)'!M11 -> 0 | N11: ='Income Statement (Results)'!N11 -> 0 | O11: ='Income Statement (Results)'!O11 -> 0 | P11: ='Income Statement (Results)'!P11 -> 0 | Q11: ='Income Statement (Results)'!Q11 -> 0 | R11: ='Income Statement (Results)'!R11 -> 0 | S11: ='Income Statement (Results)'!S11 -> 0 | T11: ='Income Statement (Results)'!T11 -> 0 | U11: ='Income Statement (Results)'!U11 -> 0 | V11: ='Income Statement (Results)'!V11 -> 0 | W11: ='Income Statement (Results)'!W11 -> 0 | X11: ='Income Statement (Results)'!X11 -> 0 | Y11: ='Income Statement (Results)'!Y11 -> 0 | Z11: ='Income Statement (Results)'!Z11 -> 0 | AA11: ='Income Statement (Results)'!AA11 -> 0 | AB11: ='Income Statement (Results)'!AB11 -> 0 | AC11: ='Income Statement (Results)'!AC11 -> 0 | AD11: ='Income Statement (Results)'!AD11 -> 0 | AE11: ='Income Statement (Results)'!AE11 -> 0
A12: Total Revenues | B12: =SUM(B10:B11) -> 249088.1535 | C12: 4725087.605 | D12: 7490807.36 | E12: 7764850.891 | F12: 7632005.391 | G12: 7499796.584 | H12: 7377352.593 | I12: 7248722.198 | J12: 7146756.458 | K12: 7024525.448 | L12: 6890225.21 | M12: 6777556.968 | N12: 6650648.455 | O12: 6516833.609 | P12: 6383036.191 | Q12: 6285815.52 | R12: 6196610.379 | S12: 6072776.386 | T12: 5936396.433 | U12: 5801290.218 | V12: 5666049.525 | W12: 5530636.174 | X12: 5514657.942 | Y12: 5396009.855 | Z12: 5258136.506 | AA12: 5123088.41 | AB12: 4987794.542 | AC12: 4853616.169 | AD12: 4722082.837 | AE12: 4591745.655
A14: Operating Expenses:
A15: Insurance | B15: ='Plant(Input)'!C46*Insurance_Rate -> 3500 | C15: ='Plant(Input)'!D46*Insurance_Rate -> 32900 | D15: ='Plant(Input)'!E46*Insurance_Rate -> 46200 | E15: ='Plant(Input)'!F46*Insurance_Rate -> 46204.55 | F15: ='Plant(Input)'!G46*Insurance_Rate -> 46204.55 | G15: ='Plant(Input)'!H46*Insurance_Rate -> 46209.366 | H15: ='Plant(Input)'!I46*Insurance_Rate -> 46277.6895 | I15: ='Plant(Input)'!J46*Insurance_Rate -> 46282.7862 | J15: ='Plant(Input)'!K46*Insurance_Rate -> 46492.1639 | K15: ='Plant(Input)'!L46*Insurance_Rate -> 46497.5588 | L15: ='Plant(Input)'!M46*Insurance_Rate -> 46497.5588 | M15: ='Plant(Input)'!N46*Insurance_Rate -> 46643.7594 | N15: ='Plant(Input)'!O46*Insurance_Rate -> 46643.7594 | O15: ='Plant(Input)'!P46*Insurance_Rate -> 46649.8032 | P15: ='Plant(Input)'!Q46*Insurance_Rate -> 46649.8032 | Q15: ='Plant(Input)'!R46*Insurance_Rate -> 46896.8822 | R15: ='Plant(Input)'!S46*Insurance_Rate -> 47117.5614 | S15: ='Plant(Input)'!T46*Insurance_Rate -> 47124.3332 | T15: ='Plant(Input)'!U46*Insurance_Rate -> 47124.3332 | U15: ='Plant(Input)'!V46*Insurance_Rate -> 47131.5012 | V15: ='Plant(Input)'!W46*Insurance_Rate -> 47131.5012 | W15: ='Plant(Input)'!X46*Insurance_Rate -> 47131.5012 | X15: ='Plant(Input)'!Y46*Insurance_Rate -> 47825.211 | Y15: ='Plant(Input)'!Z46*Insurance_Rate -> 47825.211 | Z15: ='Plant(Input)'!AA46*Insurance_Rate -> 47825.211 | AA15: ='Plant(Input)'!AB46*Insurance_Rate -> 47825.211 | AB15: ='Plant(Input)'!AC46*Insurance_Rate -> 47825.211 | AC15: ='Plant(Input)'!AD46*Insurance_Rate -> 47825.211 | AD15: ='Plant(Input)'!AE46*Insurance_Rate -> 47825.211 | AE15: ='Plant(Input)'!AF46*Insurance_Rate -> 47825.211
A16: O&M | B16: ='Operating Expenses & Energy'!B14*(1+'Assumptions (Input)'!$B$11)^('Income Statement (Results)'!B8-'Income Statement (Results)'!$B$8) -> 0 | C16: ='Operating Expenses & Energy'!C14*(1+'Assumptions (Input)'!$B$11)^('Income Statement (Results)'!C8-'Income Statement (Results)'!$B$8) -> 139898.5437 | D16: ='Operating Expenses & Energy'!D14*(1+'Assumptions (Input)'!$B$11)^('Income Statement (Results)'!D8-'Income Statement (Results)'!$B$8) -> 288191 | E16: ='Operating Expenses & Energy'!E14*(1+'Assumptions (Input)'!$B$11)^('Income Statement (Results)'!E8-'Income Statement (Results)'!$B$8) -> 294741 | F16: ='Operating Expenses & Energy'!F14*(1+'Assumptions (Input)'!$B$11)^('Income Statement (Results)'!F8-'Income Statement (Results)'!$B$8) -> 301477 | G16: ='Operating Expenses & Energy'!G14*(1+'Assumptions (Input)'!$B$11)^('Income Statement (Results)'!G8-'Income Statement (Results)'!$B$8) -> 308390 | H16: ='Operating Expenses & Energy'!H14*(1+'Assumptions (Input)'!$B$11)^('Income Statement (Results)'!H8-'Income Statement (Results)'!$B$8) -> 315485 | I16: ='Operating Expenses & Energy'!I14*(1+'Assumptions (Input)'!$B$11)^('Income Statement (Results)'!I8-'Income Statement (Results)'!$B$8) -> 322769 | J16: ='Operating Expenses & Energy'!J14*(1+'Assumptions (Input)'!$B$11)^('Income Statement (Results)'!J8-'Income Statement (Results)'!$B$8) -> 330247 | K16: ='Operating Expenses & Energy'!K14*(1+'Assumptions (Input)'!$B$11)^('Income Statement (Results)'!K8-'Income Statement (Results)'!$B$8) -> 337925 | L16: ='Operating Expenses & Energy'!L14*(1+'Assumptions (Input)'!$B$11)^('Income Statement (Results)'!L8-'Income Statement (Results)'!$B$8) -> 345811 | M16: ='Operating Expenses & Energy'!M14*(1+'Assumptions (Input)'!$B$11)^('Income Statement (Results)'!M8-'Income Statement (Results)'!$B$8) -> 353911 | N16: ='Operating Expenses & Energy'!N14*(1+'Assumptions (Input)'!$B$11)^('Income Statement (Results)'!N8-'Income Statement (Results)'!$B$8) -> 362232 | O16: ='Operating Expenses & Energy'!O14*(1+'Assumptions (Input)'!$B$11)^('Income Statement (Results)'!O8-'Income Statement (Results)'!$B$8) -> 370782 | P16: ='Operating Expenses & Energy'!P14*(1+'Assumptions (Input)'!$B$11)^('Income Statement (Results)'!P8-'Income Statement (Results)'!$B$8) -> 379568 | Q16: ='Operating Expenses & Energy'!Q14*(1+'Assumptions (Input)'!$B$11)^('Income Statement (Results)'!Q8-'Income Statement (Results)'!$B$8) -> 388598 | R16: ='Operating Expenses & Energy'!R14*(1+'Assumptions (Input)'!$B$11)^('Income Statement (Results)'!R8-'Income Statement (Results)'!$B$8) -> 397881 | S16: ='Operating Expenses & Energy'!S14*(1+'Assumptions (Input)'!$B$11)^('Income Statement (Results)'!S8-'Income Statement (Results)'!$B$8) -> 407425 | T16: ='Operating Expenses & Energy'!T14*(1+'Assumptions (Input)'!$B$11)^('Income Statement (Results)'!T8-'Income Statement (Results)'!$B$8) -> 417239 | U16: ='Operating Expenses & Energy'!U14*(1+'Assumptions (Input)'!$B$11)^('Income Statement (Results)'!U8-'Income Statement (Results)'!$B$8) -> 427333 | V16: ='Operating Expenses & Energy'!V14*(1+'Assumptions (Input)'!$B$11)^('Income Statement (Results)'!V8-'Income Statement (Results)'!$B$8) -> 437716 | W16: ='Operating Expenses & Energy'!W14*(1+'Assumptions (Input)'!$B$11)^('Income Statement (Results)'!W8-'Income Statement (Results)'!$B$8) -> 448398 | X16: ='Operating Expenses & Energy'!X14*(1+'Assumptions (Input)'!$B$11)^('Income Statement (Results)'!X8-'Income Statement (Results)'!$B$8) -> 461849.94 | Y16: ='Operating Expenses & Energy'!Y14*(1+'Assumptions (Input)'!$B$11)^('Income Statement (Results)'!Y8-'Income Statement (Results)'!$B$8) -> 475705.4382 | Z16: ='Operating Expenses & Energy'!Z14*(1+'Assumptions (Input)'!$B$11)^('Income Statement (Results)'!Z8-'Income Statement (Results)'!$B$8) -> 489976.6013 | AA16: ='Operating Expenses & Energy'!AA14*(1+'Assumptions (Input)'!$B$11)^('Income Statement (Results)'!AA8-'Income Statement (Results)'!$B$8) -> 504675.8994 | AB16: ='Operating Expenses & Energy'!AB14*(1+'Assumptions (Input)'!$B$11)^('Income Statement (Results)'!AB8-'Income Statement (Results)'!$B$8) -> 519816.1764 | AC16: ='Operating Expenses & Energy'!AC14*(1+'Assumptions (Input)'!$B$11)^('Income Statement (Results)'!AC8-'Income Statement (Results)'!$B$8) -> 535410.6617 | AD16: ='Operating Expenses & Energy'!AD14*(1+'Assumptions (Input)'!$B$11)^('Income Statement (Results)'!AD8-'Income Statement (Results)'!$B$8) -> 551472.9815 | AE16: ='Operating Expenses & Energy'!AE14*(1+'Assumptions (Input)'!$B$11)^('Income Statement (Results)'!AE8-'Income Statement (Results)'!$B$8) -> 568017.171
A17: Power Costs | B17: ='Income Statement (Results)'!B17 -> 0 | C17: ='Income Statement (Results)'!C17 -> 0 | D17: ='Income Statement (Results)'!D17 -> 0 | E17: ='Income Statement (Results)'!E17 -> 0 | F17: ='Income Statement (Results)'!F17 -> 0 | G17: ='Income Statement (Results)'!G17 -> 0 | H17: ='Income Statement (Results)'!H17 -> 0 | I17: ='Income Statement (Results)'!I17 -> 0 | J17: ='Income Statement (Results)'!J17 -> 0 | K17: ='Income Statement (Results)'!K17 -> 0 | L17: ='Income Statement (Results)'!L17 -> 0 | M17: ='Income Statement (Results)'!M17 -> 0 | N17: ='Income Statement (Results)'!N17 -> 0 | O17: ='Income Statement (Results)'!O17 -> 0 | P17: ='Income Statement (Results)'!P17 -> 0 | Q17: ='Income Statement (Results)'!Q17 -> 0 | R17: ='Income Statement (Results)'!R17 -> 0 | S17: ='Income Statement (Results)'!S17 -> 0 | T17: ='Income Statement (Results)'!T17 -> 0 | U17: ='Income Statement (Results)'!U17 -> 0 | V17: ='Income Statement (Results)'!V17 -> 0 | W17: ='Income Statement (Results)'!W17 -> 0 | X17: ='Income Statement (Results)'!X17 -> 0 | Y17: ='Income Statement (Results)'!Y17 -> 0 | Z17: ='Income Statement (Results)'!Z17 -> 0 | AA17: ='Income Statement (Results)'!AA17 -> 0 | AB17: ='Income Statement (Results)'!AB17 -> 0 | AC17: ='Income Statement (Results)'!AC17 -> 0 | AD17: ='Income Statement (Results)'!AD17 -> 0 | AE17: ='Income Statement (Results)'!AE17 -> 0
A18: Tax Depreciation | B18: ='Plant(Input)'!C44 -> 64200 | C18: ='Plant(Input)'!D44 -> 667480 | D18: ='Plant(Input)'!E44 -> 1449040 | E18: ='Plant(Input)'!F44 -> 1692565 | F18: ='Plant(Input)'!G44 -> 1692857.5 | G18: ='Plant(Input)'!H44 -> 1693139.75 | H18: ='Plant(Input)'!I44 -> 1698274.35 | I18: ='Plant(Input)'!J44 -> 1702914.565 | J18: ='Plant(Input)'!K44 -> 1717167.183 | K18: ='Plant(Input)'!L44 -> 1730039.251 | L18: ='Plant(Input)'!M44 -> 1726673.833 | M18: ='Plant(Input)'!N44 -> 1733748.79 | N18: ='Plant(Input)'!O44 -> 1740386.25 | O18: ='Plant(Input)'!P44 -> 1736686.519 | P18: ='Plant(Input)'!Q44 -> 1734289.423 | Q18: ='Plant(Input)'!R44 -> 1750202.145 | R18: ='Plant(Input)'!S44 -> 1780334.086 | S18: ='Plant(Input)'!T44 -> 1790915.4 | T18: ='Plant(Input)'!U44 -> 1785100.978 | U18: ='Plant(Input)'!V44 -> 1779871.455 | V18: ='Plant(Input)'!W44 -> 1775149.136 | W18: ='Plant(Input)'!X44 -> 1768543.27 | X18: ='Plant(Input)'!Y44 -> 1813872.625 | Y18: ='Plant(Input)'!Z44 -> 1849172.219 | Z18: ='Plant(Input)'!AA44 -> 1830751.59 | AA18: ='Plant(Input)'!AB44 -> 1822070.929 | AB18: ='Plant(Input)'!AC44 -> 1808075.28 | AC18: ='Plant(Input)'!AD44 -> 1795159.516 | AD18: ='Plant(Input)'!AE44 -> 1791729.251 | AE18: ='Plant(Input)'!AF44 -> 1791478.001
A19: Revenue Taxes | B19: ='Income Statement (Results)'!B19 -> 9647.184187 | C19: ='Income Statement (Results)'!C19 -> 183002.6429 | D19: ='Income Statement (Results)'!D19 -> 290118.969 | E19: ='Income Statement (Results)'!E19 -> 300732.675 | F19: ='Income Statement (Results)'!F19 -> 295587.5688 | G19: ='Income Statement (Results)'!G19 -> 290467.1217 | H19: ='Income Statement (Results)'!H19 -> 285724.8659 | I19: ='Income Statement (Results)'!I19 -> 280743.0107 | J19: ='Income Statement (Results)'!J19 -> 276793.8776 | K19: ='Income Statement (Results)'!K19 -> 272059.8706 | L19: ='Income Statement (Results)'!L19 -> 266858.4224 | M19: ='Income Statement (Results)'!M19 -> 262494.7814 | N19: ='Income Statement (Results)'!N19 -> 257579.6147 | O19: ='Income Statement (Results)'!O19 -> 252396.9657 | P19: ='Income Statement (Results)'!P19 -> 247214.9917 | Q19: ='Income Statement (Results)'!Q19 -> 243449.6351 | R19: ='Income Statement (Results)'!R19 -> 239994.72 | S19: ='Income Statement (Results)'!S19 -> 235198.6294 | T19: ='Income Statement (Results)'!T19 -> 229916.6338 | U19: ='Income Statement (Results)'!U19 -> 224683.9701 | V19: ='Income Statement (Results)'!V19 -> 219446.0981 | W19: ='Income Statement (Results)'!W19 -> 214201.539 | X19: ='Income Statement (Results)'!X19 -> 213582.7021 | Y19: ='Income Statement (Results)'!Y19 -> 208987.4617 | Z19: ='Income Statement (Results)'!Z19 -> 203647.6269 | AA19: ='Income Statement (Results)'!AA19 -> 198417.2141 | AB19: ='Income Statement (Results)'!AB19 -> 193177.2826 | AC19: ='Income Statement (Results)'!AC19 -> 187980.5542 | AD19: ='Income Statement (Results)'!AD19 -> 182886.2683 | AE19: ='Income Statement (Results)'!AE19 -> 177838.3092
A20: Property Taxes | B20: ='Plant(Input)'!C46*Levy_Rate*Assessment_Rate -> 408 | C20: ='Plant(Input)'!D46*Levy_Rate*Assessment_Rate -> 3835.2 | D20: ='Plant(Input)'!E46*Levy_Rate*Assessment_Rate -> 5385.6 | E20: ='Plant(Input)'!F46*Levy_Rate*Assessment_Rate -> 5386.1304 | F20: ='Plant(Input)'!G46*Levy_Rate*Assessment_Rate -> 5386.1304 | G20: ='Plant(Input)'!H46*Levy_Rate*Assessment_Rate -> 5386.691808 | H20: ='Plant(Input)'!I46*Levy_Rate*Assessment_Rate -> 5394.656376 | I20: ='Plant(Input)'!J46*Levy_Rate*Assessment_Rate -> 5395.250506 | J20: ='Plant(Input)'!K46*Levy_Rate*Assessment_Rate -> 5419.657963 | K20: ='Plant(Input)'!L46*Levy_Rate*Assessment_Rate -> 5420.286854 | L20: ='Plant(Input)'!M46*Levy_Rate*Assessment_Rate -> 5420.286854 | M20: ='Plant(Input)'!N46*Levy_Rate*Assessment_Rate -> 5437.329667 | N20: ='Plant(Input)'!O46*Levy_Rate*Assessment_Rate -> 5437.329667 | O20: ='Plant(Input)'!P46*Levy_Rate*Assessment_Rate -> 5438.034202 | P20: ='Plant(Input)'!Q46*Levy_Rate*Assessment_Rate -> 5438.034202 | Q20: ='Plant(Input)'!R46*Levy_Rate*Assessment_Rate -> 5466.836554 | R20: ='Plant(Input)'!S46*Levy_Rate*Assessment_Rate -> 5492.561443 | S20: ='Plant(Input)'!T46*Levy_Rate*Assessment_Rate -> 5493.350842 | T20: ='Plant(Input)'!U46*Levy_Rate*Assessment_Rate -> 5493.350842 | U20: ='Plant(Input)'!V46*Levy_Rate*Assessment_Rate -> 5494.186426 | V20: ='Plant(Input)'!W46*Levy_Rate*Assessment_Rate -> 5494.186426 | W20: ='Plant(Input)'!X46*Levy_Rate*Assessment_Rate -> 5494.186426 | X20: ='Plant(Input)'!Y46*Levy_Rate*Assessment_Rate -> 5575.053168 | Y20: ='Plant(Input)'!Z46*Levy_Rate*Assessment_Rate -> 5575.053168 | Z20: ='Plant(Input)'!AA46*Levy_Rate*Assessment_Rate -> 5575.053168 | AA20: ='Plant(Input)'!AB46*Levy_Rate*Assessment_Rate -> 5575.053168 | AB20: ='Plant(Input)'!AC46*Levy_Rate*Assessment_Rate -> 5575.053168 | AC20: ='Plant(Input)'!AD46*Levy_Rate*Assessment_Rate -> 5575.053168 | AD20: ='Plant(Input)'!AE46*Levy_Rate*Assessment_Rate -> 5575.053168 | AE20: ='Plant(Input)'!AF46*Levy_Rate*Assessment_Rate -> 5575.053168
A21: Interest | B21: ='Income Statement (Results)'!B30 -> 71561.17914 | C21: ='Income Statement (Results)'!C30 -> 1352239.358 | D21: ='Income Statement (Results)'!D30 -> 1888960.758 | E21: ='Income Statement (Results)'!E30 -> 1854344.796 | F21: ='Income Statement (Results)'!F30 -> 1809845.179 | G21: ='Income Statement (Results)'!G30 -> 1765536.963 | H21: ='Income Statement (Results)'!H30 -> 1723837.382 | I21: ='Income Statement (Results)'!I30 -> 1679476.766 | J21: ='Income Statement (Results)'!J30 -> 1643414.556 | K21: ='Income Statement (Results)'!K30 -> 1598799.943 | L21: ='Income Statement (Results)'!L30 -> 1553662.334 | M21: ='Income Statement (Results)'!M30 -> 1514566.937 | N21: ='Income Statement (Results)'!N30 -> 1469376.688 | O21: ='Income Statement (Results)'!O30 -> 1424248.701 | P21: ='Income Statement (Results)'!P30 -> 1378908.984 | Q21: ='Income Statement (Results)'!Q30 -> 1343749.96 | R21: ='Income Statement (Results)'!R30 -> 1307326.523 | S21: ='Income Statement (Results)'!S30 -> 1261584.025 | T21: ='Income Statement (Results)'!T30 -> 1215275.653 | U21: ='Income Statement (Results)'!U30 -> 1169315.13 | V21: ='Income Statement (Results)'!V30 -> 1123111.972 | W21: ='Income Statement (Results)'!W30 -> 1076950.542 | X21: ='Income Statement (Results)'!X30 -> 1059385.479 | Y21: ='Income Statement (Results)'!Y30 -> 1012480.646 | Z21: ='Income Statement (Results)'!Z30 -> 965043.5216 | AA21: ='Income Statement (Results)'!AA30 -> 917792.0032 | AB21: ='Income Statement (Results)'!AB30 -> 870627.9509 | AC21: ='Income Statement (Results)'!AC30 -> 823604.9185 | AD21: ='Income Statement (Results)'!AD30 -> 776712.0249 | AE21: ='Income Statement (Results)'!AE30 -> 729853.6946
A22: Total Operating Expenses | B22: =SUM(B15:B21) -> 149316.3633 | C22: 2379355.745 | D22: 3967896.327 | E22: 4193974.152 | F22: 4151357.928 | G22: 4109129.893 | H22: 4074993.944 | I22: 4037581.378 | J22: 4019534.438 | K22: 3990741.91 | L22: 3944923.434 | M22: 3916802.597 | N22: 3881655.642 | O22: 3836202.023 | P22: 3792069.236 | Q22: 3778363.459 | R22: 3778146.452 | S22: 3747740.739 | T22: 3700149.949 | U22: 3653829.242 | V22: 3608048.894 | W22: 3560719.039 | X22: 3602091.01 | Y22: 3599746.029 | Z22: 3542819.604 | AA22: 3496356.31 | AB22: 3445096.954 | AC22: 3395555.914 | AD22: 3356200.79 | AE22: 3320587.44
A24: Schedule M's - Additions | B24: ='Operating Expenses & Energy'!B20 -> 0 | C24: ='Operating Expenses & Energy'!C20 -> 0 | D24: ='Operating Expenses & Energy'!D20 -> 0 | E24: ='Operating Expenses & Energy'!E20 -> 0 | F24: ='Operating Expenses & Energy'!F20 -> 0 | G24: ='Operating Expenses & Energy'!G20 -> 0 | H24: ='Operating Expenses & Energy'!H20 -> 0 | I24: ='Operating Expenses & Energy'!I20 -> 0 | J24: ='Operating Expenses & Energy'!J20 -> 0 | K24: ='Operating Expenses & Energy'!K20 -> 0 | L24: ='Operating Expenses & Energy'!L20 -> 0 | M24: ='Operating Expenses & Energy'!M20 -> 0 | N24: ='Operating Expenses & Energy'!N20 -> 0 | O24: ='Operating Expenses & Energy'!O20 -> 0 | P24: ='Operating Expenses & Energy'!P20 -> 0 | Q24: ='Operating Expenses & Energy'!Q20 -> 0 | R24: ='Operating Expenses & Energy'!R20 -> 0 | S24: ='Operating Expenses & Energy'!S20 -> 0 | T24: ='Operating Expenses & Energy'!T20 -> 0 | U24: ='Operating Expenses & Energy'!U20 -> 0 | V24: ='Operating Expenses & Energy'!V20 -> 0 | W24: ='Operating Expenses & Energy'!W20 -> 0 | X24: ='Operating Expenses & Energy'!X20 -> 0 | Y24: ='Operating Expenses & Energy'!Y20 -> 0 | Z24: ='Operating Expenses & Energy'!Z20 -> 0 | AA24: ='Operating Expenses & Energy'!AA20 -> 0 | AB24: ='Operating Expenses & Energy'!AB20 -> 0 | AC24: ='Operating Expenses & Energy'!AC20 -> 0 | AD24: ='Operating Expenses & Energy'!AD20 -> 0 | AE24: ='Operating Expenses & Energy'!AE20 -> 0
A25: CPI Adjustment | B25: ='Capital Projects (Nominal)'!H273 -> 0 | C25: ='Capital Projects (Nominal)'!I273 -> 0 | D25: ='Capital Projects (Nominal)'!J273 -> 0 | E25: ='Capital Projects (Nominal)'!K273 -> 0 | F25: ='Capital Projects (Nominal)'!L273 -> 0 | G25: ='Capital Projects (Nominal)'!M273 -> 0 | H25: ='Capital Projects (Nominal)'!N273 -> 0 | I25: ='Capital Projects (Nominal)'!O273 -> 0 | J25: ='Capital Projects (Nominal)'!P273 -> 0 | K25: ='Capital Projects (Nominal)'!Q273 -> 0 | L25: ='Capital Projects (Nominal)'!R273 -> 0 | M25: ='Capital Projects (Nominal)'!S273 -> 0 | N25: ='Capital Projects (Nominal)'!T273 -> 0 | O25: ='Capital Projects (Nominal)'!U273 -> 0 | P25: ='Capital Projects (Nominal)'!V273 -> 0 | Q25: ='Capital Projects (Nominal)'!W273 -> 0 | R25: ='Capital Projects (Nominal)'!X273 -> 0 | S25: ='Capital Projects (Nominal)'!Y273 -> 0 | T25: ='Capital Projects (Nominal)'!Z273 -> 0 | U25: ='Capital Projects (Nominal)'!AA273 -> 0 | V25: ='Capital Projects (Nominal)'!AB273 -> 0 | W25: ='Capital Projects (Nominal)'!AC273 -> 0 | X25: ='Capital Projects (Nominal)'!AD273 -> 0 | Y25: ='Capital Projects (Nominal)'!AE273 -> 0 | Z25: ='Capital Projects (Nominal)'!AF273 -> 0 | AA25: ='Capital Projects (Nominal)'!AG273 -> 0 | AB25: ='Capital Projects (Nominal)'!AH273 -> 0 | AC25: ='Capital Projects (Nominal)'!AI273 -> 0 | AD25: ='Capital Projects (Nominal)'!AJ273 -> 0 | AE25: ='Capital Projects (Nominal)'!AK273 -> 0
A27: Taxable Income | B27: =B12-B22+B24+B25 -> 99771.79022 | C27: =C12-C22+C24+C25 -> 2345731.86 | D27: =D12-D22+D24+D25 -> 3522911.032 | E27: 3570876.739 | F27: 3480647.463 | G27: 3390666.691 | H27: 3302358.649 | I27: 3211140.82 | J27: 3127222.02 | K27: 3033783.538 | L27: 2945301.776 | M27: 2860754.37 | N27: 2768992.814 | O27: 2680631.585 | P27: 2590966.955 | Q27: 2507452.061 | R27: 2418463.927 | S27: 2325035.648 | T27: 2236246.483 | U27: 2147460.976 | V27: 2058000.631 | W27: 1969917.135 | X27: 1912566.932 | Y27: 1796263.826 | Z27: 1715316.902 | AA27: 1626732.1 | AB27: 1542697.588 | AC27: 1458060.255 | AD27: 1365882.047 | AE27: 1271158.215
A29: Taxes | B29: =B27*FIT_Tax_Rate -> 20952.07595 | C29: =C27*FIT_Tax_Rate -> 492603.6906 | D29: 739811.3167 | E29: 749884.1152 | F29: 730935.9672 | G29: 712040.0051 | H29: 693495.3162 | I29: 674339.5722 | J29: 656716.6241 | K29: 637094.543 | L29: 618513.3729 | M29: 600758.4178 | N29: 581488.4909 | O29: 562932.6329 | P29: 544103.0605 | Q29: 526564.9328 | R29: 507877.4248 | S29: 488257.486 | T29: 469611.7615 | U29: 450966.805 | V29: 432180.1326 | W29: 413682.5983 | X29: 401639.0557 | Y29: 377215.4036 | Z29: 360216.5495 | AA29: 341613.741 | AB29: 323966.4934 | AC29: 306192.6536 | AD29: 286835.2299 | AE29: 266943.2252

Sheet Plan and Rate Impacts (hidden)
B1: =+Start_Year -> 2020 | C1: =+B1+1 -> 2021 | D1: =+C1+1 -> 2022 | E1: 2023 | F1: 2024 | G1: 2025
A3: 5 Year Plan Net Income | B3: 320368263.6 | C3: 275987605.1 | D3: 321245250.3 | E3: 339997508.1 | F3: 341351765.1
A4: Incremental Net Income: Project Description | B4: =+'Income Statement (Results)'!B12 -> 249088.1535 | C4: =+'Income Statement (Results)'!C12 -> 4725087.605 | D4: =+'Income Statement (Results)'!D12 -> 7490807.36 | E4: =+'Income Statement (Results)'!E12 -> 7764850.891 | F4: =+'Income Statement (Results)'!F12 -> 7632005.391 | G4: =+'Income Statement (Results)'!G12 -> 7499796.584
A5: Net Income | B5: =SUM(B3:B4) -> 320617351.8 | C5: =SUM(C3:C4) -> 280712692.7 | D5: 328736057.7 | E5: 347762359 | F5: 348983770.5 | G5: 7499796.584
A7: Equity
A8: Equity | B8: 3603582345 | C8: 3537346037 | D8: 3511617583 | E8: 3533864680 | F8: 3720452144
A9: Incremental Equity: Project Description | B9: =+'Income Statement (Results)'!B36*Equity_Percent -> 1205591.534 | C9: =+'Income Statement (Results)'!C36*Equity_Percent -> 22781183.07 | D9: =+'Income Statement (Results)'!D36*Equity_Percent -> 31823331.12 | E9: =+'Income Statement (Results)'!E36*Equity_Percent -> 31240155.84 | F9: =+'Income Statement (Results)'!F36*Equity_Percent -> 30490470.57 | G9: =+'Income Statement (Results)'!G36*Equity_Percent -> 29744009.84
A10: Total Impact | B10: =SUM(B8:B9) -> 3604787936 | C10: =SUM(C8:C9) -> 3560127221 | D10: 3543440914 | E10: 3565104836 | F10: 3750942615 | G10: 29744009.84
A12: ROE
A13: 5 Year Plan ROE | B13: =+B3/B8 -> 0.08890271762 | C13: =+C3/C8 -> 0.07802109327 | D13: 0.09148070447 | E13: 0.09621124147 | F13: 0.09175007549 | G13: =+G3/G8 -> 
A14: ROE: Project Description | B14: =+B15-B13 -> 3.936647379e-05 | C14: =+C15-C13 -> 0.0008279689498 | D14: 0.001292412297 | E14: 0.001334938784 | F14: 0.001288876667
A15: ROE | B15: =+B5/B10 -> 0.08894208409 | C15: =+C5/C10 -> 0.07884906222 | D15: 0.09277311677 | E15: =+E5/E10 -> 0.09754618026 | F15: 0.09303895215 | G15: 0.2521447722
A18: Revenue 5 Year Plan
A19: Electric Revenue | B19: 2121501310 | C19: 2176544172 | D19: 2273599636 | E19: 2308917036 | F19: 2336534565
A20: Gas Revenue | B20: 994412718.4 | C20: 1050085166 | D20: 1080583109 | E20: 1131307754 | F20: 1166374526
A21: Total Revenue | B21: =SUM(B19:B20) -> 3115914028 | C21: =SUM(C19:C20) -> 3226629338 | D21: 3354182746 | E21: 3440224790 | F21: 3502909091 | G21: 0
A23: Revenue Requirement | B23: =+'Income Statement (Results)'!B10 -> 249088.1535 | C23: =+'Income Statement (Results)'!C10 -> 4725087.605 | D23: =+'Income Statement (Results)'!D10 -> 7490807.36 | E23: =+'Income Statement (Results)'!E10 -> 7764850.891 | F23: =+'Income Statement (Results)'!F10 -> 7632005.391 | G23: =+'Income Statement (Results)'!G10 -> 7499796.584
A25: % Rate Impact | B25: =+B23/B21 -> 7.994063742e-05 | C25: =+C23/C21 -> 0.001464403596 | D25: 0.002233273476 | E25: 0.002257076605 | F25: 0.00217876205

Sheet Revenue Requirement
A2: Revenue Requirement Calculation
B3: =Start_Year -> 2020 | C3: =B3+1 -> 2021 | D3: =C3+1 -> 2022 | E3: 2023 | F3: 2024 | G3: 2025 | H3: 2026 | I3: 2027 | J3: 2028 | K3: 2029 | L3: 2030 | M3: 2031 | N3: 2032 | O3: 2033 | P3: 2034 | Q3: 2035 | R3: 2036 | S3: 2037 | T3: 2038 | U3: 2039 | V3: 2040 | W3: 2041 | X3: 2042 | Y3: 2043 | Z3: 2044 | AA3: 2045 | AB3: 2046 | AC3: 2047 | AD3: 2048 | AE3: 2049 | AF3: 2050 | AG3: 2051 | AH3: 2052 | AI3: 2053 | AJ3: 2054 | AK3: 2055 | AL3: 2056 | AM3: 2057 | AN3: 2058 | AO3: 2059
A5: Ratebase | B5: =+'Plant(Input)'!C53 -> 2485755.741 | C5: =+'Plant(Input)'!D53 -> 46971511.48 | D5: =+'Plant(Input)'!E53 -> 65615115.7 | E5: =+'Plant(Input)'!F53 -> 64412692.44 | F5: =+'Plant(Input)'!G53 -> 62866949.62 | G5: =+'Plant(Input)'!H53 -> 61327855.33 | H5: =+'Plant(Input)'!I53 -> 59879374.83 | I5: =+'Plant(Input)'!J53 -> 58338460.34 | J5: =+'Plant(Input)'!K53 -> 57085800.09 | K5: =+'Plant(Input)'!L53 -> 55536062.75 | L5: =+'Plant(Input)'!M53 -> 53968158.6 | M5: =+'Plant(Input)'!N53 -> 52610137.27 | N5: =+'Plant(Input)'!O53 -> 51040404.6 | O5: =+'Plant(Input)'!P53 -> 49472834.67 | P5: =+'Plant(Input)'!Q53 -> 47897910.06 | Q5: =+'Plant(Input)'!R53 -> 46676622.95 | R5: =+'Plant(Input)'!S53 -> 45411415.08 | S5: =+'Plant(Input)'!T53 -> 43822499.44 | T5: =+'Plant(Input)'!U53 -> 42213927.54 | U5: =+'Plant(Input)'!V53 -> 40617438.55 | V5: =+'Plant(Input)'!W53 -> 39012521.4 | W5: =+'Plant(Input)'!X53 -> 37409053.69 | X5: =+'Plant(Input)'!Y53 -> 36798912.03 | Y5: =+'Plant(Input)'!Z53 -> 35169621.4 | Z5: =+'Plant(Input)'!AA53 -> 33521841.07 | AA5: =+'Plant(Input)'!AB53 -> 31880507.95 | AB5: =+'Plant(Input)'!AC53 -> 30242213.07 | AC5: =+'Plant(Input)'!AD53 -> 28608816.66 | AD5: =+'Plant(Input)'!AE53 -> 26979940.77 | AE5: =+'Plant(Input)'!AF53 -> 25352265.48 | AF5: =+'Plant(Input)'!AG53 -> 0 | AG5: =+'Plant(Input)'!AH53 -> 0 | AH5: =+'Plant(Input)'!AI53 -> 0 | AI5: =+'Plant(Input)'!AJ53 -> 0 | AJ5: =+'Plant(Input)'!AK53 -> 0 | AK5: =+'Plant(Input)'!AL53 -> 0 | AL5: =+'Plant(Input)'!AM53 -> 0 | AM5: =+'Plant(Input)'!AN53 -> 0 | AN5: =+'Plant(Input)'!AO53 -> 0 | AO5: =+'Plant(Input)'!AP53 -> 0
A6: PreTax Return | B6: =Pre_Tax_WACC -> 0.08711128481 | C6: 0.08711128481 | D6: 0.08711128481 | E6: 0.08711128481 | F6: 0.08711128481 | G6: 0.08711128481 | H6: 0.08711128481 | I6: 0.08711128481 | J6: 0.08711128481 | K6: 0.08711128481 | L6: 0.08711128481 | M6: 0.08711128481 | N6: 0.08711128481 | O6: 0.08711128481 | P6: 0.08711128481 | Q6: 0.08711128481 | R6: 0.08711128481 | S6: 0.08711128481 | T6: 0.08711128481 | U6: 0.08711128481 | V6: 0.08711128481 | W6: 0.08711128481 | X6: 0.08711128481 | Y6: 0.08711128481 | Z6: 0.08711128481 | AA6: 0.08711128481 | AB6: 0.08711128481 | AC6: 0.08711128481 | AD6: 0.08711128481 | AE6: 0.08711128481 | AF6: 0.08711128481 | AG6: 0.08711128481 | AH6: 0.08711128481 | AI6: 0.08711128481 | AJ6: 0.08711128481 | AK6: 0.08711128481 | AL6: 0.08711128481 | AM6: 0.08711128481 | AN6: 0.08711128481 | AO6: 0.08711128481
A7: Revenue Requirement on Plant | B7: =B5*B6 -> 216537.3763 | C7: =C5*C6 -> 4091748.715 | D7: =D5*D6 -> 5715817.032 | E7: 5611072.397 | F7: 5476420.754 | G7: 5342348.273 | H7: 5216169.275 | I7: 5081938.234 | J7: 4972817.39 | K7: 4837817.78 | L7: 4701235.634 | M7: 4582936.652 | N7: 4446195.222 | O7: 4309642.191 | P7: 4172448.485 | Q7: 4066060.595 | R7: 3955846.712 | S7: 3817434.229 | T7: 3677309.465 | U7: 3538237.258 | V7: 3398430.863 | W7: 3258750.731 | X7: 3205600.507 | Y7: 3063670.907 | Z7: 2920130.645 | AA7: 2777152.008 | AB7: 2634438.036 | AC7: 2492150.776 | AD7: 2350257.305 | AE7: 2208468.418 | AF7: 0 | AG7: 0 | AH7: 0 | AI7: 0 | AJ7: 0 | AK7: 0 | AL7: 0 | AM7: 0 | AN7: 0 | AO7: 0
A9: O&M | B9: =+'Operating Expenses & Energy'!B14*(1+OM_Inflation)^('Operating Expenses & Energy'!B8-'Operating Expenses & Energy'!$B$8) -> 0 | C9: =+'Operating Expenses & Energy'!C14*(1+OM_Inflation)^('Operating Expenses & Energy'!C8-'Operating Expenses & Energy'!$B$8) -> 139898.5437 | D9: =+'Operating Expenses & Energy'!D14*(1+OM_Inflation)^('Operating Expenses & Energy'!D8-'Operating Expenses & Energy'!$B$8) -> 288191 | E9: =+'Operating Expenses & Energy'!E14*(1+OM_Inflation)^('Operating Expenses & Energy'!E8-'Operating Expenses & Energy'!$B$8) -> 294741 | F9: =+'Operating Expenses & Energy'!F14*(1+OM_Inflation)^('Operating Expenses & Energy'!F8-'Operating Expenses & Energy'!$B$8) -> 301477 | G9: =+'Operating Expenses & Energy'!G14*(1+OM_Inflation)^('Operating Expenses & Energy'!G8-'Operating Expenses & Energy'!$B$8) -> 308390 | H9: =+'Operating Expenses & Energy'!H14*(1+OM_Inflation)^('Operating Expenses & Energy'!H8-'Operating Expenses & Energy'!$B$8) -> 315485 | I9: =+'Operating Expenses & Energy'!I14*(1+OM_Inflation)^('Operating Expenses & Energy'!I8-'Operating Expenses & Energy'!$B$8) -> 322769 | J9: =+'Operating Expenses & Energy'!J14*(1+OM_Inflation)^('Operating Expenses & Energy'!J8-'Operating Expenses & Energy'!$B$8) -> 330247 | K9: =+'Operating Expenses & Energy'!K14*(1+OM_Inflation)^('Operating Expenses & Energy'!K8-'Operating Expenses & Energy'!$B$8) -> 337925 | L9: =+'Operating Expenses & Energy'!L14*(1+OM_Inflation)^('Operating Expenses & Energy'!L8-'Operating Expenses & Energy'!$B$8) -> 345811 | M9: =+'Operating Expenses & Energy'!M14*(1+OM_Inflation)^('Operating Expenses & Energy'!M8-'Operating Expenses & Energy'!$B$8) -> 353911 | N9: =+'Operating Expenses & Energy'!N14*(1+OM_Inflation)^('Operating Expenses & Energy'!N8-'Operating Expenses & Energy'!$B$8) -> 362232 | O9: =+'Operating Expenses & Energy'!O14*(1+OM_Inflation)^('Operating Expenses & Energy'!O8-'Operating Expenses & Energy'!$B$8) -> 370782 | P9: =+'Operating Expenses & Energy'!P14*(1+OM_Inflation)^('Operating Expenses & Energy'!P8-'Operating Expenses & Energy'!$B$8) -> 379568 | Q9: =+'Operating Expenses & Energy'!Q14*(1+OM_Inflation)^('Operating Expenses & Energy'!Q8-'Operating Expenses & Energy'!$B$8) -> 388598 | R9: =+'Operating Expenses & Energy'!R14*(1+OM_Inflation)^('Operating Expenses & Energy'!R8-'Operating Expenses & Energy'!$B$8) -> 397881 | S9: =+'Operating Expenses & Energy'!S14*(1+OM_Inflation)^('Operating Expenses & Energy'!S8-'Operating Expenses & Energy'!$B$8) -> 407425 | T9: =+'Operating Expenses & Energy'!T14*(1+OM_Inflation)^('Operating Expenses & Energy'!T8-'Operating Expenses & Energy'!$B$8) -> 417239 | U9: =+'Operating Expenses & Energy'!U14*(1+OM_Inflation)^('Operating Expenses & Energy'!U8-'Operating Expenses & Energy'!$B$8) -> 427333 | V9: =+'Operating Expenses & Energy'!V14*(1+OM_Inflation)^('Operating Expenses & Energy'!V8-'Operating Expenses & Energy'!$B$8) -> 437716 | W9: =+'Operating Expenses & Energy'!W14*(1+OM_Inflation)^('Operating Expenses & Energy'!W8-'Operating Expenses & Energy'!$B$8) -> 448398 | X9: =+'Operating Expenses & Energy'!X14*(1+OM_Inflation)^('Operating Expenses & Energy'!X8-'Operating Expenses & Energy'!$B$8) -> 461849.94 | Y9: =+'Operating Expenses & Energy'!Y14*(1+OM_Inflation)^('Operating Expenses & Energy'!Y8-'Operating Expenses & Energy'!$B$8) -> 475705.4382 | Z9: =+'Operating Expenses & Energy'!Z14*(1+OM_Inflation)^('Operating Expenses & Energy'!Z8-'Operating Expenses & Energy'!$B$8) -> 489976.6013 | AA9: =+'Operating Expenses & Energy'!AA14*(1+OM_Inflation)^('Operating Expenses & Energy'!AA8-'Operating Expenses & Energy'!$B$8) -> 504675.8994 | AB9: =+'Operating Expenses & Energy'!AB14*(1+OM_Inflation)^('Operating Expenses & Energy'!AB8-'Operating Expenses & Energy'!$B$8) -> 519816.1764 | AC9: =+'Operating Expenses & Energy'!AC14*(1+OM_Inflation)^('Operating Expenses & Energy'!AC8-'Operating Expenses & Energy'!$B$8) -> 535410.6617 | AD9: =+'Operating Expenses & Energy'!AD14*(1+OM_Inflation)^('Operating Expenses & Energy'!AD8-'Operating Expenses & Energy'!$B$8) -> 551472.9815 | AE9: =+'Operating Expenses & Energy'!AE14*(1+OM_Inflation)^('Operating Expenses & Energy'!AE8-'Operating Expenses & Energy'!$B$8) -> 568017.171 | AF9: =+'Operating Expenses & Energy'!AF14*(1+OM_Inflation)^('Operating Expenses & Energy'!AF8-'Operating Expenses & Energy'!$B$8) -> 0 | AG9: =+'Operating Expenses & Energy'!AG14*(1+OM_Inflation)^('Operating Expenses & Energy'!AG8-'Operating Expenses & Energy'!$B$8) -> 0 | AH9: =+'Operating Expenses & Energy'!AH14*(1+OM_Inflation)^('Operating Expenses & Energy'!AH8-'Operating Expenses & Energy'!$B$8) -> 0 | AI9: =+'Operating Expenses & Energy'!AI14*(1+OM_Inflation)^('Operating Expenses & Energy'!AI8-'Operating Expenses & Energy'!$B$8) -> 0 | AJ9: =+'Operating Expenses & Energy'!AJ14*(1+OM_Inflation)^('Operating Expenses & Energy'!AJ8-'Operating Expenses & Energy'!$B$8) -> 0 | AK9: =+'Operating Expenses & Energy'!AK14*(1+OM_Inflation)^('Operating Expenses & Energy'!AK8-'Operating Expenses & Energy'!$B$8) -> 0 | AL9: =+'Operating Expenses & Energy'!AL14*(1+OM_Inflation)^('Operating Expenses & Energy'!AL8-'Operating Expenses & Energy'!$B$8) -> 0 | AM9: =+'Operating Expenses & Energy'!AM14*(1+OM_Inflation)^('Operating Expenses & Energy'!AM8-'Operating Expenses & Energy'!$B$8) -> 0 | AN9: =+'Operating Expenses & Energy'!AN14*(1+OM_Inflation)^('Operating Expenses & Energy'!AN8-'Operating Expenses & Energy'!$B$8) -> 0 | AO9: =+'Operating Expenses & Energy'!AO14*(1+OM_Inflation)^('Operating Expenses & Energy'!AO8-'Operating Expenses & Energy'!$B$8) -> 0
A10: Property Tax | B10: =+'Plant(Input)'!C46*Levy_Rate*Assessment_Rate -> 408 | C10: =+'Plant(Input)'!D46*Levy_Rate*Assessment_Rate -> 3835.2 | D10: =+'Plant(Input)'!E46*Levy_Rate*Assessment_Rate -> 5385.6 | E10: =+'Plant(Input)'!F46*Levy_Rate*Assessment_Rate -> 5386.1304 | F10: =+'Plant(Input)'!G46*Levy_Rate*Assessment_Rate -> 5386.1304 | G10: =+'Plant(Input)'!H46*Levy_Rate*Assessment_Rate -> 5386.691808 | H10: =+'Plant(Input)'!I46*Levy_Rate*Assessment_Rate -> 5394.656376 | I10: =+'Plant(Input)'!J46*Levy_Rate*Assessment_Rate -> 5395.250506 | J10: =+'Plant(Input)'!K46*Levy_Rate*Assessment_Rate -> 5419.657963 | K10: =+'Plant(Input)'!L46*Levy_Rate*Assessment_Rate -> 5420.286854 | L10: =+'Plant(Input)'!M46*Levy_Rate*Assessment_Rate -> 5420.286854 | M10: =+'Plant(Input)'!N46*Levy_Rate*Assessment_Rate -> 5437.329667 | N10: =+'Plant(Input)'!O46*Levy_Rate*Assessment_Rate -> 5437.329667 | O10: =+'Plant(Input)'!P46*Levy_Rate*Assessment_Rate -> 5438.034202 | P10: =+'Plant(Input)'!Q46*Levy_Rate*Assessment_Rate -> 5438.034202 | Q10: =+'Plant(Input)'!R46*Levy_Rate*Assessment_Rate -> 5466.836554 | R10: =+'Plant(Input)'!S46*Levy_Rate*Assessment_Rate -> 5492.561443 | S10: =+'Plant(Input)'!T46*Levy_Rate*Assessment_Rate -> 5493.350842 | T10: =+'Plant(Input)'!U46*Levy_Rate*Assessment_Rate -> 5493.350842 | U10: =+'Plant(Input)'!V46*Levy_Rate*Assessment_Rate -> 5494.186426 | V10: =+'Plant(Input)'!W46*Levy_Rate*Assessment_Rate -> 5494.186426 | W10: =+'Plant(Input)'!X46*Levy_Rate*Assessment_Rate -> 5494.186426 | X10: =+'Plant(Input)'!Y46*Levy_Rate*Assessment_Rate -> 5575.053168 | Y10: =+'Plant(Input)'!Z46*Levy_Rate*Assessment_Rate -> 5575.053168 | Z10: =+'Plant(Input)'!AA46*Levy_Rate*Assessment_Rate -> 5575.053168 | AA10: =+'Plant(Input)'!AB46*Levy_Rate*Assessment_Rate -> 5575.053168 | AB10: =+'Plant(Input)'!AC46*Levy_Rate*Assessment_Rate -> 5575.053168 | AC10: =+'Plant(Input)'!AD46*Levy_Rate*Assessment_Rate -> 5575.053168 | AD10: =+'Plant(Input)'!AE46*Levy_Rate*Assessment_Rate -> 5575.053168 | AE10: =+'Plant(Input)'!AF46*Levy_Rate*Assessment_Rate -> 5575.053168 | AF10: =+'Plant(Input)'!AG46*Levy_Rate*Assessment_Rate -> 0 | AG10: =+'Plant(Input)'!AH46*Levy_Rate*Assessment_Rate -> 0 | AH10: =+'Plant(Input)'!AI46*Levy_Rate*Assessment_Rate -> 0 | AI10: =+'Plant(Input)'!AJ46*Levy_Rate*Assessment_Rate -> 0 | AJ10: =+'Plant(Input)'!AK46*Levy_Rate*Assessment_Rate -> 0 | AK10: =+'Plant(Input)'!AL46*Levy_Rate*Assessment_Rate -> 0 | AL10: =+'Plant(Input)'!AM46*Levy_Rate*Assessment_Rate -> 0 | AM10: =+'Plant(Input)'!AN46*Levy_Rate*Assessment_Rate -> 0 | AN10: =+'Plant(Input)'!AO46*Levy_Rate*Assessment_Rate -> 0 | AO10: =+'Plant(Input)'!AP46*Levy_Rate*Assessment_Rate -> 0
A11: Insurance | B11: =+'Plant(Input)'!C46*Insurance_Rate -> 3500 | C11: =+'Plant(Input)'!D46*Insurance_Rate -> 32900 | D11: =+'Plant(Input)'!E46*Insurance_Rate -> 46200 | E11: =+'Plant(Input)'!F46*Insurance_Rate -> 46204.55 | F11: =+'Plant(Input)'!G46*Insurance_Rate -> 46204.55 | G11: =+'Plant(Input)'!H46*Insurance_Rate -> 46209.366 | H11: =+'Plant(Input)'!I46*Insurance_Rate -> 46277.6895 | I11: =+'Plant(Input)'!J46*Insurance_Rate -> 46282.7862 | J11: =+'Plant(Input)'!K46*Insurance_Rate -> 46492.1639 | K11: =+'Plant(Input)'!L46*Insurance_Rate -> 46497.5588 | L11: =+'Plant(Input)'!M46*Insurance_Rate -> 46497.5588 | M11: =+'Plant(Input)'!N46*Insurance_Rate -> 46643.7594 | N11: =+'Plant(Input)'!O46*Insurance_Rate -> 46643.7594 | O11: =+'Plant(Input)'!P46*Insurance_Rate -> 46649.8032 | P11: =+'Plant(Input)'!Q46*Insurance_Rate -> 46649.8032 | Q11: =+'Plant(Input)'!R46*Insurance_Rate -> 46896.8822 | R11: =+'Plant(Input)'!S46*Insurance_Rate -> 47117.5614 | S11: =+'Plant(Input)'!T46*Insurance_Rate -> 47124.3332 | T11: =+'Plant(Input)'!U46*Insurance_Rate -> 47124.3332 | U11: =+'Plant(Input)'!V46*Insurance_Rate -> 47131.5012 | V11: =+'Plant(Input)'!W46*Insurance_Rate -> 47131.5012 | W11: =+'Plant(Input)'!X46*Insurance_Rate -> 47131.5012 | X11: =+'Plant(Input)'!Y46*Insurance_Rate -> 47825.211 | Y11: =+'Plant(Input)'!Z46*Insurance_Rate -> 47825.211 | Z11: =+'Plant(Input)'!AA46*Insurance_Rate -> 47825.211 | AA11: =+'Plant(Input)'!AB46*Insurance_Rate -> 47825.211 | AB11: =+'Plant(Input)'!AC46*Insurance_Rate -> 47825.211 | AC11: =+'Plant(Input)'!AD46*Insurance_Rate -> 47825.211 | AD11: =+'Plant(Input)'!AE46*Insurance_Rate -> 47825.211 | AE11: =+'Plant(Input)'!AF46*Insurance_Rate -> 47825.211 | AF11: =+'Plant(Input)'!AG46*Insurance_Rate -> 0 | AG11: =+'Plant(Input)'!AH46*Insurance_Rate -> 0 | AH11: =+'Plant(Input)'!AI46*Insurance_Rate -> 0 | AI11: =+'Plant(Input)'!AJ46*Insurance_Rate -> 0 | AJ11: =+'Plant(Input)'!AK46*Insurance_Rate -> 0 | AK11: =+'Plant(Input)'!AL46*Insurance_Rate -> 0 | AL11: =+'Plant(Input)'!AM46*Insurance_Rate -> 0 | AM11: =+'Plant(Input)'!AN46*Insurance_Rate -> 0 | AN11: =+'Plant(Input)'!AO46*Insurance_Rate -> 0 | AO11: =+'Plant(Input)'!AP46*Insurance_Rate -> 0
A12: Depreciation | B12: =+'Plant(Input)'!C12+'Plant(Input)'!C28 -> 9259.259259 | C12: =+'Plant(Input)'!D12+'Plant(Input)'!D28 -> 188888.8889 | D12: =+'Plant(Input)'!E12+'Plant(Input)'!E28 -> 1079629.63 | E12: =+'Plant(Input)'!F12+'Plant(Input)'!F28 -> 1466684.722 | F12: =+'Plant(Input)'!G12+'Plant(Input)'!G28 -> 1466883.333 | G12: =+'Plant(Input)'!H12+'Plant(Input)'!H28 -> 1466902.444 | H12: =+'Plant(Input)'!I12+'Plant(Input)'!I28 -> 1467383.792 | I12: =+'Plant(Input)'!J12+'Plant(Input)'!J28 -> 1470386.392 | J12: =+'Plant(Input)'!K12+'Plant(Input)'!K28 -> 1471439.731 | K12: =+'Plant(Input)'!L12+'Plant(Input)'!L28 -> 1480600.642 | L12: =+'Plant(Input)'!M12+'Plant(Input)'!M28 -> 1480836.133 | M12: =+'Plant(Input)'!N12+'Plant(Input)'!N28 -> 1481416.294 | N12: =+'Plant(Input)'!O12+'Plant(Input)'!O28 -> 1487798.067 | O12: =+'Plant(Input)'!P12+'Plant(Input)'!P28 -> 1487822.05 | P12: =+'Plant(Input)'!Q12+'Plant(Input)'!Q28 -> 1488085.867 | Q12: =+'Plant(Input)'!R12+'Plant(Input)'!R28 -> 1489066.339 | R12: =+'Plant(Input)'!S12+'Plant(Input)'!S28 -> 1500727.244 | S12: =+'Plant(Input)'!T12+'Plant(Input)'!T28 -> 1510386.939 | T12: =+'Plant(Input)'!U12+'Plant(Input)'!U28 -> 1510682.533 | U12: =+'Plant(Input)'!V12+'Plant(Input)'!V28 -> 1510710.978 | V12: =+'Plant(Input)'!W12+'Plant(Input)'!W28 -> 1511023.867 | W12: =+'Plant(Input)'!X12+'Plant(Input)'!X28 -> 1511023.867 | X12: =+'Plant(Input)'!Y12+'Plant(Input)'!Y28 -> 1529900.324 | Y12: =+'Plant(Input)'!Z12+'Plant(Input)'!Z28 -> 1539338.552 | Z12: =+'Plant(Input)'!AA12+'Plant(Input)'!AA28 -> 1539338.552 | AA12: =+'Plant(Input)'!AB12+'Plant(Input)'!AB28 -> 1539338.552 | AB12: =+'Plant(Input)'!AC12+'Plant(Input)'!AC28 -> 1539338.552 | AC12: =+'Plant(Input)'!AD12+'Plant(Input)'!AD28 -> 1539338.552 | AD12: =+'Plant(Input)'!AE12+'Plant(Input)'!AE28 -> 1539338.552 | AE12: =+'Plant(Input)'!AF12+'Plant(Input)'!AF28 -> 1539338.552 | AF12: =+'Plant(Input)'!AG12+'Plant(Input)'!AG28 -> 0 | AG12: =+'Plant(Input)'!AH12+'Plant(Input)'!AH28 -> 0 | AH12: =+'Plant(Input)'!AI12+'Plant(Input)'!AI28 -> 0 | AI12: =+'Plant(Input)'!AJ12+'Plant(Input)'!AJ28 -> 0 | AJ12: =+'Plant(Input)'!AK12+'Plant(Input)'!AK28 -> 0 | AK12: =+'Plant(Input)'!AL12+'Plant(Input)'!AL28 -> 0 | AL12: =+'Plant(Input)'!AM12+'Plant(Input)'!AM28 -> 0 | AM12: =+'Plant(Input)'!AN12+'Plant(Input)'!AN28 -> 0 | AN12: =+'Plant(Input)'!AO12+'Plant(Input)'!AO28 -> 0 | AO12: =+'Plant(Input)'!AP12+'Plant(Input)'!AP28 -> 0
A13: PreTax Costs | B13: =SUM(B7:B12) -> 229704.6356 | C13: 4457271.347 | D13: =SUM(D7:D12) -> 7135223.262 | E13: 7424088.8 | F13: 7296371.768 | G13: 7169236.775 | H13: 7050710.413 | I13: 6926771.663 | J13: 6826415.943 | K13: 6708261.267 | L13: 6579800.613 | M13: 6470345.035 | N13: 6348306.378 | O13: 6220334.079 | P13: 6092190.189 | Q13: 5996088.653 | R13: 5907065.08 | S13: 5787863.852 | T13: 5657848.682 | U13: 5528906.923 | V13: 5399796.417 | W13: 5270798.285 | X13: 5250751.035 | Y13: 5132115.162 | Z13: 5002846.063 | AA13: 4874566.724 | AB13: 4746993.029 | AC13: 4620300.255 | AD13: 4494469.103 | AE13: 4369224.406 | AF13: 0 | AG13: 0 | AH13: 0 | AI13: 0 | AJ13: 0 | AK13: 0 | AL13: 0 | AM13: 0 | AN13: 0 | AO13: 0
A14: Revenue Taxes Grossup | B14: =1-Revenue_Taxes -> 0.96127 | C14: 0.96127 | D14: =1-Revenue_Taxes -> 0.96127 | E14: 0.96127 | F14: 0.96127 | G14: 0.96127 | H14: 0.96127 | I14: 0.96127 | J14: 0.96127 | K14: 0.96127 | L14: 0.96127 | M14: 0.96127 | N14: 0.96127 | O14: 0.96127 | P14: 0.96127 | Q14: 0.96127 | R14: 0.96127 | S14: 0.96127 | T14: 0.96127 | U14: 0.96127 | V14: 0.96127 | W14: 0.96127 | X14: 0.96127 | Y14: 0.96127 | Z14: 0.96127 | AA14: 0.96127 | AB14: 0.96127 | AC14: 0.96127 | AD14: 0.96127 | AE14: 0.96127 | AF14: 0.96127 | AG14: 0.96127 | AH14: 0.96127 | AI14: 0.96127 | AJ14: 0.96127 | AK14: 0.96127 | AL14: 0.96127 | AM14: 0.96127 | AN14: 0.96127 | AO14: 0.96127
A15: Revenue Requirement | B15: =B13/B14 -> 238959.5385 | C15: =C13/C14 -> 4636856.812 | D15: =D13/D14 -> 7422704.611 | E15: =E13/E14 -> 7723208.671 | F15: 7590345.863 | G15: 7458088.544 | H15: 7334786.702 | I15: 7205854.404 | J15: 7101455.307 | K15: 6978540.126 | L15: 6844903.735 | M15: 6731038.142 | N15: 6604082.493 | O15: 6470954.132 | P15: 6337647.268 | Q15: 6237673.758 | R15: 6145063.384 | S15: 6021059.486 | T15: 5885805.946 | U15: 5751669.066 | V15: 5617356.64 | W15: 5483161.115 | X15: 5462306.152 | Y15: 5338890.386 | Z15: 5204412.977 | AA15: 5070965.207 | AB15: 4938251.51 | AC15: 4806454.227 | AD15: 4675553.281 | AE15: 4545262.419 | AF15: 0 | AG15: 0 | AH15: 0 | AI15: 0 | AJ15: 0 | AK15: 0 | AL15: 0 | AM15: 0 | AN15: 0 | AO15: 0

Sheet Operating Expenses & Energy
B3: ='Summary - Print'!I3 -> 0
B8: =Start_Year -> 2020 | C8: =B8+1 -> 2021 | D8: 2022 | E8: 2023 | F8: 2024 | G8: 2025 | H8: 2026 | I8: 2027 | J8: 2028 | K8: 2029 | L8: 2030 | M8: 2031 | N8: 2032 | O8: 2033 | P8: 2034 | Q8: 2035 | R8: 2036 | S8: 2037 | T8: 2038 | U8: 2039 | V8: 2040 | W8: 2041 | X8: 2042 | Y8: 2043 | Z8: 2044 | AA8: 2045 | AB8: 2046 | AC8: 2047 | AD8: 2048 | AE8: 2049
A10: Operating Expenses - Base | B10: ='[1]Trammell-Puyallup'!B$25 -> 0 | C10: ='[1]Trammell-Puyallup'!D$25 -> 139898.5437 | D10: ='[1]Trammell-Puyallup'!E$25 -> 288191 | E10: ='[1]Trammell-Puyallup'!F$25 -> 294741 | F10: ='[1]Trammell-Puyallup'!G$25 -> 301477 | G10: ='[1]Trammell-Puyallup'!H$25 -> 308390 | H10: ='[1]Trammell-Puyallup'!I$25 -> 315485 | I10: ='[1]Trammell-Puyallup'!J$25 -> 322769 | J10: ='[1]Trammell-Puyallup'!K$25 -> 330247 | K10: ='[1]Trammell-Puyallup'!L$25 -> 337925 | L10: ='[1]Trammell-Puyallup'!M$25 -> 345811 | M10: ='[1]Trammell-Puyallup'!N$25 -> 353911 | N10: ='[1]Trammell-Puyallup'!O$25 -> 362232 | O10: ='[1]Trammell-Puyallup'!P$25 -> 370782 | P10: ='[1]Trammell-Puyallup'!Q$25 -> 379568 | Q10: ='[1]Trammell-Puyallup'!R$25 -> 388598 | R10: ='[1]Trammell-Puyallup'!S$25 -> 397881 | S10: ='[1]Trammell-Puyallup'!T$25 -> 407425 | T10: ='[1]Trammell-Puyallup'!U$25 -> 417239 | U10: ='[1]Trammell-Puyallup'!V$25 -> 427333 | V10: ='[1]Trammell-Puyallup'!W$25 -> 437716 | W10: ='[1]Trammell-Puyallup'!X$25 -> 448398 | X10: =W10*1.03 -> 461849.94 | Y10: =X10*1.03 -> 475705.4382 | Z10: =Y10*1.03 -> 489976.6013 | AA10: =Z10*1.03 -> 504675.8994 | AB10: =AA10*1.03 -> 519816.1764 | AC10: =AB10*1.03 -> 535410.6617 | AD10: =AC10*1.03 -> 551472.9815 | AE10: =AD10*1.03 -> 568017.171
A14: O&M Expenses | B14: =SUM(B10:B13) -> 0 | C14: =SUM(C10:C13) -> 139898.5437 | D14: 288191 | E14: 294741 | F14: 301477 | G14: 308390 | H14: 315485 | I14: 322769 | J14: 330247 | K14: 337925 | L14: 345811 | M14: 353911 | N14: 362232 | O14: 370782 | P14: 379568 | Q14: 388598 | R14: 397881 | S14: 407425 | T14: 417239 | U14: 427333 | V14: =SUM(V10:V13) -> 437716 | W14: 448398 | X14: 461849.94 | Y14: 475705.4382 | Z14: 489976.6013 | AA14: 504675.8994 | AB14: 519816.1764 | AC14: 535410.6617 | AD14: 551472.9815 | AE14: 568017.171
A16: Non-Operating Income After Tax
A18: Cash Adjustments | B18: 0
A20: Schedule M -Adjustments
A22: Unregulated Revenues
A24: Plant Energy (MWh)
A26: Processing Flag | B26: =IF(B8-$B$8<Term,1,0) -> 1 | C26: 1 | D26: 1 | E26: 1 | F26: 1 | G26: 1 | H26: 1 | I26: 1 | J26: 1 | K26: 1 | L26: 1 | M26: 1 | N26: 1 | O26: 1 | P26: 1 | Q26: 1 | R26: 1 | S26: 1 | T26: 1 | U26: 1 | V26: 1 | W26: 1 | X26: 1 | Y26: 1 | Z26: 1 | AA26: 1 | AB26: 1 | AC26: 1 | AD26: 1 | AE26: 1
A28: Contract/Purchased Energy (MWh)
A29: Resource 1
A30: Resource 2
A31: Resource 3
A32: Resource 4
A33: Resource 5
A34: Resource 6
A35: Resource 7
A36: Total | B36: =SUM(B29:B35) -> 0 | C36: 0 | D36: 0 | E36: 0 | F36: 0 | G36: 0 | H36: 0 | I36: 0 | J36: 0 | K36: 0 | L36: 0 | M36: 0 | N36: 0 | O36: 0 | P36: 0 | Q36: 0 | R36: 0 | S36: 0 | T36: 0 | U36: 0 | V36: 0 | W36: 0 | X36: 0 | Y36: 0 | Z36: 0 | AA36: 0 | AB36: 0 | AC36: 0 | AD36: 0 | AE36: 0
A38: Market Rate $/Mwh
A39: Aurora 7
A40: Power Cost | B40: =B36*B38 -> 0 | C40: =C36*C38 -> 0 | D40: =D36*D38 -> 0 | E40: 0 | F40: 0 | G40: 0 | H40: 0 | I40: 0 | J40: 0 | K40: 0 | L40: 0 | M40: 0 | N40: 0 | O40: 0 | P40: 0 | Q40: 0 | R40: 0 | S40: 0 | T40: 0 | U40: 0 | V40: 0 | W40: 0 | X40: 0 | Y40: 0 | Z40: 0 | AA40: 0 | AB40: 0 | AC40: 0 | AD40: 0 | AE40: 0
A42: Total Annual Energy (MWh) | B42: =+B24+B36 -> 0 | C42: =+C24+C36 -> 0 | D42: 0 | E42: 0 | F42: 0 | G42: 0 | H42: 0 | I42: 0 | J42: 0 | K42: 0 | L42: 0 | M42: 0 | N42: 0 | O42: 0 | P42: 0 | Q42: 0 | R42: 0 | S42: 0 | T42: 0 | U42: 0 | V42: 0 | W42: 0 | X42: 0 | Y42: 0 | Z42: 0 | AA42: 0 | AB42: 0 | AC42: 0 | AD42: 0 | AE42: 0
A44: In Thousands($000)
A46: PPA 1 | I46: 0
A47: PPA 2
A48: PPA 3
A49: PPA 4
A50: PPA 5
A51: PPA 6
A52: Total | B52: =SUM(B46:B51) -> 0 | C52: =SUM(C46:C51) -> 0 | D52: 0 | E52: 0 | F52: 0 | G52: 0 | H52: 0 | I52: 0 | J52: 0 | K52: 0 | L52: 0 | M52: 0 | N52: 0 | O52: 0 | P52: 0 | Q52: 0 | R52: 0 | S52: 0 | T52: 0 | U52: 0 | V52: 0 | W52: 0 | X52: 0 | Y52: 0 | Z52: 0 | AA52: 0 | AB52: 0 | AC52: 0 | AD52: 0 | AE52: 0
A55: Capacity Factor | B55: =Capacity_Factor -> 0
A56: Risk Factor | B56: =Risk_Factor -> 0
A57: Imputed Debt Rate | B57: =Imputed_Debt_Rate -> 0
A59: Imputed
A60: Debt
A62: Imputed Debt
A63: PPA 1 | B63: =IF(B46>0,(NPV(Imputed_Debt_Rate,B46:AO46)*(1+Imputed_Debt_Rate)^0.5)*Capacity_Factor*Risk_Factor,0) -> 0 | C63: =IF(C46>0,(NPV(Imputed_Debt_Rate,C46:AP46)*(1+Imputed_Debt_Rate)^0.5)*Capacity_Factor*Risk_Factor,0) -> 0 | D63: 0 | E63: 0 | F63: 0 | G63: 0 | H63: 0 | I63: 0 | J63: 0 | K63: 0 | L63: 0 | M63: 0 | N63: 0 | O63: 0 | P63: 0 | Q63: 0 | R63: 0 | S63: 0 | T63: 0 | U63: 0 | V63: 0 | W63: 0 | X63: 0 | Y63: 0 | Z63: 0 | AA63: 0 | AB63: 0 | AC63: 0 | AD63: 0 | AE63: 0
A64: PPA 2 | B64: 0 | C64: 0 | D64: 0 | E64: 0 | F64: 0 | G64: 0 | H64: 0 | I64: 0 | J64: 0 | K64: 0 | L64: 0 | M64: 0 | N64: 0 | O64: 0 | P64: 0 | Q64: 0 | R64: 0 | S64: 0 | T64: 0 | U64: 0 | V64: 0 | W64: 0 | X64: 0 | Y64: 0 | Z64: 0 | AA64: 0 | AB64: 0 | AC64: 0 | AD64: 0 | AE64: 0
A65: PPA 3 | B65: 0 | C65: 0 | D65: 0 | E65: 0 | F65: 0 | G65: 0 | H65: 0 | I65: 0 | J65: 0 | K65: 0 | L65: 0 | M65: 0 | N65: 0 | O65: 0 | P65: 0 | Q65: 0 | R65: 0 | S65: 0 | T65: 0 | U65: 0 | V65: 0 | W65: 0 | X65: 0 | Y65: 0 | Z65: 0 | AA65: 0 | AB65: 0 | AC65: 0 | AD65: 0 | AE65: 0
A66: PPA 4 | B66: 0 | C66: 0 | D66: 0 | E66: 0 | F66: 0 | G66: 0 | H66: 0 | I66: 0 | J66: 0 | K66: 0 | L66: 0 | M66: 0 | N66: 0 | O66: 0 | P66: 0 | Q66: 0 | R66: 0 | S66: 0 | T66: 0 | U66: 0 | V66: 0 | W66: 0 | X66: 0 | Y66: 0 | Z66: 0 | AA66: 0 | AB66: 0 | AC66: 0 | AD66: 0 | AE66: 0
A67: PPA 5 | B67: 0 | C67: 0 | D67: 0 | E67: 0 | F67: 0 | G67: 0 | H67: 0 | I67: 0 | J67: 0 | K67: 0 | L67: 0 | M67: 0 | N67: 0 | O67: 0 | P67: 0 | Q67: 0 | R67: 0 | S67: 0 | T67: 0 | U67: 0 | V67: 0 | W67: 0 | X67: 0 | Y67: 0 | Z67: 0 | AA67: 0 | AB67: 0 | AC67: 0 | AD67: 0 | AE67: 0
A68: PPA 6 | B68: 0 | C68: 0 | D68: 0 | E68: 0 | F68: 0 | G68: 0 | H68: 0 | I68: 0 | J68: 0 | K68: 0 | L68: 0 | M68: 0 | N68: 0 | O68: 0 | P68: 0 | Q68: 0 | R68: 0 | S68: 0 | T68: 0 | U68: 0 | V68: 0 | W68: 0 | X68: 0 | Y68: 0 | Z68: 0 | AA68: 0 | AB68: 0 | AC68: 0 | AD68: 0 | AE68: 0
A69: Total | B69: =SUM(B63:B68) -> 0 | C69: =SUM(C63:C68) -> 0 | D69: 0 | E69: 0 | F69: 0 | G69: 0 | H69: 0 | I69: 0 | J69: 0 | K69: 0 | L69: 0 | M69: 0 | N69: 0 | O69: 0 | P69: 0 | Q69: 0 | R69: 0 | S69: 0 | T69: 0 | U69: 0 | V69: 0 | W69: 0 | X69: 0 | Y69: 0 | Z69: 0 | AA69: 0 | AB69: 0 | AC69: 0 | AD69: 0 | AE69: 0
A71: Total Cost Per MWh | B71: ='Income Statement (Results)'!B10/B42 ->  | C71: ='Income Statement (Results)'!C10/C42 ->  | D71: ='Income Statement (Results)'!D10/D42 ->  | E71: ='Income Statement (Results)'!E10/E42 ->  | F71: ='Income Statement (Results)'!F10/F42 ->  | G71: ='Income Statement (Results)'!G10/G42 ->  | H71: ='Income Statement (Results)'!H10/H42 ->  | I71: ='Income Statement (Results)'!I10/I42 ->  | J71: ='Income Statement (Results)'!J10/J42 ->  | K71: ='Income Statement (Results)'!K10/K42 ->  | L71: ='Income Statement (Results)'!L10/L42 ->  | M71: ='Income Statement (Results)'!M10/M42 ->  | N71: ='Income Statement (Results)'!N10/N42 ->  | O71: ='Income Statement (Results)'!O10/O42 ->  | P71: ='Income Statement (Results)'!P10/P42 ->  | Q71: ='Income Statement (Results)'!Q10/Q42 ->  | R71: ='Income Statement (Results)'!R10/R42 ->  | S71: ='Income Statement (Results)'!S10/S42 ->  | T71: ='Income Statement (Results)'!T10/T42 ->  | U71: ='Income Statement (Results)'!U10/U42 ->  | V71: ='Income Statement (Results)'!V10/V42 ->  | W71: ='Income Statement (Results)'!W10/W42 ->  | X71: ='Income Statement (Results)'!X10/X42 ->  | Y71: ='Income Statement (Results)'!Y10/Y42 ->  | Z71: ='Income Statement (Results)'!Z10/Z42 ->  | AA71: ='Income Statement (Results)'!AA10/AA42 ->  | AB71: ='Income Statement (Results)'!AB10/AB42 ->  | AC71: ='Income Statement (Results)'!AC10/AC42 ->  | AD71: ='Income Statement (Results)'!AD10/AD42 ->  | AE71: ='Income Statement (Results)'!AE10/AE42 -> 
A76: Capital Projects (Real) tab
A77: 2020 | C77: ='[1]Trammell-Puyallup'!C$27 -> 0
A78: =A77+1 -> 2021 | D78: 0
A79: =A78+1 -> 2022 | E79: ='[1]Trammell-Puyallup'!E$27 -> 0
A80: 2023 | E80: ='[1]Trammell-Puyallup'!F$27 -> 6500
A81: 2024 | F81: ='[1]Trammell-Puyallup'!G$27 -> 0
A82: 2025 | G82: ='[1]Trammell-Puyallup'!H$27 -> 6880
A83: 2026 | H83: ='[1]Trammell-Puyallup'!I$27 -> 97605
A84: 2027 | I84: ='[1]Trammell-Puyallup'!J$27 -> 7281
A85: 2028 | J85: ='[1]Trammell-Puyallup'!K$27 -> 299111
A86: 2029 | K86: ='[1]Trammell-Puyallup'!L$27 -> 7707
A87: 2030 | L87: ='[1]Trammell-Puyallup'!M$27 -> 0
A88: 2031 | M88: ='[1]Trammell-Puyallup'!N$27 -> 208858
A89: 2032 | N89: ='[1]Trammell-Puyallup'!O$27 -> 0
A90: 2033 | O90: ='[1]Trammell-Puyallup'!P$27 -> 8634
A91: 2034 | P91: ='[1]Trammell-Puyallup'!Q$27 -> 0
A92: 2035 | Q92: ='[1]Trammell-Puyallup'!R$27 -> 352970
A93: 2036 | R93: ='[1]Trammell-Puyallup'!S$27 -> 315256
A94: 2037 | S94: ='[1]Trammell-Puyallup'!T$27 -> 9674
A95: 2038 | T95: ='[1]Trammell-Puyallup'!U$27 -> 0
A96: 2039 | U96: ='[1]Trammell-Puyallup'!V$27 -> 10240
A97: 2040 | V97: ='[1]Trammell-Puyallup'!W$27 -> 0
A98: 2041
A99: =A98+1 -> 2042 | X99: ='[1]Trammell-Puyallup'!X$27 -> 991014

Sheet Capital Projects (Real)
B3: ='Summary - Print'!I3 -> 0
B8: Book Life | C8: Tax Life | D8: Close Date | E8: Month | F8: Depreciable | G8: AFUDC | H8: =Start_Year -> 2020 | I8: =H8+1 -> 2021 | J8: 2022 | K8: 2023 | L8: 2024 | M8: 2025 | N8: 2026 | O8: 2027 | P8: 2028 | Q8: 2029 | R8: 2030 | S8: 2031 | T8: 2032 | U8: 2033 | V8: 2034 | W8: 2035 | X8: 2036 | Y8: 2037 | Z8: 2038 | AA8: 2039 | AB8: 2040 | AC8: 2041 | AD8: 2042 | AE8: 2043 | AF8: 2044 | AG8: 2045 | AH8: 2046 | AI8: 2047 | AJ8: 2048 | AK8: 2049
A10: Puyallup Service Center Construction | B10: 45 | C10: 39 | D10: 2020 | E10: 12 | F10: Yes | G10: Yes | H10: 5000000 | I10: 0 | J10: 0 | K10: 0 | L10: 0 | M10: 0 | N10: 0 | O10: 0 | P10: 0 | Q10: 0 | R10: 0 | S10: 0 | T10: 0 | U10: 0 | V10: 0 | W10: 0 | X10: 0 | Y10: 0 | Z10: 0 | AA10: 0 | AB10: 0 | AC10: 0 | AD10: 0 | AE10: 0 | AF10: 0 | AG10: 0 | AH10: 0 | AI10: 0 | AJ10: 0 | AK10: 0 | AL10: e
A11: Puyallup Service Center Construction | B11: 45 | C11: 39 | D11: 2021 | E11: 12 | F11: Yes | G11: Yes | H11: 0 | I11: 42000000 | J11: 0 | K11: 0 | L11: 0 | M11: 0 | N11: 0 | O11: 0 | P11: 0 | Q11: 0 | R11: 0 | S11: 0 | T11: 0 | U11: 0 | V11: 0 | W11: 0 | X11: 0 | Y11: 0 | Z11: 0 | AA11: 0 | AB11: 0 | AC11: 0 | AD11: 0 | AE11: 0 | AF11: 0 | AG11: 0 | AH11: 0 | AI11: 0 | AJ11: 0 | AK11: 0 | AL11: e
A12: Puyallup Service Center Construction | B12: 45 | C12: 39 | D12: 2022 | E12: 12 | F12: Yes | G12: Yes | H12: 0 | I12: 0 | J12: 19000000 | K12: 0 | L12: 0 | M12: 0 | N12: 0 | O12: 0 | P12: 0 | Q12: 0 | R12: 0 | S12: 0 | T12: 0 | U12: 0 | V12: 0 | W12: 0 | X12: 0 | Y12: 0 | Z12: 0 | AA12: 0 | AB12: 0 | AC12: 0 | AD12: 0 | AE12: 0 | AF12: 0 | AG12: 0 | AH12: 0 | AI12: 0 | AJ12: 0 | AK12: 0 | AL12: e
A13: ="Capital Improvements, "&D13 -> Capital Improvements, 2019 | B13: 30 | C13: 15 | D13: 2019 | E13: 12 | F13: Yes | G13: Yes | H13: 0 | I13: 0 | J13: ='Operating Expenses & Energy'!D80 -> 0 | K13: 0 | L13: 0 | M13: 0 | N13: 0 | O13: 0 | P13: 0 | Q13: 0 | R13: 0 | S13: 0 | T13: 0 | U13: 0 | V13: 0 | W13: 0 | X13: 0 | Y13: 0 | Z13: 0 | AA13: 0 | AB13: 0 | AC13: 0 | AD13: 0 | AE13: 0 | AF13: 0 | AG13: 0 | AH13: 0 | AI13: 0 | AJ13: 0 | AK13: 0 | AL13: e
A14: ="Capital Improvements, "&D14 -> Capital Improvements, 2020 | B14: 30 | C14: 15 | D14: =D13+1 -> 2020 | E14: 12 | F14: Yes | G14: Yes | H14: 0 | I14: ='Operating Expenses & Energy'!C77 -> 0 | J14: ='Operating Expenses & Energy'!D77 -> 0 | K14: ='Operating Expenses & Energy'!E77 -> 0 | L14: ='Operating Expenses & Energy'!F77 -> 0 | M14: ='Operating Expenses & Energy'!G77 -> 0 | N14: ='Operating Expenses & Energy'!H77 -> 0 | O14: ='Operating Expenses & Energy'!I77 -> 0 | P14: ='Operating Expenses & Energy'!J77 -> 0 | Q14: ='Operating Expenses & Energy'!K77 -> 0 | R14: ='Operating Expenses & Energy'!L77 -> 0 | S14: ='Operating Expenses & Energy'!M77 -> 0 | T14: ='Operating Expenses & Energy'!N77 -> 0 | U14: ='Operating Expenses & Energy'!O77 -> 0 | V14: ='Operating Expenses & Energy'!P77 -> 0 | W14: ='Operating Expenses & Energy'!Q77 -> 0 | X14: ='Operating Expenses & Energy'!R77 -> 0 | Y14: ='Operating Expenses & Energy'!S77 -> 0 | Z14: ='Operating Expenses & Energy'!T77 -> 0 | AA14: ='Operating Expenses & Energy'!U77 -> 0 | AB14: ='Operating Expenses & Energy'!V77 -> 0 | AC14: ='Operating Expenses & Energy'!W77 -> 0 | AD14: ='Operating Expenses & Energy'!X77 -> 0 | AE14: ='Operating Expenses & Energy'!Y77 -> 0 | AF14: ='Operating Expenses & Energy'!Z77 -> 0 | AG14: ='Operating Expenses & Energy'!AA77 -> 0 | AH14: ='Operating Expenses & Energy'!AB77 -> 0 | AI14: ='Operating Expenses & Energy'!AC77 -> 0 | AJ14: ='Operating Expenses & Energy'!AD77 -> 0 | AK14: ='Operating Expenses & Energy'!AE77 -> 0 | AL14: e
A15: Capital Improvements, 2021 | B15: 30 | C15: 15 | D15: =D14+1 -> 2021 | E15: 12 | F15: Yes | G15: Yes | H15: 0 | I15: ='Operating Expenses & Energy'!C78 -> 0 | J15: ='Operating Expenses & Energy'!D78 -> 0 | K15: ='Operating Expenses & Energy'!E78 -> 0 | L15: ='Operating Expenses & Energy'!F78 -> 0 | M15: ='Operating Expenses & Energy'!G78 -> 0 | N15: ='Operating Expenses & Energy'!H78 -> 0 | O15: ='Operating Expenses & Energy'!I78 -> 0 | P15: ='Operating Expenses & Energy'!J78 -> 0 | Q15: ='Operating Expenses & Energy'!K78 -> 0 | R15: ='Operating Expenses & Energy'!L78 -> 0 | S15: ='Operating Expenses & Energy'!M78 -> 0 | T15: ='Operating Expenses & Energy'!N78 -> 0 | U15: ='Operating Expenses & Energy'!O78 -> 0 | V15: ='Operating Expenses & Energy'!P78 -> 0 | W15: ='Operating Expenses & Energy'!Q78 -> 0 | X15: ='Operating Expenses & Energy'!R78 -> 0 | Y15: ='Operating Expenses & Energy'!S78 -> 0 | Z15: ='Operating Expenses & Energy'!T78 -> 0 | AA15: ='Operating Expenses & Energy'!U78 -> 0 | AB15: ='Operating Expenses & Energy'!V78 -> 0 | AC15: ='Operating Expenses & Energy'!W78 -> 0 | AD15: ='Operating Expenses & Energy'!X78 -> 0 | AE15: ='Operating Expenses & Energy'!Y78 -> 0 | AF15: ='Operating Expenses & Energy'!Z78 -> 0 | AG15: ='Operating Expenses & Energy'!AA78 -> 0 | AH15: ='Operating Expenses & Energy'!AB78 -> 0 | AI15: ='Operating Expenses & Energy'!AC78 -> 0 | AJ15: ='Operating Expenses & Energy'!AD78 -> 0 | AK15: ='Operating Expenses & Energy'!AE78 -> 0 | AL15: e
A16: Capital Improvements, 2022 | B16: 30 | C16: 15 | D16: 2022 | E16: 7 | F16: Yes | G16: Yes | H16: 0 | I16: ='Operating Expenses & Energy'!C79 -> 0 | J16: ='Operating Expenses & Energy'!D79 -> 0 | K16: ='Operating Expenses & Energy'!E79 -> 0 | L16: ='Operating Expenses & Energy'!F79 -> 0 | M16: ='Operating Expenses & Energy'!G79 -> 0 | N16: ='Operating Expenses & Energy'!H79 -> 0 | O16: ='Operating Expenses & Energy'!I79 -> 0 | P16: ='Operating Expenses & Energy'!J79 -> 0 | Q16: ='Operating Expenses & Energy'!K79 -> 0 | R16: ='Operating Expenses & Energy'!L79 -> 0 | S16: ='Operating Expenses & Energy'!M79 -> 0 | T16: ='Operating Expenses & Energy'!N79 -> 0 | U16: ='Operating Expenses & Energy'!O79 -> 0 | V16: ='Operating Expenses & Energy'!P79 -> 0 | W16: ='Operating Expenses & Energy'!Q79 -> 0 | X16: ='Operating Expenses & Energy'!R79 -> 0 | Y16: ='Operating Expenses & Energy'!S79 -> 0 | Z16: ='Operating Expenses & Energy'!T79 -> 0 | AA16: ='Operating Expenses & Energy'!U79 -> 0 | AB16: ='Operating Expenses & Energy'!V79 -> 0 | AC16: ='Operating Expenses & Energy'!W79 -> 0 | AD16: ='Operating Expenses & Energy'!X79 -> 0 | AE16: ='Operating Expenses & Energy'!Y79 -> 0 | AF16: ='Operating Expenses & Energy'!Z79 -> 0 | AG16: ='Operating Expenses & Energy'!AA79 -> 0 | AH16: ='Operating Expenses & Energy'!AB79 -> 0 | AI16: ='Operating Expenses & Energy'!AC79 -> 0 | AJ16: ='Operating Expenses & Energy'!AD79 -> 0 | AK16: ='Operating Expenses & Energy'!AE79 -> 0 | AL16: e
A17: Capital Improvements, 2023 | B17: 30 | C17: 15 | D17: 2023 | E17: 12 | F17: Yes | G17: Yes | H17: 0 | I17: ='Operating Expenses & Energy'!C80 -> 0 | J17: ='Operating Expenses & Energy'!D80 -> 0 | K17: ='Operating Expenses & Energy'!E80 -> 6500 | L17: ='Operating Expenses & Energy'!F80 -> 0 | M17: ='Operating Expenses & Energy'!G80 -> 0 | N17: ='Operating Expenses & Energy'!H80 -> 0 | O17: ='Operating Expenses & Energy'!I80 -> 0 | P17: ='Operating Expenses & Energy'!J80 -> 0 | Q17: ='Operating Expenses & Energy'!K80 -> 0 | R17: ='Operating Expenses & Energy'!L80 -> 0 | S17: ='Operating Expenses & Energy'!M80 -> 0 | T17: ='Operating Expenses & Energy'!N80 -> 0 | U17: ='Operating Expenses & Energy'!O80 -> 0 | V17: ='Operating Expenses & Energy'!P80 -> 0 | W17: ='Operating Expenses & Energy'!Q80 -> 0 | X17: ='Operating Expenses & Energy'!R80 -> 0 | Y17: ='Operating Expenses & Energy'!S80 -> 0 | Z17: ='Operating Expenses & Energy'!T80 -> 0 | AA17: ='Operating Expenses & Energy'!U80 -> 0 | AB17: ='Operating Expenses & Energy'!V80 -> 0 | AC17: ='Operating Expenses & Energy'!W80 -> 0 | AD17: ='Operating Expenses & Energy'!X80 -> 0 | AE17: ='Operating Expenses & Energy'!Y80 -> 0 | AF17: ='Operating Expenses & Energy'!Z80 -> 0 | AG17: ='Operating Expenses & Energy'!AA80 -> 0 | AH17: ='Operating Expenses & Energy'!AB80 -> 0 | AI17: ='Operating Expenses & Energy'!AC80 -> 0 | AJ17: ='Operating Expenses & Energy'!AD80 -> 0 | AK17: ='Operating Expenses & Energy'!AE80 -> 0 | AL17: e
A18: Capital Improvements, 2024 | B18: 30 | C18: 15 | D18: 2024 | E18: 12 | F18: Yes | G18: Yes | H18: 0 | I18: ='Operating Expenses & Energy'!C81 -> 0 | J18: ='Operating Expenses & Energy'!D81 -> 0 | K18: ='Operating Expenses & Energy'!E81 -> 0 | L18: ='Operating Expenses & Energy'!F81 -> 0 | M18: ='Operating Expenses & Energy'!G81 -> 0 | N18: ='Operating Expenses & Energy'!H81 -> 0 | O18: ='Operating Expenses & Energy'!I81 -> 0 | P18: ='Operating Expenses & Energy'!J81 -> 0 | Q18: ='Operating Expenses & Energy'!K81 -> 0 | R18: ='Operating Expenses & Energy'!L81 -> 0 | S18: ='Operating Expenses & Energy'!M81 -> 0 | T18: ='Operating Expenses & Energy'!N81 -> 0 | U18: ='Operating Expenses & Energy'!O81 -> 0 | V18: ='Operating Expenses & Energy'!P81 -> 0 | W18: ='Operating Expenses & Energy'!Q81 -> 0 | X18: ='Operating Expenses & Energy'!R81 -> 0 | Y18: ='Operating Expenses & Energy'!S81 -> 0 | Z18: ='Operating Expenses & Energy'!T81 -> 0 | AA18: ='Operating Expenses & Energy'!U81 -> 0 | AB18: ='Operating Expenses & Energy'!V81 -> 0 | AC18: ='Operating Expenses & Energy'!W81 -> 0 | AD18: ='Operating Expenses & Energy'!X81 -> 0 | AE18: ='Operating Expenses & Energy'!Y81 -> 0 | AF18: ='Operating Expenses & Energy'!Z81 -> 0 | AG18: ='Operating Expenses & Energy'!AA81 -> 0 | AH18: ='Operating Expenses & Energy'!AB81 -> 0 | AI18: ='Operating Expenses & Energy'!AC81 -> 0 | AJ18: ='Operating Expenses & Energy'!AD81 -> 0 | AK18: ='Operating Expenses & Energy'!AE81 -> 0 | AL18: e
A19: Capital Improvements, 2025 | B19: 30 | C19: 15 | D19: 2025 | E19: 12 | F19: Yes | G19: Yes | H19: 0 | I19: ='Operating Expenses & Energy'!C82 -> 0 | J19: ='Operating Expenses & Energy'!D82 -> 0 | K19: ='Operating Expenses & Energy'!E82 -> 0 | L19: ='Operating Expenses & Energy'!F82 -> 0 | M19: ='Operating Expenses & Energy'!G82 -> 6880 | N19: ='Operating Expenses & Energy'!H82 -> 0 | O19: ='Operating Expenses & Energy'!I82 -> 0 | P19: ='Operating Expenses & Energy'!J82 -> 0 | Q19: ='Operating Expenses & Energy'!K82 -> 0 | R19: ='Operating Expenses & Energy'!L82 -> 0 | S19: ='Operating Expenses & Energy'!M82 -> 0 | T19: ='Operating Expenses & Energy'!N82 -> 0 | U19: ='Operating Expenses & Energy'!O82 -> 0 | V19: ='Operating Expenses & Energy'!P82 -> 0 | W19: ='Operating Expenses & Energy'!Q82 -> 0 | X19: ='Operating Expenses & Energy'!R82 -> 0 | Y19: ='Operating Expenses & Energy'!S82 -> 0 | Z19: ='Operating Expenses & Energy'!T82 -> 0 | AA19: ='Operating Expenses & Energy'!U82 -> 0 | AB19: ='Operating Expenses & Energy'!V82 -> 0 | AC19: ='Operating Expenses & Energy'!W82 -> 0 | AD19: ='Operating Expenses & Energy'!X82 -> 0 | AE19: ='Operating Expenses & Energy'!Y82 -> 0 | AF19: ='Operating Expenses & Energy'!Z82 -> 0 | AG19: ='Operating Expenses & Energy'!AA82 -> 0 | AH19: ='Operating Expenses & Energy'!AB82 -> 0 | AI19: ='Operating Expenses & Energy'!AC82 -> 0 | AJ19: ='Operating Expenses & Energy'!AD82 -> 0 | AK19: ='Operating Expenses & Energy'!AE82 -> 0 | AL19: e
A20: Capital Improvements, 2026 | B20: 30 | C20: 15 | D20: 2026 | E20: 12 | F20: Yes | G20: Yes | H20: 0 | I20: ='Operating Expenses & Energy'!C83 -> 0 | J20: ='Operating Expenses & Energy'!D83 -> 0 | K20: ='Operating Expenses & Energy'!E83 -> 0 | L20: ='Operating Expenses & Energy'!F83 -> 0 | M20: ='Operating Expenses & Energy'!G83 -> 0 | N20: ='Operating Expenses & Energy'!H83 -> 97605 | O20: ='Operating Expenses & Energy'!I83 -> 0 | P20: ='Operating Expenses & Energy'!J83 -> 0 | Q20: ='Operating Expenses & Energy'!K83 -> 0 | R20: ='Operating Expenses & Energy'!L83 -> 0 | S20: ='Operating Expenses & Energy'!M83 -> 0 | T20: ='Operating Expenses & Energy'!N83 -> 0 | U20: ='Operating Expenses & Energy'!O83 -> 0 | V20: ='Operating Expenses & Energy'!P83 -> 0 | W20: ='Operating Expenses & Energy'!Q83 -> 0 | X20: ='Operating Expenses & Energy'!R83 -> 0 | Y20: ='Operating Expenses & Energy'!S83 -> 0 | Z20: ='Operating Expenses & Energy'!T83 -> 0 | AA20: ='Operating Expenses & Energy'!U83 -> 0 | AB20: ='Operating Expenses & Energy'!V83 -> 0 | AC20: ='Operating Expenses & Energy'!W83 -> 0 | AD20: ='Operating Expenses & Energy'!X83 -> 0 | AE20: ='Operating Expenses & Energy'!Y83 -> 0 | AF20: ='Operating Expenses & Energy'!Z83 -> 0 | AG20: ='Operating Expenses & Energy'!AA83 -> 0 | AH20: ='Operating Expenses & Energy'!AB83 -> 0 | AI20: ='Operating Expenses & Energy'!AC83 -> 0 | AJ20: ='Operating Expenses & Energy'!AD83 -> 0 | AK20: ='Operating Expenses & Energy'!AE83 -> 0 | AL20: e
A21: Capital Improvements, 2027 | B21: 30 | C21: 15 | D21: 2027 | E21: 12 | F21: Yes | G21: Yes | H21: 0 | I21: ='Operating Expenses & Energy'!C84 -> 0 | J21: ='Operating Expenses & Energy'!D84 -> 0 | K21: ='Operating Expenses & Energy'!E84 -> 0 | L21: ='Operating Expenses & Energy'!F84 -> 0 | M21: ='Operating Expenses & Energy'!G84 -> 0 | N21: ='Operating Expenses & Energy'!H84 -> 0 | O21: ='Operating Expenses & Energy'!I84 -> 7281 | P21: ='Operating Expenses & Energy'!J84 -> 0 | Q21: ='Operating Expenses & Energy'!K84 -> 0 | R21: ='Operating Expenses & Energy'!L84 -> 0 | S21: ='Operating Expenses & Energy'!M84 -> 0 | T21: ='Operating Expenses & Energy'!N84 -> 0 | U21: ='Operating Expenses & Energy'!O84 -> 0 | V21: ='Operating Expenses & Energy'!P84 -> 0 | W21: ='Operating Expenses & Energy'!Q84 -> 0 | X21: ='Operating Expenses & Energy'!R84 -> 0 | Y21: ='Operating Expenses & Energy'!S84 -> 0 | Z21: ='Operating Expenses & Energy'!T84 -> 0 | AA21: ='Operating Expenses & Energy'!U84 -> 0 | AB21: ='Operating Expenses & Energy'!V84 -> 0 | AC21: ='Operating Expenses & Energy'!W84 -> 0 | AD21: ='Operating Expenses & Energy'!X84 -> 0 | AE21: ='Operating Expenses & Energy'!Y84 -> 0 | AF21: ='Operating Expenses & Energy'!Z84 -> 0 | AG21: ='Operating Expenses & Energy'!AA84 -> 0 | AH21: ='Operating Expenses & Energy'!AB84 -> 0 | AI21: ='Operating Expenses & Energy'!AC84 -> 0 | AJ21: ='Operating Expenses & Energy'!AD84 -> 0 | AK21: ='Operating Expenses & Energy'!AE84 -> 0 | AL21: e
A22: Capital Improvements, 2028 | B22: 30 | C22: 15 | D22: 2028 | E22: 12 | F22: Yes | G22: Yes | H22: 0 | I22: ='Operating Expenses & Energy'!C85 -> 0 | J22: ='Operating Expenses & Energy'!D85 -> 0 | K22: ='Operating Expenses & Energy'!E85 -> 0 | L22: ='Operating Expenses & Energy'!F85 -> 0 | M22: ='Operating Expenses & Energy'!G85 -> 0 | N22: ='Operating Expenses & Energy'!H85 -> 0 | O22: ='Operating Expenses & Energy'!I85 -> 0 | P22: ='Operating Expenses & Energy'!J85 -> 299111 | Q22: ='Operating Expenses & Energy'!K85 -> 0 | R22: ='Operating Expenses & Energy'!L85 -> 0 | S22: ='Operating Expenses & Energy'!M85 -> 0 | T22: ='Operating Expenses & Energy'!N85 -> 0 | U22: ='Operating Expenses & Energy'!O85 -> 0 | V22: ='Operating Expenses & Energy'!P85 -> 0 | W22: ='Operating Expenses & Energy'!Q85 -> 0 | X22: ='Operating Expenses & Energy'!R85 -> 0 | Y22: ='Operating Expenses & Energy'!S85 -> 0 | Z22: ='Operating Expenses & Energy'!T85 -> 0 | AA22: ='Operating Expenses & Energy'!U85 -> 0 | AB22: ='Operating Expenses & Energy'!V85 -> 0 | AC22: ='Operating Expenses & Energy'!W85 -> 0 | AD22: ='Operating Expenses & Energy'!X85 -> 0 | AE22: ='Operating Expenses & Energy'!Y85 -> 0 | AF22: ='Operating Expenses & Energy'!Z85 -> 0 | AG22: ='Operating Expenses & Energy'!AA85 -> 0 | AH22: ='Operating Expenses & Energy'!AB85 -> 0 | AI22: ='Operating Expenses & Energy'!AC85 -> 0 | AJ22: ='Operating Expenses & Energy'!AD85 -> 0 | AK22: ='Operating Expenses & Energy'!AE85 -> 0 | AL22: e
A23: Capital Improvements, 2029 | B23: 30 | C23: 15 | D23: 2029 | E23: 12 | F23: Yes | G23: Yes | H23: 0 | I23: ='Operating Expenses & Energy'!C86 -> 0 | J23: ='Operating Expenses & Energy'!D86 -> 0 | K23: ='Operating Expenses & Energy'!E86 -> 0 | L23: ='Operating Expenses & Energy'!F86 -> 0 | M23: ='Operating Expenses & Energy'!G86 -> 0 | N23: ='Operating Expenses & Energy'!H86 -> 0 | O23: ='Operating Expenses & Energy'!I86 -> 0 | P23: ='Operating Expenses & Energy'!J86 -> 0 | Q23: ='Operating Expenses & Energy'!K86 -> 7707 | R23: ='Operating Expenses & Energy'!L86 -> 0 | S23: ='Operating Expenses & Energy'!M86 -> 0 | T23: ='Operating Expenses & Energy'!N86 -> 0 | U23: ='Operating Expenses & Energy'!O86 -> 0 | V23: ='Operating Expenses & Energy'!P86 -> 0 | W23: ='Operating Expenses & Energy'!Q86 -> 0 | X23: ='Operating Expenses & Energy'!R86 -> 0 | Y23: ='Operating Expenses & Energy'!S86 -> 0 | Z23: ='Operating Expenses & Energy'!T86 -> 0 | AA23: ='Operating Expenses & Energy'!U86 -> 0 | AB23: ='Operating Expenses & Energy'!V86 -> 0 | AC23: ='Operating Expenses & Energy'!W86 -> 0 | AD23: ='Operating Expenses & Energy'!X86 -> 0 | AE23: ='Operating Expenses & Energy'!Y86 -> 0 | AF23: ='Operating Expenses & Energy'!Z86 -> 0 | AG23: ='Operating Expenses & Energy'!AA86 -> 0 | AH23: ='Operating Expenses & Energy'!AB86 -> 0 | AI23: ='Operating Expenses & Energy'!AC86 -> 0 | AJ23: ='Operating Expenses & Energy'!AD86 -> 0 | AK23: ='Operating Expenses & Energy'!AE86 -> 0 | AL23: e
A24: Capital Improvements, 2030 | B24: 30 | C24: 15 | D24: 2030 | E24: 12 | F24: Yes | G24: Yes | H24: 0 | I24: ='Operating Expenses & Energy'!C87 -> 0 | J24: ='Operating Expenses & Energy'!D87 -> 0 | K24: ='Operating Expenses & Energy'!E87 -> 0 | L24: ='Operating Expenses & Energy'!F87 -> 0 | M24: ='Operating Expenses & Energy'!G87 -> 0 | N24: ='Operating Expenses & Energy'!H87 -> 0 | O24: ='Operating Expenses & Energy'!I87 -> 0 | P24: ='Operating Expenses & Energy'!J87 -> 0 | Q24: ='Operating Expenses & Energy'!K87 -> 0 | R24: ='Operating Expenses & Energy'!L87 -> 0 | S24: ='Operating Expenses & Energy'!M87 -> 0 | T24: ='Operating Expenses & Energy'!N87 -> 0 | U24: ='Operating Expenses & Energy'!O87 -> 0 | V24: ='Operating Expenses & Energy'!P87 -> 0 | W24: ='Operating Expenses & Energy'!Q87 -> 0 | X24: ='Operating Expenses & Energy'!R87 -> 0 | Y24: ='Operating Expenses & Energy'!S87 -> 0 | Z24: ='Operating Expenses & Energy'!T87 -> 0 | AA24: ='Operating Expenses & Energy'!U87 -> 0 | AB24: ='Operating Expenses & Energy'!V87 -> 0 | AC24: ='Operating Expenses & Energy'!W87 -> 0 | AD24: ='Operating Expenses & Energy'!X87 -> 0 | AE24: ='Operating Expenses & Energy'!Y87 -> 0 | AF24: ='Operating Expenses & Energy'!Z87 -> 0 | AG24: ='Operating Expenses & Energy'!AA87 -> 0 | AH24: ='Operating Expenses & Energy'!AB87 -> 0 | AI24: ='Operating Expenses & Energy'!AC87 -> 0 | AJ24: ='Operating Expenses & Energy'!AD87 -> 0 | AK24: ='Operating Expenses & Energy'!AE87 -> 0 | AL24: e
A25: Capital Improvements, 2031 | B25: 30 | C25: 15 | D25: 2031 | E25: 12 | F25: Yes | G25: Yes | H25: 0 | I25: ='Operating Expenses & Energy'!C88 -> 0 | J25: ='Operating Expenses & Energy'!D88 -> 0 | K25: ='Operating Expenses & Energy'!E88 -> 0 | L25: ='Operating Expenses & Energy'!F88 -> 0 | M25: ='Operating Expenses & Energy'!G88 -> 0 | N25: ='Operating Expenses & Energy'!H88 -> 0 | O25: ='Operating Expenses & Energy'!I88 -> 0 | P25: ='Operating Expenses & Energy'!J88 -> 0 | Q25: ='Operating Expenses & Energy'!K88 -> 0 | R25: ='Operating Expenses & Energy'!L88 -> 0 | S25: ='Operating Expenses & Energy'!M88 -> 208858 | T25: ='Operating Expenses & Energy'!N88 -> 0 | U25: ='Operating Expenses & Energy'!O88 -> 0 | V25: ='Operating Expenses & Energy'!P88 -> 0 | W25: ='Operating Expenses & Energy'!Q88 -> 0 | X25: ='Operating Expenses & Energy'!R88 -> 0 | Y25: ='Operating Expenses & Energy'!S88 -> 0 | Z25: ='Operating Expenses & Energy'!T88 -> 0 | AA25: ='Operating Expenses & Energy'!U88 -> 0 | AB25: ='Operating Expenses & Energy'!V88 -> 0 | AC25: ='Operating Expenses & Energy'!W88 -> 0 | AD25: ='Operating Expenses & Energy'!X88 -> 0 | AE25: ='Operating Expenses & Energy'!Y88 -> 0 | AF25: ='Operating Expenses & Energy'!Z88 -> 0 | AG25: ='Operating Expenses & Energy'!AA88 -> 0 | AH25: ='Operating Expenses & Energy'!AB88 -> 0 | AI25: ='Operating Expenses & Energy'!AC88 -> 0 | AJ25: ='Operating Expenses & Energy'!AD88 -> 0 | AK25: ='Operating Expenses & Energy'!AE88 -> 0 | AL25: e
A26: Capital Improvements, 2032 | B26: 30 | C26: 15 | D26: 2032 | E26: 12 | F26: Yes | G26: Yes | H26: 0 | I26: ='Operating Expenses & Energy'!C89 -> 0 | J26: ='Operating Expenses & Energy'!D89 -> 0 | K26: ='Operating Expenses & Energy'!E89 -> 0 | L26: ='Operating Expenses & Energy'!F89 -> 0 | M26: ='Operating Expenses & Energy'!G89 -> 0 | N26: ='Operating Expenses & Energy'!H89 -> 0 | O26: ='Operating Expenses & Energy'!I89 -> 0 | P26: ='Operating Expenses & Energy'!J89 -> 0 | Q26: ='Operating Expenses & Energy'!K89 -> 0 | R26: ='Operating Expenses & Energy'!L89 -> 0 | S26: ='Operating Expenses & Energy'!M89 -> 0 | T26: ='Operating Expenses & Energy'!N89 -> 0 | U26: ='Operating Expenses & Energy'!O89 -> 0 | V26: ='Operating Expenses & Energy'!P89 -> 0 | W26: ='Operating Expenses & Energy'!Q89 -> 0 | X26: ='Operating Expenses & Energy'!R89 -> 0 | Y26: ='Operating Expenses & Energy'!S89 -> 0 | Z26: ='Operating Expenses & Energy'!T89 -> 0 | AA26: ='Operating Expenses & Energy'!U89 -> 0 | AB26: ='Operating Expenses & Energy'!V89 -> 0 | AC26: ='Operating Expenses & Energy'!W89 -> 0 | AD26: ='Operating Expenses & Energy'!X89 -> 0 | AE26: ='Operating Expenses & Energy'!Y89 -> 0 | AF26: ='Operating Expenses & Energy'!Z89 -> 0 | AG26: ='Operating Expenses & Energy'!AA89 -> 0 | AH26: ='Operating Expenses & Energy'!AB89 -> 0 | AI26: ='Operating Expenses & Energy'!AC89 -> 0 | AJ26: ='Operating Expenses & Energy'!AD89 -> 0 | AK26: ='Operating Expenses & Energy'!AE89 -> 0 | AL26: e
A27: Capital Improvements, 2033 | B27: 30 | C27: 15 | D27: 2033 | E27: 12 | F27: Yes | G27: Yes | H27: 0 | I27: ='Operating Expenses & Energy'!C90 -> 0 | J27: ='Operating Expenses & Energy'!D90 -> 0 | K27: ='Operating Expenses & Energy'!E90 -> 0 | L27: ='Operating Expenses & Energy'!F90 -> 0 | M27: ='Operating Expenses & Energy'!G90 -> 0 | N27: ='Operating Expenses & Energy'!H90 -> 0 | O27: ='Operating Expenses & Energy'!I90 -> 0 | P27: ='Operating Expenses & Energy'!J90 -> 0 | Q27: ='Operating Expenses & Energy'!K90 -> 0 | R27: ='Operating Expenses & Energy'!L90 -> 0 | S27: ='Operating Expenses & Energy'!M90 -> 0 | T27: ='Operating Expenses & Energy'!N90 -> 0 | U27: ='Operating Expenses & Energy'!O90 -> 8634 | V27: ='Operating Expenses & Energy'!P90 -> 0 | W27: ='Operating Expenses & Energy'!Q90 -> 0 | X27: ='Operating Expenses & Energy'!R90 -> 0 | Y27: ='Operating Expenses & Energy'!S90 -> 0 | Z27: ='Operating Expenses & Energy'!T90 -> 0 | AA27: ='Operating Expenses & Energy'!U90 -> 0 | AB27: ='Operating Expenses & Energy'!V90 -> 0 | AC27: ='Operating Expenses & Energy'!W90 -> 0 | AD27: ='Operating Expenses & Energy'!X90 -> 0 | AE27: ='Operating Expenses & Energy'!Y90 -> 0 | AF27: ='Operating Expenses & Energy'!Z90 -> 0 | AG27: ='Operating Expenses & Energy'!AA90 -> 0 | AH27: ='Operating Expenses & Energy'!AB90 -> 0 | AI27: ='Operating Expenses & Energy'!AC90 -> 0 | AJ27: ='Operating Expenses & Energy'!AD90 -> 0 | AK27: ='Operating Expenses & Energy'!AE90 -> 0 | AL27: e
A28: Capital Improvements, 2034 | B28: 30 | C28: 15 | D28: 2034 | E28: 12 | F28: Yes | G28: Yes | H28: 0 | I28: ='Operating Expenses & Energy'!C91 -> 0 | J28: ='Operating Expenses & Energy'!D91 -> 0 | K28: ='Operating Expenses & Energy'!E91 -> 0 | L28: ='Operating Expenses & Energy'!F91 -> 0 | M28: ='Operating Expenses & Energy'!G91 -> 0 | N28: ='Operating Expenses & Energy'!H91 -> 0 | O28: ='Operating Expenses & Energy'!I91 -> 0 | P28: ='Operating Expenses & Energy'!J91 -> 0 | Q28: ='Operating Expenses & Energy'!K91 -> 0 | R28: ='Operating Expenses & Energy'!L91 -> 0 | S28: ='Operating Expenses & Energy'!M91 -> 0 | T28: ='Operating Expenses & Energy'!N91 -> 0 | U28: ='Operating Expenses & Energy'!O91 -> 0 | V28: ='Operating Expenses & Energy'!P91 -> 0 | W28: ='Operating Expenses & Energy'!Q91 -> 0 | X28: ='Operating Expenses & Energy'!R91 -> 0 | Y28: ='Operating Expenses & Energy'!S91 -> 0 | Z28: ='Operating Expenses & Energy'!T91 -> 0 | AA28: ='Operating Expenses & Energy'!U91 -> 0 | AB28: ='Operating Expenses & Energy'!V91 -> 0 | AC28: ='Operating Expenses & Energy'!W91 -> 0 | AD28: ='Operating Expenses & Energy'!X91 -> 0 | AE28: ='Operating Expenses & Energy'!Y91 -> 0 | AF28: ='Operating Expenses & Energy'!Z91 -> 0 | AG28: ='Operating Expenses & Energy'!AA91 -> 0 | AH28: ='Operating Expenses & Energy'!AB91 -> 0 | AI28: ='Operating Expenses & Energy'!AC91 -> 0 | AJ28: ='Operating Expenses & Energy'!AD91 -> 0 | AK28: ='Operating Expenses & Energy'!AE91 -> 0 | AL28: e
A29: Capital Improvements, 2035 | B29: 30 | C29: 15 | D29: 2035 | E29: 12 | F29: Yes | G29: Yes | H29: 0 | I29: ='Operating Expenses & Energy'!C92 -> 0 | J29: ='Operating Expenses & Energy'!D92 -> 0 | K29: ='Operating Expenses & Energy'!E92 -> 0 | L29: ='Operating Expenses & Energy'!F92 -> 0 | M29: ='Operating Expenses & Energy'!G92 -> 0 | N29: ='Operating Expenses & Energy'!H92 -> 0 | O29: ='Operating Expenses & Energy'!I92 -> 0 | P29: ='Operating Expenses & Energy'!J92 -> 0 | Q29: ='Operating Expenses & Energy'!K92 -> 0 | R29: ='Operating Expenses & Energy'!L92 -> 0 | S29: ='Operating Expenses & Energy'!M92 -> 0 | T29: ='Operating Expenses & Energy'!N92 -> 0 | U29: ='Operating Expenses & Energy'!O92 -> 0 | V29: ='Operating Expenses & Energy'!P92 -> 0 | W29: ='Operating Expenses & Energy'!Q92 -> 352970 | X29: ='Operating Expenses & Energy'!R92 -> 0 | Y29: ='Operating Expenses & Energy'!S92 -> 0 | Z29: ='Operating Expenses & Energy'!T92 -> 0 | AA29: ='Operating Expenses & Energy'!U92 -> 0 | AB29: ='Operating Expenses & Energy'!V92 -> 0 | AC29: ='Operating Expenses & Energy'!W92 -> 0 | AD29: ='Operating Expenses & Energy'!X92 -> 0 | AE29: ='Operating Expenses & Energy'!Y92 -> 0 | AF29: ='Operating Expenses & Energy'!Z92 -> 0 | AG29: ='Operating Expenses & Energy'!AA92 -> 0 | AH29: ='Operating Expenses & Energy'!AB92 -> 0 | AI29: ='Operating Expenses & Energy'!AC92 -> 0 | AJ29: ='Operating Expenses & Energy'!AD92 -> 0 | AK29: ='Operating Expenses & Energy'!AE92 -> 0 | AL29: e
A30: Capital Improvements, 2036 | B30: 30 | C30: 15 | D30: 2036 | E30: 12 | F30: Yes | G30: Yes | H30: 0 | I30: ='Operating Expenses & Energy'!C93 -> 0 | J30: ='Operating Expenses & Energy'!D93 -> 0 | K30: ='Operating Expenses & Energy'!E93 -> 0 | L30: ='Operating Expenses & Energy'!F93 -> 0 | M30: ='Operating Expenses & Energy'!G93 -> 0 | N30: ='Operating Expenses & Energy'!H93 -> 0 | O30: ='Operating Expenses & Energy'!I93 -> 0 | P30: ='Operating Expenses & Energy'!J93 -> 0 | Q30: ='Operating Expenses & Energy'!K93 -> 0 | R30: ='Operating Expenses & Energy'!L93 -> 0 | S30: ='Operating Expenses & Energy'!M93 -> 0 | T30: ='Operating Expenses & Energy'!N93 -> 0 | U30: ='Operating Expenses & Energy'!O93 -> 0 | V30: ='Operating Expenses & Energy'!P93 -> 0 | W30: ='Operating Expenses & Energy'!Q93 -> 0 | X30: ='Operating Expenses & Energy'!R93 -> 315256 | Y30: ='Operating Expenses & Energy'!S93 -> 0 | Z30: ='Operating Expenses & Energy'!T93 -> 0 | AA30: ='Operating Expenses & Energy'!U93 -> 0 | AB30: ='Operating Expenses & Energy'!V93 -> 0 | AC30: ='Operating Expenses & Energy'!W93 -> 0 | AD30: ='Operating Expenses & Energy'!X93 -> 0 | AE30: ='Operating Expenses & Energy'!Y93 -> 0 | AF30: ='Operating Expenses & Energy'!Z93 -> 0 | AG30: ='Operating Expenses & Energy'!AA93 -> 0 | AH30: ='Operating Expenses & Energy'!AB93 -> 0 | AI30: ='Operating Expenses & Energy'!AC93 -> 0 | AJ30: ='Operating Expenses & Energy'!AD93 -> 0 | AK30: ='Operating Expenses & Energy'!AE93 -> 0 | AL30: e
A31: Capital Improvements, 2037 | B31: 30 | C31: 15 | D31: 2037 | E31: 12 | F31: Yes | G31: Yes | H31: 0 | I31: ='Operating Expenses & Energy'!C94 -> 0 | J31: ='Operating Expenses & Energy'!D94 -> 0 | K31: ='Operating Expenses & Energy'!E94 -> 0 | L31: ='Operating Expenses & Energy'!F94 -> 0 | M31: ='Operating Expenses & Energy'!G94 -> 0 | N31: ='Operating Expenses & Energy'!H94 -> 0 | O31: ='Operating Expenses & Energy'!I94 -> 0 | P31: ='Operating Expenses & Energy'!J94 -> 0 | Q31: ='Operating Expenses & Energy'!K94 -> 0 | R31: ='Operating Expenses & Energy'!L94 -> 0 | S31: ='Operating Expenses & Energy'!M94 -> 0 | T31: ='Operating Expenses & Energy'!N94 -> 0 | U31: ='Operating Expenses & Energy'!O94 -> 0 | V31: ='Operating Expenses & Energy'!P94 -> 0 | W31: ='Operating Expenses & Energy'!Q94 -> 0 | X31: ='Operating Expenses & Energy'!R94 -> 0 | Y31: ='Operating Expenses & Energy'!S94 -> 9674 | Z31: ='Operating Expenses & Energy'!T94 -> 0 | AA31: ='Operating Expenses & Energy'!U94 -> 0 | AB31: ='Operating Expenses & Energy'!V94 -> 0 | AC31: ='Operating Expenses & Energy'!W94 -> 0 | AD31: ='Operating Expenses & Energy'!X94 -> 0 | AE31: ='Operating Expenses & Energy'!Y94 -> 0 | AF31: ='Operating Expenses & Energy'!Z94 -> 0 | AG31: ='Operating Expenses & Energy'!AA94 -> 0 | AH31: ='Operating Expenses & Energy'!AB94 -> 0 | AI31: ='Operating Expenses & Energy'!AC94 -> 0 | AJ31: ='Operating Expenses & Energy'!AD94 -> 0 | AK31: ='Operating Expenses & Energy'!AE94 -> 0 | AL31: e
A32: Capital Improvements, 2038 | B32: 30 | C32: 15 | D32: 2038 | E32: 12 | F32: Yes | G32: Yes | H32: 0 | I32: ='Operating Expenses & Energy'!C95 -> 0 | J32: ='Operating Expenses & Energy'!D95 -> 0 | K32: ='Operating Expenses & Energy'!E95 -> 0 | L32: ='Operating Expenses & Energy'!F95 -> 0 | M32: ='Operating Expenses & Energy'!G95 -> 0 | N32: ='Operating Expenses & Energy'!H95 -> 0 | O32: ='Operating Expenses & Energy'!I95 -> 0 | P32: ='Operating Expenses & Energy'!J95 -> 0 | Q32: ='Operating Expenses & Energy'!K95 -> 0 | R32: ='Operating Expenses & Energy'!L95 -> 0 | S32: ='Operating Expenses & Energy'!M95 -> 0 | T32: ='Operating Expenses & Energy'!N95 -> 0 | U32: ='Operating Expenses & Energy'!O95 -> 0 | V32: ='Operating Expenses & Energy'!P95 -> 0 | W32: ='Operating Expenses & Energy'!Q95 -> 0 | X32: ='Operating Expenses & Energy'!R95 -> 0 | Y32: ='Operating Expenses & Energy'!S95 -> 0 | Z32: ='Operating Expenses & Energy'!T95 -> 0 | AA32: ='Operating Expenses & Energy'!U95 -> 0 | AB32: ='Operating Expenses & Energy'!V95 -> 0 | AC32: ='Operating Expenses & Energy'!W95 -> 0 | AD32: ='Operating Expenses & Energy'!X95 -> 0 | AE32: ='Operating Expenses & Energy'!Y95 -> 0 | AF32: ='Operating Expenses & Energy'!Z95 -> 0 | AG32: ='Operating Expenses & Energy'!AA95 -> 0 | AH32: ='Operating Expenses & Energy'!AB95 -> 0 | AI32: ='Operating Expenses & Energy'!AC95 -> 0 | AJ32: ='Operating Expenses & Energy'!AD95 -> 0 | AK32: ='Operating Expenses & Energy'!AE95 -> 0 | AL32: e
A33: Capital Improvements, 2039 | B33: 30 | C33: 15 | D33: 2039 | E33: 12 | F33: Yes | G33: Yes | H33: 0 | I33: ='Operating Expenses & Energy'!C96 -> 0 | J33: ='Operating Expenses & Energy'!D96 -> 0 | K33: ='Operating Expenses & Energy'!E96 -> 0 | L33: ='Operating Expenses & Energy'!F96 -> 0 | M33: ='Operating Expenses & Energy'!G96 -> 0 | N33: ='Operating Expenses & Energy'!H96 -> 0 | O33: ='Operating Expenses & Energy'!I96 -> 0 | P33: ='Operating Expenses & Energy'!J96 -> 0 | Q33: ='Operating Expenses & Energy'!K96 -> 0 | R33: ='Operating Expenses & Energy'!L96 -> 0 | S33: ='Operating Expenses & Energy'!M96 -> 0 | T33: ='Operating Expenses & Energy'!N96 -> 0 | U33: ='Operating Expenses & Energy'!O96 -> 0 | V33: ='Operating Expenses & Energy'!P96 -> 0 | W33: ='Operating Expenses & Energy'!Q96 -> 0 | X33: ='Operating Expenses & Energy'!R96 -> 0 | Y33: ='Operating Expenses & Energy'!S96 -> 0 | Z33: ='Operating Expenses & Energy'!T96 -> 0 | AA33: ='Operating Expenses & Energy'!U96 -> 10240 | AB33: ='Operating Expenses & Energy'!V96 -> 0 | AC33: ='Operating Expenses & Energy'!W96 -> 0 | AD33: ='Operating Expenses & Energy'!X96 -> 0 | AE33: ='Operating Expenses & Energy'!Y96 -> 0 | AF33: ='Operating Expenses & Energy'!Z96 -> 0 | AG33: ='Operating Expenses & Energy'!AA96 -> 0 | AH33: ='Operating Expenses & Energy'!AB96 -> 0 | AI33: ='Operating Expenses & Energy'!AC96 -> 0 | AJ33: ='Operating Expenses & Energy'!AD96 -> 0 | AK33: ='Operating Expenses & Energy'!AE96 -> 0 | AL33: e
A34: Capital Improvements, 2040 | B34: 30 | C34: 15 | D34: 2040 | E34: 12 | F34: Yes | G34: Yes | H34: 0 | I34: ='Operating Expenses & Energy'!C97 -> 0 | J34: ='Operating Expenses & Energy'!D97 -> 0 | K34: ='Operating Expenses & Energy'!E97 -> 0 | L34: ='Operating Expenses & Energy'!F97 -> 0 | M34: ='Operating Expenses & Energy'!G97 -> 0 | N34: ='Operating Expenses & Energy'!H97 -> 0 | O34: ='Operating Expenses & Energy'!I97 -> 0 | P34: ='Operating Expenses & Energy'!J97 -> 0 | Q34: ='Operating Expenses & Energy'!K97 -> 0 | R34: ='Operating Expenses & Energy'!L97 -> 0 | S34: ='Operating Expenses & Energy'!M97 -> 0 | T34: ='Operating Expenses & Energy'!N97 -> 0 | U34: ='Operating Expenses & Energy'!O97 -> 0 | V34: ='Operating Expenses & Energy'!P97 -> 0 | W34: ='Operating Expenses & Energy'!Q97 -> 0 | X34: ='Operating Expenses & Energy'!R97 -> 0 | Y34: ='Operating Expenses & Energy'!S97 -> 0 | Z34: ='Operating Expenses & Energy'!T97 -> 0 | AA34: ='Operating Expenses & Energy'!U97 -> 0 | AB34: ='Operating Expenses & Energy'!V97 -> 0 | AC34: ='Operating Expenses & Energy'!W97 -> 0 | AD34: ='Operating Expenses & Energy'!X97 -> 0 | AE34: ='Operating Expenses & Energy'!Y97 -> 0 | AF34: ='Operating Expenses & Energy'!Z97 -> 0 | AG34: ='Operating Expenses & Energy'!AA97 -> 0 | AH34: ='Operating Expenses & Energy'!AB97 -> 0 | AI34: ='Operating Expenses & Energy'!AC97 -> 0 | AJ34: ='Operating Expenses & Energy'!AD97 -> 0 | AK34: ='Operating Expenses & Energy'!AE97 -> 0 | AL34: e
A35: Capital Improvements, 2041 | B35: 30 | C35: 15 | D35: 2041 | E35: 12 | F35: Yes | G35: Yes | H35: 0 | I35: ='Operating Expenses & Energy'!C98 -> 0 | J35: ='Operating Expenses & Energy'!D98 -> 0 | K35: ='Operating Expenses & Energy'!E98 -> 0 | L35: ='Operating Expenses & Energy'!F98 -> 0 | M35: ='Operating Expenses & Energy'!G98 -> 0 | N35: ='Operating Expenses & Energy'!H98 -> 0 | O35: ='Operating Expenses & Energy'!I98 -> 0 | P35: ='Operating Expenses & Energy'!J98 -> 0 | Q35: ='Operating Expenses & Energy'!K98 -> 0 | R35: ='Operating Expenses & Energy'!L98 -> 0 | S35: ='Operating Expenses & Energy'!M98 -> 0 | T35: ='Operating Expenses & Energy'!N98 -> 0 | U35: ='Operating Expenses & Energy'!O98 -> 0 | V35: ='Operating Expenses & Energy'!P98 -> 0 | W35: ='Operating Expenses & Energy'!Q98 -> 0 | X35: ='Operating Expenses & Energy'!R98 -> 0 | Y35: ='Operating Expenses & Energy'!S98 -> 0 | Z35: ='Operating Expenses & Energy'!T98 -> 0 | AA35: ='Operating Expenses & Energy'!U98 -> 0 | AB35: ='Operating Expenses & Energy'!V98 -> 0 | AC35: ='Operating Expenses & Energy'!W98 -> 0 | AD35: ='Operating Expenses & Energy'!X98 -> 0 | AE35: ='Operating Expenses & Energy'!Y98 -> 0 | AF35: ='Operating Expenses & Energy'!Z98 -> 0 | AG35: ='Operating Expenses & Energy'!AA98 -> 0 | AH35: ='Operating Expenses & Energy'!AB98 -> 0 | AI35: ='Operating Expenses & Energy'!AC98 -> 0 | AJ35: ='Operating Expenses & Energy'!AD98 -> 0 | AK35: ='Operating Expenses & Energy'!AE98 -> 0 | AL35: e
A36: ="Capital Improvements, "&D36 -> Capital Improvements, 2042 | B36: 35 | C36: 15 | D36: =D35+1 -> 2042 | E36: 5 | F36: Yes | G36: Yes | H36: 0 | I36: 0 | J36: ='Operating Expenses & Energy'!D103 -> 0 | K36: ='Operating Expenses & Energy'!E99 -> 0 | L36: ='Operating Expenses & Energy'!F99 -> 0 | M36: ='Operating Expenses & Energy'!G99 -> 0 | N36: ='Operating Expenses & Energy'!H99 -> 0 | O36: ='Operating Expenses & Energy'!I99 -> 0 | P36: ='Operating Expenses & Energy'!J99 -> 0 | Q36: ='Operating Expenses & Energy'!K99 -> 0 | R36: ='Operating Expenses & Energy'!L99 -> 0 | S36: ='Operating Expenses & Energy'!M99 -> 0 | T36: ='Operating Expenses & Energy'!N99 -> 0 | U36: ='Operating Expenses & Energy'!O99 -> 0 | V36: ='Operating Expenses & Energy'!P99 -> 0 | W36: ='Operating Expenses & Energy'!Q99 -> 0 | X36: ='Operating Expenses & Energy'!R99 -> 0 | Y36: ='Operating Expenses & Energy'!S99 -> 0 | Z36: ='Operating Expenses & Energy'!T99 -> 0 | AA36: ='Operating Expenses & Energy'!U99 -> 0 | AB36: ='Operating Expenses & Energy'!V99 -> 0 | AC36: ='Operating Expenses & Energy'!W99 -> 0 | AD36: ='Operating Expenses & Energy'!X99 -> 991014 | AE36: ='Operating Expenses & Energy'!Y99 -> 0 | AF36: ='Operating Expenses & Energy'!Z99 -> 0 | AG36: ='Operating Expenses & Energy'!AA99 -> 0 | AH36: ='Operating Expenses & Energy'!AB99 -> 0 | AI36: ='Operating Expenses & Energy'!AC99 -> 0 | AJ36: ='Operating Expenses & Energy'!AD99 -> 0 | AK36: ='Operating Expenses & Energy'!AE99 -> 0 | AL36: e
B37: 35 | C37: 15 | D37: 2043 | E37: 12 | F37: Yes | G37: Yes | H37: 0 | I37: 0 | J37: ='Operating Expenses & Energy'!D104 -> 0 | K37: ='Operating Expenses & Energy'!E100 -> 0 | L37: ='Operating Expenses & Energy'!F100 -> 0 | M37: ='Operating Expenses & Energy'!G100 -> 0 | N37: ='Operating Expenses & Energy'!H100 -> 0 | O37: ='Operating Expenses & Energy'!I100 -> 0 | P37: ='Operating Expenses & Energy'!J100 -> 0 | Q37: ='Operating Expenses & Energy'!K100 -> 0 | R37: ='Operating Expenses & Energy'!L100 -> 0 | S37: ='Operating Expenses & Energy'!M100 -> 0 | T37: ='Operating Expenses & Energy'!N100 -> 0 | U37: ='Operating Expenses & Energy'!O100 -> 0 | V37: ='Operating Expenses & Energy'!P100 -> 0 | W37: ='Operating Expenses & Energy'!Q100 -> 0 | X37: ='Operating Expenses & Energy'!R100 -> 0 | Y37: ='Operating Expenses & Energy'!S100 -> 0 | Z37: ='Operating Expenses & Energy'!T100 -> 0 | AA37: ='Operating Expenses & Energy'!U100 -> 0 | AB37: ='Operating Expenses & Energy'!V100 -> 0 | AC37: ='Operating Expenses & Energy'!W100 -> 0 | AD37: ='Operating Expenses & Energy'!X100 -> 0 | AE37: ='Operating Expenses & Energy'!Y100 -> 0 | AF37: ='Operating Expenses & Energy'!Z100 -> 0 | AG37: ='Operating Expenses & Energy'!AA100 -> 0 | AH37: ='Operating Expenses & Energy'!AB100 -> 0 | AI37: ='Operating Expenses & Energy'!AC100 -> 0 | AJ37: ='Operating Expenses & Energy'!AD100 -> 0 | AK37: ='Operating Expenses & Energy'!AE100 -> 0 | AL37: e
B38: 35 | C38: 15 | D38: 2044 | E38: 12 | F38: Yes | G38: Yes | H38: 0 | I38: 0 | J38: ='Operating Expenses & Energy'!D105 -> 0 | K38: ='Operating Expenses & Energy'!E101 -> 0 | L38: ='Operating Expenses & Energy'!F101 -> 0 | M38: ='Operating Expenses & Energy'!G101 -> 0 | N38: ='Operating Expenses & Energy'!H101 -> 0 | O38: ='Operating Expenses & Energy'!I101 -> 0 | P38: ='Operating Expenses & Energy'!J101 -> 0 | Q38: ='Operating Expenses & Energy'!K101 -> 0 | R38: ='Operating Expenses & Energy'!L101 -> 0 | S38: ='Operating Expenses & Energy'!M101 -> 0 | T38: ='Operating Expenses & Energy'!N101 -> 0 | U38: ='Operating Expenses & Energy'!O101 -> 0 | V38: ='Operating Expenses & Energy'!P101 -> 0 | W38: ='Operating Expenses & Energy'!Q101 -> 0 | X38: ='Operating Expenses & Energy'!R101 -> 0 | Y38: ='Operating Expenses & Energy'!S101 -> 0 | Z38: ='Operating Expenses & Energy'!T101 -> 0 | AA38: ='Operating Expenses & Energy'!U101 -> 0 | AB38: ='Operating Expenses & Energy'!V101 -> 0 | AC38: ='Operating Expenses & Energy'!W101 -> 0 | AD38: ='Operating Expenses & Energy'!X101 -> 0 | AE38: ='Operating Expenses & Energy'!Y101 -> 0 | AF38: ='Operating Expenses & Energy'!Z101 -> 0 | AG38: ='Operating Expenses & Energy'!AA101 -> 0 | AH38: ='Operating Expenses & Energy'!AB101 -> 0 | AI38: ='Operating Expenses & Energy'!AC101 -> 0 | AJ38: ='Operating Expenses & Energy'!AD101 -> 0 | AK38: ='Operating Expenses & Energy'!AE101 -> 0 | AL38: e
B39: 35 | C39: 15 | D39: =D38+1 -> 2045 | E39: 12 | F39: Yes | G39: Yes | H39: 0 | I39: 0 | J39: ='Operating Expenses & Energy'!D106 -> 0 | K39: ='Operating Expenses & Energy'!E102 -> 0 | L39: ='Operating Expenses & Energy'!F102 -> 0 | M39: ='Operating Expenses & Energy'!G102 -> 0 | N39: ='Operating Expenses & Energy'!H102 -> 0 | O39: ='Operating Expenses & Energy'!I102 -> 0 | P39: ='Operating Expenses & Energy'!J102 -> 0 | Q39: ='Operating Expenses & Energy'!K102 -> 0 | R39: ='Operating Expenses & Energy'!L102 -> 0 | S39: ='Operating Expenses & Energy'!M102 -> 0 | T39: ='Operating Expenses & Energy'!N102 -> 0 | U39: ='Operating Expenses & Energy'!O102 -> 0 | V39: ='Operating Expenses & Energy'!P102 -> 0 | W39: ='Operating Expenses & Energy'!Q102 -> 0 | X39: ='Operating Expenses & Energy'!R102 -> 0 | Y39: ='Operating Expenses & Energy'!S102 -> 0 | Z39: ='Operating Expenses & Energy'!T102 -> 0 | AA39: ='Operating Expenses & Energy'!U102 -> 0 | AB39: ='Operating Expenses & Energy'!V102 -> 0 | AC39: ='Operating Expenses & Energy'!W102 -> 0 | AD39: ='Operating Expenses & Energy'!X102 -> 0 | AE39: ='Operating Expenses & Energy'!Y102 -> 0 | AF39: ='Operating Expenses & Energy'!Z102 -> 0 | AG39: ='Operating Expenses & Energy'!AA102 -> 0 | AH39: ='Operating Expenses & Energy'!AB102 -> 0 | AI39: ='Operating Expenses & Energy'!AC102 -> 0 | AJ39: ='Operating Expenses & Energy'!AD102 -> 0 | AK39: ='Operating Expenses & Energy'!AE102 -> 0 | AL39: e
B40: 35 | C40: 15 | D40: 2046 | E40: 12 | F40: Yes | G40: Yes | H40: 0 | I40: 0 | J40: ='Operating Expenses & Energy'!D107 -> 0 | K40: ='Operating Expenses & Energy'!E103 -> 0 | L40: ='Operating Expenses & Energy'!F103 -> 0 | M40: ='Operating Expenses & Energy'!G103 -> 0 | N40: ='Operating Expenses & Energy'!H103 -> 0 | O40: ='Operating Expenses & Energy'!I103 -> 0 | P40: ='Operating Expenses & Energy'!J103 -> 0 | Q40: ='Operating Expenses & Energy'!K103 -> 0 | R40: ='Operating Expenses & Energy'!L103 -> 0 | S40: ='Operating Expenses & Energy'!M103 -> 0 | T40: ='Operating Expenses & Energy'!N103 -> 0 | U40: ='Operating Expenses & Energy'!O103 -> 0 | V40: ='Operating Expenses & Energy'!P103 -> 0 | W40: ='Operating Expenses & Energy'!Q103 -> 0 | X40: ='Operating Expenses & Energy'!R103 -> 0 | Y40: ='Operating Expenses & Energy'!S103 -> 0 | Z40: ='Operating Expenses & Energy'!T103 -> 0 | AA40: ='Operating Expenses & Energy'!U103 -> 0 | AB40: ='Operating Expenses & Energy'!V103 -> 0 | AC40: ='Operating Expenses & Energy'!W103 -> 0 | AD40: ='Operating Expenses & Energy'!X103 -> 0 | AE40: ='Operating Expenses & Energy'!Y103 -> 0 | AF40: ='Operating Expenses & Energy'!Z103 -> 0 | AG40: ='Operating Expenses & Energy'!AA103 -> 0 | AH40: ='Operating Expenses & Energy'!AB103 -> 0 | AI40: ='Operating Expenses & Energy'!AC103 -> 0 | AJ40: ='Operating Expenses & Energy'!AD103 -> 0 | AK40: ='Operating Expenses & Energy'!AE103 -> 0 | AL40: e
B41: 35 | C41: 15 | D41: 2015 | E41: 12 | F41: Yes | G41: Yes | H41: 0 | I41: 0 | J41: ='Operating Expenses & Energy'!D108 -> 0 | K41: ='Operating Expenses & Energy'!E104 -> 0 | L41: ='Operating Expenses & Energy'!F104 -> 0 | M41: ='Operating Expenses & Energy'!G104 -> 0 | N41: ='Operating Expenses & Energy'!H104 -> 0 | O41: ='Operating Expenses & Energy'!I104 -> 0 | P41: ='Operating Expenses & Energy'!J104 -> 0 | Q41: ='Operating Expenses & Energy'!K104 -> 0 | R41: ='Operating Expenses & Energy'!L104 -> 0 | S41: ='Operating Expenses & Energy'!M104 -> 0 | T41: ='Operating Expenses & Energy'!N104 -> 0 | U41: ='Operating Expenses & Energy'!O104 -> 0 | V41: ='Operating Expenses & Energy'!P104 -> 0 | W41: ='Operating Expenses & Energy'!Q104 -> 0 | X41: ='Operating Expenses & Energy'!R104 -> 0 | Y41: ='Operating Expenses & Energy'!S104 -> 0 | Z41: ='Operating Expenses & Energy'!T104 -> 0 | AA41: ='Operating Expenses & Energy'!U104 -> 0 | AB41: ='Operating Expenses & Energy'!V104 -> 0 | AC41: ='Operating Expenses & Energy'!W104 -> 0 | AD41: ='Operating Expenses & Energy'!X104 -> 0 | AE41: ='Operating Expenses & Energy'!Y104 -> 0 | AF41: ='Operating Expenses & Energy'!Z104 -> 0 | AG41: ='Operating Expenses & Energy'!AA104 -> 0 | AH41: ='Operating Expenses & Energy'!AB104 -> 0 | AI41: ='Operating Expenses & Energy'!AC104 -> 0 | AJ41: ='Operating Expenses & Energy'!AD104 -> 0 | AK41: ='Operating Expenses & Energy'!AE104 -> 0 | AL41: e
B42: 35 | C42: 15 | D42: 2015 | E42: 12 | F42: Yes | G42: Yes | H42: 0 | I42: 0 | J42: ='Operating Expenses & Energy'!D109 -> 0 | K42: ='Operating Expenses & Energy'!E105 -> 0 | L42: ='Operating Expenses & Energy'!F105 -> 0 | M42: ='Operating Expenses & Energy'!G105 -> 0 | N42: ='Operating Expenses & Energy'!H105 -> 0 | O42: ='Operating Expenses & Energy'!I105 -> 0 | P42: ='Operating Expenses & Energy'!J105 -> 0 | Q42: ='Operating Expenses & Energy'!K105 -> 0 | R42: ='Operating Expenses & Energy'!L105 -> 0 | S42: ='Operating Expenses & Energy'!M105 -> 0 | T42: ='Operating Expenses & Energy'!N105 -> 0 | U42: ='Operating Expenses & Energy'!O105 -> 0 | V42: ='Operating Expenses & Energy'!P105 -> 0 | W42: ='Operating Expenses & Energy'!Q105 -> 0 | X42: ='Operating Expenses & Energy'!R105 -> 0 | Y42: ='Operating Expenses & Energy'!S105 -> 0 | Z42: ='Operating Expenses & Energy'!T105 -> 0 | AA42: ='Operating Expenses & Energy'!U105 -> 0 | AB42: ='Operating Expenses & Energy'!V105 -> 0 | AC42: ='Operating Expenses & Energy'!W105 -> 0 | AD42: ='Operating Expenses & Energy'!X105 -> 0 | AE42: ='Operating Expenses & Energy'!Y105 -> 0 | AF42: ='Operating Expenses & Energy'!Z105 -> 0 | AG42: ='Operating Expenses & Energy'!AA105 -> 0 | AH42: ='Operating Expenses & Energy'!AB105 -> 0 | AI42: ='Operating Expenses & Energy'!AC105 -> 0 | AJ42: ='Operating Expenses & Energy'!AD105 -> 0 | AK42: ='Operating Expenses & Energy'!AE105 -> 0 | AL42: e
B43: 35 | C43: 15 | D43: 2015 | E43: 12 | F43: Yes | G43: Yes | H43: 0 | I43: 0 | J43: ='Operating Expenses & Energy'!D110 -> 0 | K43: ='Operating Expenses & Energy'!E106 -> 0 | L43: ='Operating Expenses & Energy'!F106 -> 0 | M43: ='Operating Expenses & Energy'!G106 -> 0 | N43: ='Operating Expenses & Energy'!H106 -> 0 | O43: ='Operating Expenses & Energy'!I106 -> 0 | P43: ='Operating Expenses & Energy'!J106 -> 0 | Q43: ='Operating Expenses & Energy'!K106 -> 0 | R43: ='Operating Expenses & Energy'!L106 -> 0 | S43: ='Operating Expenses & Energy'!M106 -> 0 | T43: ='Operating Expenses & Energy'!N106 -> 0 | U43: ='Operating Expenses & Energy'!O106 -> 0 | V43: ='Operating Expenses & Energy'!P106 -> 0 | W43: ='Operating Expenses & Energy'!Q106 -> 0 | X43: ='Operating Expenses & Energy'!R106 -> 0 | Y43: ='Operating Expenses & Energy'!S106 -> 0 | Z43: ='Operating Expenses & Energy'!T106 -> 0 | AA43: ='Operating Expenses & Energy'!U106 -> 0 | AB43: ='Operating Expenses & Energy'!V106 -> 0 | AC43: ='Operating Expenses & Energy'!W106 -> 0 | AD43: ='Operating Expenses & Energy'!X106 -> 0 | AE43: ='Operating Expenses & Energy'!Y106 -> 0 | AF43: ='Operating Expenses & Energy'!Z106 -> 0 | AG43: ='Operating Expenses & Energy'!AA106 -> 0 | AH43: ='Operating Expenses & Energy'!AB106 -> 0 | AI43: ='Operating Expenses & Energy'!AC106 -> 0 | AJ43: ='Operating Expenses & Energy'!AD106 -> 0 | AK43: ='Operating Expenses & Energy'!AE106 -> 0 | AL43: e
B44: 35 | C44: 15 | D44: 2015 | E44: 12 | F44: Yes | G44: Yes | AL44: e
B45: 35 | C45: 15 | D45: =D44+1 -> 2016 | E45: 12 | F45: Yes | G45: Yes | AL45: e
B46: 35 | C46: 15 | D46: =D45+1 -> 2017 | E46: 12 | F46: Yes | G46: Yes | AL46: e
B47: 35 | C47: 15 | D47: 2018 | E47: 12 | F47: Yes | G47: Yes | AL47: e
B48: 35 | C48: 15 | D48: 2019 | E48: 12 | F48: Yes | G48: Yes | AL48: e
B49: 35 | C49: 15 | D49: 2020 | E49: 12 | F49: Yes | G49: Yes | AL49: e
B50: 35 | C50: 15 | D50: 2021 | E50: 12 | F50: Yes | G50: Yes | AL50: e
B51: 35 | C51: 15 | D51: 2022 | E51: 12 | F51: Yes | G51: Yes | AL51: e
B52: 35 | C52: 15 | D52: 2023 | E52: 12 | F52: Yes | G52: Yes | AL52: e
B53: 35 | C53: 15 | D53: 2024 | E53: 12 | F53: Yes | G53: Yes | AL53: e
B54: 35 | C54: 15 | D54: 2025 | E54: 12 | F54: Yes | G54: Yes | AL54: e
B55: 35 | C55: 15 | D55: 2026 | E55: 12 | F55: Yes | G55: Yes | AL55: e
B56: 35 | C56: 15 | D56: 2027 | E56: 12 | F56: Yes | G56: Yes | AL56: e
B57: 35 | C57: 15 | D57: 2028 | E57: 12 | F57: Yes | G57: Yes | AL57: e
B58: 35 | C58: 15 | D58: 2029 | E58: 12 | F58: Yes | G58: Yes | AL58: e
B59: 35 | C59: 15 | D59: 2030 | E59: 12 | F59: Yes | G59: Yes | AL59: e
B60: 35 | C60: 15 | D60: 2031 | E60: 12 | F60: Yes | G60: Yes | AL60: e
B61: 35 | C61: 15 | D61: 2032 | E61: 12 | F61: Yes | G61: Yes | AL61: e
B62: 35 | C62: 15 | D62: 2033 | E62: 12 | F62: Yes | G62: Yes | AL62: e
B63: 35 | C63: 15 | D63: 2034 | E63: 12 | F63: Yes | G63: Yes | AL63: e
B64: 35 | C64: 15 | D64: 2035 | E64: 12 | F64: Yes | G64: Yes | AL64: e
B65: 35 | C65: 15 | D65: 2036 | E65: 12 | F65: Yes | G65: Yes | AL65: e
B66: 35 | C66: 15 | D66: 2037 | E66: 12 | F66: Yes | G66: Yes | AL66: e
B67: 35 | C67: 15 | D67: 2038 | E67: 12 | F67: Yes | G67: Yes | AL67: e
B68: 35 | C68: 15 | D68: 2039 | E68: 12 | F68: Yes | G68: Yes | AL68: e
B69: 35 | C69: 15 | D69: 2040 | E69: 12 | F69: Yes | G69: Yes | AL69: e
B70: 35 | C70: 15 | D70: 2041 | E70: 12 | F70: Yes | G70: Yes | AL70: e
B71: 35 | C71: 15 | D71: 2042 | E71: 12 | F71: Yes | G71: Yes | AL71: e
B72: 35 | C72: 15 | D72: 2015 | E72: 12 | F72: Yes | G72: Yes | AL72: e
B73: 35 | C73: 15 | D73: 2016 | E73: 12 | F73: Yes | G73: Yes | AL73: e
B74: 35 | C74: 15 | D74: 2016 | E74: 12 | F74: Yes | G74: Yes | AL74: e
B75: 35 | C75: 15 | D75: 2019 | E75: 12 | F75: Yes | G75: Yes | AL75: e
B76: 35 | C76: 15 | D76: 2015 | E76: 12 | F76: Yes | G76: Yes | AL76: e
B77: 35 | C77: 15 | D77: 2015 | E77: 12 | F77: Yes | G77: Yes | AL77: e
B78: 35 | C78: 15 | D78: 2015 | E78: 12 | F78: Yes | G78: Yes | AL78: e
B79: 35 | C79: 15 | D79: 2015 | E79: 12 | F79: Yes | G79: Yes | AL79: e
B80: 35 | C80: 15 | D80: 2015 | E80: 12 | F80: Yes | G80: Yes | AL80: e
B81: 35 | C81: 15 | D81: 2015 | E81: 12 | F81: Yes | G81: Yes | AL81: e
B82: 35 | C82: 15 | D82: 2015 | E82: 12 | F82: Yes | G82: Yes | AL82: e
B83: 35 | C83: 15 | D83: 2015 | E83: 12 | F83: Yes | G83: Yes | AL83: e
B84: 35 | C84: 15 | D84: 2015 | E84: 12 | F84: Yes | G84: Yes | AL84: e
B85: 35 | C85: 15 | D85: 2015 | E85: 12 | F85: Yes | G85: Yes | AL85: e
B86: 35 | C86: 15 | D86: 2015 | E86: 12 | F86: Yes | G86: Yes | AL86: e
B87: 35 | C87: 15 | D87: 2015 | E87: 12 | F87: Yes | G87: Yes | AL87: e
B88: 35 | C88: 15 | D88: 2015 | E88: 12 | F88: Yes | G88: Yes | AL88: e
B89: 35 | C89: 15 | D89: 2015 | E89: 12 | F89: Yes | G89: Yes | AL89: e
B90: 35 | C90: 15 | D90: 2015 | E90: 12 | F90: Yes | G90: Yes | AL90: e
B91: 35 | C91: 15 | D91: 2015 | E91: 12 | F91: Yes | G91: Yes | AL91: e
A92: Capital Expenditures | H92: =SUM(H10:H91) -> 5000000 | I92: 42000000 | J92: 19000000 | K92: 6500 | L92: 0 | M92: 6880 | N92: 97605 | O92: 7281 | P92: 299111 | Q92: 7707 | R92: 0 | S92: 208858 | T92: 0 | U92: 8634 | V92: 0 | W92: 352970 | X92: 315256 | Y92: 9674 | Z92: 0 | AA92: 10240 | AB92: 0 | AC92: 0 | AD92: 991014 | AE92: 0 | AF92: 0 | AG92: 0 | AH92: 0 | AI92: 0 | AJ92: 0 | AK92: 0
A95: Gross Plant | H95: =SUM(IF(Close_Date<=H8,$H$10:H91)) -> 5000000 | I95: =SUM(IF(Close_Date<=I8,$H$10:I91)) -> 47000000 | J95: =SUM(IF(Close_Date<=J8,$H$10:J91)) -> 66000000 | K95: =SUM(IF(Close_Date<=K8,$H$10:K91)) -> 66006500 | L95: =SUM(IF(Close_Date<=L8,$H$10:L91)) -> 66006500 | M95: =SUM(IF(Close_Date<=M8,$H$10:M91)) -> 66013380 | N95: =SUM(IF(Close_Date<=N8,$H$10:N91)) -> 66110985 | O95: =SUM(IF(Close_Date<=O8,$H$10:O91)) -> 66118266 | P95: =SUM(IF(Close_Date<=P8,$H$10:P91)) -> 66417377 | Q95: =SUM(IF(Close_Date<=Q8,$H$10:Q91)) -> 66425084 | R95: =SUM(IF(Close_Date<=R8,$H$10:R91)) -> 66425084 | S95: =SUM(IF(Close_Date<=S8,$H$10:S91)) -> 66633942 | T95: =SUM(IF(Close_Date<=T8,$H$10:T91)) -> 66633942 | U95: =SUM(IF(Close_Date<=U8,$H$10:U91)) -> 66642576 | V95: =SUM(IF(Close_Date<=V8,$H$10:V91)) -> 66642576 | W95: =SUM(IF(Close_Date<=W8,$H$10:W91)) -> 66995546 | X95: =SUM(IF(Close_Date<=X8,$H$10:X91)) -> 67310802 | Y95: =SUM(IF(Close_Date<=Y8,$H$10:Y91)) -> 67320476 | Z95: =SUM(IF(Close_Date<=Z8,$H$10:Z91)) -> 67320476 | AA95: =SUM(IF(Close_Date<=AA8,$H$10:AA91)) -> 67330716 | AB95: =SUM(IF(Close_Date<=AB8,$H$10:AB91)) -> 67330716 | AC95: =SUM(IF(Close_Date<=AC8,$H$10:AC91)) -> 67330716 | AD95: =SUM(IF(Close_Date<=AD8,$H$10:AD91)) -> 68321730 | AE95: =SUM(IF(Close_Date<=AE8,$H$10:AE91)) -> 68321730 | AF95: =SUM(IF(Close_Date<=AF8,$H$10:AF91)) -> 68321730 | AG95: =SUM(IF(Close_Date<=AG8,$H$10:AG91)) -> 68321730 | AH95: =SUM(IF(Close_Date<=AH8,$H$10:AH91)) -> 68321730 | AI95: =SUM(IF(Close_Date<=AI8,$H$10:AI91)) -> 68321730 | AJ95: =SUM(IF(Close_Date<=AJ8,$H$10:AJ91)) -> 68321730 | AK95: =SUM(IF(Close_Date<=AK8,$H$10:AK91)) -> 68321730
A97: Book Depr | H97: ='Plant(Input)'!C43 -> 9259.259259 | I97: ='Plant(Input)'!D43 -> 188888.8889 | J97: ='Plant(Input)'!E43 -> 1079629.63 | K97: ='Plant(Input)'!F43 -> 1466684.722 | L97: ='Plant(Input)'!G43 -> 1466883.333 | M97: ='Plant(Input)'!H43 -> 1466902.444 | N97: ='Plant(Input)'!I43 -> 1467383.792 | O97: ='Plant(Input)'!J43 -> 1470386.392 | P97: ='Plant(Input)'!K43 -> 1471439.731 | Q97: ='Plant(Input)'!L43 -> 1480600.642 | R97: ='Plant(Input)'!M43 -> 1480836.133 | S97: ='Plant(Input)'!N43 -> 1481416.294 | T97: ='Plant(Input)'!O43 -> 1487798.067 | U97: ='Plant(Input)'!P43 -> 1487822.05 | V97: ='Plant(Input)'!Q43 -> 1488085.867 | W97: ='Plant(Input)'!R43 -> 1489066.339 | X97: ='Plant(Input)'!S43 -> 1500727.244 | Y97: ='Plant(Input)'!T43 -> 1510386.939 | Z97: ='Plant(Input)'!U43 -> 1510682.533 | AA97: ='Plant(Input)'!V43 -> 1510710.978 | AB97: ='Plant(Input)'!W43 -> 1511023.867 | AC97: ='Plant(Input)'!X43 -> 1511023.867 | AD97: ='Plant(Input)'!Y43 -> 1529900.324 | AE97: ='Plant(Input)'!Z43 -> 1539338.552 | AF97: ='Plant(Input)'!AA43 -> 1539338.552 | AG97: ='Plant(Input)'!AB43 -> 1539338.552 | AH97: ='Plant(Input)'!AC43 -> 1539338.552 | AI97: ='Plant(Input)'!AD43 -> 1539338.552 | AJ97: ='Plant(Input)'!AE43 -> 1539338.552 | AK97: ='Plant(Input)'!AF43 -> 1539338.552
A99: Tax Depr
A102: Cum Closed to Plant | H102: =H95 -> 5000000 | I102: =I95 -> 47000000 | J102: 66000000 | K102: 66006500 | L102: 66006500 | M102: 66013380 | N102: 66110985 | O102: 66118266 | P102: 66417377 | Q102: 66425084 | R102: 66425084 | S102: 66633942 | T102: 66633942 | U102: 66642576 | V102: 66642576 | W102: 66995546 | X102: 67310802 | Y102: 67320476 | Z102: =Z95 -> 67320476 | AA102: 67330716 | AB102: 67330716 | AC102: 67330716 | AD102: 68321730 | AE102: 68321730 | AF102: 68321730 | AG102: 68321730 | AH102: 68321730 | AI102: 68321730 | AJ102: 68321730 | AK102: 68321730

Sheet Plant(Input)
B8: =Start_Year-1 -> 2019 | C8: =B8+1 -> 2020 | D8: 2021 | E8: 2022 | F8: 2023 | G8: 2024 | H8: 2025 | I8: 2026 | J8: 2027 | K8: 2028 | L8: 2029 | M8: 2030 | N8: 2031 | O8: 2032 | P8: 2033 | Q8: 2034 | R8: 2035 | S8: 2036 | T8: 2037 | U8: 2038 | V8: 2039 | W8: 2040 | X8: 2041 | Y8: 2042 | Z8: 2043 | AA8: 2044 | AB8: 2045 | AC8: 2046 | AD8: 2047 | AE8: 2048 | AF8: 2049
A10: SUNK PLANT
A11: Gross Plant | C11: =B11 -> 0 | D11: =C11 -> 0 | E11: 0 | F11: 0 | G11: 0 | H11: 0 | I11: 0 | J11: 0 | K11: 0 | L11: 0 | M11: 0 | N11: 0 | O11: 0 | P11: 0 | Q11: 0 | R11: 0 | S11: 0 | T11: 0 | U11: 0 | V11: 0 | W11: 0 | X11: 0 | Y11: 0 | Z11: 0 | AA11: 0 | AB11: 0 | AC11: 0 | AD11: 0 | AE11: 0 | AF11: =AE11 -> 0
A12: Book Depreciation
A13: Accumulated Depreciation | C13: =B13+C12 -> 0 | D13: 0 | E13: 0 | F13: 0 | G13: 0 | H13: 0 | I13: 0 | J13: 0 | K13: 0 | L13: 0 | M13: 0 | N13: 0 | O13: 0 | P13: 0 | Q13: 0 | R13: 0 | S13: 0 | T13: 0 | U13: 0 | V13: 0 | W13: 0 | X13: 0 | Y13: 0 | Z13: 0 | AA13: 0 | AB13: 0 | AC13: 0 | AD13: 0 | AE13: 0 | AF13: 0
A14: Net Plant | B14: =B11-B13 -> 0 | C14: =IF(C11-C13>0,C11-C13,0) -> 0 | D14: 0 | E14: 0 | F14: 0 | G14: 0 | H14: 0 | I14: 0 | J14: 0 | K14: 0 | L14: 0 | M14: 0 | N14: 0 | O14: 0 | P14: 0 | Q14: 0 | R14: 0 | S14: 0 | T14: 0 | U14: 0 | V14: 0 | W14: 0 | X14: 0 | Y14: 0 | Z14: 0 | AA14: 0 | AB14: 0 | AC14: 0 | AD14: 0 | AE14: 0 | AF14: 0
A16: Tax Depreciation
A18: Beg Accum Deferred Tax | C18: =+B20 -> 0 | D18: 0 | E18: 0 | F18: 0 | G18: 0 | H18: 0 | I18: 0 | J18: 0 | K18: 0 | L18: 0 | M18: 0 | N18: 0 | O18: 0 | P18: 0 | Q18: 0 | R18: 0 | S18: 0 | T18: 0 | U18: 0 | V18: 0 | W18: 0 | X18: 0 | Y18: 0 | Z18: 0 | AA18: 0 | AB18: 0 | AC18: 0 | AD18: 0 | AE18: 0 | AF18: 0
A19: Deferred Taxes
A20: Ending Accum Deferred Taxes | B20: =B18+B19 -> 0 | C20: 0 | D20: 0 | E20: 0 | F20: 0 | G20: 0 | H20: 0 | I20: 0 | J20: 0 | K20: 0 | L20: 0 | M20: 0 | N20: 0 | O20: 0 | P20: 0 | Q20: 0 | R20: 0 | S20: 0 | T20: 0 | U20: 0 | V20: 0 | W20: 0 | X20: 0 | Y20: 0 | Z20: 0 | AA20: 0 | AB20: 0 | AC20: 0 | AD20: 0 | AE20: 0 | AF20: 0
A22: Average Net Plant(1) | B22: =B14+B12/2 -> 0 | C22: =(B14+C14)/2 -> 0 | D22: 0 | E22: 0 | F22: 0 | G22: 0 | H22: 0 | I22: 0 | J22: 0 | K22: 0 | L22: 0 | M22: 0 | N22: 0 | O22: 0 | P22: 0 | Q22: 0 | R22: 0 | S22: 0 | T22: 0 | U22: 0 | V22: 0 | W22: 0 | X22: 0 | Y22: 0 | Z22: 0 | AA22: 0 | AB22: 0 | AC22: 0 | AD22: 0 | AE22: 0 | AF22: 0
A23: Average Accum Deferred Taxes(2) | B23: =B20-B19/2 -> 0 | C23: =(B20+C20)/2 -> 0 | D23: 0 | E23: 0 | F23: 0 | G23: 0 | H23: 0 | I23: 0 | J23: 0 | K23: 0 | L23: 0 | M23: 0 | N23: 0 | O23: 0 | P23: 0 | Q23: 0 | R23: 0 | S23: 0 | T23: 0 | U23: 0 | V23: 0 | W23: 0 | X23: 0 | Y23: 0 | Z23: 0 | AA23: 0 | AB23: 0 | AC23: 0 | AD23: 0 | AE23: 0 | AF23: 0
A24: Existing Rate Base(1)-(2) | B24: =B22-B23 -> 0 | C24: 0 | D24: 0 | E24: 0 | F24: 0 | G24: 0 | H24: 0 | I24: 0 | J24: 0 | K24: 0 | L24: 0 | M24: 0 | N24: 0 | O24: 0 | P24: 0 | Q24: 0 | R24: 0 | S24: 0 | T24: 0 | U24: 0 | V24: 0 | W24: 0 | X24: 0 | Y24: 0 | Z24: 0 | AA24: 0 | AB24: 0 | AC24: 0 | AD24: 0 | AE24: 0 | AF24: 0
A26: NEW PLANT
A27: Gross Plant | C27: ='Capital Projects (Nominal)'!H95+'Capital Projects (Nominal)'!H187 -> 5000000 | D27: ='Capital Projects (Nominal)'!I95+'Capital Projects (Nominal)'!I187 -> 47000000 | E27: ='Capital Projects (Nominal)'!J95+'Capital Projects (Nominal)'!J187 -> 66000000 | F27: ='Capital Projects (Nominal)'!K95+'Capital Projects (Nominal)'!K187 -> 66006500 | G27: ='Capital Projects (Nominal)'!L95+'Capital Projects (Nominal)'!L187 -> 66006500 | H27: ='Capital Projects (Nominal)'!M95+'Capital Projects (Nominal)'!M187 -> 66013380 | I27: ='Capital Projects (Nominal)'!N95+'Capital Projects (Nominal)'!N187 -> 66110985 | J27: ='Capital Projects (Nominal)'!O95+'Capital Projects (Nominal)'!O187 -> 66118266 | K27: ='Capital Projects (Nominal)'!P95+'Capital Projects (Nominal)'!P187 -> 66417377 | L27: ='Capital Projects (Nominal)'!Q95+'Capital Projects (Nominal)'!Q187 -> 66425084 | M27: ='Capital Projects (Nominal)'!R95+'Capital Projects (Nominal)'!R187 -> 66425084 | N27: ='Capital Projects (Nominal)'!S95+'Capital Projects (Nominal)'!S187 -> 66633942 | O27: ='Capital Projects (Nominal)'!T95+'Capital Projects (Nominal)'!T187 -> 66633942 | P27: ='Capital Projects (Nominal)'!U95+'Capital Projects (Nominal)'!U187 -> 66642576 | Q27: ='Capital Projects (Nominal)'!V95+'Capital Projects (Nominal)'!V187 -> 66642576 | R27: ='Capital Projects (Nominal)'!W95+'Capital Projects (Nominal)'!W187 -> 66995546 | S27: ='Capital Projects (Nominal)'!X95+'Capital Projects (Nominal)'!X187 -> 67310802 | T27: ='Capital Projects (Nominal)'!Y95+'Capital Projects (Nominal)'!Y187 -> 67320476 | U27: ='Capital Projects (Nominal)'!Z95+'Capital Projects (Nominal)'!Z187 -> 67320476 | V27: ='Capital Projects (Nominal)'!AA95+'Capital Projects (Nominal)'!AA187 -> 67330716 | W27: ='Capital Projects (Nominal)'!AB95+'Capital Projects (Nominal)'!AB187 -> 67330716 | X27: ='Capital Projects (Nominal)'!AC95+'Capital Projects (Nominal)'!AC187 -> 67330716 | Y27: ='Capital Projects (Nominal)'!AD95+'Capital Projects (Nominal)'!AD187 -> 68321730 | Z27: ='Capital Projects (Nominal)'!AE95+'Capital Projects (Nominal)'!AE187 -> 68321730 | AA27: ='Capital Projects (Nominal)'!AF95+'Capital Projects (Nominal)'!AF187 -> 68321730 | AB27: ='Capital Projects (Nominal)'!AG95+'Capital Projects (Nominal)'!AG187 -> 68321730 | AC27: ='Capital Projects (Nominal)'!AH95+'Capital Projects (Nominal)'!AH187 -> 68321730 | AD27: ='Capital Projects (Nominal)'!AI95+'Capital Projects (Nominal)'!AI187 -> 68321730 | AE27: ='Capital Projects (Nominal)'!AJ95+'Capital Projects (Nominal)'!AJ187 -> 68321730 | AF27: ='Capital Projects (Nominal)'!AK95+'Capital Projects (Nominal)'!AK187 -> 68321730
A28: Book Depreciation | B28: 0 | C28: ='Book Depreciation'!B88 -> 9259.259259 | D28: ='Book Depreciation'!C88 -> 188888.8889 | E28: ='Book Depreciation'!D88 -> 1079629.63 | F28: ='Book Depreciation'!E88 -> 1466684.722 | G28: ='Book Depreciation'!F88 -> 1466883.333 | H28: ='Book Depreciation'!G88 -> 1466902.444 | I28: ='Book Depreciation'!H88 -> 1467383.792 | J28: ='Book Depreciation'!I88 -> 1470386.392 | K28: ='Book Depreciation'!J88 -> 1471439.731 | L28: ='Book Depreciation'!K88 -> 1480600.642 | M28: ='Book Depreciation'!L88 -> 1480836.133 | N28: ='Book Depreciation'!M88 -> 1481416.294 | O28: ='Book Depreciation'!N88 -> 1487798.067 | P28: ='Book Depreciation'!O88 -> 1487822.05 | Q28: ='Book Depreciation'!P88 -> 1488085.867 | R28: ='Book Depreciation'!Q88 -> 1489066.339 | S28: ='Book Depreciation'!R88 -> 1500727.244 | T28: ='Book Depreciation'!S88 -> 1510386.939 | U28: ='Book Depreciation'!T88 -> 1510682.533 | V28: ='Book Depreciation'!U88 -> 1510710.978 | W28: ='Book Depreciation'!V88 -> 1511023.867 | X28: ='Book Depreciation'!W88 -> 1511023.867 | Y28: ='Book Depreciation'!X88 -> 1529900.324 | Z28: ='Book Depreciation'!Y88 -> 1539338.552 | AA28: ='Book Depreciation'!Z88 -> 1539338.552 | AB28: ='Book Depreciation'!AA88 -> 1539338.552 | AC28: ='Book Depreciation'!AB88 -> 1539338.552 | AD28: ='Book Depreciation'!AC88 -> 1539338.552 | AE28: ='Book Depreciation'!AD88 -> 1539338.552 | AF28: ='Book Depreciation'!AE88 -> 1539338.552
A29: Accumulated Depreciation | B29: 0 | C29: =B29+C28 -> 9259.259259 | D29: 198148.1481 | E29: 1277777.778 | F29: 2744462.5 | G29: 4211345.833 | H29: 5678248.278 | I29: 7145632.069 | J29: 8616018.461 | K29: 10087458.19 | L29: 11568058.83 | M29: 13048894.97 | N29: 14530311.26 | O29: 16018109.33 | P29: 17505931.38 | Q29: 18994017.24 | R29: 20483083.58 | S29: 21983810.83 | T29: 23494197.77 | U29: 25004880.3 | V29: 26515591.28 | W29: 28026615.14 | X29: 29537639.01 | Y29: 31067539.33 | Z29: 32606877.89 | AA29: 34146216.44 | AB29: 35685554.99 | AC29: 37224893.54 | AD29: 38764232.1 | AE29: 40303570.65 | AF29: 41842909.2
A30: Net Plant | B30: =B27-B29 -> 0 | C30: =IF(C27-C29>0,C27-C29,0) -> 4990740.741 | D30: 46801851.85 | E30: 64722222.22 | F30: 63262037.5 | G30: 61795154.17 | H30: 60335131.72 | I30: 58965352.93 | J30: 57502247.54 | K30: 56329918.81 | L30: 54857025.17 | M30: 53376189.03 | N30: 52103630.74 | O30: 50615832.67 | P30: 49136644.62 | Q30: 47648558.76 | R30: 46512462.42 | S30: 45326991.17 | T30: 43826278.23 | U30: 42315595.7 | V30: 40815124.72 | W30: 39304100.86 | X30: 37793076.99 | Y30: 37254190.67 | Z30: 35714852.11 | AA30: 34175513.56 | AB30: 32636175.01 | AC30: 31096836.46 | AD30: 29557497.9 | AE30: 28018159.35 | AF30: 26478820.8
A32: Tax Depreciation | C32: ='Tax Depreciation'!B264 -> 64200 | D32: ='Tax Depreciation'!C264 -> 667480 | E32: ='Tax Depreciation'!D264 -> 1449040 | F32: ='Tax Depreciation'!E264 -> 1692565 | G32: ='Tax Depreciation'!F264 -> 1692857.5 | H32: ='Tax Depreciation'!G264 -> 1693139.75 | I32: ='Tax Depreciation'!H264 -> 1698274.35 | J32: ='Tax Depreciation'!I264 -> 1702914.565 | K32: ='Tax Depreciation'!J264 -> 1717167.183 | L32: ='Tax Depreciation'!K264 -> 1730039.251 | M32: ='Tax Depreciation'!L264 -> 1726673.833 | N32: ='Tax Depreciation'!M264 -> 1733748.79 | O32: ='Tax Depreciation'!N264 -> 1740386.25 | P32: ='Tax Depreciation'!O264 -> 1736686.519 | Q32: ='Tax Depreciation'!P264 -> 1734289.423 | R32: ='Tax Depreciation'!Q264 -> 1750202.145 | S32: ='Tax Depreciation'!R264 -> 1780334.086 | T32: ='Tax Depreciation'!S264 -> 1790915.4 | U32: ='Tax Depreciation'!T264 -> 1785100.978 | V32: ='Tax Depreciation'!U264 -> 1779871.455 | W32: ='Tax Depreciation'!V264 -> 1775149.136 | X32: ='Tax Depreciation'!W264 -> 1768543.27 | Y32: ='Tax Depreciation'!X264 -> 1813872.625 | Z32: ='Tax Depreciation'!Y264 -> 1849172.219 | AA32: ='Tax Depreciation'!Z264 -> 1830751.59 | AB32: ='Tax Depreciation'!AA264 -> 1822070.929 | AC32: ='Tax Depreciation'!AB264 -> 1808075.28 | AD32: ='Tax Depreciation'!AC264 -> 1795159.516 | AE32: ='Tax Depreciation'!AD264 -> 1791729.251 | AF32: ='Tax Depreciation'!AE264 -> 1791478.001
A34: Beg Accum Deferred Tax | C34: =B36 -> 0 | D34: 19229.25926 | E34: 186736.1481 | F34: 316029.7778 | G34: 395087.875 | H34: 474178.8333 | I34: 553361.8903 | J34: 634173.5857 | K34: 715558.4464 | L34: 801563.0545 | M34: 888866.568 | N34: 974909.7627 | O34: 1063226.136 | P34: 1151632 | Q34: 1238734.565 | R34: 1324905.809 | S34: 1416303.341 | T34: 1514165.736 | U34: 1612350.697 | V34: 1708397.153 | W34: 1802603.32 | X34: 1895047.164 | Y34: 1985178.955 | Z34: 2084569.261 | AA34: 2193011.044 | AB34: 2295005.607 | AC34: 2393961.939 | AD34: 2488019.794 | AE34: 2577557.131 | AF34: 2665893.875
A35: Deferred Taxes | C35: ='Tax Depreciation'!B266 -> 19229.25926 | D35: ='Tax Depreciation'!C266 -> 167506.8889 | E35: ='Tax Depreciation'!D266 -> 129293.6296 | F35: ='Tax Depreciation'!E266 -> 79058.09722 | G35: ='Tax Depreciation'!F266 -> 79090.95833 | H35: ='Tax Depreciation'!G266 -> 79183.05694 | I35: ='Tax Depreciation'!H266 -> 80811.69542 | J35: ='Tax Depreciation'!I266 -> 81384.86067 | K35: ='Tax Depreciation'!J266 -> 86004.60818 | L35: ='Tax Depreciation'!K266 -> 87303.51344 | M35: ='Tax Depreciation'!L266 -> 86043.19471 | N35: ='Tax Depreciation'!M266 -> 88316.37351 | O35: ='Tax Depreciation'!N266 -> 88405.86417 | P35: ='Tax Depreciation'!O266 -> 87102.56425 | Q35: ='Tax Depreciation'!P266 -> 86171.24465 | R35: ='Tax Depreciation'!Q266 -> 91397.53214 | S35: ='Tax Depreciation'!R266 -> 97862.39447 | T35: ='Tax Depreciation'!S266 -> 98184.96139 | U35: ='Tax Depreciation'!T266 -> 96046.45577 | V35: ='Tax Depreciation'!U266 -> 94206.16689 | W35: ='Tax Depreciation'!V266 -> 92443.8442 | X35: ='Tax Depreciation'!W266 -> 90131.79124 | Y35: ='Tax Depreciation'!X266 -> 99390.30538 | Z35: ='Tax Depreciation'!Y266 -> 108441.7833 | AA35: ='Tax Depreciation'!Z266 -> 101994.5631 | AB35: ='Tax Depreciation'!AA266 -> 98956.33189 | AC35: ='Tax Depreciation'!AB266 -> 94057.85467 | AD35: ='Tax Depreciation'!AC266 -> 89537.33713 | AE35: ='Tax Depreciation'!AD266 -> 88336.74445 | AF35: ='Tax Depreciation'!AE266 -> 88248.80716
A36: Ending Accum Deferred Taxes | B36: =B34+B35 -> 0 | C36: 19229.25926 | D36: 186736.1481 | E36: 316029.7778 | F36: 395087.875 | G36: 474178.8333 | H36: 553361.8903 | I36: 634173.5857 | J36: 715558.4464 | K36: 801563.0545 | L36: 888866.568 | M36: 974909.7627 | N36: 1063226.136 | O36: 1151632 | P36: 1238734.565 | Q36: 1324905.809 | R36: 1416303.341 | S36: 1514165.736 | T36: 1612350.697 | U36: 1708397.153 | V36: 1802603.32 | W36: 1895047.164 | X36: 1985178.955 | Y36: 2084569.261 | Z36: 2193011.044 | AA36: 2295005.607 | AB36: 2393961.939 | AC36: 2488019.794 | AD36: 2577557.131 | AE36: 2665893.875 | AF36: 2754142.682
